Workbook

Sheet Gráficos (hidden)
B2: IP | C2: =-SUM(#REF!) -> #REF! | E2: =C2/SUM($C$2:$C$4) -> #REF!
B3: EE | C3: =-SUM('PAINEL DE CONTROLE'!E114:E116,'PAINEL DE CONTROLE'!E118:E119) -> #ERROR! | E3: #ERROR!
B4: CI | C4: =-SUM(#REF!) -> #REF! | E4: #REF!
B7: Receita Operacional Bruta
B9: Ano | C9: 1 | D9: =C9+1 -> 2 | E9: 3 | F9: 4 | G9: 5 | H9: 6 | I9: 7 | J9: 8 | K9: 9 | L9: 10 | M9: 11 | N9: 12 | O9: 13 | P9: 14 | Q9: 15 | R9: 16 | S9: 17 | T9: 18 | U9: 19 | V9: 20 | W9: 21 | X9: 22 | Y9: 23 | Z9: 24 | AA9: 25
B11: Contraprestação | C11: =DFs!L8 -> 2483564.063 | D11: =DFs!M8 -> 5635325.124 | E11: =DFs!N8 -> 5913247.769 | F11: =DFs!O8 -> 5913247.769 | G11: =DFs!P8 -> 5913247.769 | H11: =DFs!Q8 -> 5913247.769 | I11: =DFs!R8 -> 5913247.769 | J11: =DFs!S8 -> 5913247.769 | K11: =DFs!T8 -> 5913247.769 | L11: =DFs!U8 -> 5913247.769 | M11: =DFs!V8 -> 5913247.769 | N11: =DFs!W8 -> 5913247.769 | O11: =DFs!X8 -> 5913247.769 | P11: =DFs!Y8 -> 5913247.769 | Q11: =DFs!Z8 -> 5913247.769 | R11: =DFs!AA8 -> 5913247.769 | S11: =DFs!AB8 -> 5913247.769 | T11: =DFs!AC8 -> 5913247.769 | U11: =DFs!AD8 -> 5913247.769 | V11: =DFs!AE8 -> 5913247.769 | W11: =DFs!AF8 -> 5913247.769 | X11: =DFs!AG8 -> 5913247.769 | Y11: =DFs!AH8 -> 5913247.769 | Z11: =DFs!AI8 -> 5913247.769 | AA11: =DFs!AJ8 -> 5913247.769
B12: Total | C12: =SUM(C11)/1000000 -> 2.483564063 | D12: 5.635325124 | E12: 5.913247769 | F12: 5.913247769 | G12: 5.913247769 | H12: 5.913247769 | I12: 5.913247769 | J12: 5.913247769 | K12: 5.913247769 | L12: 5.913247769 | M12: 5.913247769 | N12: 5.913247769 | O12: 5.913247769 | P12: 5.913247769 | Q12: 5.913247769 | R12: 5.913247769 | S12: 5.913247769 | T12: 5.913247769 | U12: 5.913247769 | V12: 5.913247769 | W12: 5.913247769 | X12: 5.913247769 | Y12: 5.913247769 | Z12: 5.913247769 | AA12: 5.913247769
J20: =11.3/11.9-1 -> -0.05042016807
B35: Receita de Contraprestação
B37: Ano | C37: 1 | D37: =C37+1 -> 2 | E37: 3 | F37: 4 | G37: 5 | H37: 6 | I37: 7 | J37: 8 | K37: 9 | L37: 10 | M37: 11 | N37: 12 | O37: 13 | P37: 14 | Q37: 15 | R37: 16 | S37: 17 | T37: 18 | U37: 19 | V37: 20 | W37: 21 | X37: 22 | Y37: 23 | Z37: 24 | AA37: 25
B39: EE | C39: =DFs!L8/1000000 -> 2.483564063 | D39: =DFs!M8/1000000 -> 5.635325124 | E39: =DFs!N8/1000000 -> 5.913247769 | F39: =DFs!O8/1000000 -> 5.913247769 | G39: =DFs!P8/1000000 -> 5.913247769 | H39: =DFs!Q8/1000000 -> 5.913247769 | I39: =DFs!R8/1000000 -> 5.913247769 | J39: =DFs!S8/1000000 -> 5.913247769 | K39: =DFs!T8/1000000 -> 5.913247769 | L39: =DFs!U8/1000000 -> 5.913247769 | M39: =DFs!V8/1000000 -> 5.913247769 | N39: =DFs!W8/1000000 -> 5.913247769 | O39: =DFs!X8/1000000 -> 5.913247769 | P39: =DFs!Y8/1000000 -> 5.913247769 | Q39: =DFs!Z8/1000000 -> 5.913247769 | R39: =DFs!AA8/1000000 -> 5.913247769 | S39: =DFs!AB8/1000000 -> 5.913247769 | T39: =DFs!AC8/1000000 -> 5.913247769 | U39: =DFs!AD8/1000000 -> 5.913247769 | V39: =DFs!AE8/1000000 -> 5.913247769 | W39: =DFs!AF8/1000000 -> 5.913247769 | X39: =DFs!AG8/1000000 -> 5.913247769 | Y39: =DFs!AH8/1000000 -> 5.913247769 | Z39: =DFs!AI8/1000000 -> 5.913247769 | AA39: =DFs!AJ8/1000000 -> 5.913247769
B40: Total | C40: =SUM(C39) -> 2.483564063 | D40: 5.635325124 | E40: 5.913247769 | F40: 5.913247769 | G40: 5.913247769 | H40: 5.913247769 | I40: 5.913247769 | J40: 5.913247769 | K40: 5.913247769 | L40: 5.913247769 | M40: 5.913247769 | N40: 5.913247769 | O40: 5.913247769 | P40: 5.913247769 | Q40: 5.913247769 | R40: 5.913247769 | S40: 5.913247769 | T40: 5.913247769 | U40: 5.913247769 | V40: 5.913247769 | W40: 5.913247769 | X40: 5.913247769 | Y40: 5.913247769 | Z40: 5.913247769 | AA40: 5.913247769
E41: =SUM(C40:V40)*1000000 -> 114557349 | F41: =E41*5% -> 5727867.452 | G41: =F41/2 -> 2863933.726 | H41: =H40*1000000 -> 5913247.769 | I41: =H41/12 -> 492770.6474 | O41: 19.45991881
E42: =E41/1000000 -> 114.557349 | F42: 5.727867452 | G42: 2.863933726 | O42: =O40/O41-1 -> -0.6961319403
B64: Análise do Consumo do Limite da RCL com a PPP
B66: Ano | C66: 1 | D66: =C66+1 -> 2 | E66: 3 | F66: 4 | G66: 5 | H66: 6 | I66: 7 | J66: 8 | K66: 9 | L66: 10 | M66: 11 | N66: 12 | O66: 13 | P66: 14 | Q66: 15 | R66: 16 | S66: 17 | T66: 18 | U66: 19 | V66: 20 | W66: 21 | X66: 22 | Y66: 23 | Z66: 24 | AA66: 25
B68: RCL | C68: =2008392388.6/1000000 -> 2008.392389 | D68: =C68*(1+D69) -> 2317.799895 | E68: 2674.873887 | F68: 3086.957733 | G68: 3562.526103 | H68: 4111.359252 | I68: 4744.744153 | J68: 5475.706621 | K68: 6319.279193 | L68: 7292.810277 | M68: 8416.32093 | N68: 9712.916599 | O68: 11209.2623 | P68: 12936.13097 | Q68: 14929.03636 | R68: 17228.96338 | S68: 19883.21094 | T68: 22946.36472 | U68: 26481.41969 | V68: 30561.07567 | W68: 35269.23245 | X68: 40702.71513 | Y68: 46973.26549 | Z68: 54209.83989 | AA68: 62561.2614
B69: %crescimento | D69: =$K$78 -> 0.1540572989 | E69: =D69 -> 0.1540572989 | F69: 0.1540572989 | G69: 0.1540572989 | H69: 0.1540572989 | I69: 0.1540572989 | J69: 0.1540572989 | K69: 0.1540572989 | L69: 0.1540572989 | M69: 0.1540572989 | N69: 0.1540572989 | O69: 0.1540572989 | P69: 0.1540572989 | Q69: 0.1540572989 | R69: 0.1540572989 | S69: 0.1540572989 | T69: 0.1540572989 | U69: 0.1540572989 | V69: 0.1540572989 | W69: 0.1540572989 | X69: 0.1540572989 | Y69: 0.1540572989 | Z69: 0.1540572989 | AA69: 0.1540572989
B70: Limite da RCL (5%) | C70: =5%*C68 -> 100.4196194 | D70: 115.8899948 | E70: 133.7436943 | F70: 154.3478866 | G70: 178.1263051 | H70: 205.5679626 | I70: 237.2372076 | J70: 273.7853311 | K70: 315.9639597 | L70: 364.6405138 | M70: 420.8160465 | N70: 485.64583 | O70: 560.4631148 | P70: 646.8065484 | Q70: 746.4518182 | R70: 861.4481691 | S70: 994.1605472 | T70: 1147.318236 | U70: 1324.070984 | V70: 1528.053784 | W70: 1763.461622 | X70: 2035.135757 | Y70: 2348.663274 | Z70: 2710.491994 | AA70: 3128.06307
B71: Contraprestações da PPP | C71: =C40+SUM($C$74:$C$76)/1000000 -> 83.12802794 | D71: 86.279789 | E71: 86.55771165 | F71: 86.55771165 | G71: 86.55771165 | H71: 86.55771165 | I71: 86.55771165 | J71: 86.55771165 | K71: 86.55771165 | L71: 86.55771165 | M71: 86.55771165 | N71: 86.55771165 | O71: 86.55771165 | P71: 86.55771165 | Q71: 86.55771165 | R71: 86.55771165 | S71: 86.55771165 | T71: 86.55771165 | U71: 86.55771165 | V71: 86.55771165 | W71: 86.55771165 | X71: 86.55771165 | Y71: 86.55771165 | Z71: 86.55771165 | AA71: 86.55771165
B72: =MAX(C72:V72) -> 0.0413903321 | C72: =C71/C68 -> 0.0413903321 | D72: 0.03722486535 | E72: 0.03235954864 | F72: 0.02803981109 | G72: 0.02429672349 | H72: 0.02105330776 | I72: 0.01824286176 | J72: 0.01580758752 | K72: 0.01369740266 | L72: 0.01186891039 | M72: 0.01028450702 | N72: 0.008911608657 | O72: 0.007721981105 | P72: 0.006691159193 | Q72: 0.005797943654 | R72: 0.005023965153 | S72: 0.00435330651 | T72: 0.003772175363 | U72: 0.003268620515 | V72: 0.002832286159 | W72: 0.002454198905 | X72: 0.002126583236 | Y72: 0.001842701604 | Z72: 0.00159671587 | AA72: 0.001383567238
B74: IP Angra | C74: =489170*12 -> 5870040 | F74: 2019 | G74: =F74+1 -> 2020 | H74: 2021 | I74: 2022 | J74: 2023 | K74: Média
B75: RSU Angra | C75: =4109595.03*12 -> 49315140.36 | D75: RCL | F75: 1198881198 | G75: 1030318254 | H75: 1426553855 | I75: 1824655533 | J75: 2008392389
B76: Centro Adm | C76: =2121606.96*12 -> 25459283.52 | D76: IPCA | F76: 0.04306 | G76: 0.045173 | H76: 0.100611 | I76: 0.0578 | J76: 0.0462
D77: RCL Real | F77: =F75/(1+F76) -> 1149388528 | G77: 985787285.5 | H77: 1296147190 | I77: 1724953236 | J77: 1919702149
G78: =G77/F77-1 -> -0.1423376332 | H78: 0.3148345586 | I78: 0.3308312887 | J78: 0.1129009816 | K78: =AVERAGE(G78:J78) -> 0.1540572989
B94: CAPEX
B96: Ano | C96: 1 | D96: =C96+1 -> 2 | E96: 3 | F96: 4 | G96: 5 | H96: 6 | I96: 7 | J96: 8 | K96: 9 | L96: 10 | M96: 11 | N96: 12 | O96: 13 | P96: 14 | Q96: 15 | R96: 16 | S96: 17 | T96: 18 | U96: 19 | V96: 20 | W96: 21 | X96: 22 | Y96: 23 | Z96: 24 | AA96: 25
B98: CAPEX | C98: =-'D&A'!L38 -> #ERROR! | D98: =-'D&A'!M38 -> #ERROR! | E98: =-'D&A'!N38 -> #ERROR! | F98: =-'D&A'!O38 -> #ERROR! | G98: =-'D&A'!P38 -> #ERROR! | H98: =-'D&A'!Q38 -> #ERROR! | I98: =-'D&A'!R38 -> #ERROR! | J98: =-'D&A'!S38 -> #ERROR! | K98: =-'D&A'!T38 -> #ERROR! | L98: =-'D&A'!U38 -> #ERROR! | M98: =-'D&A'!V38 -> #ERROR! | N98: =-'D&A'!W38 -> #ERROR! | O98: =-'D&A'!X38 -> #ERROR! | P98: =-'D&A'!Y38 -> #ERROR! | Q98: =-'D&A'!Z38 -> #ERROR! | R98: =-'D&A'!AA38 -> #ERROR! | S98: =-'D&A'!AB38 -> #ERROR! | T98: =-'D&A'!AC38 -> #ERROR! | U98: =-'D&A'!AD38 -> #ERROR! | V98: =-'D&A'!AE38 -> #ERROR! | W98: =-'D&A'!AF38 -> #ERROR! | X98: =-'D&A'!AG38 -> #ERROR! | Y98: =-'D&A'!AH38 -> #ERROR! | Z98: =-'D&A'!AI38 -> #ERROR! | AA98: =-'D&A'!AJ38 -> #ERROR!
B99: Total | C99: =SUM(C98)/1000000 -> #ERROR! | D99: #ERROR! | E99: #ERROR! | F99: #ERROR! | G99: #ERROR! | H99: #ERROR! | I99: #ERROR! | J99: #ERROR! | K99: #ERROR! | L99: #ERROR! | M99: #ERROR! | N99: #ERROR! | O99: #ERROR! | P99: #ERROR! | Q99: #ERROR! | R99: #ERROR! | S99: #ERROR! | T99: #ERROR! | U99: #ERROR! | V99: #ERROR! | W99: #ERROR! | X99: #ERROR! | Y99: #ERROR! | Z99: #ERROR! | AA99: #ERROR!
C100: =SUM(C99:V99) -> #ERROR! | D100: =C100/2 -> #ERROR! | E100: =D100*1000000 -> #ERROR! | F100: =C100*1000000 -> #ERROR!
C101: =C100*70% -> #ERROR! | D101: =C100*30% -> #ERROR! | E101: #ERROR!
B123: OPEX
B125: Ano | C125: 1 | D125: =C125+1 -> 2 | E125: 3 | F125: 4 | G125: 5 | H125: 6 | I125: 7 | J125: 8 | K125: 9 | L125: 10 | M125: 11 | N125: 12 | O125: 13 | P125: 14 | Q125: 15 | R125: 16 | S125: 17 | T125: 18 | U125: 19 | V125: 20 | W125: 21 | X125: 22 | Y125: 23 | Z125: 24 | AA125: 25
B127: OPEX | C127: =-DFs!L27 -> #REF! | D127: =-DFs!M27 -> #REF! | E127: =-DFs!N27 -> #REF! | F127: =-DFs!O27 -> #REF! | G127: =-DFs!P27 -> #REF! | H127: =-DFs!Q27 -> #REF! | I127: =-DFs!R27 -> #REF! | J127: =-DFs!S27 -> #REF! | K127: =-DFs!T27 -> #REF! | L127: =-DFs!U27 -> #REF! | M127: =-DFs!V27 -> #REF! | N127: =-DFs!W27 -> #REF! | O127: =-DFs!X27 -> #REF! | P127: =-DFs!Y27 -> #REF! | Q127: =-DFs!Z27 -> #REF! | R127: =-DFs!AA27 -> #REF! | S127: =-DFs!AB27 -> #REF! | T127: =-DFs!AC27 -> #REF! | U127: =-DFs!AD27 -> #REF! | V127: =-DFs!AE27 -> #REF! | W127: =-DFs!AF27 -> #REF! | X127: =-DFs!AG27 -> #REF! | Y127: =-DFs!AH27 -> #REF! | Z127: =-DFs!AI27 -> #REF! | AA127: =-DFs!AJ27 -> #REF!
B128: Total | C128: =SUM(C127)/1000000 -> #REF! | D128: #REF! | E128: #REF! | F128: #REF! | G128: #REF! | H128: #REF! | I128: #REF! | J128: #REF! | K128: #REF! | L128: #REF! | M128: #REF! | N128: #REF! | O128: #REF! | P128: #REF! | Q128: #REF! | R128: #REF! | S128: #REF! | T128: #REF! | U128: #REF! | V128: #REF! | W128: #REF! | X128: #REF! | Y128: #REF! | Z128: #REF! | AA128: #REF!
B152: ICSD
B154: Ano | C154: 1 | D154: =C154+1 -> 2 | E154: 3 | F154: 4 | G154: 5 | H154: 6 | I154: 7 | J154: 8 | K154: 9 | L154: 10 | M154: 11 | N154: 12 | O154: 13 | P154: 14 | Q154: 15 | R154: 16 | S154: 17 | T154: 18 | U154: 19 | V154: 20 | W154: 21 | X154: 22 | Y154: 23 | Z154: 24 | AA154: 25
C156: ='DÍVIDA'!F124 -> n.a. | D156: ='DÍVIDA'!G124 -> n.a. | E156: ='DÍVIDA'!H124 -> n.a. | F156: ='DÍVIDA'!I124 -> n.a. | G156: ='DÍVIDA'!J124 -> n.a. | H156: ='DÍVIDA'!K124 -> n.a. | I156: ='DÍVIDA'!L124 -> n.a. | J156: ='DÍVIDA'!M124 -> n.a. | K156: ='DÍVIDA'!N124 -> n.a. | L156: ='DÍVIDA'!O124 -> n.a. | M156: ='DÍVIDA'!P124 -> n.a. | N156: ='DÍVIDA'!Q124 -> n.a. | O156: ='DÍVIDA'!R124 -> n.a. | P156: ='DÍVIDA'!S124 -> n.a. | Q156: ='DÍVIDA'!T124 -> n.a. | R156: ='DÍVIDA'!U124 -> n.a. | S156: ='DÍVIDA'!V124 -> n.a. | T156: ='DÍVIDA'!W124 -> n.a. | U156: ='DÍVIDA'!X124 -> n.a. | V156: ='DÍVIDA'!Y124 -> n.a. | W156: ='DÍVIDA'!Z124 -> n.a. | X156: ='DÍVIDA'!AA124 -> n.a. | Y156: ='DÍVIDA'!AB124 -> n.a. | Z156: ='DÍVIDA'!AC124 -> n.a. | AA156: ='DÍVIDA'!AD124 -> n.a.
B157: ICSD | C157: =AVERAGE(C156) -> #DIV/0! | D157: #DIV/0! | E157: #DIV/0! | F157: #DIV/0! | G157: #DIV/0! | H157: #DIV/0! | I157: #DIV/0! | J157: #DIV/0! | K157: #DIV/0! | L157: #DIV/0! | M157: #DIV/0! | N157: #DIV/0! | O157: #DIV/0! | P157: #DIV/0! | Q157: #DIV/0! | R157: #DIV/0! | S157: #DIV/0! | T157: #DIV/0! | U157: #DIV/0! | V157: #DIV/0! | W157: #DIV/0! | X157: #DIV/0! | Y157: #DIV/0! | Z157: #DIV/0! | AA157: #DIV/0!
B158: ICSD Mínimo | C158: 1.3 | D158: 1.3 | E158: 1.3 | F158: 1.3 | G158: 1.3 | H158: 1.3 | I158: 1.3 | J158: 1.3 | K158: 1.3 | L158: 1.3 | M158: 1.3 | N158: 1.3 | O158: 1.3 | P158: 1.3 | Q158: 1.3 | R158: 1.3 | S158: 1.3 | T158: 1.3 | U158: 1.3 | V158: 1.3 | W158: 1.3 | X158: 1.3 | Y158: 1.3 | Z158: 1.3 | AA158: 1.3
B178: Fluxo da Dívida
B180: Ano | C180: 1 | D180: =C180+1 -> 2 | E180: 3 | F180: 4 | G180: 5 | H180: 6 | I180: 7 | J180: 8 | K180: 9 | L180: 10 | M180: 11 | N180: 12 | O180: 13 | P180: 14 | Q180: 15 | R180: 16 | S180: 17 | T180: 18 | U180: 19 | V180: 20 | W180: 21 | X180: 22 | Y180: 23 | Z180: 24 | AA180: 25
B183: Captações | C183: ='DÍVIDA'!F120 -> #ERROR! | D183: ='DÍVIDA'!G120 -> #ERROR! | E183: ='DÍVIDA'!H120 -> 0 | F183: ='DÍVIDA'!I120 -> 0 | G183: ='DÍVIDA'!J120 -> 0 | H183: ='DÍVIDA'!K120 -> 0 | I183: ='DÍVIDA'!L120 -> 0 | J183: ='DÍVIDA'!M120 -> 0 | K183: ='DÍVIDA'!N120 -> 0 | L183: ='DÍVIDA'!O120 -> 0 | M183: ='DÍVIDA'!P120 -> 0 | N183: ='DÍVIDA'!Q120 -> 0 | O183: ='DÍVIDA'!R120 -> 0 | P183: ='DÍVIDA'!S120 -> 0 | Q183: ='DÍVIDA'!T120 -> 0 | R183: ='DÍVIDA'!U120 -> 0 | S183: ='DÍVIDA'!V120 -> 0 | T183: ='DÍVIDA'!W120 -> 0 | U183: ='DÍVIDA'!X120 -> 0 | V183: ='DÍVIDA'!Y120 -> 0 | W183: ='DÍVIDA'!Z120 -> 0 | X183: ='DÍVIDA'!AA120 -> 0 | Y183: ='DÍVIDA'!AB120 -> 0 | Z183: ='DÍVIDA'!AC120 -> 0 | AA183: ='DÍVIDA'!AD120 -> 0
B184: Total | C184: =SUM(C183)/1000000 -> #ERROR! | D184: #ERROR! | E184: 0 | F184: 0 | G184: 0 | H184: 0 | I184: 0 | J184: 0 | K184: 0 | L184: 0 | M184: 0 | N184: 0 | O184: 0 | P184: 0 | Q184: 0 | R184: 0 | S184: 0 | T184: 0 | U184: 0 | V184: 0 | W184: 0 | X184: 0 | Y184: 0 | Z184: 0 | AA184: 0
B186: Amortizações, Juros e Taxas Pagas | C186: =-SUM('DÍVIDA'!F121:F122) -> #ERROR! | D186: =-SUM('DÍVIDA'!G121:G122) -> #ERROR! | E186: =-SUM('DÍVIDA'!H121:H122) -> #ERROR! | F186: =-SUM('DÍVIDA'!I121:I122) -> #ERROR! | G186: =-SUM('DÍVIDA'!J121:J122) -> #ERROR! | H186: =-SUM('DÍVIDA'!K121:K122) -> #ERROR! | I186: =-SUM('DÍVIDA'!L121:L122) -> #ERROR! | J186: =-SUM('DÍVIDA'!M121:M122) -> #ERROR! | K186: =-SUM('DÍVIDA'!N121:N122) -> #ERROR! | L186: =-SUM('DÍVIDA'!O121:O122) -> #ERROR! | M186: =-SUM('DÍVIDA'!P121:P122) -> #ERROR! | N186: =-SUM('DÍVIDA'!Q121:Q122) -> #ERROR! | O186: =-SUM('DÍVIDA'!R121:R122) -> #ERROR! | P186: =-SUM('DÍVIDA'!S121:S122) -> #ERROR! | Q186: =-SUM('DÍVIDA'!T121:T122) -> #ERROR! | R186: =-SUM('DÍVIDA'!U121:U122) -> #ERROR! | S186: =-SUM('DÍVIDA'!V121:V122) -> #ERROR! | T186: =-SUM('DÍVIDA'!W121:W122) -> #ERROR! | U186: =-SUM('DÍVIDA'!X121:X122) -> #ERROR! | V186: =-SUM('DÍVIDA'!Y121:Y122) -> #ERROR! | W186: =-SUM('DÍVIDA'!Z121:Z122) -> #ERROR! | X186: =-SUM('DÍVIDA'!AA121:AA122) -> #ERROR! | Y186: =-SUM('DÍVIDA'!AB121:AB122) -> #ERROR! | Z186: =-SUM('DÍVIDA'!AC121:AC122) -> #ERROR! | AA186: =-SUM('DÍVIDA'!AD121:AD122) -> #ERROR!
B187: Total | C187: =SUM(C186)/1000000 -> #ERROR! | D187: #ERROR! | E187: #ERROR! | F187: #ERROR! | G187: #ERROR! | H187: #ERROR! | I187: #ERROR! | J187: #ERROR! | K187: #ERROR! | L187: #ERROR! | M187: #ERROR! | N187: #ERROR! | O187: #ERROR! | P187: #ERROR! | Q187: #ERROR! | R187: #ERROR! | S187: #ERROR! | T187: #ERROR! | U187: #ERROR! | V187: #ERROR! | W187: #ERROR! | X187: #ERROR! | Y187: #ERROR! | Z187: #ERROR! | AA187: #ERROR!
B188: Saldo da Dívida no Fim do Período
B189: Saldo da Dívida no Fim do Período | C189: ='DÍVIDA'!F117 -> #ERROR! | D189: ='DÍVIDA'!G117 -> #ERROR! | E189: ='DÍVIDA'!H117 -> #ERROR! | F189: ='DÍVIDA'!I117 -> #ERROR! | G189: ='DÍVIDA'!J117 -> #ERROR! | H189: ='DÍVIDA'!K117 -> #ERROR! | I189: ='DÍVIDA'!L117 -> #ERROR! | J189: ='DÍVIDA'!M117 -> #ERROR! | K189: ='DÍVIDA'!N117 -> #ERROR! | L189: ='DÍVIDA'!O117 -> #ERROR! | M189: ='DÍVIDA'!P117 -> #ERROR! | N189: ='DÍVIDA'!Q117 -> #ERROR! | O189: ='DÍVIDA'!R117 -> #ERROR! | P189: ='DÍVIDA'!S117 -> #ERROR! | Q189: ='DÍVIDA'!T117 -> #ERROR! | R189: ='DÍVIDA'!U117 -> #ERROR! | S189: ='DÍVIDA'!V117 -> #ERROR! | T189: ='DÍVIDA'!W117 -> #ERROR! | U189: ='DÍVIDA'!X117 -> #ERROR! | V189: ='DÍVIDA'!Y117 -> #ERROR! | W189: ='DÍVIDA'!Z117 -> #ERROR! | X189: ='DÍVIDA'!AA117 -> #ERROR! | Y189: ='DÍVIDA'!AB117 -> #ERROR! | Z189: ='DÍVIDA'!AC117 -> #ERROR! | AA189: ='DÍVIDA'!AD117 -> #ERROR!
B190: Total | C190: =SUM(C189)/1000000 -> #ERROR! | D190: #ERROR! | E190: #ERROR! | F190: #ERROR! | G190: #ERROR! | H190: #ERROR! | I190: #ERROR! | J190: #ERROR! | K190: #ERROR! | L190: #ERROR! | M190: #ERROR! | N190: #ERROR! | O190: #ERROR! | P190: #ERROR! | Q190: #ERROR! | R190: #ERROR! | S190: #ERROR! | T190: #ERROR! | U190: #ERROR! | V190: #ERROR! | W190: #ERROR! | X190: #ERROR! | Y190: #ERROR! | Z190: #ERROR! | AA190: #ERROR!
B208: Receita Operacional Líquida
B210: Ano | C210: 1 | D210: =C210+1 -> 2 | E210: 3 | F210: 4 | G210: 5 | H210: 6 | I210: 7 | J210: 8 | K210: 9 | L210: 10 | M210: 11 | N210: 12 | O210: 13 | P210: 14 | Q210: 15 | R210: 16 | S210: 17 | T210: 18 | U210: 19 | V210: 20 | W210: 21 | X210: 22 | Y210: 23 | Z210: 24 | AA210: 25
B212: Receita Operacional Líquida | C212: =DFs!L24/1000000 -> 2.268735772 | D212: =DFs!M24/1000000 -> 5.147869501 | E212: =DFs!N24/1000000 -> 5.401751837 | F212: =DFs!O24/1000000 -> 5.401751837 | G212: =DFs!P24/1000000 -> 5.401751837 | H212: =DFs!Q24/1000000 -> 5.401751837 | I212: =DFs!R24/1000000 -> 5.401751837 | J212: =DFs!S24/1000000 -> 5.401751837 | K212: =DFs!T24/1000000 -> 5.401751837 | L212: =DFs!U24/1000000 -> 5.401751837 | M212: =DFs!V24/1000000 -> 5.401751837 | N212: =DFs!W24/1000000 -> 5.401751837 | O212: =DFs!X24/1000000 -> 5.401751837 | P212: =DFs!Y24/1000000 -> 5.401751837 | Q212: =DFs!Z24/1000000 -> 5.401751837 | R212: =DFs!AA24/1000000 -> 5.401751837 | S212: =DFs!AB24/1000000 -> 5.401751837 | T212: =DFs!AC24/1000000 -> 5.401751837 | U212: =DFs!AD24/1000000 -> 5.401751837 | V212: =DFs!AE24/1000000 -> 5.401751837 | W212: =DFs!AF24/1000000 -> 5.401751837 | X212: =DFs!AG24/1000000 -> 5.401751837 | Y212: =DFs!AH24/1000000 -> 5.401751837 | Z212: =DFs!AI24/1000000 -> 5.401751837 | AA212: =DFs!AJ24/1000000 -> 5.401751837
B213: % Crescimento | C213: n.a. | D213: n.a. | E213: n.a. | F213: =F212/E212-1 -> 0 | G213: 0 | H213: 0 | I213: 0 | J213: 0 | K213: 0 | L213: 0 | M213: 0 | N213: 0 | O213: 0 | P213: 0 | Q213: 0 | R213: 0 | S213: 0 | T213: 0 | U213: 0 | V213: 0 | W213: 0 | X213: 0 | Y213: 0 | Z213: 0 | AA213: 0
B236: EBITDA
B238: Ano | C238: 1 | D238: =C238+1 -> 2 | E238: 3 | F238: 4 | G238: 5 | H238: 6 | I238: 7 | J238: 8 | K238: 9 | L238: 10 | M238: 11 | N238: 12 | O238: 13 | P238: 14 | Q238: 15 | R238: 16 | S238: 17 | T238: 18 | U238: 19 | V238: 20 | W238: 21 | X238: 22 | Y238: 23 | Z238: 24 | AA238: 25
B240: EBITDA | C240: =DFs!L42/1000000 -> #REF! | D240: =DFs!M42/1000000 -> #REF! | E240: =DFs!N42/1000000 -> #REF! | F240: =DFs!O42/1000000 -> #REF! | G240: =DFs!P42/1000000 -> #REF! | H240: =DFs!Q42/1000000 -> #REF! | I240: =DFs!R42/1000000 -> #REF! | J240: =DFs!S42/1000000 -> #REF! | K240: =DFs!T42/1000000 -> #REF! | L240: =DFs!U42/1000000 -> #REF! | M240: =DFs!V42/1000000 -> #REF! | N240: =DFs!W42/1000000 -> #REF! | O240: =DFs!X42/1000000 -> #REF! | P240: =DFs!Y42/1000000 -> #REF! | Q240: =DFs!Z42/1000000 -> #REF! | R240: =DFs!AA42/1000000 -> #REF! | S240: =DFs!AB42/1000000 -> #REF! | T240: =DFs!AC42/1000000 -> #REF! | U240: =DFs!AD42/1000000 -> #REF! | V240: =DFs!AE42/1000000 -> #REF! | W240: =DFs!AF42/1000000 -> #REF! | X240: =DFs!AG42/1000000 -> #REF! | Y240: =DFs!AH42/1000000 -> #REF! | Z240: =DFs!AI42/1000000 -> #REF! | AA240: =DFs!AJ42/1000000 -> #REF!
B241: % Margem EBITDA | C241: =DFs!L43 -> 0 | D241: =DFs!M43 -> 0 | E241: =DFs!N43 -> 0 | F241: =DFs!O43 -> 0 | G241: =DFs!P43 -> 0 | H241: =DFs!Q43 -> 0 | I241: =DFs!R43 -> 0 | J241: =DFs!S43 -> 0 | K241: =DFs!T43 -> 0 | L241: =DFs!U43 -> 0 | M241: =DFs!V43 -> 0 | N241: =DFs!W43 -> 0 | O241: =DFs!X43 -> 0 | P241: =DFs!Y43 -> 0 | Q241: =DFs!Z43 -> 0 | R241: =DFs!AA43 -> 0 | S241: =DFs!AB43 -> 0 | T241: =DFs!AC43 -> 0 | U241: =DFs!AD43 -> 0 | V241: =DFs!AE43 -> 0 | W241: =DFs!AF43 -> 0 | X241: =DFs!AG43 -> 0 | Y241: =DFs!AH43 -> 0 | Z241: =DFs!AI43 -> 0 | AA241: =DFs!AJ43 -> 0
B265: Lucro Líquido
B267: Ano | C267: 1 | D267: =C267+1 -> 2 | E267: 3 | F267: 4 | G267: 5 | H267: 6 | I267: 7 | J267: 8 | K267: 9 | L267: 10 | M267: 11 | N267: 12 | O267: 13 | P267: 14 | Q267: 15 | R267: 16 | S267: 17 | T267: 18 | U267: 19 | V267: 20 | W267: 21 | X267: 22 | Y267: 23 | Z267: 24 | AA267: 25
B269: Lucro Líquido | C269: =DFs!L58/1000000 -> #REF! | D269: =DFs!M58/1000000 -> #REF! | E269: =DFs!N58/1000000 -> #REF! | F269: =DFs!O58/1000000 -> #REF! | G269: =DFs!P58/1000000 -> #REF! | H269: =DFs!Q58/1000000 -> #REF! | I269: =DFs!R58/1000000 -> #REF! | J269: =DFs!S58/1000000 -> #REF! | K269: =DFs!T58/1000000 -> #REF! | L269: =DFs!U58/1000000 -> #REF! | M269: =DFs!V58/1000000 -> #REF! | N269: =DFs!W58/1000000 -> #REF! | O269: =DFs!X58/1000000 -> #REF! | P269: =DFs!Y58/1000000 -> #REF! | Q269: =DFs!Z58/1000000 -> #REF! | R269: =DFs!AA58/1000000 -> #REF! | S269: =DFs!AB58/1000000 -> #REF! | T269: =DFs!AC58/1000000 -> #REF! | U269: =DFs!AD58/1000000 -> #REF! | V269: =DFs!AE58/1000000 -> #REF! | W269: =DFs!AF58/1000000 -> #REF! | X269: =DFs!AG58/1000000 -> #REF! | Y269: =DFs!AH58/1000000 -> #REF! | Z269: =DFs!AI58/1000000 -> #REF! | AA269: =DFs!AJ58/1000000 -> #REF!
B270: % Receita Líquida | C270: =C269/C212 -> #REF! | D270: #REF! | E270: #REF! | F270: #REF! | G270: #REF! | H270: #REF! | I270: #REF! | J270: #REF! | K270: #REF! | L270: #REF! | M270: #REF! | N270: #REF! | O270: #REF! | P270: #REF! | Q270: #REF! | R270: #REF! | S270: #REF! | T270: #REF! | U270: #REF! | V270: #REF! | W270: #REF! | X270: #REF! | Y270: #REF! | Z270: #REF! | AA270: #REF!
B294: Fluxo de Caixa do Projeto
B296: Ano | C296: 1 | D296: =C296+1 -> 2 | E296: 3 | F296: 4 | G296: 5 | H296: 6 | I296: 7 | J296: 8 | K296: 9 | L296: 10 | M296: 11 | N296: 12 | O296: 13 | P296: 14 | Q296: 15 | R296: 16 | S296: 17 | T296: 18 | U296: 19 | V296: 20 | W296: 21 | X296: 22 | Y296: 23 | Z296: 24 | AA296: 25
B298: Fluxo de Caixa do Projeto | C298: =DFs!L129/1000000 -> #REF! | D298: =DFs!M129/1000000 -> #REF! | E298: =DFs!N129/1000000 -> #REF! | F298: =DFs!O129/1000000 -> #REF! | G298: =DFs!P129/1000000 -> #REF! | H298: =DFs!Q129/1000000 -> #REF! | I298: =DFs!R129/1000000 -> #REF! | J298: =DFs!S129/1000000 -> #REF! | K298: =DFs!T129/1000000 -> #REF! | L298: =DFs!U129/1000000 -> #REF! | M298: =DFs!V129/1000000 -> #REF! | N298: =DFs!W129/1000000 -> #REF! | O298: =DFs!X129/1000000 -> #REF! | P298: =DFs!Y129/1000000 -> #REF! | Q298: =DFs!Z129/1000000 -> #REF! | R298: =DFs!AA129/1000000 -> #REF! | S298: =DFs!AB129/1000000 -> #REF! | T298: =DFs!AC129/1000000 -> #REF! | U298: =DFs!AD129/1000000 -> #REF! | V298: =DFs!AE129/1000000 -> #REF! | W298: =DFs!AF129/1000000 -> #REF! | X298: =DFs!AG129/1000000 -> #REF! | Y298: =DFs!AH129/1000000 -> #REF! | Z298: =DFs!AI129/1000000 -> #REF! | AA298: =DFs!AJ129/1000000 -> #REF!
B322: Fluxo de Caixa do Acionista
B324: Ano | C324: 1 | D324: =C324+1 -> 2 | E324: 3 | F324: 4 | G324: 5 | H324: 6 | I324: 7 | J324: 8 | K324: 9 | L324: 10 | M324: 11 | N324: 12 | O324: 13 | P324: 14 | Q324: 15 | R324: 16 | S324: 17 | T324: 18 | U324: 19 | V324: 20 | W324: 21 | X324: 22 | Y324: 23 | Z324: 24 | AA324: 25
B326: Fluxo de Caixa do Acionista | C326: =DFs!L130/1000000 -> #REF! | D326: =DFs!M130/1000000 -> #REF! | E326: =DFs!N130/1000000 -> #REF! | F326: =DFs!O130/1000000 -> #REF! | G326: =DFs!P130/1000000 -> #REF! | H326: =DFs!Q130/1000000 -> #REF! | I326: =DFs!R130/1000000 -> #REF! | J326: =DFs!S130/1000000 -> #REF! | K326: =DFs!T130/1000000 -> #REF! | L326: =DFs!U130/1000000 -> #REF! | M326: =DFs!V130/1000000 -> #REF! | N326: =DFs!W130/1000000 -> #REF! | O326: =DFs!X130/1000000 -> #REF! | P326: =DFs!Y130/1000000 -> #REF! | Q326: =DFs!Z130/1000000 -> #REF! | R326: =DFs!AA130/1000000 -> #REF! | S326: =DFs!AB130/1000000 -> #REF! | T326: =DFs!AC130/1000000 -> #REF! | U326: =DFs!AD130/1000000 -> #REF! | V326: =DFs!AE130/1000000 -> #REF! | W326: =DFs!AF130/1000000 -> #REF! | X326: =DFs!AG130/1000000 -> #REF! | Y326: =DFs!AH130/1000000 -> #REF! | Z326: =DFs!AI130/1000000 -> #REF! | AA326: =DFs!AJ130/1000000 -> #REF!
B344: VfM
B346: Vfm | F346: Custo de Transação | G346: =VfM!N16/1000 -> #DIV/0! | O346: PPP | P346: =C350 -> #DIV/0! | Q346: =P347/P348 -> #DIV/0!
F347: Atraso de Obras | G347: =VfM!N17/1000 -> #DIV/0! | O347: VfM | P347: =P348-P346 -> #DIV/0!
F348: Aditivos Contratuais | G348: =VfM!N15/1000 -> #DIV/0! | O348: Contratação Tradicional | P348: =G351 -> #DIV/0!
B349: Contraprestação | C349: =VfM!O13/1000 -> #DIV/0! | F349: Investimentos + Despesas | G349: =VfM!N14/1000 -> #DIV/0!
B350: PPP | C350: =VfM!$O$23/1000 -> #DIV/0! | F350: Despesas Financeiras com Financiamento | G350: =VfM!$N$18/1000 -> #DIV/0!
F351: Contratação Tradicional | G351: =VfM!$N$22/1000 -> #DIV/0!

Sheet Pontos (hidden)
B3: 1 | C3: Remuneração estudos: altera? | F3: Atualizar (IPCA acumulado desde a data de entrega dos estudos) - 24/03/2022
B4: =B3+1 -> 2 | C4: VI: altera? | F4: Não
B5: 3 | C5: Agente Fiduciário: altera? | F5: Não
B6: 4 | C6: COSIP | F6: Ok
B7: 5 | C7: ISS: vai continuar zerado? | F7: Manter
B8: 6 | C8: =#REF! -> #REF!
B9: 7 | C9: EE: deveria remunerar o OPEX no primeiro ano | F9: Ok
C12: Impacto
C14: IP | D14: TIR e Orçamento
C15: EE | D15: TIR e Orçamento puxam para cima, porém alterações no recebimento de receita (só recebia quando entregasse as usininhas, mas estou colocando agora que ele entrega 33% no segundo semestre, e agora recebe por isso) e no cronograma (não estava considerando os 6 meses de setup).
C16: CI | D16: TIR e Orçamento puxam para cima, porém alterações no recebimento de receita (cálculo fator estava errado) e no OPEX (ajuste reinvestimento).
D19: 2022-03-01 | E19: 2022-04-01 | F19: 2022-05-01 | G19: 2022-06-01 | H19: 2022-07-01 | I19: 2022-08-01 | J19: 2022-09-01 | K19: 2022-10-01 | L19: 2022-11-01 | M19: 2022-12-01 | N19: 2023-01-01 | O19: 2023-02-01 | P19: 2023-03-01 | Q19: 2023-04-01 | R19: 2023-05-01 | S19: 2023-06-01 | T19: 2023-07-01 | U19: 2023-08-01 | V19: 2023-09-01 | W19: 2023-10-01 | X19: 2023-11-01 | Y19: 2023-12-01
C20: IPCA | D20: 0.0101 | E20: 0.0162 | F20: 0.0106 | G20: 0.0047 | H20: 0.0067 | I20: -0.0068 | J20: -0.0029 | K20: 0.0059 | L20: 0.0041 | M20: 0.0062 | N20: 0.0053 | O20: 0.0084 | P20: 0.0071 | Q20: 0.0061 | R20: 0.0023 | S20: -0.0008 | T20: 0.0012 | U20: 0.0023 | V20: 0.0026 | W20: 0.0024 | X20: 0.0028 | Y20: 0.0056
C21: IPCA Acumulado | D21: =D20 -> 0.0101 | E21: =(1+D21)*(1+E20)-1 -> 0.02646362 | F21: 0.03734413437 | G21: 0.0422196518 | H21: 0.04920252347 | I21: 0.04206794631 | J21: 0.03904594927 | K21: 0.04517632037 | L21: 0.04946154328 | M21: 0.05596820485 | N21: 0.06156483633 | O21: 0.07048198096 | P21: 0.07808240302 | Q21: 0.08465870568 | R21: 0.08715342071 | S21: 0.08628369797 | T21: 0.08758723841 | U21: 0.09008868906 | V21: 0.09292291965 | W21: 0.09554593465 | X21: 0.09861346327 | Y21: 0.1047656987
Y23: =1080000*(1+Y21) -> 1193146.955
Y24: 1193146.955

Sheet Consolidado - RECEITA (hidden)
D4: 1 | E4: =D4+1 -> 2 | F4: 3 | G4: 4 | H4: 5 | I4: 6 | J4: 7 | K4: 8 | L4: 9 | M4: 10 | N4: 11 | O4: 12 | P4: 13 | Q4: 14 | R4: 15 | S4: 16 | T4: 17 | U4: 18 | V4: 19 | W4: 20
B6: IP | D6: =#REF! -> #REF! | E6: #REF! | F6: #REF! | G6: #REF! | H6: #REF! | I6: #REF! | J6: #REF! | K6: #REF! | L6: #REF! | M6: #REF! | N6: #REF! | O6: #REF! | P6: #REF! | Q6: #REF! | R6: #REF! | S6: #REF! | T6: #REF! | U6: #REF! | V6: #REF! | W6: #REF!
B7: EE | D7: =RECEITA!M8 -> 2483564.063 | E7: =RECEITA!N8 -> 5635325.124 | F7: =RECEITA!O8 -> 5913247.769 | G7: =RECEITA!P8 -> 5913247.769 | H7: =RECEITA!Q8 -> 5913247.769 | I7: =RECEITA!R8 -> 5913247.769 | J7: =RECEITA!S8 -> 5913247.769 | K7: =RECEITA!T8 -> 5913247.769 | L7: =RECEITA!U8 -> 5913247.769 | M7: =RECEITA!V8 -> 5913247.769 | N7: =RECEITA!W8 -> 5913247.769 | O7: =RECEITA!X8 -> 5913247.769 | P7: =RECEITA!Y8 -> 5913247.769 | Q7: =RECEITA!Z8 -> 5913247.769 | R7: =RECEITA!AA8 -> 5913247.769 | S7: =RECEITA!AB8 -> 5913247.769 | T7: =RECEITA!AC8 -> 5913247.769 | U7: =RECEITA!AD8 -> 5913247.769 | V7: =RECEITA!AE8 -> 5913247.769 | W7: =RECEITA!AF8 -> 5913247.769
B8: CI | D8: =#REF! -> #REF! | E8: #REF! | F8: #REF! | G8: #REF! | H8: #REF! | I8: #REF! | J8: #REF! | K8: #REF! | L8: #REF! | M8: #REF! | N8: #REF! | O8: #REF! | P8: #REF! | Q8: #REF! | R8: #REF! | S8: #REF! | T8: #REF! | U8: #REF! | V8: #REF! | W8: #REF!
B10: Total | D10: =SUM(D6:D8) -> #REF! | E10: #REF! | F10: #REF! | G10: #REF! | H10: #REF! | I10: #REF! | J10: #REF! | K10: #REF! | L10: #REF! | M10: #REF! | N10: #REF! | O10: #REF! | P10: #REF! | Q10: #REF! | R10: #REF! | S10: #REF! | T10: #REF! | U10: #REF! | V10: #REF! | W10: #REF!
D11: =D10/$W$10 -> #REF! | E11: #REF! | F11: #REF! | G11: #REF! | H11: #REF! | I11: #REF! | J11: #REF! | K11: #REF! | L11: #REF! | M11: #REF! | N11: #REF! | O11: #REF! | P11: #REF! | Q11: #REF! | R11: #REF! | S11: #REF! | T11: #REF! | U11: #REF! | V11: #REF! | W11: #REF!

Sheet Benchmarks (hidden)
C2: TIR | D2: VI | E2: AF | J2: WACC Real (Lucro Real) | K2: 0.0679
B3: EE COMAM | C3: 7,66% (LR) | D3: R$ 600 mil/ano | E3: R$ 60 mil/ano | J3: WACC Real (Lucro Presumido) | K3: 0.0967

Sheet Tabelas (hidden)
C3: EFICIENTIZAÇÃO ENERGÉTICA
C5: =CAPEX!B36 -> N/D
C7: Equipe de Execução | D7: Quantidade | E7: Preço Unitário (R$) | F7: Total
C8: Engenheiro Elétrico | D8: =CAPEX!D40 ->  | E8: =CAPEX!E40 ->  | F8: =E8*D8 -> 0
C9: Engenheiro Civil | D9: =CAPEX!D41 ->  | E9: =CAPEX!E41 ->  | F9: 0
C10: Eletrotecnicos | D10: =CAPEX!D42 ->  | E10: =CAPEX!E42 ->  | F10: 0
C11: Eletricistas | D11: =CAPEX!D43 ->  | E11: =CAPEX!E43 ->  | F11: 0
C12: Ajudantes | D12: =CAPEX!D44 ->  | E12: =CAPEX!E44 ->  | F12: 0
C13: Total | F13: =SUM(F8:F12) -> 0
C15: Projetos Básicos e Executivos | D15: Quantidade | E15: Preço Unitário (R$) | F15: Total
C16: Projetos Básicos e Executivos | D16: =CAPEX!D46 ->  | E16: =CAPEX!E46 ->  | F16: =E16*D16 -> 0
C17: Total | E17: =SUM(E16) -> 0 | F17: 0
C19: Instalações Elétricas e Conexão de Rede | D19: Quantidade | E19: Preço Unitário (R$) | F19: Total
C20: Miscelânia elétrica e conexão CA para sistema de 2310 kWp | D20: =CAPEX!C68 -> 1 | E20: =CAPEX!D68 -> #ERROR! | F20: =E20*D20 -> #ERROR!
C21: Subestação | D21: =CAPEX!C69 ->  | E21: =CAPEX!D69 ->  | F21: 0
C22: Painel de Média de Tensão | D22: =CAPEX!C70 ->  | E22: =CAPEX!D70 ->  | F22: 0
C23: Total | F23: =SUM(F20:F22) -> #ERROR!
C25: Equipamentos | D25: Quantidade | E25: Preço Unitário (R$) | F25: Total
C26: Módulos - Baixa Tensão | D26: =CAPEX!C82 ->  | E26: =CAPEX!D82 ->  | F26: =E26*D26 -> 0
C27: Inversores - Baixa Tensão | D27: =CAPEX!C83 ->  | E27: =CAPEX!D83 ->  | F27: 0
C28: Total | F28: =SUM(F26:F27) -> 0 | G28: =F28+F23+F17+F13 -> #ERROR!
C30: =CAPEX!B48 -> N/D
C32: Equipe de Execução | D32: Quantidade | E32: Preço Unitário (R$) | F32: Total
C33: Engenheiro Elétrico | D33: =CAPEX!D52 ->  | E33: =CAPEX!E52 ->  | F33: =E33*D33 -> 0
C34: Engenheiro Civil | D34: =CAPEX!D53 ->  | E34: =CAPEX!E53 ->  | F34: 0
C35: Eletrotecnicos | D35: =CAPEX!D54 ->  | E35: =CAPEX!E54 ->  | F35: 0
C36: Eletricistas | D36: =CAPEX!D55 ->  | E36: =CAPEX!E55 ->  | F36: 0
C37: Ajudantes | D37: =CAPEX!D56 ->  | E37: =CAPEX!E56 ->  | F37: 0
C38: Total | F38: =SUM(F33:F37) -> 0
C40: Projetos Básicos e Executivos | D40: Quantidade | E40: Preço Unitário (R$) | F40: Total
C41: Projetos Básicos e Executivos | D41: =CAPEX!D58 ->  | E41: =CAPEX!E58 ->  | F41: =E41*D41 -> 0
C42: Total | F42: =SUM(F41) -> 0
C44: Instalações Elétricas e Conexão de Rede | D44: Quantidade | E44: Preço Unitário (R$) | F44: Total
C45: Miscelânia elétrica e conexão CA para sistema de 2310 kWp | D45: =CAPEX!C71 -> 1 | E45: =CAPEX!D71 -> #ERROR! | F45: =E45*D45 -> #ERROR!
C46: Subestação | D46: =CAPEX!C72 ->  | E46: =CAPEX!D72 ->  | F46: 0
C47: Painel de Média de Tensão | D47: =CAPEX!C73 ->  | E47: =CAPEX!D73 ->  | F47: 0
C48: Total | F48: =SUM(F45:F47) -> #ERROR!
C50: Equipamentos | D50: Quantidade | E50: Preço Unitário (R$) | F50: Total
C51: =CAPEX!B84 -> CAPEX 15 | D51: =CAPEX!C84 ->  | E51: =CAPEX!D84 ->  | F51: =E51*D51 -> 0
C52: =CAPEX!B85 -> CAPEX 16 | D52: =CAPEX!C85 ->  | E52: =CAPEX!D85 ->  | F52: 0
C53: Total | F53: =SUM(F51:F52) -> 0 | G53: =F53+F48+F42+F38 -> #ERROR!
C55: Linhas de Transmissão
C57: Equipamentos | D57: Quantidade | E57: Preço Unitário (R$) | F57: Total
C58: =CAPEX!B93 -> Estruturas Metálicas | D58: =CAPEX!C93 -> #REF! | E58: =CAPEX!D93 -> #REF! | F58: =E58*D58 -> #REF!
C59: =CAPEX!B94 -> Cabos de Alumínio | D59: =CAPEX!C94 -> #REF! | E59: =CAPEX!D94 -> #REF! | F59: #REF!
C60: =CAPEX!B95 -> Isoladores | D60: =CAPEX!C95 -> #REF! | E60: =CAPEX!D95 -> #REF! | F60: #REF!
C61: =CAPEX!B96 -> Conectores | D61: =CAPEX!C96 -> #REF! | E61: =CAPEX!D96 -> #REF! | F61: #REF!
C62: Total | F62: =SUM(F58:F61) -> #REF!
C64: Materiais | D64: Quantidade | E64: Preço Unitário (R$) | F64: Total
C65: =CAPEX!B104 -> Materiais para Instalação Elétrica | D65: =CAPEX!C104 -> #REF! | E65: =CAPEX!D104 -> #REF! | F65: =E65*D65 -> #REF!
C66: =CAPEX!B105 -> Materiais para Instalação Eletromecânica | D66: =CAPEX!C105 -> #REF! | E66: =CAPEX!D105 -> #REF! | F66: #REF!
C67: =CAPEX!B106 -> Materiais Construção Civil | D67: =CAPEX!C106 -> #REF! | E67: =CAPEX!D106 -> #REF! | F67: #REF!
C68: Total | F68: =SUM(F65:F67) -> #REF!
C70: =CAPEX!B112 -> Projetos Básicos e Executivos | D70: Quantidade | E70: Preço Unitário (R$) | F70: Total
C71: =CAPEX!B112 -> Projetos Básicos e Executivos | D71: =CAPEX!C114 -> #REF! | E71: =CAPEX!D114 -> #REF! | F71: =E71*D71 -> #REF!
C72: Total | F72: =SUM(F71) -> #REF!
C74: =CAPEX!B116 -> Estudos Ambientais e Licenças | D74: Quantidade | E74: Preço Unitário (R$) | F74: Total
C75: =CAPEX!B118 -> Licenciamento Ambiental | D75: =CAPEX!C118 -> #REF! | E75: =CAPEX!D118 -> #REF! | F75: =E75*D75 -> #REF!
C76: =CAPEX!B119 -> Licenciamento Fundiário | D76: =CAPEX!C119 -> #REF! | E76: =CAPEX!D119 -> #REF! | F76: #REF!
C77: =CAPEX!B120 -> Licenciamento Arqueológico | D77: =CAPEX!C120 -> #REF! | E77: =CAPEX!D120 -> #REF! | F77: #REF!
C78: =CAPEX!B121 -> Estudos | D78: =CAPEX!C121 -> #REF! | E78: =CAPEX!D121 -> #REF! | F78: #REF!
C79: Total | F79: =SUM(F75:F78) -> #REF!
C81: =CAPEX!B123 -> Equipe de Execução | D81: Quantidade | E81: Preço Unitário (R$) | F81: Total
C82: =CAPEX!B125 -> Gerente de Contrato | D82: =CAPEX!C125 -> #REF! | E82: =CAPEX!D125 -> #REF! | F82: =E82*D82 -> #REF!
C83: =CAPEX!B126 -> Engenheiro Elétrico | D83: =CAPEX!C126 -> #REF! | E83: =CAPEX!D126 -> #REF! | F83: #REF!
C84: =CAPEX!B127 -> Engenheiro Civil | D84: =CAPEX!C127 -> #REF! | E84: =CAPEX!D127 -> #REF! | F84: #REF!
C85: =CAPEX!B128 -> Supervisor Elétrico/Eletromecânico | D85: =CAPEX!C128 -> #REF! | E85: =CAPEX!D128 -> #REF! | F85: #REF!
C86: =CAPEX!B129 -> Supervisor Civil | D86: =CAPEX!C129 -> #REF! | E86: =CAPEX!D129 -> #REF! | F86: #REF!
C87: =CAPEX!B130 -> Técnico de Segurança | D87: =CAPEX!C130 -> #REF! | E87: =CAPEX!D130 -> #REF! | F87: #REF!
C88: =CAPEX!B131 -> Eletrotecnicos | D88: =CAPEX!C131 -> #REF! | E88: =CAPEX!D131 -> #REF! | F88: #REF!
C89: =CAPEX!B132 -> Eletricistas | D89: =CAPEX!C132 -> #REF! | E89: =CAPEX!D132 -> #REF! | F89: #REF!
C90: =CAPEX!B133 -> Oficiais | D90: =CAPEX!C133 -> #REF! | E90: =CAPEX!D133 -> #REF! | F90: #REF!
C91: =CAPEX!B134 -> Ajudantes | D91: =CAPEX!C134 -> #REF! | E91: =CAPEX!D134 -> #REF! | F91: #REF!
C92: Total | F92: =SUM(F82:F91) -> #REF! | G92: =F92+F79+F75+F68+F62+F72 -> #REF!
C94: Subestação
C96: Equipamentos | D96: Quantidade | E96: Preço Unitário (R$) | F96: Total
C97: =CAPEX!B142 -> Transformador de Potencial 88/138 kV | D97: =CAPEX!C142 -> #REF! | E97: =CAPEX!D142 -> #REF! | F97: =E97*D97 -> #REF!
C98: =CAPEX!B143 -> Transformador de Corrente 88/138 kV | D98: =CAPEX!C143 -> #REF! | E98: =CAPEX!D143 -> #REF! | F98: #REF!
C99: =CAPEX!B144 -> Disjuntor (alta tensão) 88/138 kV | D99: =CAPEX!C144 -> #REF! | E99: =CAPEX!D144 -> #REF! | F99: #REF!
C100: =CAPEX!B145 -> Seccionadora 88/138 kV (tripolar) | D100: =CAPEX!C145 -> #REF! | E100: =CAPEX!D145 -> #REF! | F100: #REF!
C101: =CAPEX!B146 -> Transformador de Força 88/138kV x 13.8 V - 10 MVA | D101: =CAPEX!C146 -> #REF! | E101: =CAPEX!D146 -> #REF! | F101: #REF!
C102: =CAPEX!B147 -> Para Raios 138kV | D102: =CAPEX!C147 -> #REF! | E102: =CAPEX!D147 -> #REF! | F102: #REF!
C103: =CAPEX!B148 -> Painéis de comando e proteção | D103: =CAPEX!C148 -> #REF! | E103: =CAPEX!D148 -> #REF! | F103: #REF!
C104: =CAPEX!B149 -> Sistema de medição alta tensão | D104: =CAPEX!C149 -> #REF! | E104: =CAPEX!D149 -> #REF! | F104: #REF!
C105: =CAPEX!B150 -> Conjunto de Serviços Auxiliares CA/CC (transformador, quadro, e equipamentos) | D105: =CAPEX!C150 -> #REF! | E105: =CAPEX!D150 -> #REF! | F105: #REF!
C106: Total | F106: =SUM(F97:F105) -> #REF!
C108: Materiais | D108: Quantidade | E108: Preço Unitário (R$) | F108: Total
C109: =CAPEX!B158 -> Materiais para Instalação Elétrica | D109: =CAPEX!C158 -> #REF! | E109: =CAPEX!D158 -> #REF! | F109: =E109*D109 -> #REF!
C110: =CAPEX!B159 -> Materiais para Instalação Eletromecânica | D110: =CAPEX!C159 -> #REF! | E110: =CAPEX!D159 -> #REF! | F110: #REF!
C111: =CAPEX!B160 -> Materiais Construção Civil | D111: =CAPEX!C160 -> #REF! | E111: =CAPEX!D160 -> #REF! | F111: #REF!
C112: Total | F112: =SUM(F109:F111) -> #REF!
C114: =CAPEX!B166 -> Projetos Básicos e Executivos | D114: Quantidade | E114: Preço Unitário (R$) | F114: Total
C115: =CAPEX!B168 -> Projetos Básicos e Executivos | D115: =CAPEX!C168 -> #REF! | E115: =CAPEX!D168 -> #REF! | F115: =E115*D115 -> #REF!
C116: Total | F116: =SUM(F115) -> #REF!
C118: =CAPEX!B170 -> Equipe de Execução | D118: Quantidade | E118: Preço Unitário (R$) | F118: Total
C119: =CAPEX!B172 -> Gerente de Contrato | D119: =CAPEX!C172 -> #REF! | E119: =CAPEX!D172 -> #REF! | F119: =E119*D119 -> #REF!
C120: =CAPEX!B173 -> Engenheiro Elétrico | D120: =CAPEX!C173 -> #REF! | E120: =CAPEX!D173 -> #REF! | F120: #REF!
C121: =CAPEX!B174 -> Engenheiro Civil | D121: =CAPEX!C174 -> #REF! | E121: =CAPEX!D174 -> #REF! | F121: #REF!
C122: =CAPEX!B175 -> Supervisor Elétrico/Eletromecânico | D122: =CAPEX!C175 -> #REF! | E122: =CAPEX!D175 -> #REF! | F122: #REF!
C123: =CAPEX!B176 -> Supervisor Civil | D123: =CAPEX!C176 -> #REF! | E123: =CAPEX!D176 -> #REF! | F123: #REF!
C124: =CAPEX!B177 -> Técnico de Segurança | D124: =CAPEX!C177 -> #REF! | E124: =CAPEX!D177 -> #REF! | F124: #REF!
C125: =CAPEX!B178 -> Eletrotecnicos | D125: =CAPEX!C178 -> #REF! | E125: =CAPEX!D178 -> #REF! | F125: #REF!
C126: =CAPEX!B179 -> Eletricistas | D126: =CAPEX!C179 -> #REF! | E126: =CAPEX!D179 -> #REF! | F126: #REF!
C127: =CAPEX!B180 -> Oficiais | D127: =CAPEX!C180 -> #REF! | E127: =CAPEX!D180 -> #REF! | F127: #REF!
C128: =CAPEX!B181 -> Ajudantes | D128: =CAPEX!C181 -> #REF! | E128: =CAPEX!D181 -> #REF! | F128: #REF!
C129: Total | F129: =SUM(F119:F128) -> #REF! | G129: =F129+F112+F106+F116 -> #REF!
C131: Investimentos e Reinvestimentos Estimados (R$) | D131: Total
C132: =CAPEX!B11 -> N/D | D132: =-CAPEX!I11 -> 0
C133: =CAPEX!B12 -> CAPEX - implantação das usinas | D133: =-CAPEX!I12 -> #ERROR!
C134: =CAPEX!B13 -> Equipamentos - Geração Fotovoltaica | D134: =-CAPEX!I13 -> 0
C135: =CAPEX!B14 -> Equipamentos - Linha de Transmissão | D135: =-CAPEX!I14 -> #REF!
C136: =CAPEX!B15 -> Materiais - Linha de Transmissão | D136: =-CAPEX!I15 -> #REF!
C137: =CAPEX!B16 -> Projetos, Mão de Obra e Licenças - Linha de Transmissão | D137: =-CAPEX!I16 -> #REF!
C138: =CAPEX!B17 -> Equipamentos - Subestação | D138: =-CAPEX!I17 -> #REF!
C139: =CAPEX!B18 -> Materiais - Subestação | D139: =-CAPEX!I18 -> #REF!
C140: =CAPEX!B19 -> Projetos e Mão de Obra - Subestação | D140: =-CAPEX!I19 -> #REF!
C141: =CAPEX!B20 -> Outros Investimentos | D141: =-CAPEX!I20 -> 2741560.03
C142: Total | D142: =SUM(D132:D141) -> #ERROR!
C144: OPEX Seguros
C146: Tipo de Seguro ou Garantia | D146: Período de Vigência | E146: Prêmio | F146: Cobertura
C147: ='PAINEL DE CONTROLE'!B402 -> Garantia de Proposta | D147: 1º ano | E147: 0.005 | F147: 1% do valor total do contrato
C148: ='PAINEL DE CONTROLE'!B403 -> Garantia de Execução das Obras | D148: Entre o 6º e 18º mês | E148: 0.006 | F148: 5% do valor total do contrato
C149: ='PAINEL DE CONTROLE'!B404 -> Garantia de Execução Pós-obras | D149: Entre o 19º e 22º ano | E149: 0.006 | F149: 2,5% do valor total do contrato
C150: ='PAINEL DE CONTROLE'!B405 -> Garantia de Execução Fim de Contrato | D150: Entre o 23º e 25º ano | E150: 0.006 | F150: 5% do valor total do contrato
C151: ='PAINEL DE CONTROLE'!B407 -> Seguro de Engenharia | D151: Todo o Contrato | E151: 0.002 | F151: 100% do CAPEX em execução
C152: ='PAINEL DE CONTROLE'!B408 -> Seguro Multirriscos | D152: Todo o Contrato | E152: 0.003 | F152: R$ 5 milhões
C153: ='PAINEL DE CONTROLE'!B409 -> Seguro de Responsabilidade Civil - Fase de Obras | D153: Até o 2º ano | E153: 0.03 | F153: 20% do CAPEX em execução
C154: ='PAINEL DE CONTROLE'!B410 -> Seguro de Responsabilidade Civil - Fase de Operação | D154: Entre o 3º e 25º ano | E154: 0.008 | F154: R$ 2 milhões
C155: ='PAINEL DE CONTROLE'!B412 -> Verificador Independente (R$/ano) | E155: R$ 600 mil ao ano
C156: ='PAINEL DE CONTROLE'!B414 -> Remuneração do Agente Fiduciário (R$/ano) | D156: Todo o Contrato | E156: R$ 60 mil ano | F156: -
C158: =OPEX!B29 -> OPEX - UFV SOLO
C160: =OPEX!B33 -> Limpeza dos módulos solares | D160: Quantidade | E160: R$/Mês | F160: Total Mensal | G160: Total Anual
C161: =OPEX!B37 -> Eletricista | D161: =OPEX!C37 -> 1 | E161: =OPEX!D37 ->  | F161: =E161*D161 -> 0 | G161: =F161*12 -> 0
C162: =OPEX!B41 -> Carro | D162: =OPEX!C41 -> 1 | E162: =OPEX!D41 ->  | F162: 0 | G162: 0
C163: =OPEX!B42 -> Lava jato | D163: =OPEX!C42 -> 0 | E163: =OPEX!D42 ->  | F163: 0 | G163: 0
C164: Total | F164: =SUM(F161:F163) -> 0 | G164: 0
C166: =OPEX!B44 -> Revisão das conexões elétricas | D166: Quantidade | E166: R$/Mês | F166: Total Mensal | G166: Total Anual
C167: =OPEX!B48 -> Eletricista | D167: =OPEX!C48 -> 0 | E167: =OPEX!D48 ->  | F167: =E167*D167 -> 0 | G167: =F167*12 -> 0
C168: =OPEX!B52 -> Material | D168: =OPEX!C52 -> 1 | E168: =OPEX!D52 ->  | F168: 0 | G168: 0
C169: =OPEX!B53 -> Miscelania | D169: =OPEX!C53 -> 1 | E169: =OPEX!D53 ->  | F169: 0 | G169: 0
C170: Total | F170: =SUM(F167:F169) -> 0 | G170: 0
C172: =OPEX!B55 -> Inspeção de termovisão | D172: Quantidade | E172: R$/Mês | F172: Total Mensal | G172: Total Anual
C173: =OPEX!B59 -> Técnico | D173: =OPEX!C59 -> 2 | E173: =OPEX!D59 ->  | F173: =E173*D173 -> 0 | G173: =F173*12 -> 0
C174: =OPEX!B63 -> Carro | D174: =OPEX!C63 -> 2 | E174: =OPEX!D63 ->  | F174: 0 | G174: 0
C175: =OPEX!B64 -> Câmera de termovisão | D175: =OPEX!C64 -> 2 | E175: =OPEX!D64 ->  | F175: 0 | G175: 0
C176: Total | F176: =SUM(F173:F175) -> 0 | G176: 0
C178: =OPEX!B66 -> Programa de poda | D178: Quantidade | E178: R$/Mês | F178: Total Mensal | G178: Total Anual
C179: =OPEX!B70 -> Jardineiro | D179: =OPEX!C70 -> 1 | E179: =OPEX!D70 ->  | F179: =E179*D179 -> 0 | G179: =F179*12 -> 0
C180: =OPEX!B71 -> Ajudante | D180: =OPEX!C71 -> 1 | E180: =OPEX!D71 ->  | F180: 0 | G180: 0
C181: =OPEX!B75 -> Carro | D181: =OPEX!C75 -> 1 | E181: =OPEX!D75 ->  | F181: 0 | G181: 0
C182: =OPEX!B76 -> Equipamentos | D182: =OPEX!C76 -> 5 | E182: =OPEX!D76 ->  | F182: 0 | G182: 0
C183: Total | F183: =SUM(F179:F182) -> 0 | G183: 0
C185: =OPEX!B107 -> OPEX- UFV LOCAL (TELHADO)
C187: =OPEX!B111 -> OPEX UFV TELHADO | D187: Quantidade | E187: R$/Mês | F187: Total Mensal | G187: Total Anual
C188: =OPEX!B115 -> OPEX UFV TELHADO | D188: =OPEX!C115 -> 1 | E188: =OPEX!D115 -> 34568 | F188: =E188*D188 -> 34568 | G188: =F188*12 -> 414816
C189: =OPEX!B119 -> Carro | D189: =OPEX!C119 -> #REF! | E189: =OPEX!D119 ->  | F189: #REF! | G189: #REF!
C190: =OPEX!B120 -> Lava jato | D190: =OPEX!C120 -> #REF! | E190: =OPEX!D120 ->  | F190: #REF! | G190: #REF!
C191: Total | F191: =SUM(F188:F190) -> #REF! | G191: #REF!
C193: =OPEX!B122 -> Revisão das conexões elétricas | D193: Quantidade | E193: R$/Mês | F193: Total Mensal | G193: Total Anual
C194: =OPEX!B126 -> Eletricista | D194: =OPEX!C126 -> #REF! | E194: =OPEX!D126 ->  | F194: =E194*D194 -> #REF! | G194: =F194*12 -> #REF!
C195: =OPEX!B130 -> Material | D195: =OPEX!C130 -> #REF! | E195: =OPEX!D130 ->  | F195: #REF! | G195: #REF!
C196: =OPEX!B131 -> Miscelania | D196: =OPEX!C131 -> #REF! | E196: =OPEX!D131 ->  | F196: #REF! | G196: #REF!
C197: Total | F197: =SUM(F194:F196) -> #REF! | G197: #REF!
C199: =OPEX!B133 -> Inspeção de termovisão | D199: Quantidade | E199: R$/Mês | F199: Total Mensal | G199: Total Anual
C200: =OPEX!B137 -> Técnico | D200: =OPEX!C137 -> #REF! | E200: =OPEX!D137 ->  | F200: =E200*D200 -> #REF! | G200: =F200*12 -> #REF!
C201: =OPEX!B141 -> Carro | D201: =OPEX!C141 -> #REF! | E201: =OPEX!D141 ->  | F201: #REF! | G201: #REF!
C202: =OPEX!B142 -> Câmera de termovisão | D202: =OPEX!C142 -> #REF! | E202: =OPEX!D142 ->  | F202: #REF! | G202: #REF!
C203: Total | F203: =SUM(F200:F202) -> #REF! | G203: #REF!
C205: =OPEX!B144 -> Programa de poda | D205: Quantidade | E205: R$/Mês | F205: Total Mensal | G205: Total Anual
C206: =OPEX!B148 -> Jardineiro | D206: =OPEX!C148 ->  | E206: =OPEX!D148 ->  | F206: =E206*D206 -> 0 | G206: =F206*12 -> 0
C207: =OPEX!B149 -> Ajudante | D207: =OPEX!C149 ->  | E207: =OPEX!D149 ->  | F207: 0 | G207: 0
C208: =OPEX!B153 -> Carro | D208: =OPEX!C153 ->  | E208: =OPEX!D153 ->  | F208: 0 | G208: 0
C209: =OPEX!B154 -> Equipamentos | D209: =OPEX!C154 ->  | E209: =OPEX!D154 ->  | F209: 0 | G209: 0
C210: Total | F210: =SUM(F206:F209) -> 0 | G210: 0
C212: =OPEX!B183 -> O&M - Subestação
C214: =OPEX!B187 -> Limpeza dos módulos solares | D214: Quantidade | E214: R$/Mês | F214: Total Mensal | G214: Total Anual
C215: =OPEX!B191 -> Eletricista | D215: =OPEX!C191 ->  | E215: =OPEX!D191 ->  | F215: =E215*D215 -> 0 | G215: =F215*12 -> 0
C216: =OPEX!B195 -> Carro | D216: =OPEX!C195 ->  | E216: =OPEX!D195 ->  | F216: 0 | G216: 0
C217: =OPEX!B196 -> Lava jato | D217: =OPEX!C196 ->  | E217: =OPEX!D196 ->  | F217: 0 | G217: 0
C218: Total | F218: =SUM(F215:F217) -> 0 | G218: 0
C220: =OPEX!B198 -> Revisão das conexões elétricas | D220: Quantidade | E220: R$/Mês | F220: Total Mensal | G220: Total Anual
C221: =OPEX!B202 -> Eletricista | D221: =OPEX!C202 ->  | E221: =OPEX!D202 ->  | F221: =E221*D221 -> 0 | G221: =F221*12 -> 0
C222: =OPEX!B206 -> Material | D222: =OPEX!C206 ->  | E222: =OPEX!D206 ->  | F222: 0 | G222: 0
C223: =OPEX!B207 -> Miscelania | D223: =OPEX!C207 ->  | E223: =OPEX!D207 ->  | F223: 0 | G223: 0
C224: Total | F224: =SUM(F221:F223) -> 0 | G224: 0
C226: =OPEX!B209 -> Inspeção de termovisão | D226: Quantidade | E226: R$/Mês | F226: Total Mensal | G226: Total Anual
C227: =OPEX!B213 -> Técnico | D227: =OPEX!C213 ->  | E227: =OPEX!D213 ->  | F227: =E227*D227 -> 0 | G227: =F227*12 -> 0
C228: =OPEX!B217 -> Carro | D228: =OPEX!C217 ->  | E228: =OPEX!D217 ->  | F228: 0 | G228: 0
C229: =OPEX!B218 -> Câmera de termovisão | D229: =OPEX!C218 ->  | E229: =OPEX!D218 ->  | F229: 0 | G229: 0
C230: Total | F230: =SUM(F227:F229) -> 0 | G230: 0
C232: =OPEX!B220 -> Análise de Óleo | D232: Quantidade | E232: R$/Mês | F232: Total Mensal | G232: Total Anual
C233: =OPEX!B224 -> Eletricista | D233: =OPEX!C224 ->  | E233: =OPEX!D224 ->  | F233: =E233*D233 -> 0 | G233: =F233*12 -> 0
C234: =OPEX!B225 -> Ajudante | D234: =OPEX!C225 ->  | E234: =OPEX!D225 ->  | F234: 0 | G234: 0
C235: =OPEX!B229 -> Carro | D235: =OPEX!C229 ->  | E235: =OPEX!D229 ->  | F235: 0 | G235: 0
C236: =OPEX!B230 -> Equipamentos | D236: =OPEX!C230 ->  | E236: =OPEX!D230 ->  | F236: 0 | G236: 0
C237: Total | F237: =SUM(F233:F236) -> 0 | G237: 0
C239: =OPEX!B232 -> Reteste das proteções e intertravamentos | D239: Quantidade | E239: R$/Mês | F239: Total Mensal | G239: Total Anual
C240: =OPEX!B236 -> Eletricista | D240: =OPEX!C236 ->  | E240: =OPEX!D236 ->  | F240: =E240*D240 -> 0 | G240: =F240*12 -> 0
C241: =OPEX!B237 -> Ajudante | D241: =OPEX!C237 ->  | E241: =OPEX!D237 ->  | F241: 0 | G241: 0
C242: =OPEX!B241 -> Carro | D242: =OPEX!C241 ->  | E242: =OPEX!D241 ->  | F242: 0 | G242: 0
... 62 more rows

Sheet CONTROLE (2) (hidden)
C6: 1. Chave LIGA/DESLIGA | G6: 2. Quantidades | J6: 3. Receita acessória
C7: CAPEX | G7: Usinas em Angra ("baixa tensão") | H7: 1 | J7: potência de sobra | K7: =3500/2 -> 1750
C8: Usina baixa tensão | D8: 1 | G8: Outras UFVs ("alta tensão") | H8: 0 | J8: potencial | K8: 1400
C9: Usina alta tensão | D9: 1 | J9: Tarifa | K9: =0.6 -> 0.6
C10: Linha de transmissão | D10: 0 | J10: receita anual | K10: =K7*K8*K9*D17 -> 0
C11: Subestação | D11: 0
C12: OPEX
C13: Usina baixa tensão | D13: 1
C14: Usina alta tensão | D14: 1
C15: Linha de transmissão | D15: 0
C16: Subestação | D16: 0
C17: Receita Acessória | D17: 0

Sheet PAINEL DE CONTROLE
A1: Eficientização Energética Angra do Reis
A2: Painel de Controle
B4: Indicadores | I4: Financiamentos
B6: Prazo da Concessão (Anos) | D6: 35 | M6: Fin. 1 | O6: Fin. 2 | Q6: Fin. 3
B7: Termos Reais / Nominais | D7: Real | I7: Captação Total
B8: Prazo de Construção (Anos) | D8: 0 | I8: % Alavancagem | N8: 0.392063362 | P8: =Alav1_EE -> 0.392063362 | R8: =Alav1_EE -> 0.392063362
I9: Período de Captação (Anos) | M9: 1 | N9: 2 | Q9: 0 | R9: 0
B10: TIR do Projeto | D10: =IRR(DFs!L129:AT129) -> #REF! | E10: =DFs!J137 -> #REF! | I10: Prazo (Até Ano) | N10: 10 | R10: 0
B11: TIR do Acionista (Caixa Livre) | D11: =IRR(DFs!L130:AT130) -> #REF! | E11: =DFs!J146 -> #REF! | I11: Carência de Principal (Até Ano) | N11: 2 | R11: 0
B12: TIR do Acionista (DDM) | D12: =IRR(DFs!L131:AT131) -> #REF! | E12: =DFs!J155 -> #REF! | I12: Carência de Juros (Até Ano) | N12: 2 | P12: 0 | R12: 0
I13: Custo da Dívida (% a.a. sobre TR) | N13: 0.07 | P13: 0 | R13: 0
B14: VPL do Projeto | D14: =DFs!J139 -> #REF! | I14: Fee (% do Total Captado) | N14: 0.02240139616 | P14: 0 | R14: 0
B15: VPL (Caixa Livre) | D15: =DFs!J148 -> #REF! | I15: Custo Efetivo (% a.a.) | N15: ='DÍVIDA'!$C$45 -> n.a. | P15: ='DÍVIDA'!$C$71 -> n.a. | R15: ='DÍVIDA'!C97 -> n.a.
B16: VPL Acionista (DDM) | D16: =DFs!J157 -> #DIV/0! | I16: Custo de Due Diligence | N16: 300000
I17: Fiança Bancária (% do Total Captado) | N17: 0.012 | P17: 0.0075 | R17: 0.0075
D18: Simples | E18: Descontado | I18: Prazo para pgto. após término de desembolso (meses) | N18: 1 | P18: 1 | R18: 1
B19: Payback (Projeto) | D19: =DFs!I143 -> #REF! | E19: =DFs!I144 -> #REF! | I19: ICSD Mínimo | N19: =MINIFS($R$25:$R$59,$I$25:$I$59,">"&N11,$I$25:$I$59,"<="&N10,$I$25:$I$59,">="&M9) -> 0 | P19: =MINIFS($R$25:$R$59,$I$25:$I$59,">"&P11,$I$25:$I$59,"<="&P10,$I$25:$I$59,">="&O9) -> 0 | R19: =MINIFS($R$25:$R$59,$I$25:$I$59,">"&R11,$I$25:$I$59,"<="&R10,$I$25:$I$59,">="&Q9) -> 0
B20: Payback (Caixa Livre) | D20: =DFs!I152 -> #REF! | E20: =DFs!I153 -> #REF! | I20: Antecipação de Principal | L20: Não
B21: Payback (DDM) | D21: =DFs!I161 -> #REF! | E21: =DFs!I162 -> #DIV/0!
I22: Controle de Capital, Covenants e Tributação
D23: % Próprio | E23: % Alavancagem | P23: =-MIN(P25:P59) -> #REF!
B24: Estrutura Média de Capital | D24: =DFs!I179 -> #DIV/0! | E24: =DFs!I180 -> #DIV/0! | J24: Aportes | K24: Retiradas | L24: Caixa Mínimo | M24: Distribuição | N24: Tributação | O24: Tributação Ótima | P24: Necessidade | Q24: Dividendos | R24: ICSD | S24: Equity / Capital
I25: 1 | J25: 8470995.623 | K25: 0 | L25: 0 | M25: Não | N25: Lucro Presumido | O25: =TRANSPOSE(TRIBUTOS!L158:AT158) -> #REF! | P25: =TRANSPOSE('AUX BP'!L170:AT170) -> #REF! | Q25: =TRANSPOSE('AUX BP'!L185:AT185) -> 0 | R25: =TRANSPOSE('DÍVIDA'!F124:AN124) -> n.a. | S25: =TRANSPOSE(DFs!L179:AT179) -> 
B26: Valor da Contraprestação Anual | D26: =E130 -> 5913247.769 | E26: =D26/12 -> 492770.6474 | I26: =I25+1 -> 2 | J26: 0 | K26: 0 | L26: 0 | M26: Não | N26: Lucro Presumido | Q26: 0 | R26: n.a.
I27: 3 | J27: 0 | K27: 0 | L27: 0 | M27: Não | N27: Lucro Presumido | Q27: 0 | R27: n.a.
B28: Taxa de Desconto | I28: 4 | J28: 0 | K28: 0 | L28: 0 | M28: Não | N28: Lucro Presumido | Q28: 0 | R28: n.a.
I29: 5 | J29: 0 | K29: 0 | L29: 0 | M29: Não | N29: Lucro Presumido | Q29: 0 | R29: n.a.
D30: WACC | E30: CAPM | I30: 6 | J30: 0 | K30: 0 | L30: 0 | M30: Sim | N30: Lucro Presumido | R30: n.a.
B31: Taxa de Desconto Utilizada | D31: =IF($D$7="Real",D32,D33) -> #DIV/0! | E31: #DIV/0! | I31: 7 | J31: 0 | K31: 0 | L31: 0 | M31: Sim | N31: Lucro Presumido | R31: n.a.
B32: Taxa de Desconto - Termos Reais | D32: =WACC!$D$25 -> #DIV/0! | E32: =WACC!$D$32 -> #DIV/0! | I32: 8 | J32: 0 | K32: 0 | L32: 0 | M32: Sim | N32: Lucro Presumido | R32: n.a.
B33: Taxa de Desconto - Termos Nominais | D33: =WACC!$D$21 -> #DIV/0! | E33: =WACC!$D$34 -> #DIV/0! | I33: 9 | J33: 0 | K33: 0 | L33: 0 | M33: Sim | N33: Lucro Presumido | R33: n.a.
I34: 10 | J34: 0 | K34: 0 | L34: 0 | M34: Sim | N34: Lucro Presumido | R34: n.a.
B35: Checks | I35: 11 | J35: 0 | K35: 0 | L35: 0 | M35: Sim | N35: Lucro Presumido | R35: n.a.
I36: 12 | J36: 0 | K36: 0 | L36: 0 | M36: Sim | N36: Lucro Presumido | R36: n.a.
B37: Balanço Patrimonial | D37: =IF(ROUND(SUM(DFs!L96:AE96),0)=0,"OK","Checar Balanço") -> #ERROR! | I37: 13 | J37: 0 | K37: 0 | L37: 0 | M37: Sim | N37: Lucro Presumido | R37: n.a.
B38: Capital | D38: =IF(SUM(P25:P54)>0,"Necessidade de Aporte","OK") -> #REF! | I38: 14 | J38: 0 | K38: 0 | L38: 0 | M38: Sim | N38: Lucro Presumido | R38: n.a.
B39: TIR | D39: =IF(ABS(SUM(E10:E12))>100000,"Recalcular TIR","OK") -> #REF! | I39: 15 | J39: 0 | K39: 0 | L39: 0 | M39: Sim | N39: Lucro Presumido | R39: n.a.
B40: ICSD Máximo | D40: 1.3 | I40: 16 | J40: 0 | K40: 0 | L40: 0 | M40: Sim | N40: Lucro Presumido | R40: n.a.
B41: Equity / Capital | D41: 0 | I41: 17 | J41: 0 | K41: 0 | L41: 0 | M41: Sim | N41: Lucro Presumido | R41: n.a.
B42: Aporte Mínimo | D42: =-MINIFS(P25:P59,I25:I59,"<="&D6) -> #REF! | I42: 18 | J42: 0 | K42: 0 | L42: 0 | M42: Sim | N42: Lucro Presumido | R42: n.a.
I43: 19 | J43: 0 | K43: 0 | L43: 0 | M43: Sim | N43: Lucro Presumido | R43: n.a.
B44: Premissas Fiscais/Contábeis | I44: 20 | J44: 0 | K44: 0 | L44: 0 | M44: Sim | N44: Lucro Presumido | R44: n.a.
I45: 21 | J45: 0 | K45: 0 | L45: 0 | M45: Sim | N45: Lucro Presumido | R45: n.a.
B46: Classificação dos Ativos | I46: 22 | J46: 0 | K46: 0 | L46: 0 | M46: Sim | N46: Lucro Presumido | R46: n.a.
E47: Bens Reversíveis | F47: Imobilizado | I47: 23 | J47: 0 | K47: 0 | L47: 0 | M47: Sim | N47: Lucro Presumido | R47: n.a.
B48: =CAPEX!B11 -> N/D | E48: 1 | F48: 0 | I48: 24 | J48: 0 | K48: 0 | L48: 0 | M48: Sim | N48: Lucro Presumido | R48: n.a.
B49: =CAPEX!B12 -> CAPEX - implantação das usinas | E49: 1 | F49: 0 | I49: 25 | J49: 0 | K49: 0 | L49: 0 | M49: Sim | N49: Lucro Presumido | R49: n.a.
B50: =CAPEX!B13 -> Equipamentos - Geração Fotovoltaica | E50: 1 | F50: 0 | I50: 26 | J50: 0 | K50: 0 | L50: 0 | M50: Sim | N50: Lucro Presumido | R50: n.a.
B51: =CAPEX!B14 -> Equipamentos - Linha de Transmissão | E51: 1 | F51: 0 | I51: 27 | J51: 0 | K51: 0 | L51: 0 | M51: Sim | N51: Lucro Presumido | R51: n.a.
B52: =CAPEX!B15 -> Materiais - Linha de Transmissão | E52: 1 | F52: 0 | I52: 28 | J52: 0 | K52: 0 | L52: 0 | M52: Sim | N52: Lucro Presumido | R52: n.a.
B53: =CAPEX!B16 -> Projetos, Mão de Obra e Licenças - Linha de Transmissão | E53: 1 | F53: 0 | I53: 29 | J53: 0 | K53: 0 | L53: 0 | M53: Sim | N53: Lucro Presumido | R53: n.a.
B54: =CAPEX!B17 -> Equipamentos - Subestação | E54: 1 | F54: 0 | I54: 30 | J54: 0 | K54: 0 | L54: 0 | M54: Sim | N54: Lucro Presumido | R54: n.a.
B55: =CAPEX!B18 -> Materiais - Subestação | E55: 1 | F55: 0 | I55: 31 | J55: 0 | K55: 0 | L55: 0 | M55: Sim | N55: Lucro Presumido | R55: n.a.
B56: =CAPEX!B19 -> Projetos e Mão de Obra - Subestação | E56: 1 | F56: 0 | I56: 32 | J56: 0 | K56: 0 | L56: 0 | M56: Sim | N56: Lucro Presumido | R56: n.a.
B57: =CAPEX!B20 -> Outros Investimentos | E57: 1 | F57: 0 | I57: 33 | J57: 0 | K57: 0 | L57: 0 | M57: Sim | N57: Lucro Presumido | R57: n.a.
B58: =CAPEX!B21 -> CAPEX 11 | E58: 1 | F58: 0 | I58: 34 | J58: 0 | K58: 0 | L58: 0 | M58: Sim | N58: Lucro Presumido | R58: n.a.
B59: =CAPEX!B22 -> CAPEX 12 | E59: 1 | F59: 0 | I59: 35 | J59: 0 | K59: 0 | L59: 0 | M59: Sim | N59: Lucro Presumido | R59: n.a.
I61: Premissas Usinas Fotovoltaicas
B63: Tributos | I63: Cronograma
I64: Ano | J64: UFV solo | K64: UFV telhado
B65: Limite de Tributação Lucro Presumido (Anual) | F65: 78000000 | I65: 1 | J65: 0.2 | K65: 0 | L65: 0 | M65: 0
B66: PIS/COFINS - Presumido | F66: 0.0365 | I66: =I65+1 -> 2 | J66: 0.8 | K66: =1/3 -> 0.3333333333 | L66: 0 | M66: 0
B67: PIS/COFINS - Real | F67: 0.0925 | I67: 3 | J67: 0 | K67: =2/3 -> 0.6666666667 | L67: 0 | M67: 0
B68: ISS | F68: 0.05 | I68: 4 | J68: 0 | K68: 0 | L68: 0 | M68: 0
B69: Alíquota de Presunção s/ Receita Bruta | F69: 0.32 | I69: 5 | J69: 0 | K69: 0 | L69: 0 | M69: 0
B70: Limite IR Adicional | F70: 240000 | I70: 6 | J70: 0 | K70: 0 | L70: 0 | M70: 0
B71: IR | F71: 0.15 | I71: 7 | J71: 0 | K71: 0 | L71: 0 | M71: 0
B72: IR Adicional | F72: 0.1 | I72: 8 | J72: 0 | K72: 0 | L72: 0 | M72: 0
B73: CSLL | F73: 0.09 | I73: 9 | J73: 0 | K73: 0 | L73: 0 | M73: 0
B74: Limite de Dedutibilidade de Base Negativa | F74: 0.3 | I74: 10 | J74: 0 | K74: 0 | L74: 0 | M74: 0
I75: 11 | J75: 0.056 | K75: 0.056 | L75: 0 | M75: 0
B76: Vida Útil Fiscal | F76: Prazo (Anos) | I76: 12 | J76: 0 | K76: 0 | L76: 0 | M76: 0
I77: 13 | J77: 0 | K77: 0 | L77: 0 | M77: 0
B78: =B48 -> N/D | F78: 10 | I78: 14 | J78: 0 | K78: 0 | L78: 0 | M78: 0
B79: CAPEX - implantação das usinas | F79: 10 | I79: 15 | J79: 0 | K79: 0 | L79: 0 | M79: 0
B80: Equipamentos - Geração Fotovoltaica | F80: 10 | I80: 16 | J80: 0 | K80: 0 | L80: 0 | M80: 0
B81: Equipamentos - Linha de Transmissão | F81: 10 | I81: 17 | J81: 0 | K81: 0 | L81: 0 | M81: 0
B82: =B58 -> CAPEX 11 | F82: 10 | I82: 18 | J82: 0 | K82: 0 | L82: 0 | M82: 0
B83: CAPEX 12 | F83: 10 | I83: 19 | J83: 0 | K83: 0 | L83: 0 | M83: 0
I84: 20 | J84: 0 | K84: 0 | L84: 0 | M84: 0
I85: 21 | J85: 0.056 | K85: 0.056 | L85: 0 | M85: 0
I86: 22 | J86: 0 | K86: 0 | L86: 0 | M86: 0
B87: Capital de Giro | F87: (Dias) | I87: 23 | J87: 0 | K87: 0 | L87: 0 | M87: 0
I88: 24 | J88: 0 | K88: 0 | L88: 0 | M88: 0
B89: Contas a Receber | F89: 30 | I89: 25 | J89: 0 | K89: 0 | L89: 0 | M89: 0
B90: Contas a Pagar | F90: 30 | I90: 26 | J90: 0 | K90: 0 | L90: 0 | M90: 0
B91: Salários | F91: 30 | I91: 27 | J91: 0 | K91: 0 | L91: 0 | M91: 0
B92: Impostos | F92: 30 | I92: 28 | J92: 0 | K92: 0 | L92: 0 | M92: 0
I93: 29 | J93: 0 | K93: 0 | L93: 0 | M93: 0
B94: Controle de Cenários | I94: 30 | J94: 0 | K94: 0 | L94: 0 | M94: 0
I95: 31 | J95: 0.056 | K95: 0.056 | L95: 0 | M95: 0
B96: Sensibilidades | I96: 32 | J96: 0 | K96: 0 | L96: 0 | M96: 0
B97: Contraprestação | F97: 1 | I97: 33 | J97: 0 | K97: 0 | L97: 0 | M97: 0
B98: OPEX | F98: 1 | I98: 34 | J98: 0 | K98: 0 | L98: 0 | M98: 0
B99: CAPEX | F99: 1 | I99: 35 | J99: 0 | K99: 0 | L99: 0 | M99: 0
B101: Indicadores Gerenciais | I101: Premissas de CAPEX
I103: Geração Fotovoltaica
B105: Total OPEX | D105: =E105/$D$6 -> #REF! | E105: =SUM(E106:E111) -> #REF! | I105: Período de Duração das Fases do Projeto (Anos)
B106: =OPEX!B11 -> OPEX - UFV SOLO | D106: -622233.2 | E106: =OPEX!E11 -> -21778162 | F106: =IFERROR(E106/E$105,"n.a.") -> n.a. | I106: Período Setup | J106: 0.5
B107: =OPEX!B12 -> OPEX- UFV LOCAL (TELHADO) | D107: #REF! | E107: =OPEX!E12 -> #REF! | F107: n.a. | I107: Operação | J107: =((540)/30)/12 -> 1.5
B108: =OPEX!B14 -> Custos e Despesas com Obra - Baixa Tensão | D108: 0 | E108: =OPEX!E14 -> 0 | F108: n.a.
B109: =OPEX!B15 -> Custos e Despesas com Obra - Alta Tensão | D109: 0 | E109: =OPEX!E15 -> 0 | F109: n.a.
B110: =OPEX!B16 -> Seguros, Garantias e Outros | D110: #ERROR! | E110: =OPEX!E16 -> #ERROR! | F110: n.a. | I110: UFV solo
B111: =OPEX!B17 -> CCO | D111: -1293792.748 | E111: =OPEX!E17 -> -45282746.19 | F111: n.a.
I112: Instalações Elétricas e Conexão de Rede
B113: Total CAPEX | D113: =E113/$D$6 -> #ERROR! | E113: =SUM(E114:E119) -> #ERROR! | J113: Qtd | K113: P.U. | L113: Ano Implantação | M113: Vida Útil (Anos)
B114: =CAPEX!B11 -> N/D | D114: 0 | E114: =CAPEX!I11 -> 0 | F114: =IFERROR(E114/E$113,"n.a.") -> n.a. | I114: UFV solo | J114: ='CONTROLE (2)'!$H$7 -> 1 | K114: =TRUNC([1]Análise!$C$3,0) -> #ERROR! | L114: 1 | M114: 35
B115: =CAPEX!B12 -> CAPEX - implantação das usinas | D115: #ERROR! | E115: =CAPEX!I12 -> #ERROR! | F115: n.a. | I115: CAPEX 2 | L115: 2 | M115: 0
B116: =CAPEX!B13 -> Equipamentos - Geração Fotovoltaica | D116: 0 | E116: =CAPEX!I13 -> 0 | F116: n.a. | I116: CAPEX 3 | L116: 2 | M116: 0
B117: =CAPEX!B20 -> Outros Investimentos | D117: -78330.28657 | E117: =CAPEX!I20 -> -2741560.03 | F117: n.a.
B118: =CAPEX!B21 -> CAPEX 11 | D118: 0 | E118: =CAPEX!I21 -> 0 | F118: n.a. | I118: Estrutura Operacional
B119: =CAPEX!B22 -> CAPEX 12 | D119: 0 | E119: =CAPEX!I22 -> 0 | F119: n.a. | I119: Instalações e Equipamentos
J120: Qtd | K120: P.U. | L120: Ano Implantação | M120: Vida Útil (Anos)
I121: CAPEX 4 | L121: 2 | M121: 25
I122: CAPEX 5 | L122: 2 | M122: 5
I124: Mão de Obra
B125: Premissas de Receita | J125: P.U. | K125: Ano Implantação
I126: CAPEX 6 | K126: 2
B127: Contraprestação | J127: Qtd | K127: P.U.
I128: CAPEX 7
D129: Mensal | E129: Anual | I129: CAPEX 8
B130: Contraprestação máxima admitida | D130: =E130/12 -> 492770.6474 | E130: 5913247.769 | I130: CAPEX 9
I131: CAPEX 10
I132: CAPEX 11
B134: Aporte | I134: CAPEX 12
D135: Ano Inicio | E135: Ano Fim | F135: Valor (R$)
B136: Aporte | D136: 1 | E136: 2
I137: UFV LOCAL (TELHADOS)
B138: Premissas de OPEX
I139: Instalações Elétricas e Conexão de Rede
B140: UFV Solo | J140: Qtd | K140: P.U. | L140: Ano Implantação | M140: Vida Útil (Anos)
I141: UFV local (telhado) | J141: 1 | K141: =TRUNC([1]Análise!$C$4,0) -> #ERROR! | L141: 1 | M141: 0
B142: Custos e Despesas | I142: CAPEX 13 | L142: 2 | M142: 0
I143: CAPEX 14 | L143: 2 | M143: 0
B144: O&M | E144: Qtd. | F144: R$/mês
B145: OPEX UFV solo | D145: =E145*F145 -> 54719 | E145: 1 | F145: 54719 | I145: Estrutura Operacional
B146: Limpeza dos módulos solares | I146: Instalações e Equipamentos
J147: Qtd | K147: P.U. | L147: Ano Implantação | M147: Vida Útil (Anos)
B148: Pessoal | I148: CAPEX 15 | L148: 2 | M148: 25
B149: Eletricista | D149: =E149*F149 -> 0 | E149: 1 | I149: CAPEX 16 | L149: 2 | M149: 5
B151: Locação de Equipamentos | I151: Mão de Obra
B152: Carro | D152: =E152*F152 -> 0 | E152: 1 | J152: P.U. | K152: Ano Implantação
B153: Lava jato | D153: 0 | E153: 0 | I153: CAPEX 17 | K153: 2
J154: Qtd | K154: P.U.
B155: Revisão das conexões elétricas | I155: CAPEX 18
I156: CAPEX 19
B157: Pessoal | I157: CAPEX 20
B158: Eletricista | D158: =E158*F158 -> 0 | E158: 0 | I158: CAPEX 21
I159: CAPEX 22
B160: Locação de Equipamentos
B161: Material | D161: =E161*F161 -> 0 | E161: 1 | I161: CAPEX 23
B162: Miscelania | D162: 0 | E162: 1
B164: Inspeção de termovisão | I164: Linha de Transmissão
B166: Pessoal | I166: Equipamentos - Linha de Transmissão
B167: Técnico | D167: =E167*F167 -> 0 | E167: 2 | J167: Qtd | K167: P.U. | L167: Ano Implantação | M167: Vida Útil (Anos)
I168: Estruturas Metálicas | J168: ='[2]PAINEL DE CONTROLE'!J168*'CONTROLE (2)'!$D$10 -> #REF! | K168: ='[2]PAINEL DE CONTROLE'!K168*'CONTROLE (2)'!$D$10 -> #REF! | L168: 2 | M168: 0
B169: Locação de Equipamentos | I169: Cabos de Alumínio | J169: ='[2]PAINEL DE CONTROLE'!J169*'CONTROLE (2)'!$D$10 -> #REF! | K169: ='[2]PAINEL DE CONTROLE'!K169*'CONTROLE (2)'!$D$10 -> #REF! | L169: 2 | M169: 0
B170: Carro | D170: =E170*F170 -> 0 | E170: 2 | I170: Isoladores | J170: ='[2]PAINEL DE CONTROLE'!J170*'CONTROLE (2)'!$D$10 -> #REF! | K170: ='[2]PAINEL DE CONTROLE'!K170*'CONTROLE (2)'!$D$10 -> #REF! | L170: 2 | M170: 0
B171: Câmera de termovisão | D171: 0 | E171: 2 | I171: Conectores | J171: ='[2]PAINEL DE CONTROLE'!J171*'CONTROLE (2)'!$D$10 -> #REF! | K171: ='[2]PAINEL DE CONTROLE'!K171*'CONTROLE (2)'!$D$10 -> #REF! | L171: 2 | M171: 0
B173: Programa de poda | I173: Materiais - Linha de Transmissão
J174: Qtd | K174: P.U. | L174: Ano Implantação | M174: Vida Útil (Anos)
B175: Pessoal | I175: Materiais para Instalação Elétrica | J175: ='[2]PAINEL DE CONTROLE'!J175*'CONTROLE (2)'!$D$10 -> #REF! | K175: ='[2]PAINEL DE CONTROLE'!K175*'CONTROLE (2)'!$D$10 -> #REF! | L175: 2 | M175: 0
B176: Jardineiro | D176: =E176*F176 -> 0 | E176: 1 | I176: Materiais para Instalação Eletromecânica | J176: ='[2]PAINEL DE CONTROLE'!J176*'CONTROLE (2)'!$D$10 -> #REF! | K176: ='[2]PAINEL DE CONTROLE'!K176*'CONTROLE (2)'!$D$10 -> #REF! | L176: 2 | M176: 0
B177: Ajudante | D177: 0 | E177: 1 | I177: Materiais Construção Civil | J177: ='[2]PAINEL DE CONTROLE'!J177*'CONTROLE (2)'!$D$10 -> #REF! | K177: ='[2]PAINEL DE CONTROLE'!K177*'CONTROLE (2)'!$D$10 -> #REF! | L177: 2 | M177: 0
B179: Locação de Equipamentos | D179: =E179*F179 -> 0 | I179: Projetos, Mão de Obra e Licenças - Linha de Transmissão
B180: Carro | D180: 0 | E180: 1
B181: Equipamentos | D181: 0 | E181: 5 | I181: Projetos Básicos e Executivos
B183: Custos Indiretos | J183: Qtd | K183: P.U. | L183: Ano Implantação | M183: Vida Útil (Anos)
I184: Projetos Básicos e Executivos | J184: ='[2]PAINEL DE CONTROLE'!J184*'CONTROLE (2)'!$D$10 -> #REF! | K184: ='[2]PAINEL DE CONTROLE'!K184*'CONTROLE (2)'!$D$10 -> #REF! | L184: 1 | M184: 0
B185: Mão de Obra
I186: Estudos Ambientais e Licenças
B187: Eletricista | D187: =E187*F187*12 -> 0 | E187: 2
B188: Adminstrativo | D188: 0 | E188: 5 | I188: Licenciamento Ambiental | J188: ='[2]PAINEL DE CONTROLE'!J188*'CONTROLE (2)'!$D$10 -> #REF! | K188: ='[2]PAINEL DE CONTROLE'!K188*'CONTROLE (2)'!$D$10 -> #REF! | L188: 1 | M188: 0
B189: Gerente | D189: 0 | E189: 1 | I189: Licenciamento Fundiário | J189: ='[2]PAINEL DE CONTROLE'!J189*'CONTROLE (2)'!$D$10 -> #REF! | K189: ='[2]PAINEL DE CONTROLE'!K189*'CONTROLE (2)'!$D$10 -> #REF! | L189: 1 | M189: 0
I190: Licenciamento Arqueológico | J190: ='[2]PAINEL DE CONTROLE'!J190*'CONTROLE (2)'!$D$10 -> #REF! | K190: ='[2]PAINEL DE CONTROLE'!K190*'CONTROLE (2)'!$D$10 -> #REF! | L190: 1 | M190: 0
B191: Infraestrutura CCO | I191: Estudos | J191: ='[2]PAINEL DE CONTROLE'!J191*'CONTROLE (2)'!$D$10 -> #REF! | K191: ='[2]PAINEL DE CONTROLE'!K191*'CONTROLE (2)'!$D$10 -> #REF! | L191: 1 | M191: 0
B193: Aluguel | D193: =E193*F193*12 -> 0 | E193: 1 | I193: Estudos Ambientais e Licenças
B194: Condomínio | D194: 0 | E194: 1
B195: Água | D195: 0 | E195: 1 | I195: Gerente de Contrato | J195: ='[2]PAINEL DE CONTROLE'!J195*'CONTROLE (2)'!$D$10 -> #REF! | K195: ='[2]PAINEL DE CONTROLE'!K195*'CONTROLE (2)'!$D$10 -> #REF! | L195: 2 | M195: 0
B196: Luz | D196: 0 | E196: 1 | I196: Engenheiro Elétrico | J196: ='[2]PAINEL DE CONTROLE'!J196*'CONTROLE (2)'!$D$10 -> #REF! | K196: ='[2]PAINEL DE CONTROLE'!K196*'CONTROLE (2)'!$D$10 -> #REF! | L196: 2 | M196: 0
B197: Internet | D197: 0 | E197: 1 | I197: Engenheiro Civil | J197: ='[2]PAINEL DE CONTROLE'!J197*'CONTROLE (2)'!$D$10 -> #REF! | K197: ='[2]PAINEL DE CONTROLE'!K197*'CONTROLE (2)'!$D$10 -> #REF! | L197: 2 | M197: 0
B198: Limpeza | D198: 0 | E198: 1 | I198: Supervisor Elétrico/Eletromecânico | J198: ='[2]PAINEL DE CONTROLE'!J198*'CONTROLE (2)'!$D$10 -> #REF! | K198: ='[2]PAINEL DE CONTROLE'!K198*'CONTROLE (2)'!$D$10 -> #REF! | L198: 2 | M198: 0
I199: Supervisor Civil | J199: ='[2]PAINEL DE CONTROLE'!J199*'CONTROLE (2)'!$D$10 -> #REF! | K199: ='[2]PAINEL DE CONTROLE'!K199*'CONTROLE (2)'!$D$10 -> #REF! | L199: 2 | M199: 0
B200: Locação de Equipamentos | I200: Técnico de Segurança | J200: ='[2]PAINEL DE CONTROLE'!J200*'CONTROLE (2)'!$D$10 -> #REF! | K200: ='[2]PAINEL DE CONTROLE'!K200*'CONTROLE (2)'!$D$10 -> #REF! | L200: 2 | M200: 0
I201: Eletrotecnicos | J201: ='[2]PAINEL DE CONTROLE'!J201*'CONTROLE (2)'!$D$10 -> #REF! | K201: ='[2]PAINEL DE CONTROLE'!K201*'CONTROLE (2)'!$D$10 -> #REF! | L201: 2 | M201: 0
B202: Carro | D202: =E202*F202*12 -> 0 | E202: 1 | I202: Eletricistas | J202: ='[2]PAINEL DE CONTROLE'!J202*'CONTROLE (2)'!$D$10 -> #REF! | K202: ='[2]PAINEL DE CONTROLE'!K202*'CONTROLE (2)'!$D$10 -> #REF! | L202: 2 | M202: 0
I203: Oficiais | J203: ='[2]PAINEL DE CONTROLE'!J203*'CONTROLE (2)'!$D$10 -> #REF! | K203: ='[2]PAINEL DE CONTROLE'!K203*'CONTROLE (2)'!$D$10 -> #REF! | L203: 2 | M203: 0
B204: Combustível | I204: Ajudantes | J204: ='[2]PAINEL DE CONTROLE'!J204*'CONTROLE (2)'!$D$10 -> #REF! | K204: ='[2]PAINEL DE CONTROLE'!K204*'CONTROLE (2)'!$D$10 -> #REF! | L204: 2 | M204: 0
B206: Combustível R$/L | E206: 7.5 | I206: Subestação
B207: Distância Percorrida (KM/Mês) | E207: 600
B208: Km/L | E208: 9 | I208: Equipamentos - Subestação
J209: Qtd | K209: P.U. | L209: Ano Implantação | M209: Vida Útil (Anos)
B210: Custo indiretos com mão de obra durante a obra, englobando alugueis, EPI's, carro, combustível, celular, contas de energia, água e demais custos fixos | E210: 1 | I210: Transformador de Potencial 88/138 kV | J210: ='[2]PAINEL DE CONTROLE'!J210*'CONTROLE (2)'!$D$11 -> #REF! | K210: ='[2]PAINEL DE CONTROLE'!K210*'CONTROLE (2)'!$D$11 -> #REF! | L210: 2 | M210: 0
I211: Transformador de Corrente 88/138 kV | J211: ='[2]PAINEL DE CONTROLE'!J211*'CONTROLE (2)'!$D$11 -> #REF! | K211: ='[2]PAINEL DE CONTROLE'!K211*'CONTROLE (2)'!$D$11 -> #REF! | L211: 2 | M211: 0
I212: Disjuntor (alta tensão) 88/138 kV | J212: ='[2]PAINEL DE CONTROLE'!J212*'CONTROLE (2)'!$D$11 -> #REF! | K212: ='[2]PAINEL DE CONTROLE'!K212*'CONTROLE (2)'!$D$11 -> #REF! | L212: 2 | M212: 0
B213: Custos e Despesas com Obra | I213: Seccionadora 88/138 kV (tripolar) | J213: ='[2]PAINEL DE CONTROLE'!J213*'CONTROLE (2)'!$D$11 -> #REF! | K213: ='[2]PAINEL DE CONTROLE'!K213*'CONTROLE (2)'!$D$11 -> #REF! | L213: 2 | M213: 0
I214: Transformador de Força 88/138kV x 13.8 V - 10 MVA | J214: ='[2]PAINEL DE CONTROLE'!J214*'CONTROLE (2)'!$D$11 -> #REF! | K214: ='[2]PAINEL DE CONTROLE'!K214*'CONTROLE (2)'!$D$11 -> #REF! | L214: 2 | M214: 0
I215: Para Raios 138kV | J215: ='[2]PAINEL DE CONTROLE'!J215*'CONTROLE (2)'!$D$11 -> #REF! | K215: ='[2]PAINEL DE CONTROLE'!K215*'CONTROLE (2)'!$D$11 -> #REF! | L215: 2 | M215: 0
I216: Painéis de comando e proteção | J216: ='[2]PAINEL DE CONTROLE'!J216*'CONTROLE (2)'!$D$11 -> #REF! | K216: ='[2]PAINEL DE CONTROLE'!K216*'CONTROLE (2)'!$D$11 -> #REF! | L216: 2 | M216: 0
B217: Pessoal | E217: Dias de Obra | F217: Custo/Dia de Obra | I217: Sistema de medição alta tensão | J217: ='[2]PAINEL DE CONTROLE'!J217*'CONTROLE (2)'!$D$11 -> #REF! | K217: ='[2]PAINEL DE CONTROLE'!K217*'CONTROLE (2)'!$D$11 -> #REF! | L217: 2 | M217: 0
... 142 more rows

Sheet DADOS MACROECONÔMICOS
A1: ='PAINEL DE CONTROLE'!$A$1 -> Eficientização Energética Angra do Reis
A2: Dados Macroeconômicos
B4: ANO | M4: =C4+1 -> 1 | N4: =M4+1 -> 2 | O4: 3 | P4: 4 | Q4: 5 | R4: 6 | S4: 7 | T4: 8 | U4: 9 | V4: 10 | W4: 11 | X4: 12 | Y4: 13 | Z4: 14 | AA4: 15 | AB4: 16 | AC4: 17 | AD4: 18 | AE4: 19 | AF4: 20 | AG4: 21 | AH4: 22 | AI4: 23 | AJ4: 24 | AK4: 25 | AL4: 26 | AM4: 27 | AN4: 28 | AO4: 29 | AP4: 30 | AQ4: 31 | AR4: 32 | AS4: 33 | AT4: 34 | AU4: 35
B6: IPCA - variação % - Média - Período de 31/12/2025 - Base: Expectativas informadas nos últimos 30 dias úteis | M6: 0.045 | N6: 0.042 | O6: 0.041 | P6: 0.04 | Q6: 0.038 | R6: =Q6 -> 0.038 | S6: 0.038 | T6: 0.038 | U6: 0.038 | V6: 0.038 | W6: 0.038 | X6: 0.038 | Y6: 0.038 | Z6: 0.038 | AA6: 0.038 | AB6: 0.038 | AC6: 0.038 | AD6: 0.038 | AE6: 0.038 | AF6: 0.038 | AG6: 0.038 | AH6: 0.038 | AI6: 0.038 | AJ6: 0.038 | AK6: 0.038 | AL6: 0.038 | AM6: 0.038 | AN6: 0.038 | AO6: 0.038 | AP6: 0.038 | AQ6: 0.038 | AR6: 0.038 | AS6: 0.038 | AT6: 0.038 | AU6: 0.038
B8: IPCA Projeções | M8: =M6 -> 0.045 | N8: 0.042 | O8: 0.041 | P8: 0.04 | Q8: 0.038 | R8: 0.038 | S8: 0.038 | T8: 0.038 | U8: 0.038 | V8: 0.038 | W8: 0.038 | X8: 0.038 | Y8: 0.038 | Z8: 0.038 | AA8: 0.038 | AB8: 0.038 | AC8: 0.038 | AD8: 0.038 | AE8: 0.038 | AF8: 0.038 | AG8: 0.038 | AH8: 0.038 | AI8: 0.038 | AJ8: 0.038 | AK8: 0.038 | AL8: 0.038 | AM8: 0.038 | AN8: 0.038 | AO8: 0.038 | AP8: 0.038 | AQ8: 0.038 | AR8: 0.038 | AS8: 0.038 | AT8: 0.038 | AU8: 0.038
B9: IPCA Acumulado | M9: =M8 -> 0.045 | N9: =(1+M9)*(1+N8)-1 -> 0.08889 | O9: 0.13353449 | P9: 0.1788758696 | Q9: 0.2236731526 | R9: 0.2701727324 | S9: 0.3184392963 | T9: 0.3685399895 | U9: 0.4205445091 | V9: 0.4745252005 | W9: 0.5305571581 | X9: 0.5887183301 | Y9: 0.6490896267 | Z9: 0.7117550325 | AA9: 0.7768017237 | AB9: 0.8443201892 | AC9: 0.9144043564 | AD9: 0.9871517219 | AE9: 1.062663487 | AF9: 1.1410447 | AG9: 1.222404398 | AH9: 1.306855766 | AI9: 1.394516285 | AJ9: 1.485507904 | AK9: 1.579957204 | AL9: 1.677995578 | AM9: 1.77975941 | AN9: 1.885390267 | AO9: 1.995035097 | AP9: 2.108846431 | AQ9: 2.226982595 | AR9: 2.349607934 | AS9: 2.476893035 | AT9: 2.609014971 | AU9: 2.74615754
B10: Índice de Inflação | L10: 1 | M10: =L10*(1+M8) -> 1.045 | N10: 1.08889 | O10: 1.13353449 | P10: 1.17887587 | Q10: 1.223673153 | R10: 1.270172732 | S10: 1.318439296 | T10: 1.36853999 | U10: 1.420544509 | V10: 1.4745252 | W10: 1.530557158 | X10: 1.58871833 | Y10: 1.649089627 | Z10: 1.711755032 | AA10: 1.776801724 | AB10: 1.844320189 | AC10: 1.914404356 | AD10: 1.987151722 | AE10: 2.062663487 | AF10: 2.1410447 | AG10: 2.222404398 | AH10: 2.306855766 | AI10: 2.394516285 | AJ10: 2.485507904 | AK10: 2.579957204 | AL10: 2.677995578 | AM10: 2.77975941 | AN10: 2.885390267 | AO10: 2.995035097 | AP10: 3.108846431 | AQ10: 3.226982595 | AR10: 3.349607934 | AS10: 3.476893035 | AT10: 3.609014971 | AU10: 3.74615754
B12: TR Anual | C12: Fonte: XP Investimentos | M12: 0.025 | N12: 0.023 | O12: 0.022 | P12: 0.021 | Q12: 0.02 | R12: 0.019 | S12: 0.017 | T12: 0.016 | U12: =T12 -> 0.016 | V12: 0.016 | W12: 0.016 | X12: 0.016 | Y12: 0.016 | Z12: 0.016 | AA12: 0.016 | AB12: 0.016 | AC12: 0.016 | AD12: 0.016 | AE12: 0.016 | AF12: 0.016 | AG12: 0.016 | AH12: 0.016 | AI12: 0.016 | AJ12: 0.016 | AK12: 0.016 | AL12: 0.016 | AM12: 0.016 | AN12: 0.016 | AO12: 0.016 | AP12: 0.016 | AQ12: 0.016 | AR12: 0.016 | AS12: 0.016 | AT12: 0.016 | AU12: 0.016
B14: IPCA Acumulado Ano a Ano
B16: 1 | M16: =IF(M$4<$B16,0,(1+L16)*(1+M$8)-1) -> 0.045 | N16: 0.08889 | O16: 0.13353449 | P16: 0.1788758696 | Q16: 0.2236731526 | R16: 0.2701727324 | S16: 0.3184392963 | T16: 0.3685399895 | U16: 0.4205445091 | V16: 0.4745252005 | W16: 0.5305571581 | X16: 0.5887183301 | Y16: 0.6490896267 | Z16: 0.7117550325 | AA16: 0.7768017237 | AB16: 0.8443201892 | AC16: 0.9144043564 | AD16: 0.9871517219 | AE16: 1.062663487 | AF16: 1.1410447 | AG16: 1.222404398 | AH16: 1.306855766 | AI16: 1.394516285 | AJ16: 1.485507904 | AK16: 1.579957204 | AL16: 1.677995578 | AM16: 1.77975941 | AN16: 1.885390267 | AO16: 1.995035097 | AP16: 2.108846431 | AQ16: 2.226982595 | AR16: 2.349607934 | AS16: 2.476893035 | AT16: 2.609014971 | AU16: 2.74615754
B17: =B16+1 -> 2 | M17: =IF(M$4<$B17,0,(1+L17)*(1+M$8)-1) -> 0 | N17: 0.042 | O17: 0.084722 | P17: 0.12811088 | Q17: 0.1709790934 | R17: 0.215476299 | S17: 0.2616643984 | T17: 0.3096076455 | U17: 0.359372736 | V17: 0.4110289 | W17: 0.4646479982 | X17: 0.5203046221 | Y17: 0.5780761978 | Z17: 0.6380430933 | AA17: 0.7002887308 | AB17: 0.7648997026 | AC17: 0.8319658913 | AD17: 0.9015805952 | AE17: 0.9738406578 | AF17: 1.048846603 | AG17: 1.126702774 | AH17: 1.207517479 | AI17: 1.291403143 | AJ17: 1.378476463 | AK17: 1.468858568 | AL17: 1.562675194 | AM17: 1.660056851 | AN17: 1.761139012 | AO17: 1.866062294 | AP17: 1.974972661 | AQ17: 2.088021622 | AR17: 2.205366444 | AS17: 2.327170369 | AT17: 2.453602843 | AU17: 2.584839751
B18: 3 | M18: =IF(M$4<$B18,0,(1+L18)*(1+M$8)-1) -> 0 | N18: 0 | O18: 0.041 | P18: 0.08264 | Q18: 0.12378032 | R18: 0.1664839722 | S18: 0.2108103631 | T18: 0.2568211569 | U18: 0.3045803609 | V18: 0.3541544146 | W18: 0.4056122823 | X18: 0.4590255491 | Y18: 0.5144685199 | Z18: 0.5720183237 | AA18: 0.63175502 | AB18: 0.6937617107 | AC18: 0.7581246557 | AD18: 0.8249333927 | AE18: 0.8942808616 | AF18: 0.9662635343 | AG18: 1.040981549 | AH18: 1.118538847 | AI18: 1.199043324 | AJ18: 1.28260697 | AK18: 1.369346035 | AL18: 1.459381184 | AM18: 1.552837669 | AN18: 1.649845501 | AO18: 1.75053963 | AP18: 1.855060136 | AQ18: 1.963552421 | AR18: 2.076167413 | AS18: 2.193061774 | AT18: 2.314398122 | AU18: 2.44034525
B19: 4 | M19: =IF(M$4<$B19,0,(1+L19)*(1+M$8)-1) -> 0 | N19: 0 | O19: 0 | P19: 0.04 | Q19: 0.07952 | R19: 0.12054176 | S19: 0.1631223469 | T19: 0.2073209961 | U19: 0.2531991939 | V19: 0.3008207633 | W19: 0.3502519523 | X19: 0.4015615265 | Y19: 0.4548208645 | Z19: 0.5101040573 | AA19: 0.5674880115 | AB19: 0.6270525559 | AC19: 0.6888805531 | AD19: 0.7530580141 | AE19: 0.8196742186 | AF19: 0.8888218389 | AG19: 0.9605970688 | AH19: 1.035099757 | AI19: 1.112433548 | AJ19: 1.192706023 | AK19: 1.276028852 | AL19: 1.362517948 | AM19: 1.45229363 | AN19: 1.545480788 | AO19: 1.642209058 | AP19: 1.742613002 | AQ19: 1.846832297 | AR19: 1.955011924 | AS19: 2.067302377 | AT19: 2.183859867 | AU19: 2.304846542
B20: 5 | M20: =IF(M$4<$B20,0,(1+L20)*(1+M$8)-1) -> 0 | N20: 0 | O20: 0 | P20: 0 | Q20: 0.038 | R20: 0.077444 | S20: 0.118386872 | T20: 0.1608855731 | U20: 0.2049992249 | V20: 0.2507891955 | W20: 0.2983191849 | X20: 0.3476553139 | Y20: 0.3988662158 | Z20: 0.452023132 | AA20: 0.5072000111 | AB20: 0.5644736115 | AC20: 0.6239236087 | AD20: 0.6856327059 | AE20: 0.7496867487 | AF20: 0.8161748451 | AG20: 0.8851894892 | AH20: 0.9568266898 | AI20: 1.031186104 | AJ20: 1.108371176 | AK20: 1.188489281 | AL20: 1.271651873 | AM20: 1.357974645 | AN20: 1.447577681 | AO20: 1.540585633 | AP20: 1.637127887 | AQ20: 1.737338747 | AR20: 1.841357619 | AS20: 1.949329209 | AT20: 2.061403718 | AU20: 2.17773706
B21: 6 | M21: =IF(M$4<$B21,0,(1+L21)*(1+M$8)-1) -> 0 | N21: 0 | O21: 0 | P21: 0 | Q21: 0 | R21: 0.038 | S21: 0.077444 | T21: 0.118386872 | U21: 0.1608855731 | V21: 0.2049992249 | W21: 0.2507891955 | X21: 0.2983191849 | Y21: 0.3476553139 | Z21: 0.3988662158 | AA21: 0.452023132 | AB21: 0.5072000111 | AC21: 0.5644736115 | AD21: 0.6239236087 | AE21: 0.6856327059 | AF21: 0.7496867487 | AG21: 0.8161748451 | AH21: 0.8851894892 | AI21: 0.9568266898 | AJ21: 1.031186104 | AK21: 1.108371176 | AL21: 1.188489281 | AM21: 1.271651873 | AN21: 1.357974645 | AO21: 1.447577681 | AP21: 1.540585633 | AQ21: 1.637127887 | AR21: 1.737338747 | AS21: 1.841357619 | AT21: 1.949329209 | AU21: 2.061403718
B22: 7 | M22: =IF(M$4<$B22,0,(1+L22)*(1+M$8)-1) -> 0 | N22: 0 | O22: 0 | P22: 0 | Q22: 0 | R22: 0 | S22: 0.038 | T22: 0.077444 | U22: 0.118386872 | V22: 0.1608855731 | W22: 0.2049992249 | X22: 0.2507891955 | Y22: 0.2983191849 | Z22: 0.3476553139 | AA22: 0.3988662158 | AB22: 0.452023132 | AC22: 0.5072000111 | AD22: 0.5644736115 | AE22: 0.6239236087 | AF22: 0.6856327059 | AG22: 0.7496867487 | AH22: 0.8161748451 | AI22: 0.8851894892 | AJ22: 0.9568266898 | AK22: 1.031186104 | AL22: 1.108371176 | AM22: 1.188489281 | AN22: 1.271651873 | AO22: 1.357974645 | AP22: 1.447577681 | AQ22: 1.540585633 | AR22: 1.637127887 | AS22: 1.737338747 | AT22: 1.841357619 | AU22: 1.949329209
B23: 8 | M23: =IF(M$4<$B23,0,(1+L23)*(1+M$8)-1) -> 0 | N23: 0 | O23: 0 | P23: 0 | Q23: 0 | R23: 0 | S23: 0 | T23: 0.038 | U23: 0.077444 | V23: 0.118386872 | W23: 0.1608855731 | X23: 0.2049992249 | Y23: 0.2507891955 | Z23: 0.2983191849 | AA23: 0.3476553139 | AB23: 0.3988662158 | AC23: 0.452023132 | AD23: 0.5072000111 | AE23: 0.5644736115 | AF23: 0.6239236087 | AG23: 0.6856327059 | AH23: 0.7496867487 | AI23: 0.8161748451 | AJ23: 0.8851894892 | AK23: 0.9568266898 | AL23: 1.031186104 | AM23: 1.108371176 | AN23: 1.188489281 | AO23: 1.271651873 | AP23: 1.357974645 | AQ23: 1.447577681 | AR23: 1.540585633 | AS23: 1.637127887 | AT23: 1.737338747 | AU23: 1.841357619
B24: 9 | M24: =IF(M$4<$B24,0,(1+L24)*(1+M$8)-1) -> 0 | N24: 0 | O24: 0 | P24: 0 | Q24: 0 | R24: 0 | S24: 0 | T24: 0 | U24: 0.038 | V24: 0.077444 | W24: 0.118386872 | X24: 0.1608855731 | Y24: 0.2049992249 | Z24: 0.2507891955 | AA24: 0.2983191849 | AB24: 0.3476553139 | AC24: 0.3988662158 | AD24: 0.452023132 | AE24: 0.5072000111 | AF24: 0.5644736115 | AG24: 0.6239236087 | AH24: 0.6856327059 | AI24: 0.7496867487 | AJ24: 0.8161748451 | AK24: 0.8851894892 | AL24: 0.9568266898 | AM24: 1.031186104 | AN24: 1.108371176 | AO24: 1.188489281 | AP24: 1.271651873 | AQ24: 1.357974645 | AR24: 1.447577681 | AS24: 1.540585633 | AT24: 1.637127887 | AU24: 1.737338747
B25: 10 | M25: =IF(M$4<$B25,0,(1+L25)*(1+M$8)-1) -> 0 | N25: 0 | O25: 0 | P25: 0 | Q25: 0 | R25: 0 | S25: 0 | T25: 0 | U25: 0 | V25: 0.038 | W25: 0.077444 | X25: 0.118386872 | Y25: 0.1608855731 | Z25: 0.2049992249 | AA25: 0.2507891955 | AB25: 0.2983191849 | AC25: 0.3476553139 | AD25: 0.3988662158 | AE25: 0.452023132 | AF25: 0.5072000111 | AG25: 0.5644736115 | AH25: 0.6239236087 | AI25: 0.6856327059 | AJ25: 0.7496867487 | AK25: 0.8161748451 | AL25: 0.8851894892 | AM25: 0.9568266898 | AN25: 1.031186104 | AO25: 1.108371176 | AP25: 1.188489281 | AQ25: 1.271651873 | AR25: 1.357974645 | AS25: 1.447577681 | AT25: 1.540585633 | AU25: 1.637127887
B26: 11 | M26: =IF(M$4<$B26,0,(1+L26)*(1+M$8)-1) -> 0 | N26: 0 | O26: 0 | P26: 0 | Q26: 0 | R26: 0 | S26: 0 | T26: 0 | U26: 0 | V26: 0 | W26: 0.038 | X26: 0.077444 | Y26: 0.118386872 | Z26: 0.1608855731 | AA26: 0.2049992249 | AB26: 0.2507891955 | AC26: 0.2983191849 | AD26: 0.3476553139 | AE26: 0.3988662158 | AF26: 0.452023132 | AG26: 0.5072000111 | AH26: 0.5644736115 | AI26: 0.6239236087 | AJ26: 0.6856327059 | AK26: 0.7496867487 | AL26: 0.8161748451 | AM26: 0.8851894892 | AN26: 0.9568266898 | AO26: 1.031186104 | AP26: 1.108371176 | AQ26: 1.188489281 | AR26: 1.271651873 | AS26: 1.357974645 | AT26: 1.447577681 | AU26: 1.540585633
B27: 12 | M27: =IF(M$4<$B27,0,(1+L27)*(1+M$8)-1) -> 0 | N27: 0 | O27: 0 | P27: 0 | Q27: 0 | R27: 0 | S27: 0 | T27: 0 | U27: 0 | V27: 0 | W27: 0 | X27: 0.038 | Y27: 0.077444 | Z27: 0.118386872 | AA27: 0.1608855731 | AB27: 0.2049992249 | AC27: 0.2507891955 | AD27: 0.2983191849 | AE27: 0.3476553139 | AF27: 0.3988662158 | AG27: 0.452023132 | AH27: 0.5072000111 | AI27: 0.5644736115 | AJ27: 0.6239236087 | AK27: 0.6856327059 | AL27: 0.7496867487 | AM27: 0.8161748451 | AN27: 0.8851894892 | AO27: 0.9568266898 | AP27: 1.031186104 | AQ27: 1.108371176 | AR27: 1.188489281 | AS27: 1.271651873 | AT27: 1.357974645 | AU27: 1.447577681
B28: 13 | M28: =IF(M$4<$B28,0,(1+L28)*(1+M$8)-1) -> 0 | N28: 0 | O28: 0 | P28: 0 | Q28: 0 | R28: 0 | S28: 0 | T28: 0 | U28: 0 | V28: 0 | W28: 0 | X28: 0 | Y28: 0.038 | Z28: 0.077444 | AA28: 0.118386872 | AB28: 0.1608855731 | AC28: 0.2049992249 | AD28: 0.2507891955 | AE28: 0.2983191849 | AF28: 0.3476553139 | AG28: 0.3988662158 | AH28: 0.452023132 | AI28: 0.5072000111 | AJ28: 0.5644736115 | AK28: 0.6239236087 | AL28: 0.6856327059 | AM28: 0.7496867487 | AN28: 0.8161748451 | AO28: 0.8851894892 | AP28: 0.9568266898 | AQ28: 1.031186104 | AR28: 1.108371176 | AS28: 1.188489281 | AT28: 1.271651873 | AU28: 1.357974645
B29: 14 | M29: =IF(M$4<$B29,0,(1+L29)*(1+M$8)-1) -> 0 | N29: 0 | O29: 0 | P29: 0 | Q29: 0 | R29: 0 | S29: 0 | T29: 0 | U29: 0 | V29: 0 | W29: 0 | X29: 0 | Y29: 0 | Z29: 0.038 | AA29: 0.077444 | AB29: 0.118386872 | AC29: 0.1608855731 | AD29: 0.2049992249 | AE29: 0.2507891955 | AF29: 0.2983191849 | AG29: 0.3476553139 | AH29: 0.3988662158 | AI29: 0.452023132 | AJ29: 0.5072000111 | AK29: 0.5644736115 | AL29: 0.6239236087 | AM29: 0.6856327059 | AN29: 0.7496867487 | AO29: 0.8161748451 | AP29: 0.8851894892 | AQ29: 0.9568266898 | AR29: 1.031186104 | AS29: 1.108371176 | AT29: 1.188489281 | AU29: 1.271651873
B30: 15 | M30: =IF(M$4<$B30,0,(1+L30)*(1+M$8)-1) -> 0 | N30: 0 | O30: 0 | P30: 0 | Q30: 0 | R30: 0 | S30: 0 | T30: 0 | U30: 0 | V30: 0 | W30: 0 | X30: 0 | Y30: 0 | Z30: 0 | AA30: 0.038 | AB30: 0.077444 | AC30: 0.118386872 | AD30: 0.1608855731 | AE30: 0.2049992249 | AF30: 0.2507891955 | AG30: 0.2983191849 | AH30: 0.3476553139 | AI30: 0.3988662158 | AJ30: 0.452023132 | AK30: 0.5072000111 | AL30: 0.5644736115 | AM30: 0.6239236087 | AN30: 0.6856327059 | AO30: 0.7496867487 | AP30: 0.8161748451 | AQ30: 0.8851894892 | AR30: 0.9568266898 | AS30: 1.031186104 | AT30: 1.108371176 | AU30: 1.188489281
B31: 16 | M31: =IF(M$4<$B31,0,(1+L31)*(1+M$8)-1) -> 0 | N31: 0 | O31: 0 | P31: 0 | Q31: 0 | R31: 0 | S31: 0 | T31: 0 | U31: 0 | V31: 0 | W31: 0 | X31: 0 | Y31: 0 | Z31: 0 | AA31: 0 | AB31: 0.038 | AC31: 0.077444 | AD31: 0.118386872 | AE31: 0.1608855731 | AF31: 0.2049992249 | AG31: 0.2507891955 | AH31: 0.2983191849 | AI31: 0.3476553139 | AJ31: 0.3988662158 | AK31: 0.452023132 | AL31: 0.5072000111 | AM31: 0.5644736115 | AN31: 0.6239236087 | AO31: 0.6856327059 | AP31: 0.7496867487 | AQ31: 0.8161748451 | AR31: 0.8851894892 | AS31: 0.9568266898 | AT31: 1.031186104 | AU31: 1.108371176
B32: 17 | M32: =IF(M$4<$B32,0,(1+L32)*(1+M$8)-1) -> 0 | N32: 0 | O32: 0 | P32: 0 | Q32: 0 | R32: 0 | S32: 0 | T32: 0 | U32: 0 | V32: 0 | W32: 0 | X32: 0 | Y32: 0 | Z32: 0 | AA32: 0 | AB32: 0 | AC32: 0.038 | AD32: 0.077444 | AE32: 0.118386872 | AF32: 0.1608855731 | AG32: 0.2049992249 | AH32: 0.2507891955 | AI32: 0.2983191849 | AJ32: 0.3476553139 | AK32: 0.3988662158 | AL32: 0.452023132 | AM32: 0.5072000111 | AN32: 0.5644736115 | AO32: 0.6239236087 | AP32: 0.6856327059 | AQ32: 0.7496867487 | AR32: 0.8161748451 | AS32: 0.8851894892 | AT32: 0.9568266898 | AU32: 1.031186104
B33: 18 | M33: =IF(M$4<$B33,0,(1+L33)*(1+M$8)-1) -> 0 | N33: 0 | O33: 0 | P33: 0 | Q33: 0 | R33: 0 | S33: 0 | T33: 0 | U33: 0 | V33: 0 | W33: 0 | X33: 0 | Y33: 0 | Z33: 0 | AA33: 0 | AB33: 0 | AC33: 0 | AD33: 0.038 | AE33: 0.077444 | AF33: 0.118386872 | AG33: 0.1608855731 | AH33: 0.2049992249 | AI33: 0.2507891955 | AJ33: 0.2983191849 | AK33: 0.3476553139 | AL33: 0.3988662158 | AM33: 0.452023132 | AN33: 0.5072000111 | AO33: 0.5644736115 | AP33: 0.6239236087 | AQ33: 0.6856327059 | AR33: 0.7496867487 | AS33: 0.8161748451 | AT33: 0.8851894892 | AU33: 0.9568266898
B34: 19 | M34: =IF(M$4<$B34,0,(1+L34)*(1+M$8)-1) -> 0 | N34: 0 | O34: 0 | P34: 0 | Q34: 0 | R34: 0 | S34: 0 | T34: 0 | U34: 0 | V34: 0 | W34: 0 | X34: 0 | Y34: 0 | Z34: 0 | AA34: 0 | AB34: 0 | AC34: 0 | AD34: 0 | AE34: 0.038 | AF34: 0.077444 | AG34: 0.118386872 | AH34: 0.1608855731 | AI34: 0.2049992249 | AJ34: 0.2507891955 | AK34: 0.2983191849 | AL34: 0.3476553139 | AM34: 0.3988662158 | AN34: 0.452023132 | AO34: 0.5072000111 | AP34: 0.5644736115 | AQ34: 0.6239236087 | AR34: 0.6856327059 | AS34: 0.7496867487 | AT34: 0.8161748451 | AU34: 0.8851894892
B35: 20 | M35: =IF(M$4<$B35,0,(1+L35)*(1+M$8)-1) -> 0 | N35: 0 | O35: 0 | P35: 0 | Q35: 0 | R35: 0 | S35: 0 | T35: 0 | U35: 0 | V35: 0 | W35: 0 | X35: 0 | Y35: 0 | Z35: 0 | AA35: 0 | AB35: 0 | AC35: 0 | AD35: 0 | AE35: 0 | AF35: 0.038 | AG35: 0.077444 | AH35: 0.118386872 | AI35: 0.1608855731 | AJ35: 0.2049992249 | AK35: 0.2507891955 | AL35: 0.2983191849 | AM35: 0.3476553139 | AN35: 0.3988662158 | AO35: 0.452023132 | AP35: 0.5072000111 | AQ35: 0.5644736115 | AR35: 0.6239236087 | AS35: 0.6856327059 | AT35: 0.7496867487 | AU35: 0.8161748451
B36: 21 | M36: =IF(M$4<$B36,0,(1+L36)*(1+M$8)-1) -> 0 | N36: 0 | O36: 0 | P36: 0 | Q36: 0 | R36: 0 | S36: 0 | T36: 0 | U36: 0 | V36: 0 | W36: 0 | X36: 0 | Y36: 0 | Z36: 0 | AA36: 0 | AB36: 0 | AC36: 0 | AD36: 0 | AE36: 0 | AF36: 0 | AG36: 0.038 | AH36: 0.077444 | AI36: 0.118386872 | AJ36: 0.1608855731 | AK36: 0.2049992249 | AL36: 0.2507891955 | AM36: 0.2983191849 | AN36: 0.3476553139 | AO36: 0.3988662158 | AP36: 0.452023132 | AQ36: 0.5072000111 | AR36: 0.5644736115 | AS36: 0.6239236087 | AT36: 0.6856327059 | AU36: 0.7496867487
B37: 22 | M37: =IF(M$4<$B37,0,(1+L37)*(1+M$8)-1) -> 0 | N37: 0 | O37: 0 | P37: 0 | Q37: 0 | R37: 0 | S37: 0 | T37: 0 | U37: 0 | V37: 0 | W37: 0 | X37: 0 | Y37: 0 | Z37: 0 | AA37: 0 | AB37: 0 | AC37: 0 | AD37: 0 | AE37: 0 | AF37: 0 | AG37: 0 | AH37: 0.038 | AI37: 0.077444 | AJ37: 0.118386872 | AK37: 0.1608855731 | AL37: 0.2049992249 | AM37: 0.2507891955 | AN37: 0.2983191849 | AO37: 0.3476553139 | AP37: 0.3988662158 | AQ37: 0.452023132 | AR37: 0.5072000111 | AS37: 0.5644736115 | AT37: 0.6239236087 | AU37: 0.6856327059
B38: 23 | M38: =IF(M$4<$B38,0,(1+L38)*(1+M$8)-1) -> 0 | N38: 0 | O38: 0 | P38: 0 | Q38: 0 | R38: 0 | S38: 0 | T38: 0 | U38: 0 | V38: 0 | W38: 0 | X38: 0 | Y38: 0 | Z38: 0 | AA38: 0 | AB38: 0 | AC38: 0 | AD38: 0 | AE38: 0 | AF38: 0 | AG38: 0 | AH38: 0 | AI38: 0.038 | AJ38: 0.077444 | AK38: 0.118386872 | AL38: 0.1608855731 | AM38: 0.2049992249 | AN38: 0.2507891955 | AO38: 0.2983191849 | AP38: 0.3476553139 | AQ38: 0.3988662158 | AR38: 0.452023132 | AS38: 0.5072000111 | AT38: 0.5644736115 | AU38: 0.6239236087
B39: 24 | M39: =IF(M$4<$B39,0,(1+L39)*(1+M$8)-1) -> 0 | N39: 0 | O39: 0 | P39: 0 | Q39: 0 | R39: 0 | S39: 0 | T39: 0 | U39: 0 | V39: 0 | W39: 0 | X39: 0 | Y39: 0 | Z39: 0 | AA39: 0 | AB39: 0 | AC39: 0 | AD39: 0 | AE39: 0 | AF39: 0 | AG39: 0 | AH39: 0 | AI39: 0 | AJ39: 0.038 | AK39: 0.077444 | AL39: 0.118386872 | AM39: 0.1608855731 | AN39: 0.2049992249 | AO39: 0.2507891955 | AP39: 0.2983191849 | AQ39: 0.3476553139 | AR39: 0.3988662158 | AS39: 0.452023132 | AT39: 0.5072000111 | AU39: 0.5644736115
B40: 25 | M40: =IF(M$4<$B40,0,(1+L40)*(1+M$8)-1) -> 0 | N40: 0 | O40: 0 | P40: 0 | Q40: 0 | R40: 0 | S40: 0 | T40: 0 | U40: 0 | V40: 0 | W40: 0 | X40: 0 | Y40: 0 | Z40: 0 | AA40: 0 | AB40: 0 | AC40: 0 | AD40: 0 | AE40: 0 | AF40: 0 | AG40: 0 | AH40: 0 | AI40: 0 | AJ40: 0 | AK40: 0.038 | AL40: 0.077444 | AM40: 0.118386872 | AN40: 0.1608855731 | AO40: 0.2049992249 | AP40: 0.2507891955 | AQ40: 0.2983191849 | AR40: 0.3476553139 | AS40: 0.3988662158 | AT40: 0.452023132 | AU40: 0.5072000111
B41: 26 | M41: =IF(M$4<$B41,0,(1+L41)*(1+M$8)-1) -> 0 | N41: 0 | O41: 0 | P41: 0 | Q41: 0 | R41: 0 | S41: 0 | T41: 0 | U41: 0 | V41: 0 | W41: 0 | X41: 0 | Y41: 0 | Z41: 0 | AA41: 0 | AB41: 0 | AC41: 0 | AD41: 0 | AE41: 0 | AF41: 0 | AG41: 0 | AH41: 0 | AI41: 0 | AJ41: 0 | AK41: 0 | AL41: 0.038 | AM41: 0.077444 | AN41: 0.118386872 | AO41: 0.1608855731 | AP41: 0.2049992249 | AQ41: 0.2507891955 | AR41: 0.2983191849 | AS41: 0.3476553139 | AT41: 0.3988662158 | AU41: 0.452023132
B42: 27 | M42: =IF(M$4<$B42,0,(1+L42)*(1+M$8)-1) -> 0 | N42: 0 | O42: 0 | P42: 0 | Q42: 0 | R42: 0 | S42: 0 | T42: 0 | U42: 0 | V42: 0 | W42: 0 | X42: 0 | Y42: 0 | Z42: 0 | AA42: 0 | AB42: 0 | AC42: 0 | AD42: 0 | AE42: 0 | AF42: 0 | AG42: 0 | AH42: 0 | AI42: 0 | AJ42: 0 | AK42: 0 | AL42: 0 | AM42: 0.038 | AN42: 0.077444 | AO42: 0.118386872 | AP42: 0.1608855731 | AQ42: 0.2049992249 | AR42: 0.2507891955 | AS42: 0.2983191849 | AT42: 0.3476553139 | AU42: 0.3988662158
B43: 28 | M43: =IF(M$4<$B43,0,(1+L43)*(1+M$8)-1) -> 0 | N43: 0 | O43: 0 | P43: 0 | Q43: 0 | R43: 0 | S43: 0 | T43: 0 | U43: 0 | V43: 0 | W43: 0 | X43: 0 | Y43: 0 | Z43: 0 | AA43: 0 | AB43: 0 | AC43: 0 | AD43: 0 | AE43: 0 | AF43: 0 | AG43: 0 | AH43: 0 | AI43: 0 | AJ43: 0 | AK43: 0 | AL43: 0 | AM43: 0 | AN43: 0.038 | AO43: 0.077444 | AP43: 0.118386872 | AQ43: 0.1608855731 | AR43: 0.2049992249 | AS43: 0.2507891955 | AT43: 0.2983191849 | AU43: 0.3476553139
B44: 29 | M44: =IF(M$4<$B44,0,(1+L44)*(1+M$8)-1) -> 0 | N44: 0 | O44: 0 | P44: 0 | Q44: 0 | R44: 0 | S44: 0 | T44: 0 | U44: 0 | V44: 0 | W44: 0 | X44: 0 | Y44: 0 | Z44: 0 | AA44: 0 | AB44: 0 | AC44: 0 | AD44: 0 | AE44: 0 | AF44: 0 | AG44: 0 | AH44: 0 | AI44: 0 | AJ44: 0 | AK44: 0 | AL44: 0 | AM44: 0 | AN44: 0 | AO44: 0.038 | AP44: 0.077444 | AQ44: 0.118386872 | AR44: 0.1608855731 | AS44: 0.2049992249 | AT44: 0.2507891955 | AU44: 0.2983191849
B45: 30 | M45: =IF(M$4<$B45,0,(1+L45)*(1+M$8)-1) -> 0 | N45: 0 | O45: 0 | P45: 0 | Q45: 0 | R45: 0 | S45: 0 | T45: 0 | U45: 0 | V45: 0 | W45: 0 | X45: 0 | Y45: 0 | Z45: 0 | AA45: 0 | AB45: 0 | AC45: 0 | AD45: 0 | AE45: 0 | AF45: 0 | AG45: 0 | AH45: 0 | AI45: 0 | AJ45: 0 | AK45: 0 | AL45: 0 | AM45: 0 | AN45: 0 | AO45: 0 | AP45: 0.038 | AQ45: 0.077444 | AR45: 0.118386872 | AS45: 0.1608855731 | AT45: 0.2049992249 | AU45: 0.2507891955
B46: 31 | M46: =IF(M$4<$B46,0,(1+L46)*(1+M$8)-1) -> 0 | N46: 0 | O46: 0 | P46: 0 | Q46: 0 | R46: 0 | S46: 0 | T46: 0 | U46: 0 | V46: 0 | W46: 0 | X46: 0 | Y46: 0 | Z46: 0 | AA46: 0 | AB46: 0 | AC46: 0 | AD46: 0 | AE46: 0 | AF46: 0 | AG46: 0 | AH46: 0 | AI46: 0 | AJ46: 0 | AK46: 0 | AL46: 0 | AM46: 0 | AN46: 0 | AO46: 0 | AP46: 0 | AQ46: 0.038 | AR46: 0.077444 | AS46: 0.118386872 | AT46: 0.1608855731 | AU46: 0.2049992249
B47: 32 | M47: =IF(M$4<$B47,0,(1+L47)*(1+M$8)-1) -> 0 | N47: 0 | O47: 0 | P47: 0 | Q47: 0 | R47: 0 | S47: 0 | T47: 0 | U47: 0 | V47: 0 | W47: 0 | X47: 0 | Y47: 0 | Z47: 0 | AA47: 0 | AB47: 0 | AC47: 0 | AD47: 0 | AE47: 0 | AF47: 0 | AG47: 0 | AH47: 0 | AI47: 0 | AJ47: 0 | AK47: 0 | AL47: 0 | AM47: 0 | AN47: 0 | AO47: 0 | AP47: 0 | AQ47: 0 | AR47: 0.038 | AS47: 0.077444 | AT47: 0.118386872 | AU47: 0.1608855731
B48: 33 | M48: =IF(M$4<$B48,0,(1+L48)*(1+M$8)-1) -> 0 | N48: 0 | O48: 0 | P48: 0 | Q48: 0 | R48: 0 | S48: 0 | T48: 0 | U48: 0 | V48: 0 | W48: 0 | X48: 0 | Y48: 0 | Z48: 0 | AA48: 0 | AB48: 0 | AC48: 0 | AD48: 0 | AE48: 0 | AF48: 0 | AG48: 0 | AH48: 0 | AI48: 0 | AJ48: 0 | AK48: 0 | AL48: 0 | AM48: 0 | AN48: 0 | AO48: 0 | AP48: 0 | AQ48: 0 | AR48: 0 | AS48: 0.038 | AT48: 0.077444 | AU48: 0.118386872
B49: 34 | M49: =IF(M$4<$B49,0,(1+L49)*(1+M$8)-1) -> 0 | N49: 0 | O49: 0 | P49: 0 | Q49: 0 | R49: 0 | S49: 0 | T49: 0 | U49: 0 | V49: 0 | W49: 0 | X49: 0 | Y49: 0 | Z49: 0 | AA49: 0 | AB49: 0 | AC49: 0 | AD49: 0 | AE49: 0 | AF49: 0 | AG49: 0 | AH49: 0 | AI49: 0 | AJ49: 0 | AK49: 0 | AL49: 0 | AM49: 0 | AN49: 0 | AO49: 0 | AP49: 0 | AQ49: 0 | AR49: 0 | AS49: 0 | AT49: 0.038 | AU49: 0.077444
B50: 35 | M50: =IF(M$4<$B50,0,(1+L50)*(1+M$8)-1) -> 0 | N50: 0 | O50: 0 | P50: 0 | Q50: 0 | R50: 0 | S50: 0 | T50: 0 | U50: 0 | V50: 0 | W50: 0 | X50: 0 | Y50: 0 | Z50: 0 | AA50: 0 | AB50: 0 | AC50: 0 | AD50: 0 | AE50: 0 | AF50: 0 | AG50: 0 | AH50: 0 | AI50: 0 | AJ50: 0 | AK50: 0 | AL50: 0 | AM50: 0 | AN50: 0 | AO50: 0 | AP50: 0 | AQ50: 0 | AR50: 0 | AS50: 0 | AT50: 0 | AU50: 0.038

Sheet RECEITA
A1: ='PAINEL DE CONTROLE'!$A$1 -> Eficientização Energética Angra do Reis
A2: Receita
B4: ANO | M4: =L4+1 -> 1 | N4: 2 | O4: 3 | P4: 4 | Q4: 5 | R4: 6 | S4: 7 | T4: 8 | U4: 9 | V4: 10 | W4: 11 | X4: 12 | Y4: 13 | Z4: 14 | AA4: 15 | AB4: 16 | AC4: 17 | AD4: 18 | AE4: 19 | AF4: 20 | AG4: 21 | AH4: 22 | AI4: 23 | AJ4: 24 | AK4: 25 | AL4: 26 | AM4: 27 | AN4: 28 | AO4: 29 | AP4: 30 | AQ4: 31 | AR4: 32 | AS4: 33 | AT4: 34 | AU4: 35
B6: Flag | M6: =IF(M4>'PAINEL DE CONTROLE'!$D$6,0,1) -> 1 | N6: =IF(N4>'PAINEL DE CONTROLE'!$D$6,0,1) -> 1 | O6: =IF(O4>'PAINEL DE CONTROLE'!$D$6,0,1) -> 1 | P6: =IF(P4>'PAINEL DE CONTROLE'!$D$6,0,1) -> 1 | Q6: =IF(Q4>'PAINEL DE CONTROLE'!$D$6,0,1) -> 1 | R6: =IF(R4>'PAINEL DE CONTROLE'!$D$6,0,1) -> 1 | S6: =IF(S4>'PAINEL DE CONTROLE'!$D$6,0,1) -> 1 | T6: =IF(T4>'PAINEL DE CONTROLE'!$D$6,0,1) -> 1 | U6: =IF(U4>'PAINEL DE CONTROLE'!$D$6,0,1) -> 1 | V6: =IF(V4>'PAINEL DE CONTROLE'!$D$6,0,1) -> 1 | W6: =IF(W4>'PAINEL DE CONTROLE'!$D$6,0,1) -> 1 | X6: =IF(X4>'PAINEL DE CONTROLE'!$D$6,0,1) -> 1 | Y6: =IF(Y4>'PAINEL DE CONTROLE'!$D$6,0,1) -> 1 | Z6: =IF(Z4>'PAINEL DE CONTROLE'!$D$6,0,1) -> 1 | AA6: =IF(AA4>'PAINEL DE CONTROLE'!$D$6,0,1) -> 1 | AB6: =IF(AB4>'PAINEL DE CONTROLE'!$D$6,0,1) -> 1 | AC6: =IF(AC4>'PAINEL DE CONTROLE'!$D$6,0,1) -> 1 | AD6: =IF(AD4>'PAINEL DE CONTROLE'!$D$6,0,1) -> 1 | AE6: =IF(AE4>'PAINEL DE CONTROLE'!$D$6,0,1) -> 1 | AF6: =IF(AF4>'PAINEL DE CONTROLE'!$D$6,0,1) -> 1 | AG6: =IF(AG4>'PAINEL DE CONTROLE'!$D$6,0,1) -> 1 | AH6: =IF(AH4>'PAINEL DE CONTROLE'!$D$6,0,1) -> 1 | AI6: =IF(AI4>'PAINEL DE CONTROLE'!$D$6,0,1) -> 1 | AJ6: =IF(AJ4>'PAINEL DE CONTROLE'!$D$6,0,1) -> 1 | AK6: =IF(AK4>'PAINEL DE CONTROLE'!$D$6,0,1) -> 1 | AL6: =IF(AL4>'PAINEL DE CONTROLE'!$D$6,0,1) -> 1 | AM6: =IF(AM4>'PAINEL DE CONTROLE'!$D$6,0,1) -> 1 | AN6: =IF(AN4>'PAINEL DE CONTROLE'!$D$6,0,1) -> 1 | AO6: =IF(AO4>'PAINEL DE CONTROLE'!$D$6,0,1) -> 1 | AP6: =IF(AP4>'PAINEL DE CONTROLE'!$D$6,0,1) -> 1 | AQ6: =IF(AQ4>'PAINEL DE CONTROLE'!$D$6,0,1) -> 1 | AR6: =IF(AR4>'PAINEL DE CONTROLE'!$D$6,0,1) -> 1 | AS6: =IF(AS4>'PAINEL DE CONTROLE'!$D$6,0,1) -> 1 | AT6: =IF(AT4>'PAINEL DE CONTROLE'!$D$6,0,1) -> 1 | AU6: =IF(AU4>'PAINEL DE CONTROLE'!$D$6,0,1) -> 1
A8: x | B8: Receita Total | M8: =SUM(M10:M14,M16) -> 2483564.063 | N8: 5635325.124 | O8: 5913247.769 | P8: 5913247.769 | Q8: 5913247.769 | R8: 5913247.769 | S8: 5913247.769 | T8: 5913247.769 | U8: 5913247.769 | V8: 5913247.769 | W8: 5913247.769 | X8: 5913247.769 | Y8: 5913247.769 | Z8: 5913247.769 | AA8: 5913247.769 | AB8: 5913247.769 | AC8: 5913247.769 | AD8: 5913247.769 | AE8: 5913247.769 | AF8: 5913247.769 | AG8: 5913247.769 | AH8: 5913247.769 | AI8: 5913247.769 | AJ8: 5913247.769 | AK8: 5913247.769 | AL8: 5913247.769 | AM8: 5913247.769 | AN8: 5913247.769 | AO8: 5913247.769 | AP8: 5913247.769 | AQ8: 5913247.769 | AR8: 5913247.769 | AS8: 5913247.769 | AT8: 5913247.769 | AU8: 5913247.769
B10: =B20 -> Receita 1 | M10: =(M20*M18)*M$6 -> 0 | N10: 0 | O10: 0 | P10: 0 | Q10: 0 | R10: 0 | S10: 0 | T10: 0 | U10: 0 | V10: 0 | W10: 0 | X10: 0 | Y10: 0 | Z10: 0 | AA10: 0 | AB10: 0 | AC10: 0 | AD10: 0 | AE10: 0 | AF10: 0 | AG10: 0 | AH10: 0 | AI10: 0 | AJ10: 0 | AK10: 0 | AL10: 0 | AM10: 0 | AN10: 0 | AO10: 0 | AP10: 0 | AQ10: 0 | AR10: 0 | AS10: 0 | AT10: 0 | AU10: 0
B11: =B23 -> Receita 2 (receita acessória) | M11: =(M23*M18)*M$6 -> 0 | N11: 0 | O11: 0 | P11: 0 | Q11: 0 | R11: 0 | S11: 0 | T11: 0 | U11: 0 | V11: 0 | W11: 0 | X11: 0 | Y11: 0 | Z11: 0 | AA11: 0 | AB11: 0 | AC11: 0 | AD11: 0 | AE11: 0 | AF11: 0 | AG11: 0 | AH11: 0 | AI11: 0 | AJ11: 0 | AK11: 0 | AL11: 0 | AM11: 0 | AN11: 0 | AO11: 0 | AP11: 0 | AQ11: 0 | AR11: 0 | AS11: 0 | AT11: 0 | AU11: 0
B12: =B26 -> Receita 3 | M12: =(M26*M18)*M$6 -> 0 | N12: 0 | O12: 0 | P12: 0 | Q12: 0 | R12: 0 | S12: 0 | T12: 0 | U12: 0 | V12: 0 | W12: 0 | X12: 0 | Y12: 0 | Z12: 0 | AA12: 0 | AB12: 0 | AC12: 0 | AD12: 0 | AE12: 0 | AF12: 0 | AG12: 0 | AH12: 0 | AI12: 0 | AJ12: 0 | AK12: 0 | AL12: 0 | AM12: 0 | AN12: 0 | AO12: 0 | AP12: 0 | AQ12: 0 | AR12: 0 | AS12: 0 | AT12: 0 | AU12: 0
B13: =B29 -> Receita 4 | M13: =(M29*M18)*M$6 -> 0 | N13: 0 | O13: 0 | P13: 0 | Q13: 0 | R13: 0 | S13: 0 | T13: 0 | U13: 0 | V13: 0 | W13: 0 | X13: 0 | Y13: 0 | Z13: 0 | AA13: 0 | AB13: 0 | AC13: 0 | AD13: 0 | AE13: 0 | AF13: 0 | AG13: 0 | AH13: 0 | AI13: 0 | AJ13: 0 | AK13: 0 | AL13: 0 | AM13: 0 | AN13: 0 | AO13: 0 | AP13: 0 | AQ13: 0 | AR13: 0 | AS13: 0 | AT13: 0 | AU13: 0
B14: =B32 -> Aporte | M14: =(M32)*M$6 -> 0 | N14: 0 | O14: 0 | P14: 0 | Q14: 0 | R14: 0 | S14: 0 | T14: 0 | U14: 0 | V14: 0 | W14: 0 | X14: 0 | Y14: 0 | Z14: 0 | AA14: 0 | AB14: 0 | AC14: 0 | AD14: 0 | AE14: 0 | AF14: 0 | AG14: 0 | AH14: 0 | AI14: 0 | AJ14: 0 | AK14: 0 | AL14: 0 | AM14: 0 | AN14: 0 | AO14: 0 | AP14: 0 | AQ14: 0 | AR14: 0 | AS14: 0 | AT14: 0 | AU14: 0
B16: Contraprestação Pública | M16: =(M116*M18)*M$6 -> 2483564.063 | N16: 5635325.124 | O16: 5913247.769 | P16: 5913247.769 | Q16: 5913247.769 | R16: 5913247.769 | S16: 5913247.769 | T16: 5913247.769 | U16: 5913247.769 | V16: 5913247.769 | W16: 5913247.769 | X16: 5913247.769 | Y16: 5913247.769 | Z16: 5913247.769 | AA16: 5913247.769 | AB16: 5913247.769 | AC16: 5913247.769 | AD16: 5913247.769 | AE16: 5913247.769 | AF16: 5913247.769 | AG16: 5913247.769 | AH16: 5913247.769 | AI16: 5913247.769 | AJ16: 5913247.769 | AK16: 5913247.769 | AL16: 5913247.769 | AM16: 5913247.769 | AN16: 5913247.769 | AO16: 5913247.769 | AP16: 5913247.769 | AQ16: 5913247.769 | AR16: 5913247.769 | AS16: 5913247.769 | AT16: 5913247.769 | AU16: 5913247.769
B18: Índice de Inflação | M18: =IF('PAINEL DE CONTROLE'!$D$7="Real",1,'DADOS MACROECONÔMICOS'!N10) -> 1 | N18: =IF('PAINEL DE CONTROLE'!$D$7="Real",1,'DADOS MACROECONÔMICOS'!O10) -> 1 | O18: =IF('PAINEL DE CONTROLE'!$D$7="Real",1,'DADOS MACROECONÔMICOS'!P10) -> 1 | P18: =IF('PAINEL DE CONTROLE'!$D$7="Real",1,'DADOS MACROECONÔMICOS'!Q10) -> 1 | Q18: =IF('PAINEL DE CONTROLE'!$D$7="Real",1,'DADOS MACROECONÔMICOS'!R10) -> 1 | R18: =IF('PAINEL DE CONTROLE'!$D$7="Real",1,'DADOS MACROECONÔMICOS'!S10) -> 1 | S18: =IF('PAINEL DE CONTROLE'!$D$7="Real",1,'DADOS MACROECONÔMICOS'!T10) -> 1 | T18: =IF('PAINEL DE CONTROLE'!$D$7="Real",1,'DADOS MACROECONÔMICOS'!U10) -> 1 | U18: =IF('PAINEL DE CONTROLE'!$D$7="Real",1,'DADOS MACROECONÔMICOS'!V10) -> 1 | V18: =IF('PAINEL DE CONTROLE'!$D$7="Real",1,'DADOS MACROECONÔMICOS'!W10) -> 1 | W18: =IF('PAINEL DE CONTROLE'!$D$7="Real",1,'DADOS MACROECONÔMICOS'!X10) -> 1 | X18: =IF('PAINEL DE CONTROLE'!$D$7="Real",1,'DADOS MACROECONÔMICOS'!Y10) -> 1 | Y18: =IF('PAINEL DE CONTROLE'!$D$7="Real",1,'DADOS MACROECONÔMICOS'!Z10) -> 1 | Z18: =IF('PAINEL DE CONTROLE'!$D$7="Real",1,'DADOS MACROECONÔMICOS'!AA10) -> 1 | AA18: =IF('PAINEL DE CONTROLE'!$D$7="Real",1,'DADOS MACROECONÔMICOS'!AB10) -> 1 | AB18: =IF('PAINEL DE CONTROLE'!$D$7="Real",1,'DADOS MACROECONÔMICOS'!AC10) -> 1 | AC18: =IF('PAINEL DE CONTROLE'!$D$7="Real",1,'DADOS MACROECONÔMICOS'!AD10) -> 1 | AD18: =IF('PAINEL DE CONTROLE'!$D$7="Real",1,'DADOS MACROECONÔMICOS'!AE10) -> 1 | AE18: =IF('PAINEL DE CONTROLE'!$D$7="Real",1,'DADOS MACROECONÔMICOS'!AF10) -> 1 | AF18: =IF('PAINEL DE CONTROLE'!$D$7="Real",1,'DADOS MACROECONÔMICOS'!AG10) -> 1 | AG18: =IF('PAINEL DE CONTROLE'!$D$7="Real",1,'DADOS MACROECONÔMICOS'!AH10) -> 1 | AH18: =IF('PAINEL DE CONTROLE'!$D$7="Real",1,'DADOS MACROECONÔMICOS'!AI10) -> 1 | AI18: =IF('PAINEL DE CONTROLE'!$D$7="Real",1,'DADOS MACROECONÔMICOS'!AJ10) -> 1 | AJ18: =IF('PAINEL DE CONTROLE'!$D$7="Real",1,'DADOS MACROECONÔMICOS'!AK10) -> 1 | AK18: =IF('PAINEL DE CONTROLE'!$D$7="Real",1,'DADOS MACROECONÔMICOS'!AL10) -> 1 | AL18: =IF('PAINEL DE CONTROLE'!$D$7="Real",1,'DADOS MACROECONÔMICOS'!AM10) -> 1 | AM18: =IF('PAINEL DE CONTROLE'!$D$7="Real",1,'DADOS MACROECONÔMICOS'!AN10) -> 1 | AN18: =IF('PAINEL DE CONTROLE'!$D$7="Real",1,'DADOS MACROECONÔMICOS'!AO10) -> 1 | AO18: =IF('PAINEL DE CONTROLE'!$D$7="Real",1,'DADOS MACROECONÔMICOS'!AP10) -> 1 | AP18: =IF('PAINEL DE CONTROLE'!$D$7="Real",1,'DADOS MACROECONÔMICOS'!AQ10) -> 1 | AQ18: =IF('PAINEL DE CONTROLE'!$D$7="Real",1,'DADOS MACROECONÔMICOS'!AR10) -> 1 | AR18: =IF('PAINEL DE CONTROLE'!$D$7="Real",1,'DADOS MACROECONÔMICOS'!AS10) -> 1 | AS18: =IF('PAINEL DE CONTROLE'!$D$7="Real",1,'DADOS MACROECONÔMICOS'!AT10) -> 1 | AT18: =IF('PAINEL DE CONTROLE'!$D$7="Real",1,'DADOS MACROECONÔMICOS'!AU10) -> 1 | AU18: =IF('PAINEL DE CONTROLE'!$D$7="Real",1,'DADOS MACROECONÔMICOS'!AV10) -> 1
A20: x | B20: Receita 1 | M20: 0 | N20: 0 | O20: 0 | P20: 0 | Q20: 0 | R20: 0 | S20: 0 | T20: 0 | U20: 0 | V20: 0 | W20: 0 | X20: 0 | Y20: 0 | Z20: 0 | AA20: 0 | AB20: 0 | AC20: 0 | AD20: 0 | AE20: 0 | AF20: 0 | AG20: 0 | AH20: 0 | AI20: 0 | AJ20: 0 | AK20: 0 | AL20: 0 | AM20: 0 | AN20: 0 | AO20: 0 | AP20: 0 | AQ20: 0 | AR20: 0 | AS20: 0 | AT20: 0 | AU20: 0
A23: x | B23: Receita 2 (receita acessória) | M23: 0 | N23: 0 | O23: 0 | P23: 0 | Q23: 0 | R23: 0 | S23: 0 | T23: 0 | U23: 0 | V23: 0 | W23: 0 | X23: 0 | Y23: 0 | Z23: 0 | AA23: 0 | AB23: 0 | AC23: 0 | AD23: 0 | AE23: 0 | AF23: 0 | AG23: 0 | AH23: 0 | AI23: 0 | AJ23: 0 | AK23: 0 | AL23: 0 | AM23: 0 | AN23: 0 | AO23: 0 | AP23: 0 | AQ23: 0 | AR23: 0 | AS23: 0 | AT23: 0 | AU23: 0
A26: x | B26: Receita 3 | M26: 0 | N26: 0 | O26: 0 | P26: 0 | Q26: 0 | R26: 0 | S26: 0 | T26: 0 | U26: 0 | V26: 0 | W26: 0 | X26: 0 | Y26: 0 | Z26: 0 | AA26: 0 | AB26: 0 | AC26: 0 | AD26: 0 | AE26: 0 | AF26: 0 | AG26: 0 | AH26: 0 | AI26: 0 | AJ26: 0 | AK26: 0 | AL26: 0 | AM26: 0 | AN26: 0 | AO26: 0 | AP26: 0 | AQ26: 0 | AR26: 0 | AS26: 0 | AT26: 0 | AU26: 0
A29: x | B29: Receita 4 | M29: 0 | N29: 0 | O29: 0 | P29: 0 | Q29: 0 | R29: 0 | S29: 0 | T29: 0 | U29: 0 | V29: 0 | W29: 0 | X29: 0 | Y29: 0 | Z29: 0 | AA29: 0 | AB29: 0 | AC29: 0 | AD29: 0 | AE29: 0 | AF29: 0 | AG29: 0 | AH29: 0 | AI29: 0 | AJ29: 0 | AK29: 0 | AL29: 0 | AM29: 0 | AN29: 0 | AO29: 0 | AP29: 0 | AQ29: 0 | AR29: 0 | AS29: 0 | AT29: 0 | AU29: 0
A32: x | B32: Aporte | M32: =M38 -> 0 | N32: 0 | O32: 0 | P32: 0 | Q32: 0 | R32: 0 | S32: 0 | T32: 0 | U32: 0 | V32: 0 | W32: 0 | X32: 0 | Y32: 0 | Z32: 0 | AA32: 0 | AB32: 0 | AC32: 0 | AD32: 0 | AE32: 0 | AF32: 0 | AG32: 0 | AH32: 0 | AI32: 0 | AJ32: 0 | AK32: 0 | AL32: 0 | AM32: 0 | AN32: 0 | AO32: 0 | AP32: 0 | AQ32: 0 | AR32: 0 | AS32: 0 | AT32: 0 | AU32: 0
C34: ='PAINEL DE CONTROLE'!D135 -> Ano Inicio | D34: ='PAINEL DE CONTROLE'!E135 -> Ano Fim | E34: Valor (R$)
B35: Aporte - Caixa (Nominal) | M35: =M36*(1+M37) -> 0 | N35: 0 | O35: 0 | P35: 0 | Q35: 0 | R35: 0 | S35: 0 | T35: 0 | U35: 0 | V35: 0 | W35: 0 | X35: 0 | Y35: 0 | Z35: 0 | AA35: 0 | AB35: 0 | AC35: 0 | AD35: 0 | AE35: 0 | AF35: 0 | AG35: 0 | AH35: 0 | AI35: 0 | AJ35: 0 | AK35: 0 | AL35: 0 | AM35: 0 | AN35: 0 | AO35: 0 | AP35: 0 | AQ35: 0 | AR35: 0 | AS35: 0 | AT35: 0 | AU35: 0
B36: Aporte - Caixa (Real) | C36: ='PAINEL DE CONTROLE'!D136 -> 1 | D36: ='PAINEL DE CONTROLE'!E136 -> 2 | E36: ='PAINEL DE CONTROLE'!F136 ->  | M36: =IF(AND(M$4>=$C36,M$4<=$D36),$E$36/($D$36-$C$36+1),0) -> 0 | N36: 0 | O36: 0 | P36: 0 | Q36: 0 | R36: 0 | S36: 0 | T36: 0 | U36: 0 | V36: 0 | W36: 0 | X36: 0 | Y36: 0 | Z36: 0 | AA36: 0 | AB36: 0 | AC36: 0 | AD36: 0 | AE36: 0 | AF36: 0 | AG36: 0 | AH36: 0 | AI36: 0 | AJ36: 0 | AK36: 0 | AL36: 0 | AM36: 0 | AN36: 0 | AO36: 0 | AP36: 0 | AQ36: 0 | AR36: 0 | AS36: 0 | AT36: 0 | AU36: 0
B37: IPCA - Acumulado | M37: =IF('PAINEL DE CONTROLE'!$D$7="real",0,'DADOS MACROECONÔMICOS'!N9) -> 0 | N37: =IF('PAINEL DE CONTROLE'!$D$7="real",0,'DADOS MACROECONÔMICOS'!O9) -> 0 | O37: =IF('PAINEL DE CONTROLE'!$D$7="real",0,'DADOS MACROECONÔMICOS'!P9) -> 0 | P37: =IF('PAINEL DE CONTROLE'!$D$7="real",0,'DADOS MACROECONÔMICOS'!Q9) -> 0 | Q37: =IF('PAINEL DE CONTROLE'!$D$7="real",0,'DADOS MACROECONÔMICOS'!R9) -> 0 | R37: =IF('PAINEL DE CONTROLE'!$D$7="real",0,'DADOS MACROECONÔMICOS'!S9) -> 0 | S37: =IF('PAINEL DE CONTROLE'!$D$7="real",0,'DADOS MACROECONÔMICOS'!T9) -> 0 | T37: =IF('PAINEL DE CONTROLE'!$D$7="real",0,'DADOS MACROECONÔMICOS'!U9) -> 0 | U37: =IF('PAINEL DE CONTROLE'!$D$7="real",0,'DADOS MACROECONÔMICOS'!V9) -> 0 | V37: =IF('PAINEL DE CONTROLE'!$D$7="real",0,'DADOS MACROECONÔMICOS'!W9) -> 0 | W37: =IF('PAINEL DE CONTROLE'!$D$7="real",0,'DADOS MACROECONÔMICOS'!X9) -> 0 | X37: =IF('PAINEL DE CONTROLE'!$D$7="real",0,'DADOS MACROECONÔMICOS'!Y9) -> 0 | Y37: =IF('PAINEL DE CONTROLE'!$D$7="real",0,'DADOS MACROECONÔMICOS'!Z9) -> 0 | Z37: =IF('PAINEL DE CONTROLE'!$D$7="real",0,'DADOS MACROECONÔMICOS'!AA9) -> 0 | AA37: =IF('PAINEL DE CONTROLE'!$D$7="real",0,'DADOS MACROECONÔMICOS'!AB9) -> 0 | AB37: =IF('PAINEL DE CONTROLE'!$D$7="real",0,'DADOS MACROECONÔMICOS'!AC9) -> 0 | AC37: =IF('PAINEL DE CONTROLE'!$D$7="real",0,'DADOS MACROECONÔMICOS'!AD9) -> 0 | AD37: =IF('PAINEL DE CONTROLE'!$D$7="real",0,'DADOS MACROECONÔMICOS'!AE9) -> 0 | AE37: =IF('PAINEL DE CONTROLE'!$D$7="real",0,'DADOS MACROECONÔMICOS'!AF9) -> 0 | AF37: =IF('PAINEL DE CONTROLE'!$D$7="real",0,'DADOS MACROECONÔMICOS'!AG9) -> 0 | AG37: =IF('PAINEL DE CONTROLE'!$D$7="real",0,'DADOS MACROECONÔMICOS'!AH9) -> 0 | AH37: =IF('PAINEL DE CONTROLE'!$D$7="real",0,'DADOS MACROECONÔMICOS'!AI9) -> 0 | AI37: =IF('PAINEL DE CONTROLE'!$D$7="real",0,'DADOS MACROECONÔMICOS'!AJ9) -> 0 | AJ37: =IF('PAINEL DE CONTROLE'!$D$7="real",0,'DADOS MACROECONÔMICOS'!AK9) -> 0 | AK37: =IF('PAINEL DE CONTROLE'!$D$7="real",0,'DADOS MACROECONÔMICOS'!AL9) -> 0 | AL37: =IF('PAINEL DE CONTROLE'!$D$7="real",0,'DADOS MACROECONÔMICOS'!AM9) -> 0 | AM37: =IF('PAINEL DE CONTROLE'!$D$7="real",0,'DADOS MACROECONÔMICOS'!AN9) -> 0 | AN37: =IF('PAINEL DE CONTROLE'!$D$7="real",0,'DADOS MACROECONÔMICOS'!AO9) -> 0 | AO37: =IF('PAINEL DE CONTROLE'!$D$7="real",0,'DADOS MACROECONÔMICOS'!AP9) -> 0 | AP37: =IF('PAINEL DE CONTROLE'!$D$7="real",0,'DADOS MACROECONÔMICOS'!AQ9) -> 0 | AQ37: =IF('PAINEL DE CONTROLE'!$D$7="real",0,'DADOS MACROECONÔMICOS'!AR9) -> 0 | AR37: =IF('PAINEL DE CONTROLE'!$D$7="real",0,'DADOS MACROECONÔMICOS'!AS9) -> 0 | AS37: =IF('PAINEL DE CONTROLE'!$D$7="real",0,'DADOS MACROECONÔMICOS'!AT9) -> 0 | AT37: =IF('PAINEL DE CONTROLE'!$D$7="real",0,'DADOS MACROECONÔMICOS'!AU9) -> 0 | AU37: =IF('PAINEL DE CONTROLE'!$D$7="real",0,'DADOS MACROECONÔMICOS'!AV9) -> 0
B38: Aporte - Reconhecimento DRE | M38: =IF('PAINEL DE CONTROLE'!$D$7="real",M78,M40) -> 0 | N38: =IF('PAINEL DE CONTROLE'!$D$7="real",N78,N40) -> 0 | O38: =IF('PAINEL DE CONTROLE'!$D$7="real",O78,O40) -> 0 | P38: =IF('PAINEL DE CONTROLE'!$D$7="real",P78,P40) -> 0 | Q38: =IF('PAINEL DE CONTROLE'!$D$7="real",Q78,Q40) -> 0 | R38: =IF('PAINEL DE CONTROLE'!$D$7="real",R78,R40) -> 0 | S38: =IF('PAINEL DE CONTROLE'!$D$7="real",S78,S40) -> 0 | T38: =IF('PAINEL DE CONTROLE'!$D$7="real",T78,T40) -> 0 | U38: =IF('PAINEL DE CONTROLE'!$D$7="real",U78,U40) -> 0 | V38: =IF('PAINEL DE CONTROLE'!$D$7="real",V78,V40) -> 0 | W38: =IF('PAINEL DE CONTROLE'!$D$7="real",W78,W40) -> 0 | X38: =IF('PAINEL DE CONTROLE'!$D$7="real",X78,X40) -> 0 | Y38: =IF('PAINEL DE CONTROLE'!$D$7="real",Y78,Y40) -> 0 | Z38: =IF('PAINEL DE CONTROLE'!$D$7="real",Z78,Z40) -> 0 | AA38: =IF('PAINEL DE CONTROLE'!$D$7="real",AA78,AA40) -> 0 | AB38: =IF('PAINEL DE CONTROLE'!$D$7="real",AB78,AB40) -> 0 | AC38: =IF('PAINEL DE CONTROLE'!$D$7="real",AC78,AC40) -> 0 | AD38: =IF('PAINEL DE CONTROLE'!$D$7="real",AD78,AD40) -> 0 | AE38: =IF('PAINEL DE CONTROLE'!$D$7="real",AE78,AE40) -> 0 | AF38: =IF('PAINEL DE CONTROLE'!$D$7="real",AF78,AF40) -> 0 | AG38: =IF('PAINEL DE CONTROLE'!$D$7="real",AG78,AG40) -> 0 | AH38: =IF('PAINEL DE CONTROLE'!$D$7="real",AH78,AH40) -> 0 | AI38: =IF('PAINEL DE CONTROLE'!$D$7="real",AI78,AI40) -> 0 | AJ38: =IF('PAINEL DE CONTROLE'!$D$7="real",AJ78,AJ40) -> 0 | AK38: =IF('PAINEL DE CONTROLE'!$D$7="real",AK78,AK40) -> 0 | AL38: =IF('PAINEL DE CONTROLE'!$D$7="real",AL78,AL40) -> 0 | AM38: =IF('PAINEL DE CONTROLE'!$D$7="real",AM78,AM40) -> 0 | AN38: =IF('PAINEL DE CONTROLE'!$D$7="real",AN78,AN40) -> 0 | AO38: =IF('PAINEL DE CONTROLE'!$D$7="real",AO78,AO40) -> 0 | AP38: =IF('PAINEL DE CONTROLE'!$D$7="real",AP78,AP40) -> 0 | AQ38: =IF('PAINEL DE CONTROLE'!$D$7="real",AQ78,AQ40) -> 0 | AR38: =IF('PAINEL DE CONTROLE'!$D$7="real",AR78,AR40) -> 0 | AS38: =IF('PAINEL DE CONTROLE'!$D$7="real",AS78,AS40) -> 0 | AT38: =IF('PAINEL DE CONTROLE'!$D$7="real",AT78,AT40) -> 0 | AU38: =IF('PAINEL DE CONTROLE'!$D$7="real",AU78,AU40) -> 0
B40: Depreciação NOMINAL do Aporte | M40: =SUM(M42:M76) -> 0 | N40: 0 | O40: 0 | P40: 0 | Q40: 0 | R40: 0 | S40: 0 | T40: 0 | U40: 0 | V40: 0 | W40: 0 | X40: 0 | Y40: 0 | Z40: 0 | AA40: 0 | AB40: 0 | AC40: 0 | AD40: 0 | AE40: 0 | AF40: 0 | AG40: 0 | AH40: 0 | AI40: 0 | AJ40: 0 | AK40: 0 | AL40: 0 | AM40: 0 | AN40: 0 | AO40: 0 | AP40: 0 | AQ40: 0 | AR40: 0 | AS40: 0 | AT40: 0 | AU40: 0
B42: 1 | C42: =TRANSPOSE(L35:AT35) ->  | M42: =IF(AND(M$4>=$B42,M$4<='PAINEL DE CONTROLE'!$D$6),$C42/COUNTIFS($L$4:$AT$4,">="&$B42,$L$4:$AT$4,"<="&'PAINEL DE CONTROLE'!$D$6),0) -> 0 | N42: =IF(AND(N$4>=$B42,N$4<='PAINEL DE CONTROLE'!$D$6),$C42/COUNTIFS($L$4:$AT$4,">="&$B42,$L$4:$AT$4,"<="&'PAINEL DE CONTROLE'!$D$6),0) -> 0 | O42: =IF(AND(O$4>=$B42,O$4<='PAINEL DE CONTROLE'!$D$6),$C42/COUNTIFS($L$4:$AT$4,">="&$B42,$L$4:$AT$4,"<="&'PAINEL DE CONTROLE'!$D$6),0) -> 0 | P42: =IF(AND(P$4>=$B42,P$4<='PAINEL DE CONTROLE'!$D$6),$C42/COUNTIFS($L$4:$AT$4,">="&$B42,$L$4:$AT$4,"<="&'PAINEL DE CONTROLE'!$D$6),0) -> 0 | Q42: =IF(AND(Q$4>=$B42,Q$4<='PAINEL DE CONTROLE'!$D$6),$C42/COUNTIFS($L$4:$AT$4,">="&$B42,$L$4:$AT$4,"<="&'PAINEL DE CONTROLE'!$D$6),0) -> 0 | R42: =IF(AND(R$4>=$B42,R$4<='PAINEL DE CONTROLE'!$D$6),$C42/COUNTIFS($L$4:$AT$4,">="&$B42,$L$4:$AT$4,"<="&'PAINEL DE CONTROLE'!$D$6),0) -> 0 | S42: =IF(AND(S$4>=$B42,S$4<='PAINEL DE CONTROLE'!$D$6),$C42/COUNTIFS($L$4:$AT$4,">="&$B42,$L$4:$AT$4,"<="&'PAINEL DE CONTROLE'!$D$6),0) -> 0 | T42: =IF(AND(T$4>=$B42,T$4<='PAINEL DE CONTROLE'!$D$6),$C42/COUNTIFS($L$4:$AT$4,">="&$B42,$L$4:$AT$4,"<="&'PAINEL DE CONTROLE'!$D$6),0) -> 0 | U42: =IF(AND(U$4>=$B42,U$4<='PAINEL DE CONTROLE'!$D$6),$C42/COUNTIFS($L$4:$AT$4,">="&$B42,$L$4:$AT$4,"<="&'PAINEL DE CONTROLE'!$D$6),0) -> 0 | V42: =IF(AND(V$4>=$B42,V$4<='PAINEL DE CONTROLE'!$D$6),$C42/COUNTIFS($L$4:$AT$4,">="&$B42,$L$4:$AT$4,"<="&'PAINEL DE CONTROLE'!$D$6),0) -> 0 | W42: =IF(AND(W$4>=$B42,W$4<='PAINEL DE CONTROLE'!$D$6),$C42/COUNTIFS($L$4:$AT$4,">="&$B42,$L$4:$AT$4,"<="&'PAINEL DE CONTROLE'!$D$6),0) -> 0 | X42: =IF(AND(X$4>=$B42,X$4<='PAINEL DE CONTROLE'!$D$6),$C42/COUNTIFS($L$4:$AT$4,">="&$B42,$L$4:$AT$4,"<="&'PAINEL DE CONTROLE'!$D$6),0) -> 0 | Y42: =IF(AND(Y$4>=$B42,Y$4<='PAINEL DE CONTROLE'!$D$6),$C42/COUNTIFS($L$4:$AT$4,">="&$B42,$L$4:$AT$4,"<="&'PAINEL DE CONTROLE'!$D$6),0) -> 0 | Z42: =IF(AND(Z$4>=$B42,Z$4<='PAINEL DE CONTROLE'!$D$6),$C42/COUNTIFS($L$4:$AT$4,">="&$B42,$L$4:$AT$4,"<="&'PAINEL DE CONTROLE'!$D$6),0) -> 0 | AA42: =IF(AND(AA$4>=$B42,AA$4<='PAINEL DE CONTROLE'!$D$6),$C42/COUNTIFS($L$4:$AT$4,">="&$B42,$L$4:$AT$4,"<="&'PAINEL DE CONTROLE'!$D$6),0) -> 0 | AB42: =IF(AND(AB$4>=$B42,AB$4<='PAINEL DE CONTROLE'!$D$6),$C42/COUNTIFS($L$4:$AT$4,">="&$B42,$L$4:$AT$4,"<="&'PAINEL DE CONTROLE'!$D$6),0) -> 0 | AC42: =IF(AND(AC$4>=$B42,AC$4<='PAINEL DE CONTROLE'!$D$6),$C42/COUNTIFS($L$4:$AT$4,">="&$B42,$L$4:$AT$4,"<="&'PAINEL DE CONTROLE'!$D$6),0) -> 0 | AD42: =IF(AND(AD$4>=$B42,AD$4<='PAINEL DE CONTROLE'!$D$6),$C42/COUNTIFS($L$4:$AT$4,">="&$B42,$L$4:$AT$4,"<="&'PAINEL DE CONTROLE'!$D$6),0) -> 0 | AE42: =IF(AND(AE$4>=$B42,AE$4<='PAINEL DE CONTROLE'!$D$6),$C42/COUNTIFS($L$4:$AT$4,">="&$B42,$L$4:$AT$4,"<="&'PAINEL DE CONTROLE'!$D$6),0) -> 0 | AF42: =IF(AND(AF$4>=$B42,AF$4<='PAINEL DE CONTROLE'!$D$6),$C42/COUNTIFS($L$4:$AT$4,">="&$B42,$L$4:$AT$4,"<="&'PAINEL DE CONTROLE'!$D$6),0) -> 0 | AG42: =IF(AND(AG$4>=$B42,AG$4<='PAINEL DE CONTROLE'!$D$6),$C42/COUNTIFS($L$4:$AT$4,">="&$B42,$L$4:$AT$4,"<="&'PAINEL DE CONTROLE'!$D$6),0) -> 0 | AH42: =IF(AND(AH$4>=$B42,AH$4<='PAINEL DE CONTROLE'!$D$6),$C42/COUNTIFS($L$4:$AT$4,">="&$B42,$L$4:$AT$4,"<="&'PAINEL DE CONTROLE'!$D$6),0) -> 0 | AI42: =IF(AND(AI$4>=$B42,AI$4<='PAINEL DE CONTROLE'!$D$6),$C42/COUNTIFS($L$4:$AT$4,">="&$B42,$L$4:$AT$4,"<="&'PAINEL DE CONTROLE'!$D$6),0) -> 0 | AJ42: =IF(AND(AJ$4>=$B42,AJ$4<='PAINEL DE CONTROLE'!$D$6),$C42/COUNTIFS($L$4:$AT$4,">="&$B42,$L$4:$AT$4,"<="&'PAINEL DE CONTROLE'!$D$6),0) -> 0 | AK42: =IF(AND(AK$4>=$B42,AK$4<='PAINEL DE CONTROLE'!$D$6),$C42/COUNTIFS($L$4:$AT$4,">="&$B42,$L$4:$AT$4,"<="&'PAINEL DE CONTROLE'!$D$6),0) -> 0 | AL42: =IF(AND(AL$4>=$B42,AL$4<='PAINEL DE CONTROLE'!$D$6),$C42/COUNTIFS($L$4:$AT$4,">="&$B42,$L$4:$AT$4,"<="&'PAINEL DE CONTROLE'!$D$6),0) -> 0 | AM42: =IF(AND(AM$4>=$B42,AM$4<='PAINEL DE CONTROLE'!$D$6),$C42/COUNTIFS($L$4:$AT$4,">="&$B42,$L$4:$AT$4,"<="&'PAINEL DE CONTROLE'!$D$6),0) -> 0 | AN42: =IF(AND(AN$4>=$B42,AN$4<='PAINEL DE CONTROLE'!$D$6),$C42/COUNTIFS($L$4:$AT$4,">="&$B42,$L$4:$AT$4,"<="&'PAINEL DE CONTROLE'!$D$6),0) -> 0 | AO42: =IF(AND(AO$4>=$B42,AO$4<='PAINEL DE CONTROLE'!$D$6),$C42/COUNTIFS($L$4:$AT$4,">="&$B42,$L$4:$AT$4,"<="&'PAINEL DE CONTROLE'!$D$6),0) -> 0 | AP42: =IF(AND(AP$4>=$B42,AP$4<='PAINEL DE CONTROLE'!$D$6),$C42/COUNTIFS($L$4:$AT$4,">="&$B42,$L$4:$AT$4,"<="&'PAINEL DE CONTROLE'!$D$6),0) -> 0 | AQ42: =IF(AND(AQ$4>=$B42,AQ$4<='PAINEL DE CONTROLE'!$D$6),$C42/COUNTIFS($L$4:$AT$4,">="&$B42,$L$4:$AT$4,"<="&'PAINEL DE CONTROLE'!$D$6),0) -> 0 | AR42: =IF(AND(AR$4>=$B42,AR$4<='PAINEL DE CONTROLE'!$D$6),$C42/COUNTIFS($L$4:$AT$4,">="&$B42,$L$4:$AT$4,"<="&'PAINEL DE CONTROLE'!$D$6),0) -> 0 | AS42: =IF(AND(AS$4>=$B42,AS$4<='PAINEL DE CONTROLE'!$D$6),$C42/COUNTIFS($L$4:$AT$4,">="&$B42,$L$4:$AT$4,"<="&'PAINEL DE CONTROLE'!$D$6),0) -> 0 | AT42: =IF(AND(AT$4>=$B42,AT$4<='PAINEL DE CONTROLE'!$D$6),$C42/COUNTIFS($L$4:$AT$4,">="&$B42,$L$4:$AT$4,"<="&'PAINEL DE CONTROLE'!$D$6),0) -> 0 | AU42: =IF(AND(AU$4>=$B42,AU$4<='PAINEL DE CONTROLE'!$D$6),$C42/COUNTIFS($L$4:$AT$4,">="&$B42,$L$4:$AT$4,"<="&'PAINEL DE CONTROLE'!$D$6),0) -> 0
B43: =B42+1 -> 2 | C43: 0 | M43: =IF(AND(M$4>=$B43,M$4<='PAINEL DE CONTROLE'!$D$6),$C43/COUNTIFS($L$4:$AT$4,">="&$B43,$L$4:$AT$4,"<="&'PAINEL DE CONTROLE'!$D$6),0) -> 0 | N43: =IF(AND(N$4>=$B43,N$4<='PAINEL DE CONTROLE'!$D$6),$C43/COUNTIFS($L$4:$AT$4,">="&$B43,$L$4:$AT$4,"<="&'PAINEL DE CONTROLE'!$D$6),0) -> 0 | O43: =IF(AND(O$4>=$B43,O$4<='PAINEL DE CONTROLE'!$D$6),$C43/COUNTIFS($L$4:$AT$4,">="&$B43,$L$4:$AT$4,"<="&'PAINEL DE CONTROLE'!$D$6),0) -> 0 | P43: =IF(AND(P$4>=$B43,P$4<='PAINEL DE CONTROLE'!$D$6),$C43/COUNTIFS($L$4:$AT$4,">="&$B43,$L$4:$AT$4,"<="&'PAINEL DE CONTROLE'!$D$6),0) -> 0 | Q43: =IF(AND(Q$4>=$B43,Q$4<='PAINEL DE CONTROLE'!$D$6),$C43/COUNTIFS($L$4:$AT$4,">="&$B43,$L$4:$AT$4,"<="&'PAINEL DE CONTROLE'!$D$6),0) -> 0 | R43: =IF(AND(R$4>=$B43,R$4<='PAINEL DE CONTROLE'!$D$6),$C43/COUNTIFS($L$4:$AT$4,">="&$B43,$L$4:$AT$4,"<="&'PAINEL DE CONTROLE'!$D$6),0) -> 0 | S43: =IF(AND(S$4>=$B43,S$4<='PAINEL DE CONTROLE'!$D$6),$C43/COUNTIFS($L$4:$AT$4,">="&$B43,$L$4:$AT$4,"<="&'PAINEL DE CONTROLE'!$D$6),0) -> 0 | T43: =IF(AND(T$4>=$B43,T$4<='PAINEL DE CONTROLE'!$D$6),$C43/COUNTIFS($L$4:$AT$4,">="&$B43,$L$4:$AT$4,"<="&'PAINEL DE CONTROLE'!$D$6),0) -> 0 | U43: =IF(AND(U$4>=$B43,U$4<='PAINEL DE CONTROLE'!$D$6),$C43/COUNTIFS($L$4:$AT$4,">="&$B43,$L$4:$AT$4,"<="&'PAINEL DE CONTROLE'!$D$6),0) -> 0 | V43: =IF(AND(V$4>=$B43,V$4<='PAINEL DE CONTROLE'!$D$6),$C43/COUNTIFS($L$4:$AT$4,">="&$B43,$L$4:$AT$4,"<="&'PAINEL DE CONTROLE'!$D$6),0) -> 0 | W43: =IF(AND(W$4>=$B43,W$4<='PAINEL DE CONTROLE'!$D$6),$C43/COUNTIFS($L$4:$AT$4,">="&$B43,$L$4:$AT$4,"<="&'PAINEL DE CONTROLE'!$D$6),0) -> 0 | X43: =IF(AND(X$4>=$B43,X$4<='PAINEL DE CONTROLE'!$D$6),$C43/COUNTIFS($L$4:$AT$4,">="&$B43,$L$4:$AT$4,"<="&'PAINEL DE CONTROLE'!$D$6),0) -> 0 | Y43: =IF(AND(Y$4>=$B43,Y$4<='PAINEL DE CONTROLE'!$D$6),$C43/COUNTIFS($L$4:$AT$4,">="&$B43,$L$4:$AT$4,"<="&'PAINEL DE CONTROLE'!$D$6),0) -> 0 | Z43: =IF(AND(Z$4>=$B43,Z$4<='PAINEL DE CONTROLE'!$D$6),$C43/COUNTIFS($L$4:$AT$4,">="&$B43,$L$4:$AT$4,"<="&'PAINEL DE CONTROLE'!$D$6),0) -> 0 | AA43: =IF(AND(AA$4>=$B43,AA$4<='PAINEL DE CONTROLE'!$D$6),$C43/COUNTIFS($L$4:$AT$4,">="&$B43,$L$4:$AT$4,"<="&'PAINEL DE CONTROLE'!$D$6),0) -> 0 | AB43: =IF(AND(AB$4>=$B43,AB$4<='PAINEL DE CONTROLE'!$D$6),$C43/COUNTIFS($L$4:$AT$4,">="&$B43,$L$4:$AT$4,"<="&'PAINEL DE CONTROLE'!$D$6),0) -> 0 | AC43: =IF(AND(AC$4>=$B43,AC$4<='PAINEL DE CONTROLE'!$D$6),$C43/COUNTIFS($L$4:$AT$4,">="&$B43,$L$4:$AT$4,"<="&'PAINEL DE CONTROLE'!$D$6),0) -> 0 | AD43: =IF(AND(AD$4>=$B43,AD$4<='PAINEL DE CONTROLE'!$D$6),$C43/COUNTIFS($L$4:$AT$4,">="&$B43,$L$4:$AT$4,"<="&'PAINEL DE CONTROLE'!$D$6),0) -> 0 | AE43: =IF(AND(AE$4>=$B43,AE$4<='PAINEL DE CONTROLE'!$D$6),$C43/COUNTIFS($L$4:$AT$4,">="&$B43,$L$4:$AT$4,"<="&'PAINEL DE CONTROLE'!$D$6),0) -> 0 | AF43: =IF(AND(AF$4>=$B43,AF$4<='PAINEL DE CONTROLE'!$D$6),$C43/COUNTIFS($L$4:$AT$4,">="&$B43,$L$4:$AT$4,"<="&'PAINEL DE CONTROLE'!$D$6),0) -> 0 | AG43: =IF(AND(AG$4>=$B43,AG$4<='PAINEL DE CONTROLE'!$D$6),$C43/COUNTIFS($L$4:$AT$4,">="&$B43,$L$4:$AT$4,"<="&'PAINEL DE CONTROLE'!$D$6),0) -> 0 | AH43: =IF(AND(AH$4>=$B43,AH$4<='PAINEL DE CONTROLE'!$D$6),$C43/COUNTIFS($L$4:$AT$4,">="&$B43,$L$4:$AT$4,"<="&'PAINEL DE CONTROLE'!$D$6),0) -> 0 | AI43: =IF(AND(AI$4>=$B43,AI$4<='PAINEL DE CONTROLE'!$D$6),$C43/COUNTIFS($L$4:$AT$4,">="&$B43,$L$4:$AT$4,"<="&'PAINEL DE CONTROLE'!$D$6),0) -> 0 | AJ43: =IF(AND(AJ$4>=$B43,AJ$4<='PAINEL DE CONTROLE'!$D$6),$C43/COUNTIFS($L$4:$AT$4,">="&$B43,$L$4:$AT$4,"<="&'PAINEL DE CONTROLE'!$D$6),0) -> 0 | AK43: =IF(AND(AK$4>=$B43,AK$4<='PAINEL DE CONTROLE'!$D$6),$C43/COUNTIFS($L$4:$AT$4,">="&$B43,$L$4:$AT$4,"<="&'PAINEL DE CONTROLE'!$D$6),0) -> 0 | AL43: =IF(AND(AL$4>=$B43,AL$4<='PAINEL DE CONTROLE'!$D$6),$C43/COUNTIFS($L$4:$AT$4,">="&$B43,$L$4:$AT$4,"<="&'PAINEL DE CONTROLE'!$D$6),0) -> 0 | AM43: =IF(AND(AM$4>=$B43,AM$4<='PAINEL DE CONTROLE'!$D$6),$C43/COUNTIFS($L$4:$AT$4,">="&$B43,$L$4:$AT$4,"<="&'PAINEL DE CONTROLE'!$D$6),0) -> 0 | AN43: =IF(AND(AN$4>=$B43,AN$4<='PAINEL DE CONTROLE'!$D$6),$C43/COUNTIFS($L$4:$AT$4,">="&$B43,$L$4:$AT$4,"<="&'PAINEL DE CONTROLE'!$D$6),0) -> 0 | AO43: =IF(AND(AO$4>=$B43,AO$4<='PAINEL DE CONTROLE'!$D$6),$C43/COUNTIFS($L$4:$AT$4,">="&$B43,$L$4:$AT$4,"<="&'PAINEL DE CONTROLE'!$D$6),0) -> 0 | AP43: =IF(AND(AP$4>=$B43,AP$4<='PAINEL DE CONTROLE'!$D$6),$C43/COUNTIFS($L$4:$AT$4,">="&$B43,$L$4:$AT$4,"<="&'PAINEL DE CONTROLE'!$D$6),0) -> 0 | AQ43: =IF(AND(AQ$4>=$B43,AQ$4<='PAINEL DE CONTROLE'!$D$6),$C43/COUNTIFS($L$4:$AT$4,">="&$B43,$L$4:$AT$4,"<="&'PAINEL DE CONTROLE'!$D$6),0) -> 0 | AR43: =IF(AND(AR$4>=$B43,AR$4<='PAINEL DE CONTROLE'!$D$6),$C43/COUNTIFS($L$4:$AT$4,">="&$B43,$L$4:$AT$4,"<="&'PAINEL DE CONTROLE'!$D$6),0) -> 0 | AS43: =IF(AND(AS$4>=$B43,AS$4<='PAINEL DE CONTROLE'!$D$6),$C43/COUNTIFS($L$4:$AT$4,">="&$B43,$L$4:$AT$4,"<="&'PAINEL DE CONTROLE'!$D$6),0) -> 0 | AT43: =IF(AND(AT$4>=$B43,AT$4<='PAINEL DE CONTROLE'!$D$6),$C43/COUNTIFS($L$4:$AT$4,">="&$B43,$L$4:$AT$4,"<="&'PAINEL DE CONTROLE'!$D$6),0) -> 0 | AU43: =IF(AND(AU$4>=$B43,AU$4<='PAINEL DE CONTROLE'!$D$6),$C43/COUNTIFS($L$4:$AT$4,">="&$B43,$L$4:$AT$4,"<="&'PAINEL DE CONTROLE'!$D$6),0) -> 0
B44: 3 | C44: 0 | M44: =IF(AND(M$4>=$B44,M$4<='PAINEL DE CONTROLE'!$D$6),$C44/COUNTIFS($L$4:$AT$4,">="&$B44,$L$4:$AT$4,"<="&'PAINEL DE CONTROLE'!$D$6),0) -> 0 | N44: =IF(AND(N$4>=$B44,N$4<='PAINEL DE CONTROLE'!$D$6),$C44/COUNTIFS($L$4:$AT$4,">="&$B44,$L$4:$AT$4,"<="&'PAINEL DE CONTROLE'!$D$6),0) -> 0 | O44: =IF(AND(O$4>=$B44,O$4<='PAINEL DE CONTROLE'!$D$6),$C44/COUNTIFS($L$4:$AT$4,">="&$B44,$L$4:$AT$4,"<="&'PAINEL DE CONTROLE'!$D$6),0) -> 0 | P44: =IF(AND(P$4>=$B44,P$4<='PAINEL DE CONTROLE'!$D$6),$C44/COUNTIFS($L$4:$AT$4,">="&$B44,$L$4:$AT$4,"<="&'PAINEL DE CONTROLE'!$D$6),0) -> 0 | Q44: =IF(AND(Q$4>=$B44,Q$4<='PAINEL DE CONTROLE'!$D$6),$C44/COUNTIFS($L$4:$AT$4,">="&$B44,$L$4:$AT$4,"<="&'PAINEL DE CONTROLE'!$D$6),0) -> 0 | R44: =IF(AND(R$4>=$B44,R$4<='PAINEL DE CONTROLE'!$D$6),$C44/COUNTIFS($L$4:$AT$4,">="&$B44,$L$4:$AT$4,"<="&'PAINEL DE CONTROLE'!$D$6),0) -> 0 | S44: =IF(AND(S$4>=$B44,S$4<='PAINEL DE CONTROLE'!$D$6),$C44/COUNTIFS($L$4:$AT$4,">="&$B44,$L$4:$AT$4,"<="&'PAINEL DE CONTROLE'!$D$6),0) -> 0 | T44: =IF(AND(T$4>=$B44,T$4<='PAINEL DE CONTROLE'!$D$6),$C44/COUNTIFS($L$4:$AT$4,">="&$B44,$L$4:$AT$4,"<="&'PAINEL DE CONTROLE'!$D$6),0) -> 0 | U44: =IF(AND(U$4>=$B44,U$4<='PAINEL DE CONTROLE'!$D$6),$C44/COUNTIFS($L$4:$AT$4,">="&$B44,$L$4:$AT$4,"<="&'PAINEL DE CONTROLE'!$D$6),0) -> 0 | V44: =IF(AND(V$4>=$B44,V$4<='PAINEL DE CONTROLE'!$D$6),$C44/COUNTIFS($L$4:$AT$4,">="&$B44,$L$4:$AT$4,"<="&'PAINEL DE CONTROLE'!$D$6),0) -> 0 | W44: =IF(AND(W$4>=$B44,W$4<='PAINEL DE CONTROLE'!$D$6),$C44/COUNTIFS($L$4:$AT$4,">="&$B44,$L$4:$AT$4,"<="&'PAINEL DE CONTROLE'!$D$6),0) -> 0 | X44: =IF(AND(X$4>=$B44,X$4<='PAINEL DE CONTROLE'!$D$6),$C44/COUNTIFS($L$4:$AT$4,">="&$B44,$L$4:$AT$4,"<="&'PAINEL DE CONTROLE'!$D$6),0) -> 0 | Y44: =IF(AND(Y$4>=$B44,Y$4<='PAINEL DE CONTROLE'!$D$6),$C44/COUNTIFS($L$4:$AT$4,">="&$B44,$L$4:$AT$4,"<="&'PAINEL DE CONTROLE'!$D$6),0) -> 0 | Z44: =IF(AND(Z$4>=$B44,Z$4<='PAINEL DE CONTROLE'!$D$6),$C44/COUNTIFS($L$4:$AT$4,">="&$B44,$L$4:$AT$4,"<="&'PAINEL DE CONTROLE'!$D$6),0) -> 0 | AA44: =IF(AND(AA$4>=$B44,AA$4<='PAINEL DE CONTROLE'!$D$6),$C44/COUNTIFS($L$4:$AT$4,">="&$B44,$L$4:$AT$4,"<="&'PAINEL DE CONTROLE'!$D$6),0) -> 0 | AB44: =IF(AND(AB$4>=$B44,AB$4<='PAINEL DE CONTROLE'!$D$6),$C44/COUNTIFS($L$4:$AT$4,">="&$B44,$L$4:$AT$4,"<="&'PAINEL DE CONTROLE'!$D$6),0) -> 0 | AC44: =IF(AND(AC$4>=$B44,AC$4<='PAINEL DE CONTROLE'!$D$6),$C44/COUNTIFS($L$4:$AT$4,">="&$B44,$L$4:$AT$4,"<="&'PAINEL DE CONTROLE'!$D$6),0) -> 0 | AD44: =IF(AND(AD$4>=$B44,AD$4<='PAINEL DE CONTROLE'!$D$6),$C44/COUNTIFS($L$4:$AT$4,">="&$B44,$L$4:$AT$4,"<="&'PAINEL DE CONTROLE'!$D$6),0) -> 0 | AE44: =IF(AND(AE$4>=$B44,AE$4<='PAINEL DE CONTROLE'!$D$6),$C44/COUNTIFS($L$4:$AT$4,">="&$B44,$L$4:$AT$4,"<="&'PAINEL DE CONTROLE'!$D$6),0) -> 0 | AF44: =IF(AND(AF$4>=$B44,AF$4<='PAINEL DE CONTROLE'!$D$6),$C44/COUNTIFS($L$4:$AT$4,">="&$B44,$L$4:$AT$4,"<="&'PAINEL DE CONTROLE'!$D$6),0) -> 0 | AG44: =IF(AND(AG$4>=$B44,AG$4<='PAINEL DE CONTROLE'!$D$6),$C44/COUNTIFS($L$4:$AT$4,">="&$B44,$L$4:$AT$4,"<="&'PAINEL DE CONTROLE'!$D$6),0) -> 0 | AH44: =IF(AND(AH$4>=$B44,AH$4<='PAINEL DE CONTROLE'!$D$6),$C44/COUNTIFS($L$4:$AT$4,">="&$B44,$L$4:$AT$4,"<="&'PAINEL DE CONTROLE'!$D$6),0) -> 0 | AI44: =IF(AND(AI$4>=$B44,AI$4<='PAINEL DE CONTROLE'!$D$6),$C44/COUNTIFS($L$4:$AT$4,">="&$B44,$L$4:$AT$4,"<="&'PAINEL DE CONTROLE'!$D$6),0) -> 0 | AJ44: =IF(AND(AJ$4>=$B44,AJ$4<='PAINEL DE CONTROLE'!$D$6),$C44/COUNTIFS($L$4:$AT$4,">="&$B44,$L$4:$AT$4,"<="&'PAINEL DE CONTROLE'!$D$6),0) -> 0 | AK44: =IF(AND(AK$4>=$B44,AK$4<='PAINEL DE CONTROLE'!$D$6),$C44/COUNTIFS($L$4:$AT$4,">="&$B44,$L$4:$AT$4,"<="&'PAINEL DE CONTROLE'!$D$6),0) -> 0 | AL44: =IF(AND(AL$4>=$B44,AL$4<='PAINEL DE CONTROLE'!$D$6),$C44/COUNTIFS($L$4:$AT$4,">="&$B44,$L$4:$AT$4,"<="&'PAINEL DE CONTROLE'!$D$6),0) -> 0 | AM44: =IF(AND(AM$4>=$B44,AM$4<='PAINEL DE CONTROLE'!$D$6),$C44/COUNTIFS($L$4:$AT$4,">="&$B44,$L$4:$AT$4,"<="&'PAINEL DE CONTROLE'!$D$6),0) -> 0 | AN44: =IF(AND(AN$4>=$B44,AN$4<='PAINEL DE CONTROLE'!$D$6),$C44/COUNTIFS($L$4:$AT$4,">="&$B44,$L$4:$AT$4,"<="&'PAINEL DE CONTROLE'!$D$6),0) -> 0 | AO44: =IF(AND(AO$4>=$B44,AO$4<='PAINEL DE CONTROLE'!$D$6),$C44/COUNTIFS($L$4:$AT$4,">="&$B44,$L$4:$AT$4,"<="&'PAINEL DE CONTROLE'!$D$6),0) -> 0 | AP44: =IF(AND(AP$4>=$B44,AP$4<='PAINEL DE CONTROLE'!$D$6),$C44/COUNTIFS($L$4:$AT$4,">="&$B44,$L$4:$AT$4,"<="&'PAINEL DE CONTROLE'!$D$6),0) -> 0 | AQ44: =IF(AND(AQ$4>=$B44,AQ$4<='PAINEL DE CONTROLE'!$D$6),$C44/COUNTIFS($L$4:$AT$4,">="&$B44,$L$4:$AT$4,"<="&'PAINEL DE CONTROLE'!$D$6),0) -> 0 | AR44: =IF(AND(AR$4>=$B44,AR$4<='PAINEL DE CONTROLE'!$D$6),$C44/COUNTIFS($L$4:$AT$4,">="&$B44,$L$4:$AT$4,"<="&'PAINEL DE CONTROLE'!$D$6),0) -> 0 | AS44: =IF(AND(AS$4>=$B44,AS$4<='PAINEL DE CONTROLE'!$D$6),$C44/COUNTIFS($L$4:$AT$4,">="&$B44,$L$4:$AT$4,"<="&'PAINEL DE CONTROLE'!$D$6),0) -> 0 | AT44: =IF(AND(AT$4>=$B44,AT$4<='PAINEL DE CONTROLE'!$D$6),$C44/COUNTIFS($L$4:$AT$4,">="&$B44,$L$4:$AT$4,"<="&'PAINEL DE CONTROLE'!$D$6),0) -> 0 | AU44: =IF(AND(AU$4>=$B44,AU$4<='PAINEL DE CONTROLE'!$D$6),$C44/COUNTIFS($L$4:$AT$4,">="&$B44,$L$4:$AT$4,"<="&'PAINEL DE CONTROLE'!$D$6),0) -> 0
B45: 4 | C45: 0 | M45: =IF(AND(M$4>=$B45,M$4<='PAINEL DE CONTROLE'!$D$6),$C45/COUNTIFS($L$4:$AT$4,">="&$B45,$L$4:$AT$4,"<="&'PAINEL DE CONTROLE'!$D$6),0) -> 0 | N45: =IF(AND(N$4>=$B45,N$4<='PAINEL DE CONTROLE'!$D$6),$C45/COUNTIFS($L$4:$AT$4,">="&$B45,$L$4:$AT$4,"<="&'PAINEL DE CONTROLE'!$D$6),0) -> 0 | O45: =IF(AND(O$4>=$B45,O$4<='PAINEL DE CONTROLE'!$D$6),$C45/COUNTIFS($L$4:$AT$4,">="&$B45,$L$4:$AT$4,"<="&'PAINEL DE CONTROLE'!$D$6),0) -> 0 | P45: =IF(AND(P$4>=$B45,P$4<='PAINEL DE CONTROLE'!$D$6),$C45/COUNTIFS($L$4:$AT$4,">="&$B45,$L$4:$AT$4,"<="&'PAINEL DE CONTROLE'!$D$6),0) -> 0 | Q45: =IF(AND(Q$4>=$B45,Q$4<='PAINEL DE CONTROLE'!$D$6),$C45/COUNTIFS($L$4:$AT$4,">="&$B45,$L$4:$AT$4,"<="&'PAINEL DE CONTROLE'!$D$6),0) -> 0 | R45: =IF(AND(R$4>=$B45,R$4<='PAINEL DE CONTROLE'!$D$6),$C45/COUNTIFS($L$4:$AT$4,">="&$B45,$L$4:$AT$4,"<="&'PAINEL DE CONTROLE'!$D$6),0) -> 0 | S45: =IF(AND(S$4>=$B45,S$4<='PAINEL DE CONTROLE'!$D$6),$C45/COUNTIFS($L$4:$AT$4,">="&$B45,$L$4:$AT$4,"<="&'PAINEL DE CONTROLE'!$D$6),0) -> 0 | T45: =IF(AND(T$4>=$B45,T$4<='PAINEL DE CONTROLE'!$D$6),$C45/COUNTIFS($L$4:$AT$4,">="&$B45,$L$4:$AT$4,"<="&'PAINEL DE CONTROLE'!$D$6),0) -> 0 | U45: =IF(AND(U$4>=$B45,U$4<='PAINEL DE CONTROLE'!$D$6),$C45/COUNTIFS($L$4:$AT$4,">="&$B45,$L$4:$AT$4,"<="&'PAINEL DE CONTROLE'!$D$6),0) -> 0 | V45: =IF(AND(V$4>=$B45,V$4<='PAINEL DE CONTROLE'!$D$6),$C45/COUNTIFS($L$4:$AT$4,">="&$B45,$L$4:$AT$4,"<="&'PAINEL DE CONTROLE'!$D$6),0) -> 0 | W45: =IF(AND(W$4>=$B45,W$4<='PAINEL DE CONTROLE'!$D$6),$C45/COUNTIFS($L$4:$AT$4,">="&$B45,$L$4:$AT$4,"<="&'PAINEL DE CONTROLE'!$D$6),0) -> 0 | X45: =IF(AND(X$4>=$B45,X$4<='PAINEL DE CONTROLE'!$D$6),$C45/COUNTIFS($L$4:$AT$4,">="&$B45,$L$4:$AT$4,"<="&'PAINEL DE CONTROLE'!$D$6),0) -> 0 | Y45: =IF(AND(Y$4>=$B45,Y$4<='PAINEL DE CONTROLE'!$D$6),$C45/COUNTIFS($L$4:$AT$4,">="&$B45,$L$4:$AT$4,"<="&'PAINEL DE CONTROLE'!$D$6),0) -> 0 | Z45: =IF(AND(Z$4>=$B45,Z$4<='PAINEL DE CONTROLE'!$D$6),$C45/COUNTIFS($L$4:$AT$4,">="&$B45,$L$4:$AT$4,"<="&'PAINEL DE CONTROLE'!$D$6),0) -> 0 | AA45: =IF(AND(AA$4>=$B45,AA$4<='PAINEL DE CONTROLE'!$D$6),$C45/COUNTIFS($L$4:$AT$4,">="&$B45,$L$4:$AT$4,"<="&'PAINEL DE CONTROLE'!$D$6),0) -> 0 | AB45: =IF(AND(AB$4>=$B45,AB$4<='PAINEL DE CONTROLE'!$D$6),$C45/COUNTIFS($L$4:$AT$4,">="&$B45,$L$4:$AT$4,"<="&'PAINEL DE CONTROLE'!$D$6),0) -> 0 | AC45: =IF(AND(AC$4>=$B45,AC$4<='PAINEL DE CONTROLE'!$D$6),$C45/COUNTIFS($L$4:$AT$4,">="&$B45,$L$4:$AT$4,"<="&'PAINEL DE CONTROLE'!$D$6),0) -> 0 | AD45: =IF(AND(AD$4>=$B45,AD$4<='PAINEL DE CONTROLE'!$D$6),$C45/COUNTIFS($L$4:$AT$4,">="&$B45,$L$4:$AT$4,"<="&'PAINEL DE CONTROLE'!$D$6),0) -> 0 | AE45: =IF(AND(AE$4>=$B45,AE$4<='PAINEL DE CONTROLE'!$D$6),$C45/COUNTIFS($L$4:$AT$4,">="&$B45,$L$4:$AT$4,"<="&'PAINEL DE CONTROLE'!$D$6),0) -> 0 | AF45: =IF(AND(AF$4>=$B45,AF$4<='PAINEL DE CONTROLE'!$D$6),$C45/COUNTIFS($L$4:$AT$4,">="&$B45,$L$4:$AT$4,"<="&'PAINEL DE CONTROLE'!$D$6),0) -> 0 | AG45: =IF(AND(AG$4>=$B45,AG$4<='PAINEL DE CONTROLE'!$D$6),$C45/COUNTIFS($L$4:$AT$4,">="&$B45,$L$4:$AT$4,"<="&'PAINEL DE CONTROLE'!$D$6),0) -> 0 | AH45: =IF(AND(AH$4>=$B45,AH$4<='PAINEL DE CONTROLE'!$D$6),$C45/COUNTIFS($L$4:$AT$4,">="&$B45,$L$4:$AT$4,"<="&'PAINEL DE CONTROLE'!$D$6),0) -> 0 | AI45: =IF(AND(AI$4>=$B45,AI$4<='PAINEL DE CONTROLE'!$D$6),$C45/COUNTIFS($L$4:$AT$4,">="&$B45,$L$4:$AT$4,"<="&'PAINEL DE CONTROLE'!$D$6),0) -> 0 | AJ45: =IF(AND(AJ$4>=$B45,AJ$4<='PAINEL DE CONTROLE'!$D$6),$C45/COUNTIFS($L$4:$AT$4,">="&$B45,$L$4:$AT$4,"<="&'PAINEL DE CONTROLE'!$D$6),0) -> 0 | AK45: =IF(AND(AK$4>=$B45,AK$4<='PAINEL DE CONTROLE'!$D$6),$C45/COUNTIFS($L$4:$AT$4,">="&$B45,$L$4:$AT$4,"<="&'PAINEL DE CONTROLE'!$D$6),0) -> 0 | AL45: =IF(AND(AL$4>=$B45,AL$4<='PAINEL DE CONTROLE'!$D$6),$C45/COUNTIFS($L$4:$AT$4,">="&$B45,$L$4:$AT$4,"<="&'PAINEL DE CONTROLE'!$D$6),0) -> 0 | AM45: =IF(AND(AM$4>=$B45,AM$4<='PAINEL DE CONTROLE'!$D$6),$C45/COUNTIFS($L$4:$AT$4,">="&$B45,$L$4:$AT$4,"<="&'PAINEL DE CONTROLE'!$D$6),0) -> 0 | AN45: =IF(AND(AN$4>=$B45,AN$4<='PAINEL DE CONTROLE'!$D$6),$C45/COUNTIFS($L$4:$AT$4,">="&$B45,$L$4:$AT$4,"<="&'PAINEL DE CONTROLE'!$D$6),0) -> 0 | AO45: =IF(AND(AO$4>=$B45,AO$4<='PAINEL DE CONTROLE'!$D$6),$C45/COUNTIFS($L$4:$AT$4,">="&$B45,$L$4:$AT$4,"<="&'PAINEL DE CONTROLE'!$D$6),0) -> 0 | AP45: =IF(AND(AP$4>=$B45,AP$4<='PAINEL DE CONTROLE'!$D$6),$C45/COUNTIFS($L$4:$AT$4,">="&$B45,$L$4:$AT$4,"<="&'PAINEL DE CONTROLE'!$D$6),0) -> 0 | AQ45: =IF(AND(AQ$4>=$B45,AQ$4<='PAINEL DE CONTROLE'!$D$6),$C45/COUNTIFS($L$4:$AT$4,">="&$B45,$L$4:$AT$4,"<="&'PAINEL DE CONTROLE'!$D$6),0) -> 0 | AR45: =IF(AND(AR$4>=$B45,AR$4<='PAINEL DE CONTROLE'!$D$6),$C45/COUNTIFS($L$4:$AT$4,">="&$B45,$L$4:$AT$4,"<="&'PAINEL DE CONTROLE'!$D$6),0) -> 0 | AS45: =IF(AND(AS$4>=$B45,AS$4<='PAINEL DE CONTROLE'!$D$6),$C45/COUNTIFS($L$4:$AT$4,">="&$B45,$L$4:$AT$4,"<="&'PAINEL DE CONTROLE'!$D$6),0) -> 0 | AT45: =IF(AND(AT$4>=$B45,AT$4<='PAINEL DE CONTROLE'!$D$6),$C45/COUNTIFS($L$4:$AT$4,">="&$B45,$L$4:$AT$4,"<="&'PAINEL DE CONTROLE'!$D$6),0) -> 0 | AU45: =IF(AND(AU$4>=$B45,AU$4<='PAINEL DE CONTROLE'!$D$6),$C45/COUNTIFS($L$4:$AT$4,">="&$B45,$L$4:$AT$4,"<="&'PAINEL DE CONTROLE'!$D$6),0) -> 0
B46: 5 | C46: 0 | M46: =IF(AND(M$4>=$B46,M$4<='PAINEL DE CONTROLE'!$D$6),$C46/COUNTIFS($L$4:$AT$4,">="&$B46,$L$4:$AT$4,"<="&'PAINEL DE CONTROLE'!$D$6),0) -> 0 | N46: =IF(AND(N$4>=$B46,N$4<='PAINEL DE CONTROLE'!$D$6),$C46/COUNTIFS($L$4:$AT$4,">="&$B46,$L$4:$AT$4,"<="&'PAINEL DE CONTROLE'!$D$6),0) -> 0 | O46: =IF(AND(O$4>=$B46,O$4<='PAINEL DE CONTROLE'!$D$6),$C46/COUNTIFS($L$4:$AT$4,">="&$B46,$L$4:$AT$4,"<="&'PAINEL DE CONTROLE'!$D$6),0) -> 0 | P46: =IF(AND(P$4>=$B46,P$4<='PAINEL DE CONTROLE'!$D$6),$C46/COUNTIFS($L$4:$AT$4,">="&$B46,$L$4:$AT$4,"<="&'PAINEL DE CONTROLE'!$D$6),0) -> 0 | Q46: =IF(AND(Q$4>=$B46,Q$4<='PAINEL DE CONTROLE'!$D$6),$C46/COUNTIFS($L$4:$AT$4,">="&$B46,$L$4:$AT$4,"<="&'PAINEL DE CONTROLE'!$D$6),0) -> 0 | R46: =IF(AND(R$4>=$B46,R$4<='PAINEL DE CONTROLE'!$D$6),$C46/COUNTIFS($L$4:$AT$4,">="&$B46,$L$4:$AT$4,"<="&'PAINEL DE CONTROLE'!$D$6),0) -> 0 | S46: =IF(AND(S$4>=$B46,S$4<='PAINEL DE CONTROLE'!$D$6),$C46/COUNTIFS($L$4:$AT$4,">="&$B46,$L$4:$AT$4,"<="&'PAINEL DE CONTROLE'!$D$6),0) -> 0 | T46: =IF(AND(T$4>=$B46,T$4<='PAINEL DE CONTROLE'!$D$6),$C46/COUNTIFS($L$4:$AT$4,">="&$B46,$L$4:$AT$4,"<="&'PAINEL DE CONTROLE'!$D$6),0) -> 0 | U46: =IF(AND(U$4>=$B46,U$4<='PAINEL DE CONTROLE'!$D$6),$C46/COUNTIFS($L$4:$AT$4,">="&$B46,$L$4:$AT$4,"<="&'PAINEL DE CONTROLE'!$D$6),0) -> 0 | V46: =IF(AND(V$4>=$B46,V$4<='PAINEL DE CONTROLE'!$D$6),$C46/COUNTIFS($L$4:$AT$4,">="&$B46,$L$4:$AT$4,"<="&'PAINEL DE CONTROLE'!$D$6),0) -> 0 | W46: =IF(AND(W$4>=$B46,W$4<='PAINEL DE CONTROLE'!$D$6),$C46/COUNTIFS($L$4:$AT$4,">="&$B46,$L$4:$AT$4,"<="&'PAINEL DE CONTROLE'!$D$6),0) -> 0 | X46: =IF(AND(X$4>=$B46,X$4<='PAINEL DE CONTROLE'!$D$6),$C46/COUNTIFS($L$4:$AT$4,">="&$B46,$L$4:$AT$4,"<="&'PAINEL DE CONTROLE'!$D$6),0) -> 0 | Y46: =IF(AND(Y$4>=$B46,Y$4<='PAINEL DE CONTROLE'!$D$6),$C46/COUNTIFS($L$4:$AT$4,">="&$B46,$L$4:$AT$4,"<="&'PAINEL DE CONTROLE'!$D$6),0) -> 0 | Z46: =IF(AND(Z$4>=$B46,Z$4<='PAINEL DE CONTROLE'!$D$6),$C46/COUNTIFS($L$4:$AT$4,">="&$B46,$L$4:$AT$4,"<="&'PAINEL DE CONTROLE'!$D$6),0) -> 0 | AA46: =IF(AND(AA$4>=$B46,AA$4<='PAINEL DE CONTROLE'!$D$6),$C46/COUNTIFS($L$4:$AT$4,">="&$B46,$L$4:$AT$4,"<="&'PAINEL DE CONTROLE'!$D$6),0) -> 0 | AB46: =IF(AND(AB$4>=$B46,AB$4<='PAINEL DE CONTROLE'!$D$6),$C46/COUNTIFS($L$4:$AT$4,">="&$B46,$L$4:$AT$4,"<="&'PAINEL DE CONTROLE'!$D$6),0) -> 0 | AC46: =IF(AND(AC$4>=$B46,AC$4<='PAINEL DE CONTROLE'!$D$6),$C46/COUNTIFS($L$4:$AT$4,">="&$B46,$L$4:$AT$4,"<="&'PAINEL DE CONTROLE'!$D$6),0) -> 0 | AD46: =IF(AND(AD$4>=$B46,AD$4<='PAINEL DE CONTROLE'!$D$6),$C46/COUNTIFS($L$4:$AT$4,">="&$B46,$L$4:$AT$4,"<="&'PAINEL DE CONTROLE'!$D$6),0) -> 0 | AE46: =IF(AND(AE$4>=$B46,AE$4<='PAINEL DE CONTROLE'!$D$6),$C46/COUNTIFS($L$4:$AT$4,">="&$B46,$L$4:$AT$4,"<="&'PAINEL DE CONTROLE'!$D$6),0) -> 0 | AF46: =IF(AND(AF$4>=$B46,AF$4<='PAINEL DE CONTROLE'!$D$6),$C46/COUNTIFS($L$4:$AT$4,">="&$B46,$L$4:$AT$4,"<="&'PAINEL DE CONTROLE'!$D$6),0) -> 0 | AG46: =IF(AND(AG$4>=$B46,AG$4<='PAINEL DE CONTROLE'!$D$6),$C46/COUNTIFS($L$4:$AT$4,">="&$B46,$L$4:$AT$4,"<="&'PAINEL DE CONTROLE'!$D$6),0) -> 0 | AH46: =IF(AND(AH$4>=$B46,AH$4<='PAINEL DE CONTROLE'!$D$6),$C46/COUNTIFS($L$4:$AT$4,">="&$B46,$L$4:$AT$4,"<="&'PAINEL DE CONTROLE'!$D$6),0) -> 0 | AI46: =IF(AND(AI$4>=$B46,AI$4<='PAINEL DE CONTROLE'!$D$6),$C46/COUNTIFS($L$4:$AT$4,">="&$B46,$L$4:$AT$4,"<="&'PAINEL DE CONTROLE'!$D$6),0) -> 0 | AJ46: =IF(AND(AJ$4>=$B46,AJ$4<='PAINEL DE CONTROLE'!$D$6),$C46/COUNTIFS($L$4:$AT$4,">="&$B46,$L$4:$AT$4,"<="&'PAINEL DE CONTROLE'!$D$6),0) -> 0 | AK46: =IF(AND(AK$4>=$B46,AK$4<='PAINEL DE CONTROLE'!$D$6),$C46/COUNTIFS($L$4:$AT$4,">="&$B46,$L$4:$AT$4,"<="&'PAINEL DE CONTROLE'!$D$6),0) -> 0 | AL46: =IF(AND(AL$4>=$B46,AL$4<='PAINEL DE CONTROLE'!$D$6),$C46/COUNTIFS($L$4:$AT$4,">="&$B46,$L$4:$AT$4,"<="&'PAINEL DE CONTROLE'!$D$6),0) -> 0 | AM46: =IF(AND(AM$4>=$B46,AM$4<='PAINEL DE CONTROLE'!$D$6),$C46/COUNTIFS($L$4:$AT$4,">="&$B46,$L$4:$AT$4,"<="&'PAINEL DE CONTROLE'!$D$6),0) -> 0 | AN46: =IF(AND(AN$4>=$B46,AN$4<='PAINEL DE CONTROLE'!$D$6),$C46/COUNTIFS($L$4:$AT$4,">="&$B46,$L$4:$AT$4,"<="&'PAINEL DE CONTROLE'!$D$6),0) -> 0 | AO46: =IF(AND(AO$4>=$B46,AO$4<='PAINEL DE CONTROLE'!$D$6),$C46/COUNTIFS($L$4:$AT$4,">="&$B46,$L$4:$AT$4,"<="&'PAINEL DE CONTROLE'!$D$6),0) -> 0 | AP46: =IF(AND(AP$4>=$B46,AP$4<='PAINEL DE CONTROLE'!$D$6),$C46/COUNTIFS($L$4:$AT$4,">="&$B46,$L$4:$AT$4,"<="&'PAINEL DE CONTROLE'!$D$6),0) -> 0 | AQ46: =IF(AND(AQ$4>=$B46,AQ$4<='PAINEL DE CONTROLE'!$D$6),$C46/COUNTIFS($L$4:$AT$4,">="&$B46,$L$4:$AT$4,"<="&'PAINEL DE CONTROLE'!$D$6),0) -> 0 | AR46: =IF(AND(AR$4>=$B46,AR$4<='PAINEL DE CONTROLE'!$D$6),$C46/COUNTIFS($L$4:$AT$4,">="&$B46,$L$4:$AT$4,"<="&'PAINEL DE CONTROLE'!$D$6),0) -> 0 | AS46: =IF(AND(AS$4>=$B46,AS$4<='PAINEL DE CONTROLE'!$D$6),$C46/COUNTIFS($L$4:$AT$4,">="&$B46,$L$4:$AT$4,"<="&'PAINEL DE CONTROLE'!$D$6),0) -> 0 | AT46: =IF(AND(AT$4>=$B46,AT$4<='PAINEL DE CONTROLE'!$D$6),$C46/COUNTIFS($L$4:$AT$4,">="&$B46,$L$4:$AT$4,"<="&'PAINEL DE CONTROLE'!$D$6),0) -> 0 | AU46: =IF(AND(AU$4>=$B46,AU$4<='PAINEL DE CONTROLE'!$D$6),$C46/COUNTIFS($L$4:$AT$4,">="&$B46,$L$4:$AT$4,"<="&'PAINEL DE CONTROLE'!$D$6),0) -> 0
B47: 6 | C47: 0 | M47: =IF(AND(M$4>=$B47,M$4<='PAINEL DE CONTROLE'!$D$6),$C47/COUNTIFS($L$4:$AT$4,">="&$B47,$L$4:$AT$4,"<="&'PAINEL DE CONTROLE'!$D$6),0) -> 0 | N47: =IF(AND(N$4>=$B47,N$4<='PAINEL DE CONTROLE'!$D$6),$C47/COUNTIFS($L$4:$AT$4,">="&$B47,$L$4:$AT$4,"<="&'PAINEL DE CONTROLE'!$D$6),0) -> 0 | O47: =IF(AND(O$4>=$B47,O$4<='PAINEL DE CONTROLE'!$D$6),$C47/COUNTIFS($L$4:$AT$4,">="&$B47,$L$4:$AT$4,"<="&'PAINEL DE CONTROLE'!$D$6),0) -> 0 | P47: =IF(AND(P$4>=$B47,P$4<='PAINEL DE CONTROLE'!$D$6),$C47/COUNTIFS($L$4:$AT$4,">="&$B47,$L$4:$AT$4,"<="&'PAINEL DE CONTROLE'!$D$6),0) -> 0 | Q47: =IF(AND(Q$4>=$B47,Q$4<='PAINEL DE CONTROLE'!$D$6),$C47/COUNTIFS($L$4:$AT$4,">="&$B47,$L$4:$AT$4,"<="&'PAINEL DE CONTROLE'!$D$6),0) -> 0 | R47: =IF(AND(R$4>=$B47,R$4<='PAINEL DE CONTROLE'!$D$6),$C47/COUNTIFS($L$4:$AT$4,">="&$B47,$L$4:$AT$4,"<="&'PAINEL DE CONTROLE'!$D$6),0) -> 0 | S47: =IF(AND(S$4>=$B47,S$4<='PAINEL DE CONTROLE'!$D$6),$C47/COUNTIFS($L$4:$AT$4,">="&$B47,$L$4:$AT$4,"<="&'PAINEL DE CONTROLE'!$D$6),0) -> 0 | T47: =IF(AND(T$4>=$B47,T$4<='PAINEL DE CONTROLE'!$D$6),$C47/COUNTIFS($L$4:$AT$4,">="&$B47,$L$4:$AT$4,"<="&'PAINEL DE CONTROLE'!$D$6),0) -> 0 | U47: =IF(AND(U$4>=$B47,U$4<='PAINEL DE CONTROLE'!$D$6),$C47/COUNTIFS($L$4:$AT$4,">="&$B47,$L$4:$AT$4,"<="&'PAINEL DE CONTROLE'!$D$6),0) -> 0 | V47: =IF(AND(V$4>=$B47,V$4<='PAINEL DE CONTROLE'!$D$6),$C47/COUNTIFS($L$4:$AT$4,">="&$B47,$L$4:$AT$4,"<="&'PAINEL DE CONTROLE'!$D$6),0) -> 0 | W47: =IF(AND(W$4>=$B47,W$4<='PAINEL DE CONTROLE'!$D$6),$C47/COUNTIFS($L$4:$AT$4,">="&$B47,$L$4:$AT$4,"<="&'PAINEL DE CONTROLE'!$D$6),0) -> 0 | X47: =IF(AND(X$4>=$B47,X$4<='PAINEL DE CONTROLE'!$D$6),$C47/COUNTIFS($L$4:$AT$4,">="&$B47,$L$4:$AT$4,"<="&'PAINEL DE CONTROLE'!$D$6),0) -> 0 | Y47: =IF(AND(Y$4>=$B47,Y$4<='PAINEL DE CONTROLE'!$D$6),$C47/COUNTIFS($L$4:$AT$4,">="&$B47,$L$4:$AT$4,"<="&'PAINEL DE CONTROLE'!$D$6),0) -> 0 | Z47: =IF(AND(Z$4>=$B47,Z$4<='PAINEL DE CONTROLE'!$D$6),$C47/COUNTIFS($L$4:$AT$4,">="&$B47,$L$4:$AT$4,"<="&'PAINEL DE CONTROLE'!$D$6),0) -> 0 | AA47: =IF(AND(AA$4>=$B47,AA$4<='PAINEL DE CONTROLE'!$D$6),$C47/COUNTIFS($L$4:$AT$4,">="&$B47,$L$4:$AT$4,"<="&'PAINEL DE CONTROLE'!$D$6),0) -> 0 | AB47: =IF(AND(AB$4>=$B47,AB$4<='PAINEL DE CONTROLE'!$D$6),$C47/COUNTIFS($L$4:$AT$4,">="&$B47,$L$4:$AT$4,"<="&'PAINEL DE CONTROLE'!$D$6),0) -> 0 | AC47: =IF(AND(AC$4>=$B47,AC$4<='PAINEL DE CONTROLE'!$D$6),$C47/COUNTIFS($L$4:$AT$4,">="&$B47,$L$4:$AT$4,"<="&'PAINEL DE CONTROLE'!$D$6),0) -> 0 | AD47: =IF(AND(AD$4>=$B47,AD$4<='PAINEL DE CONTROLE'!$D$6),$C47/COUNTIFS($L$4:$AT$4,">="&$B47,$L$4:$AT$4,"<="&'PAINEL DE CONTROLE'!$D$6),0) -> 0 | AE47: =IF(AND(AE$4>=$B47,AE$4<='PAINEL DE CONTROLE'!$D$6),$C47/COUNTIFS($L$4:$AT$4,">="&$B47,$L$4:$AT$4,"<="&'PAINEL DE CONTROLE'!$D$6),0) -> 0 | AF47: =IF(AND(AF$4>=$B47,AF$4<='PAINEL DE CONTROLE'!$D$6),$C47/COUNTIFS($L$4:$AT$4,">="&$B47,$L$4:$AT$4,"<="&'PAINEL DE CONTROLE'!$D$6),0) -> 0 | AG47: =IF(AND(AG$4>=$B47,AG$4<='PAINEL DE CONTROLE'!$D$6),$C47/COUNTIFS($L$4:$AT$4,">="&$B47,$L$4:$AT$4,"<="&'PAINEL DE CONTROLE'!$D$6),0) -> 0 | AH47: =IF(AND(AH$4>=$B47,AH$4<='PAINEL DE CONTROLE'!$D$6),$C47/COUNTIFS($L$4:$AT$4,">="&$B47,$L$4:$AT$4,"<="&'PAINEL DE CONTROLE'!$D$6),0) -> 0 | AI47: =IF(AND(AI$4>=$B47,AI$4<='PAINEL DE CONTROLE'!$D$6),$C47/COUNTIFS($L$4:$AT$4,">="&$B47,$L$4:$AT$4,"<="&'PAINEL DE CONTROLE'!$D$6),0) -> 0 | AJ47: =IF(AND(AJ$4>=$B47,AJ$4<='PAINEL DE CONTROLE'!$D$6),$C47/COUNTIFS($L$4:$AT$4,">="&$B47,$L$4:$AT$4,"<="&'PAINEL DE CONTROLE'!$D$6),0) -> 0 | AK47: =IF(AND(AK$4>=$B47,AK$4<='PAINEL DE CONTROLE'!$D$6),$C47/COUNTIFS($L$4:$AT$4,">="&$B47,$L$4:$AT$4,"<="&'PAINEL DE CONTROLE'!$D$6),0) -> 0 | AL47: =IF(AND(AL$4>=$B47,AL$4<='PAINEL DE CONTROLE'!$D$6),$C47/COUNTIFS($L$4:$AT$4,">="&$B47,$L$4:$AT$4,"<="&'PAINEL DE CONTROLE'!$D$6),0) -> 0 | AM47: =IF(AND(AM$4>=$B47,AM$4<='PAINEL DE CONTROLE'!$D$6),$C47/COUNTIFS($L$4:$AT$4,">="&$B47,$L$4:$AT$4,"<="&'PAINEL DE CONTROLE'!$D$6),0) -> 0 | AN47: =IF(AND(AN$4>=$B47,AN$4<='PAINEL DE CONTROLE'!$D$6),$C47/COUNTIFS($L$4:$AT$4,">="&$B47,$L$4:$AT$4,"<="&'PAINEL DE CONTROLE'!$D$6),0) -> 0 | AO47: =IF(AND(AO$4>=$B47,AO$4<='PAINEL DE CONTROLE'!$D$6),$C47/COUNTIFS($L$4:$AT$4,">="&$B47,$L$4:$AT$4,"<="&'PAINEL DE CONTROLE'!$D$6),0) -> 0 | AP47: =IF(AND(AP$4>=$B47,AP$4<='PAINEL DE CONTROLE'!$D$6),$C47/COUNTIFS($L$4:$AT$4,">="&$B47,$L$4:$AT$4,"<="&'PAINEL DE CONTROLE'!$D$6),0) -> 0 | AQ47: =IF(AND(AQ$4>=$B47,AQ$4<='PAINEL DE CONTROLE'!$D$6),$C47/COUNTIFS($L$4:$AT$4,">="&$B47,$L$4:$AT$4,"<="&'PAINEL DE CONTROLE'!$D$6),0) -> 0 | AR47: =IF(AND(AR$4>=$B47,AR$4<='PAINEL DE CONTROLE'!$D$6),$C47/COUNTIFS($L$4:$AT$4,">="&$B47,$L$4:$AT$4,"<="&'PAINEL DE CONTROLE'!$D$6),0) -> 0 | AS47: =IF(AND(AS$4>=$B47,AS$4<='PAINEL DE CONTROLE'!$D$6),$C47/COUNTIFS($L$4:$AT$4,">="&$B47,$L$4:$AT$4,"<="&'PAINEL DE CONTROLE'!$D$6),0) -> 0 | AT47: =IF(AND(AT$4>=$B47,AT$4<='PAINEL DE CONTROLE'!$D$6),$C47/COUNTIFS($L$4:$AT$4,">="&$B47,$L$4:$AT$4,"<="&'PAINEL DE CONTROLE'!$D$6),0) -> 0 | AU47: =IF(AND(AU$4>=$B47,AU$4<='PAINEL DE CONTROLE'!$D$6),$C47/COUNTIFS($L$4:$AT$4,">="&$B47,$L$4:$AT$4,"<="&'PAINEL DE CONTROLE'!$D$6),0) -> 0
B48: 7 | C48: 0 | M48: =IF(AND(M$4>=$B48,M$4<='PAINEL DE CONTROLE'!$D$6),$C48/COUNTIFS($L$4:$AT$4,">="&$B48,$L$4:$AT$4,"<="&'PAINEL DE CONTROLE'!$D$6),0) -> 0 | N48: =IF(AND(N$4>=$B48,N$4<='PAINEL DE CONTROLE'!$D$6),$C48/COUNTIFS($L$4:$AT$4,">="&$B48,$L$4:$AT$4,"<="&'PAINEL DE CONTROLE'!$D$6),0) -> 0 | O48: =IF(AND(O$4>=$B48,O$4<='PAINEL DE CONTROLE'!$D$6),$C48/COUNTIFS($L$4:$AT$4,">="&$B48,$L$4:$AT$4,"<="&'PAINEL DE CONTROLE'!$D$6),0) -> 0 | P48: =IF(AND(P$4>=$B48,P$4<='PAINEL DE CONTROLE'!$D$6),$C48/COUNTIFS($L$4:$AT$4,">="&$B48,$L$4:$AT$4,"<="&'PAINEL DE CONTROLE'!$D$6),0) -> 0 | Q48: =IF(AND(Q$4>=$B48,Q$4<='PAINEL DE CONTROLE'!$D$6),$C48/COUNTIFS($L$4:$AT$4,">="&$B48,$L$4:$AT$4,"<="&'PAINEL DE CONTROLE'!$D$6),0) -> 0 | R48: =IF(AND(R$4>=$B48,R$4<='PAINEL DE CONTROLE'!$D$6),$C48/COUNTIFS($L$4:$AT$4,">="&$B48,$L$4:$AT$4,"<="&'PAINEL DE CONTROLE'!$D$6),0) -> 0 | S48: =IF(AND(S$4>=$B48,S$4<='PAINEL DE CONTROLE'!$D$6),$C48/COUNTIFS($L$4:$AT$4,">="&$B48,$L$4:$AT$4,"<="&'PAINEL DE CONTROLE'!$D$6),0) -> 0 | T48: =IF(AND(T$4>=$B48,T$4<='PAINEL DE CONTROLE'!$D$6),$C48/COUNTIFS($L$4:$AT$4,">="&$B48,$L$4:$AT$4,"<="&'PAINEL DE CONTROLE'!$D$6),0) -> 0 | U48: =IF(AND(U$4>=$B48,U$4<='PAINEL DE CONTROLE'!$D$6),$C48/COUNTIFS($L$4:$AT$4,">="&$B48,$L$4:$AT$4,"<="&'PAINEL DE CONTROLE'!$D$6),0) -> 0 | V48: =IF(AND(V$4>=$B48,V$4<='PAINEL DE CONTROLE'!$D$6),$C48/COUNTIFS($L$4:$AT$4,">="&$B48,$L$4:$AT$4,"<="&'PAINEL DE CONTROLE'!$D$6),0) -> 0 | W48: =IF(AND(W$4>=$B48,W$4<='PAINEL DE CONTROLE'!$D$6),$C48/COUNTIFS($L$4:$AT$4,">="&$B48,$L$4:$AT$4,"<="&'PAINEL DE CONTROLE'!$D$6),0) -> 0 | X48: =IF(AND(X$4>=$B48,X$4<='PAINEL DE CONTROLE'!$D$6),$C48/COUNTIFS($L$4:$AT$4,">="&$B48,$L$4:$AT$4,"<="&'PAINEL DE CONTROLE'!$D$6),0) -> 0 | Y48: =IF(AND(Y$4>=$B48,Y$4<='PAINEL DE CONTROLE'!$D$6),$C48/COUNTIFS($L$4:$AT$4,">="&$B48,$L$4:$AT$4,"<="&'PAINEL DE CONTROLE'!$D$6),0) -> 0 | Z48: =IF(AND(Z$4>=$B48,Z$4<='PAINEL DE CONTROLE'!$D$6),$C48/COUNTIFS($L$4:$AT$4,">="&$B48,$L$4:$AT$4,"<="&'PAINEL DE CONTROLE'!$D$6),0) -> 0 | AA48: =IF(AND(AA$4>=$B48,AA$4<='PAINEL DE CONTROLE'!$D$6),$C48/COUNTIFS($L$4:$AT$4,">="&$B48,$L$4:$AT$4,"<="&'PAINEL DE CONTROLE'!$D$6),0) -> 0 | AB48: =IF(AND(AB$4>=$B48,AB$4<='PAINEL DE CONTROLE'!$D$6),$C48/COUNTIFS($L$4:$AT$4,">="&$B48,$L$4:$AT$4,"<="&'PAINEL DE CONTROLE'!$D$6),0) -> 0 | AC48: =IF(AND(AC$4>=$B48,AC$4<='PAINEL DE CONTROLE'!$D$6),$C48/COUNTIFS($L$4:$AT$4,">="&$B48,$L$4:$AT$4,"<="&'PAINEL DE CONTROLE'!$D$6),0) -> 0 | AD48: =IF(AND(AD$4>=$B48,AD$4<='PAINEL DE CONTROLE'!$D$6),$C48/COUNTIFS($L$4:$AT$4,">="&$B48,$L$4:$AT$4,"<="&'PAINEL DE CONTROLE'!$D$6),0) -> 0 | AE48: =IF(AND(AE$4>=$B48,AE$4<='PAINEL DE CONTROLE'!$D$6),$C48/COUNTIFS($L$4:$AT$4,">="&$B48,$L$4:$AT$4,"<="&'PAINEL DE CONTROLE'!$D$6),0) -> 0 | AF48: =IF(AND(AF$4>=$B48,AF$4<='PAINEL DE CONTROLE'!$D$6),$C48/COUNTIFS($L$4:$AT$4,">="&$B48,$L$4:$AT$4,"<="&'PAINEL DE CONTROLE'!$D$6),0) -> 0 | AG48: =IF(AND(AG$4>=$B48,AG$4<='PAINEL DE CONTROLE'!$D$6),$C48/COUNTIFS($L$4:$AT$4,">="&$B48,$L$4:$AT$4,"<="&'PAINEL DE CONTROLE'!$D$6),0) -> 0 | AH48: =IF(AND(AH$4>=$B48,AH$4<='PAINEL DE CONTROLE'!$D$6),$C48/COUNTIFS($L$4:$AT$4,">="&$B48,$L$4:$AT$4,"<="&'PAINEL DE CONTROLE'!$D$6),0) -> 0 | AI48: =IF(AND(AI$4>=$B48,AI$4<='PAINEL DE CONTROLE'!$D$6),$C48/COUNTIFS($L$4:$AT$4,">="&$B48,$L$4:$AT$4,"<="&'PAINEL DE CONTROLE'!$D$6),0) -> 0 | AJ48: =IF(AND(AJ$4>=$B48,AJ$4<='PAINEL DE CONTROLE'!$D$6),$C48/COUNTIFS($L$4:$AT$4,">="&$B48,$L$4:$AT$4,"<="&'PAINEL DE CONTROLE'!$D$6),0) -> 0 | AK48: =IF(AND(AK$4>=$B48,AK$4<='PAINEL DE CONTROLE'!$D$6),$C48/COUNTIFS($L$4:$AT$4,">="&$B48,$L$4:$AT$4,"<="&'PAINEL DE CONTROLE'!$D$6),0) -> 0 | AL48: =IF(AND(AL$4>=$B48,AL$4<='PAINEL DE CONTROLE'!$D$6),$C48/COUNTIFS($L$4:$AT$4,">="&$B48,$L$4:$AT$4,"<="&'PAINEL DE CONTROLE'!$D$6),0) -> 0 | AM48: =IF(AND(AM$4>=$B48,AM$4<='PAINEL DE CONTROLE'!$D$6),$C48/COUNTIFS($L$4:$AT$4,">="&$B48,$L$4:$AT$4,"<="&'PAINEL DE CONTROLE'!$D$6),0) -> 0 | AN48: =IF(AND(AN$4>=$B48,AN$4<='PAINEL DE CONTROLE'!$D$6),$C48/COUNTIFS($L$4:$AT$4,">="&$B48,$L$4:$AT$4,"<="&'PAINEL DE CONTROLE'!$D$6),0) -> 0 | AO48: =IF(AND(AO$4>=$B48,AO$4<='PAINEL DE CONTROLE'!$D$6),$C48/COUNTIFS($L$4:$AT$4,">="&$B48,$L$4:$AT$4,"<="&'PAINEL DE CONTROLE'!$D$6),0) -> 0 | AP48: =IF(AND(AP$4>=$B48,AP$4<='PAINEL DE CONTROLE'!$D$6),$C48/COUNTIFS($L$4:$AT$4,">="&$B48,$L$4:$AT$4,"<="&'PAINEL DE CONTROLE'!$D$6),0) -> 0 | AQ48: =IF(AND(AQ$4>=$B48,AQ$4<='PAINEL DE CONTROLE'!$D$6),$C48/COUNTIFS($L$4:$AT$4,">="&$B48,$L$4:$AT$4,"<="&'PAINEL DE CONTROLE'!$D$6),0) -> 0 | AR48: =IF(AND(AR$4>=$B48,AR$4<='PAINEL DE CONTROLE'!$D$6),$C48/COUNTIFS($L$4:$AT$4,">="&$B48,$L$4:$AT$4,"<="&'PAINEL DE CONTROLE'!$D$6),0) -> 0 | AS48: =IF(AND(AS$4>=$B48,AS$4<='PAINEL DE CONTROLE'!$D$6),$C48/COUNTIFS($L$4:$AT$4,">="&$B48,$L$4:$AT$4,"<="&'PAINEL DE CONTROLE'!$D$6),0) -> 0 | AT48: =IF(AND(AT$4>=$B48,AT$4<='PAINEL DE CONTROLE'!$D$6),$C48/COUNTIFS($L$4:$AT$4,">="&$B48,$L$4:$AT$4,"<="&'PAINEL DE CONTROLE'!$D$6),0) -> 0 | AU48: =IF(AND(AU$4>=$B48,AU$4<='PAINEL DE CONTROLE'!$D$6),$C48/COUNTIFS($L$4:$AT$4,">="&$B48,$L$4:$AT$4,"<="&'PAINEL DE CONTROLE'!$D$6),0) -> 0
B49: 8 | C49: 0 | M49: =IF(AND(M$4>=$B49,M$4<='PAINEL DE CONTROLE'!$D$6),$C49/COUNTIFS($L$4:$AT$4,">="&$B49,$L$4:$AT$4,"<="&'PAINEL DE CONTROLE'!$D$6),0) -> 0 | N49: =IF(AND(N$4>=$B49,N$4<='PAINEL DE CONTROLE'!$D$6),$C49/COUNTIFS($L$4:$AT$4,">="&$B49,$L$4:$AT$4,"<="&'PAINEL DE CONTROLE'!$D$6),0) -> 0 | O49: =IF(AND(O$4>=$B49,O$4<='PAINEL DE CONTROLE'!$D$6),$C49/COUNTIFS($L$4:$AT$4,">="&$B49,$L$4:$AT$4,"<="&'PAINEL DE CONTROLE'!$D$6),0) -> 0 | P49: =IF(AND(P$4>=$B49,P$4<='PAINEL DE CONTROLE'!$D$6),$C49/COUNTIFS($L$4:$AT$4,">="&$B49,$L$4:$AT$4,"<="&'PAINEL DE CONTROLE'!$D$6),0) -> 0 | Q49: =IF(AND(Q$4>=$B49,Q$4<='PAINEL DE CONTROLE'!$D$6),$C49/COUNTIFS($L$4:$AT$4,">="&$B49,$L$4:$AT$4,"<="&'PAINEL DE CONTROLE'!$D$6),0) -> 0 | R49: =IF(AND(R$4>=$B49,R$4<='PAINEL DE CONTROLE'!$D$6),$C49/COUNTIFS($L$4:$AT$4,">="&$B49,$L$4:$AT$4,"<="&'PAINEL DE CONTROLE'!$D$6),0) -> 0 | S49: =IF(AND(S$4>=$B49,S$4<='PAINEL DE CONTROLE'!$D$6),$C49/COUNTIFS($L$4:$AT$4,">="&$B49,$L$4:$AT$4,"<="&'PAINEL DE CONTROLE'!$D$6),0) -> 0 | T49: =IF(AND(T$4>=$B49,T$4<='PAINEL DE CONTROLE'!$D$6),$C49/COUNTIFS($L$4:$AT$4,">="&$B49,$L$4:$AT$4,"<="&'PAINEL DE CONTROLE'!$D$6),0) -> 0 | U49: =IF(AND(U$4>=$B49,U$4<='PAINEL DE CONTROLE'!$D$6),$C49/COUNTIFS($L$4:$AT$4,">="&$B49,$L$4:$AT$4,"<="&'PAINEL DE CONTROLE'!$D$6),0) -> 0 | V49: =IF(AND(V$4>=$B49,V$4<='PAINEL DE CONTROLE'!$D$6),$C49/COUNTIFS($L$4:$AT$4,">="&$B49,$L$4:$AT$4,"<="&'PAINEL DE CONTROLE'!$D$6),0) -> 0 | W49: =IF(AND(W$4>=$B49,W$4<='PAINEL DE CONTROLE'!$D$6),$C49/COUNTIFS($L$4:$AT$4,">="&$B49,$L$4:$AT$4,"<="&'PAINEL DE CONTROLE'!$D$6),0) -> 0 | X49: =IF(AND(X$4>=$B49,X$4<='PAINEL DE CONTROLE'!$D$6),$C49/COUNTIFS($L$4:$AT$4,">="&$B49,$L$4:$AT$4,"<="&'PAINEL DE CONTROLE'!$D$6),0) -> 0 | Y49: =IF(AND(Y$4>=$B49,Y$4<='PAINEL DE CONTROLE'!$D$6),$C49/COUNTIFS($L$4:$AT$4,">="&$B49,$L$4:$AT$4,"<="&'PAINEL DE CONTROLE'!$D$6),0) -> 0 | Z49: =IF(AND(Z$4>=$B49,Z$4<='PAINEL DE CONTROLE'!$D$6),$C49/COUNTIFS($L$4:$AT$4,">="&$B49,$L$4:$AT$4,"<="&'PAINEL DE CONTROLE'!$D$6),0) -> 0 | AA49: =IF(AND(AA$4>=$B49,AA$4<='PAINEL DE CONTROLE'!$D$6),$C49/COUNTIFS($L$4:$AT$4,">="&$B49,$L$4:$AT$4,"<="&'PAINEL DE CONTROLE'!$D$6),0) -> 0 | AB49: =IF(AND(AB$4>=$B49,AB$4<='PAINEL DE CONTROLE'!$D$6),$C49/COUNTIFS($L$4:$AT$4,">="&$B49,$L$4:$AT$4,"<="&'PAINEL DE CONTROLE'!$D$6),0) -> 0 | AC49: =IF(AND(AC$4>=$B49,AC$4<='PAINEL DE CONTROLE'!$D$6),$C49/COUNTIFS($L$4:$AT$4,">="&$B49,$L$4:$AT$4,"<="&'PAINEL DE CONTROLE'!$D$6),0) -> 0 | AD49: =IF(AND(AD$4>=$B49,AD$4<='PAINEL DE CONTROLE'!$D$6),$C49/COUNTIFS($L$4:$AT$4,">="&$B49,$L$4:$AT$4,"<="&'PAINEL DE CONTROLE'!$D$6),0) -> 0 | AE49: =IF(AND(AE$4>=$B49,AE$4<='PAINEL DE CONTROLE'!$D$6),$C49/COUNTIFS($L$4:$AT$4,">="&$B49,$L$4:$AT$4,"<="&'PAINEL DE CONTROLE'!$D$6),0) -> 0 | AF49: =IF(AND(AF$4>=$B49,AF$4<='PAINEL DE CONTROLE'!$D$6),$C49/COUNTIFS($L$4:$AT$4,">="&$B49,$L$4:$AT$4,"<="&'PAINEL DE CONTROLE'!$D$6),0) -> 0 | AG49: =IF(AND(AG$4>=$B49,AG$4<='PAINEL DE CONTROLE'!$D$6),$C49/COUNTIFS($L$4:$AT$4,">="&$B49,$L$4:$AT$4,"<="&'PAINEL DE CONTROLE'!$D$6),0) -> 0 | AH49: =IF(AND(AH$4>=$B49,AH$4<='PAINEL DE CONTROLE'!$D$6),$C49/COUNTIFS($L$4:$AT$4,">="&$B49,$L$4:$AT$4,"<="&'PAINEL DE CONTROLE'!$D$6),0) -> 0 | AI49: =IF(AND(AI$4>=$B49,AI$4<='PAINEL DE CONTROLE'!$D$6),$C49/COUNTIFS($L$4:$AT$4,">="&$B49,$L$4:$AT$4,"<="&'PAINEL DE CONTROLE'!$D$6),0) -> 0 | AJ49: =IF(AND(AJ$4>=$B49,AJ$4<='PAINEL DE CONTROLE'!$D$6),$C49/COUNTIFS($L$4:$AT$4,">="&$B49,$L$4:$AT$4,"<="&'PAINEL DE CONTROLE'!$D$6),0) -> 0 | AK49: =IF(AND(AK$4>=$B49,AK$4<='PAINEL DE CONTROLE'!$D$6),$C49/COUNTIFS($L$4:$AT$4,">="&$B49,$L$4:$AT$4,"<="&'PAINEL DE CONTROLE'!$D$6),0) -> 0 | AL49: =IF(AND(AL$4>=$B49,AL$4<='PAINEL DE CONTROLE'!$D$6),$C49/COUNTIFS($L$4:$AT$4,">="&$B49,$L$4:$AT$4,"<="&'PAINEL DE CONTROLE'!$D$6),0) -> 0 | AM49: =IF(AND(AM$4>=$B49,AM$4<='PAINEL DE CONTROLE'!$D$6),$C49/COUNTIFS($L$4:$AT$4,">="&$B49,$L$4:$AT$4,"<="&'PAINEL DE CONTROLE'!$D$6),0) -> 0 | AN49: =IF(AND(AN$4>=$B49,AN$4<='PAINEL DE CONTROLE'!$D$6),$C49/COUNTIFS($L$4:$AT$4,">="&$B49,$L$4:$AT$4,"<="&'PAINEL DE CONTROLE'!$D$6),0) -> 0 | AO49: =IF(AND(AO$4>=$B49,AO$4<='PAINEL DE CONTROLE'!$D$6),$C49/COUNTIFS($L$4:$AT$4,">="&$B49,$L$4:$AT$4,"<="&'PAINEL DE CONTROLE'!$D$6),0) -> 0 | AP49: =IF(AND(AP$4>=$B49,AP$4<='PAINEL DE CONTROLE'!$D$6),$C49/COUNTIFS($L$4:$AT$4,">="&$B49,$L$4:$AT$4,"<="&'PAINEL DE CONTROLE'!$D$6),0) -> 0 | AQ49: =IF(AND(AQ$4>=$B49,AQ$4<='PAINEL DE CONTROLE'!$D$6),$C49/COUNTIFS($L$4:$AT$4,">="&$B49,$L$4:$AT$4,"<="&'PAINEL DE CONTROLE'!$D$6),0) -> 0 | AR49: =IF(AND(AR$4>=$B49,AR$4<='PAINEL DE CONTROLE'!$D$6),$C49/COUNTIFS($L$4:$AT$4,">="&$B49,$L$4:$AT$4,"<="&'PAINEL DE CONTROLE'!$D$6),0) -> 0 | AS49: =IF(AND(AS$4>=$B49,AS$4<='PAINEL DE CONTROLE'!$D$6),$C49/COUNTIFS($L$4:$AT$4,">="&$B49,$L$4:$AT$4,"<="&'PAINEL DE CONTROLE'!$D$6),0) -> 0 | AT49: =IF(AND(AT$4>=$B49,AT$4<='PAINEL DE CONTROLE'!$D$6),$C49/COUNTIFS($L$4:$AT$4,">="&$B49,$L$4:$AT$4,"<="&'PAINEL DE CONTROLE'!$D$6),0) -> 0 | AU49: =IF(AND(AU$4>=$B49,AU$4<='PAINEL DE CONTROLE'!$D$6),$C49/COUNTIFS($L$4:$AT$4,">="&$B49,$L$4:$AT$4,"<="&'PAINEL DE CONTROLE'!$D$6),0) -> 0
B50: 9 | C50: 0 | M50: =IF(AND(M$4>=$B50,M$4<='PAINEL DE CONTROLE'!$D$6),$C50/COUNTIFS($L$4:$AT$4,">="&$B50,$L$4:$AT$4,"<="&'PAINEL DE CONTROLE'!$D$6),0) -> 0 | N50: =IF(AND(N$4>=$B50,N$4<='PAINEL DE CONTROLE'!$D$6),$C50/COUNTIFS($L$4:$AT$4,">="&$B50,$L$4:$AT$4,"<="&'PAINEL DE CONTROLE'!$D$6),0) -> 0 | O50: =IF(AND(O$4>=$B50,O$4<='PAINEL DE CONTROLE'!$D$6),$C50/COUNTIFS($L$4:$AT$4,">="&$B50,$L$4:$AT$4,"<="&'PAINEL DE CONTROLE'!$D$6),0) -> 0 | P50: =IF(AND(P$4>=$B50,P$4<='PAINEL DE CONTROLE'!$D$6),$C50/COUNTIFS($L$4:$AT$4,">="&$B50,$L$4:$AT$4,"<="&'PAINEL DE CONTROLE'!$D$6),0) -> 0 | Q50: =IF(AND(Q$4>=$B50,Q$4<='PAINEL DE CONTROLE'!$D$6),$C50/COUNTIFS($L$4:$AT$4,">="&$B50,$L$4:$AT$4,"<="&'PAINEL DE CONTROLE'!$D$6),0) -> 0 | R50: =IF(AND(R$4>=$B50,R$4<='PAINEL DE CONTROLE'!$D$6),$C50/COUNTIFS($L$4:$AT$4,">="&$B50,$L$4:$AT$4,"<="&'PAINEL DE CONTROLE'!$D$6),0) -> 0 | S50: =IF(AND(S$4>=$B50,S$4<='PAINEL DE CONTROLE'!$D$6),$C50/COUNTIFS($L$4:$AT$4,">="&$B50,$L$4:$AT$4,"<="&'PAINEL DE CONTROLE'!$D$6),0) -> 0 | T50: =IF(AND(T$4>=$B50,T$4<='PAINEL DE CONTROLE'!$D$6),$C50/COUNTIFS($L$4:$AT$4,">="&$B50,$L$4:$AT$4,"<="&'PAINEL DE CONTROLE'!$D$6),0) -> 0 | U50: =IF(AND(U$4>=$B50,U$4<='PAINEL DE CONTROLE'!$D$6),$C50/COUNTIFS($L$4:$AT$4,">="&$B50,$L$4:$AT$4,"<="&'PAINEL DE CONTROLE'!$D$6),0) -> 0 | V50: =IF(AND(V$4>=$B50,V$4<='PAINEL DE CONTROLE'!$D$6),$C50/COUNTIFS($L$4:$AT$4,">="&$B50,$L$4:$AT$4,"<="&'PAINEL DE CONTROLE'!$D$6),0) -> 0 | W50: =IF(AND(W$4>=$B50,W$4<='PAINEL DE CONTROLE'!$D$6),$C50/COUNTIFS($L$4:$AT$4,">="&$B50,$L$4:$AT$4,"<="&'PAINEL DE CONTROLE'!$D$6),0) -> 0 | X50: =IF(AND(X$4>=$B50,X$4<='PAINEL DE CONTROLE'!$D$6),$C50/COUNTIFS($L$4:$AT$4,">="&$B50,$L$4:$AT$4,"<="&'PAINEL DE CONTROLE'!$D$6),0) -> 0 | Y50: =IF(AND(Y$4>=$B50,Y$4<='PAINEL DE CONTROLE'!$D$6),$C50/COUNTIFS($L$4:$AT$4,">="&$B50,$L$4:$AT$4,"<="&'PAINEL DE CONTROLE'!$D$6),0) -> 0 | Z50: =IF(AND(Z$4>=$B50,Z$4<='PAINEL DE CONTROLE'!$D$6),$C50/COUNTIFS($L$4:$AT$4,">="&$B50,$L$4:$AT$4,"<="&'PAINEL DE CONTROLE'!$D$6),0) -> 0 | AA50: =IF(AND(AA$4>=$B50,AA$4<='PAINEL DE CONTROLE'!$D$6),$C50/COUNTIFS($L$4:$AT$4,">="&$B50,$L$4:$AT$4,"<="&'PAINEL DE CONTROLE'!$D$6),0) -> 0 | AB50: =IF(AND(AB$4>=$B50,AB$4<='PAINEL DE CONTROLE'!$D$6),$C50/COUNTIFS($L$4:$AT$4,">="&$B50,$L$4:$AT$4,"<="&'PAINEL DE CONTROLE'!$D$6),0) -> 0 | AC50: =IF(AND(AC$4>=$B50,AC$4<='PAINEL DE CONTROLE'!$D$6),$C50/COUNTIFS($L$4:$AT$4,">="&$B50,$L$4:$AT$4,"<="&'PAINEL DE CONTROLE'!$D$6),0) -> 0 | AD50: =IF(AND(AD$4>=$B50,AD$4<='PAINEL DE CONTROLE'!$D$6),$C50/COUNTIFS($L$4:$AT$4,">="&$B50,$L$4:$AT$4,"<="&'PAINEL DE CONTROLE'!$D$6),0) -> 0 | AE50: =IF(AND(AE$4>=$B50,AE$4<='PAINEL DE CONTROLE'!$D$6),$C50/COUNTIFS($L$4:$AT$4,">="&$B50,$L$4:$AT$4,"<="&'PAINEL DE CONTROLE'!$D$6),0) -> 0 | AF50: =IF(AND(AF$4>=$B50,AF$4<='PAINEL DE CONTROLE'!$D$6),$C50/COUNTIFS($L$4:$AT$4,">="&$B50,$L$4:$AT$4,"<="&'PAINEL DE CONTROLE'!$D$6),0) -> 0 | AG50: =IF(AND(AG$4>=$B50,AG$4<='PAINEL DE CONTROLE'!$D$6),$C50/COUNTIFS($L$4:$AT$4,">="&$B50,$L$4:$AT$4,"<="&'PAINEL DE CONTROLE'!$D$6),0) -> 0 | AH50: =IF(AND(AH$4>=$B50,AH$4<='PAINEL DE CONTROLE'!$D$6),$C50/COUNTIFS($L$4:$AT$4,">="&$B50,$L$4:$AT$4,"<="&'PAINEL DE CONTROLE'!$D$6),0) -> 0 | AI50: =IF(AND(AI$4>=$B50,AI$4<='PAINEL DE CONTROLE'!$D$6),$C50/COUNTIFS($L$4:$AT$4,">="&$B50,$L$4:$AT$4,"<="&'PAINEL DE CONTROLE'!$D$6),0) -> 0 | AJ50: =IF(AND(AJ$4>=$B50,AJ$4<='PAINEL DE CONTROLE'!$D$6),$C50/COUNTIFS($L$4:$AT$4,">="&$B50,$L$4:$AT$4,"<="&'PAINEL DE CONTROLE'!$D$6),0) -> 0 | AK50: =IF(AND(AK$4>=$B50,AK$4<='PAINEL DE CONTROLE'!$D$6),$C50/COUNTIFS($L$4:$AT$4,">="&$B50,$L$4:$AT$4,"<="&'PAINEL DE CONTROLE'!$D$6),0) -> 0 | AL50: =IF(AND(AL$4>=$B50,AL$4<='PAINEL DE CONTROLE'!$D$6),$C50/COUNTIFS($L$4:$AT$4,">="&$B50,$L$4:$AT$4,"<="&'PAINEL DE CONTROLE'!$D$6),0) -> 0 | AM50: =IF(AND(AM$4>=$B50,AM$4<='PAINEL DE CONTROLE'!$D$6),$C50/COUNTIFS($L$4:$AT$4,">="&$B50,$L$4:$AT$4,"<="&'PAINEL DE CONTROLE'!$D$6),0) -> 0 | AN50: =IF(AND(AN$4>=$B50,AN$4<='PAINEL DE CONTROLE'!$D$6),$C50/COUNTIFS($L$4:$AT$4,">="&$B50,$L$4:$AT$4,"<="&'PAINEL DE CONTROLE'!$D$6),0) -> 0 | AO50: =IF(AND(AO$4>=$B50,AO$4<='PAINEL DE CONTROLE'!$D$6),$C50/COUNTIFS($L$4:$AT$4,">="&$B50,$L$4:$AT$4,"<="&'PAINEL DE CONTROLE'!$D$6),0) -> 0 | AP50: =IF(AND(AP$4>=$B50,AP$4<='PAINEL DE CONTROLE'!$D$6),$C50/COUNTIFS($L$4:$AT$4,">="&$B50,$L$4:$AT$4,"<="&'PAINEL DE CONTROLE'!$D$6),0) -> 0 | AQ50: =IF(AND(AQ$4>=$B50,AQ$4<='PAINEL DE CONTROLE'!$D$6),$C50/COUNTIFS($L$4:$AT$4,">="&$B50,$L$4:$AT$4,"<="&'PAINEL DE CONTROLE'!$D$6),0) -> 0 | AR50: =IF(AND(AR$4>=$B50,AR$4<='PAINEL DE CONTROLE'!$D$6),$C50/COUNTIFS($L$4:$AT$4,">="&$B50,$L$4:$AT$4,"<="&'PAINEL DE CONTROLE'!$D$6),0) -> 0 | AS50: =IF(AND(AS$4>=$B50,AS$4<='PAINEL DE CONTROLE'!$D$6),$C50/COUNTIFS($L$4:$AT$4,">="&$B50,$L$4:$AT$4,"<="&'PAINEL DE CONTROLE'!$D$6),0) -> 0 | AT50: =IF(AND(AT$4>=$B50,AT$4<='PAINEL DE CONTROLE'!$D$6),$C50/COUNTIFS($L$4:$AT$4,">="&$B50,$L$4:$AT$4,"<="&'PAINEL DE CONTROLE'!$D$6),0) -> 0 | AU50: =IF(AND(AU$4>=$B50,AU$4<='PAINEL DE CONTROLE'!$D$6),$C50/COUNTIFS($L$4:$AT$4,">="&$B50,$L$4:$AT$4,"<="&'PAINEL DE CONTROLE'!$D$6),0) -> 0
B51: 10 | C51: 0 | M51: =IF(AND(M$4>=$B51,M$4<='PAINEL DE CONTROLE'!$D$6),$C51/COUNTIFS($L$4:$AT$4,">="&$B51,$L$4:$AT$4,"<="&'PAINEL DE CONTROLE'!$D$6),0) -> 0 | N51: =IF(AND(N$4>=$B51,N$4<='PAINEL DE CONTROLE'!$D$6),$C51/COUNTIFS($L$4:$AT$4,">="&$B51,$L$4:$AT$4,"<="&'PAINEL DE CONTROLE'!$D$6),0) -> 0 | O51: =IF(AND(O$4>=$B51,O$4<='PAINEL DE CONTROLE'!$D$6),$C51/COUNTIFS($L$4:$AT$4,">="&$B51,$L$4:$AT$4,"<="&'PAINEL DE CONTROLE'!$D$6),0) -> 0 | P51: =IF(AND(P$4>=$B51,P$4<='PAINEL DE CONTROLE'!$D$6),$C51/COUNTIFS($L$4:$AT$4,">="&$B51,$L$4:$AT$4,"<="&'PAINEL DE CONTROLE'!$D$6),0) -> 0 | Q51: =IF(AND(Q$4>=$B51,Q$4<='PAINEL DE CONTROLE'!$D$6),$C51/COUNTIFS($L$4:$AT$4,">="&$B51,$L$4:$AT$4,"<="&'PAINEL DE CONTROLE'!$D$6),0) -> 0 | R51: =IF(AND(R$4>=$B51,R$4<='PAINEL DE CONTROLE'!$D$6),$C51/COUNTIFS($L$4:$AT$4,">="&$B51,$L$4:$AT$4,"<="&'PAINEL DE CONTROLE'!$D$6),0) -> 0 | S51: =IF(AND(S$4>=$B51,S$4<='PAINEL DE CONTROLE'!$D$6),$C51/COUNTIFS($L$4:$AT$4,">="&$B51,$L$4:$AT$4,"<="&'PAINEL DE CONTROLE'!$D$6),0) -> 0 | T51: =IF(AND(T$4>=$B51,T$4<='PAINEL DE CONTROLE'!$D$6),$C51/COUNTIFS($L$4:$AT$4,">="&$B51,$L$4:$AT$4,"<="&'PAINEL DE CONTROLE'!$D$6),0) -> 0 | U51: =IF(AND(U$4>=$B51,U$4<='PAINEL DE CONTROLE'!$D$6),$C51/COUNTIFS($L$4:$AT$4,">="&$B51,$L$4:$AT$4,"<="&'PAINEL DE CONTROLE'!$D$6),0) -> 0 | V51: =IF(AND(V$4>=$B51,V$4<='PAINEL DE CONTROLE'!$D$6),$C51/COUNTIFS($L$4:$AT$4,">="&$B51,$L$4:$AT$4,"<="&'PAINEL DE CONTROLE'!$D$6),0) -> 0 | W51: =IF(AND(W$4>=$B51,W$4<='PAINEL DE CONTROLE'!$D$6),$C51/COUNTIFS($L$4:$AT$4,">="&$B51,$L$4:$AT$4,"<="&'PAINEL DE CONTROLE'!$D$6),0) -> 0 | X51: =IF(AND(X$4>=$B51,X$4<='PAINEL DE CONTROLE'!$D$6),$C51/COUNTIFS($L$4:$AT$4,">="&$B51,$L$4:$AT$4,"<="&'PAINEL DE CONTROLE'!$D$6),0) -> 0 | Y51: =IF(AND(Y$4>=$B51,Y$4<='PAINEL DE CONTROLE'!$D$6),$C51/COUNTIFS($L$4:$AT$4,">="&$B51,$L$4:$AT$4,"<="&'PAINEL DE CONTROLE'!$D$6),0) -> 0 | Z51: =IF(AND(Z$4>=$B51,Z$4<='PAINEL DE CONTROLE'!$D$6),$C51/COUNTIFS($L$4:$AT$4,">="&$B51,$L$4:$AT$4,"<="&'PAINEL DE CONTROLE'!$D$6),0) -> 0 | AA51: =IF(AND(AA$4>=$B51,AA$4<='PAINEL DE CONTROLE'!$D$6),$C51/COUNTIFS($L$4:$AT$4,">="&$B51,$L$4:$AT$4,"<="&'PAINEL DE CONTROLE'!$D$6),0) -> 0 | AB51: =IF(AND(AB$4>=$B51,AB$4<='PAINEL DE CONTROLE'!$D$6),$C51/COUNTIFS($L$4:$AT$4,">="&$B51,$L$4:$AT$4,"<="&'PAINEL DE CONTROLE'!$D$6),0) -> 0 | AC51: =IF(AND(AC$4>=$B51,AC$4<='PAINEL DE CONTROLE'!$D$6),$C51/COUNTIFS($L$4:$AT$4,">="&$B51,$L$4:$AT$4,"<="&'PAINEL DE CONTROLE'!$D$6),0) -> 0 | AD51: =IF(AND(AD$4>=$B51,AD$4<='PAINEL DE CONTROLE'!$D$6),$C51/COUNTIFS($L$4:$AT$4,">="&$B51,$L$4:$AT$4,"<="&'PAINEL DE CONTROLE'!$D$6),0) -> 0 | AE51: =IF(AND(AE$4>=$B51,AE$4<='PAINEL DE CONTROLE'!$D$6),$C51/COUNTIFS($L$4:$AT$4,">="&$B51,$L$4:$AT$4,"<="&'PAINEL DE CONTROLE'!$D$6),0) -> 0 | AF51: =IF(AND(AF$4>=$B51,AF$4<='PAINEL DE CONTROLE'!$D$6),$C51/COUNTIFS($L$4:$AT$4,">="&$B51,$L$4:$AT$4,"<="&'PAINEL DE CONTROLE'!$D$6),0) -> 0 | AG51: =IF(AND(AG$4>=$B51,AG$4<='PAINEL DE CONTROLE'!$D$6),$C51/COUNTIFS($L$4:$AT$4,">="&$B51,$L$4:$AT$4,"<="&'PAINEL DE CONTROLE'!$D$6),0) -> 0 | AH51: =IF(AND(AH$4>=$B51,AH$4<='PAINEL DE CONTROLE'!$D$6),$C51/COUNTIFS($L$4:$AT$4,">="&$B51,$L$4:$AT$4,"<="&'PAINEL DE CONTROLE'!$D$6),0) -> 0 | AI51: =IF(AND(AI$4>=$B51,AI$4<='PAINEL DE CONTROLE'!$D$6),$C51/COUNTIFS($L$4:$AT$4,">="&$B51,$L$4:$AT$4,"<="&'PAINEL DE CONTROLE'!$D$6),0) -> 0 | AJ51: =IF(AND(AJ$4>=$B51,AJ$4<='PAINEL DE CONTROLE'!$D$6),$C51/COUNTIFS($L$4:$AT$4,">="&$B51,$L$4:$AT$4,"<="&'PAINEL DE CONTROLE'!$D$6),0) -> 0 | AK51: =IF(AND(AK$4>=$B51,AK$4<='PAINEL DE CONTROLE'!$D$6),$C51/COUNTIFS($L$4:$AT$4,">="&$B51,$L$4:$AT$4,"<="&'PAINEL DE CONTROLE'!$D$6),0) -> 0 | AL51: =IF(AND(AL$4>=$B51,AL$4<='PAINEL DE CONTROLE'!$D$6),$C51/COUNTIFS($L$4:$AT$4,">="&$B51,$L$4:$AT$4,"<="&'PAINEL DE CONTROLE'!$D$6),0) -> 0 | AM51: =IF(AND(AM$4>=$B51,AM$4<='PAINEL DE CONTROLE'!$D$6),$C51/COUNTIFS($L$4:$AT$4,">="&$B51,$L$4:$AT$4,"<="&'PAINEL DE CONTROLE'!$D$6),0) -> 0 | AN51: =IF(AND(AN$4>=$B51,AN$4<='PAINEL DE CONTROLE'!$D$6),$C51/COUNTIFS($L$4:$AT$4,">="&$B51,$L$4:$AT$4,"<="&'PAINEL DE CONTROLE'!$D$6),0) -> 0 | AO51: =IF(AND(AO$4>=$B51,AO$4<='PAINEL DE CONTROLE'!$D$6),$C51/COUNTIFS($L$4:$AT$4,">="&$B51,$L$4:$AT$4,"<="&'PAINEL DE CONTROLE'!$D$6),0) -> 0 | AP51: =IF(AND(AP$4>=$B51,AP$4<='PAINEL DE CONTROLE'!$D$6),$C51/COUNTIFS($L$4:$AT$4,">="&$B51,$L$4:$AT$4,"<="&'PAINEL DE CONTROLE'!$D$6),0) -> 0 | AQ51: =IF(AND(AQ$4>=$B51,AQ$4<='PAINEL DE CONTROLE'!$D$6),$C51/COUNTIFS($L$4:$AT$4,">="&$B51,$L$4:$AT$4,"<="&'PAINEL DE CONTROLE'!$D$6),0) -> 0 | AR51: =IF(AND(AR$4>=$B51,AR$4<='PAINEL DE CONTROLE'!$D$6),$C51/COUNTIFS($L$4:$AT$4,">="&$B51,$L$4:$AT$4,"<="&'PAINEL DE CONTROLE'!$D$6),0) -> 0 | AS51: =IF(AND(AS$4>=$B51,AS$4<='PAINEL DE CONTROLE'!$D$6),$C51/COUNTIFS($L$4:$AT$4,">="&$B51,$L$4:$AT$4,"<="&'PAINEL DE CONTROLE'!$D$6),0) -> 0 | AT51: =IF(AND(AT$4>=$B51,AT$4<='PAINEL DE CONTROLE'!$D$6),$C51/COUNTIFS($L$4:$AT$4,">="&$B51,$L$4:$AT$4,"<="&'PAINEL DE CONTROLE'!$D$6),0) -> 0 | AU51: =IF(AND(AU$4>=$B51,AU$4<='PAINEL DE CONTROLE'!$D$6),$C51/COUNTIFS($L$4:$AT$4,">="&$B51,$L$4:$AT$4,"<="&'PAINEL DE CONTROLE'!$D$6),0) -> 0
B52: 11 | C52: 0 | M52: =IF(AND(M$4>=$B52,M$4<='PAINEL DE CONTROLE'!$D$6),$C52/COUNTIFS($L$4:$AT$4,">="&$B52,$L$4:$AT$4,"<="&'PAINEL DE CONTROLE'!$D$6),0) -> 0 | N52: =IF(AND(N$4>=$B52,N$4<='PAINEL DE CONTROLE'!$D$6),$C52/COUNTIFS($L$4:$AT$4,">="&$B52,$L$4:$AT$4,"<="&'PAINEL DE CONTROLE'!$D$6),0) -> 0 | O52: =IF(AND(O$4>=$B52,O$4<='PAINEL DE CONTROLE'!$D$6),$C52/COUNTIFS($L$4:$AT$4,">="&$B52,$L$4:$AT$4,"<="&'PAINEL DE CONTROLE'!$D$6),0) -> 0 | P52: =IF(AND(P$4>=$B52,P$4<='PAINEL DE CONTROLE'!$D$6),$C52/COUNTIFS($L$4:$AT$4,">="&$B52,$L$4:$AT$4,"<="&'PAINEL DE CONTROLE'!$D$6),0) -> 0 | Q52: =IF(AND(Q$4>=$B52,Q$4<='PAINEL DE CONTROLE'!$D$6),$C52/COUNTIFS($L$4:$AT$4,">="&$B52,$L$4:$AT$4,"<="&'PAINEL DE CONTROLE'!$D$6),0) -> 0 | R52: =IF(AND(R$4>=$B52,R$4<='PAINEL DE CONTROLE'!$D$6),$C52/COUNTIFS($L$4:$AT$4,">="&$B52,$L$4:$AT$4,"<="&'PAINEL DE CONTROLE'!$D$6),0) -> 0 | S52: =IF(AND(S$4>=$B52,S$4<='PAINEL DE CONTROLE'!$D$6),$C52/COUNTIFS($L$4:$AT$4,">="&$B52,$L$4:$AT$4,"<="&'PAINEL DE CONTROLE'!$D$6),0) -> 0 | T52: =IF(AND(T$4>=$B52,T$4<='PAINEL DE CONTROLE'!$D$6),$C52/COUNTIFS($L$4:$AT$4,">="&$B52,$L$4:$AT$4,"<="&'PAINEL DE CONTROLE'!$D$6),0) -> 0 | U52: =IF(AND(U$4>=$B52,U$4<='PAINEL DE CONTROLE'!$D$6),$C52/COUNTIFS($L$4:$AT$4,">="&$B52,$L$4:$AT$4,"<="&'PAINEL DE CONTROLE'!$D$6),0) -> 0 | V52: =IF(AND(V$4>=$B52,V$4<='PAINEL DE CONTROLE'!$D$6),$C52/COUNTIFS($L$4:$AT$4,">="&$B52,$L$4:$AT$4,"<="&'PAINEL DE CONTROLE'!$D$6),0) -> 0 | W52: =IF(AND(W$4>=$B52,W$4<='PAINEL DE CONTROLE'!$D$6),$C52/COUNTIFS($L$4:$AT$4,">="&$B52,$L$4:$AT$4,"<="&'PAINEL DE CONTROLE'!$D$6),0) -> 0 | X52: =IF(AND(X$4>=$B52,X$4<='PAINEL DE CONTROLE'!$D$6),$C52/COUNTIFS($L$4:$AT$4,">="&$B52,$L$4:$AT$4,"<="&'PAINEL DE CONTROLE'!$D$6),0) -> 0 | Y52: =IF(AND(Y$4>=$B52,Y$4<='PAINEL DE CONTROLE'!$D$6),$C52/COUNTIFS($L$4:$AT$4,">="&$B52,$L$4:$AT$4,"<="&'PAINEL DE CONTROLE'!$D$6),0) -> 0 | Z52: =IF(AND(Z$4>=$B52,Z$4<='PAINEL DE CONTROLE'!$D$6),$C52/COUNTIFS($L$4:$AT$4,">="&$B52,$L$4:$AT$4,"<="&'PAINEL DE CONTROLE'!$D$6),0) -> 0 | AA52: =IF(AND(AA$4>=$B52,AA$4<='PAINEL DE CONTROLE'!$D$6),$C52/COUNTIFS($L$4:$AT$4,">="&$B52,$L$4:$AT$4,"<="&'PAINEL DE CONTROLE'!$D$6),0) -> 0 | AB52: =IF(AND(AB$4>=$B52,AB$4<='PAINEL DE CONTROLE'!$D$6),$C52/COUNTIFS($L$4:$AT$4,">="&$B52,$L$4:$AT$4,"<="&'PAINEL DE CONTROLE'!$D$6),0) -> 0 | AC52: =IF(AND(AC$4>=$B52,AC$4<='PAINEL DE CONTROLE'!$D$6),$C52/COUNTIFS($L$4:$AT$4,">="&$B52,$L$4:$AT$4,"<="&'PAINEL DE CONTROLE'!$D$6),0) -> 0 | AD52: =IF(AND(AD$4>=$B52,AD$4<='PAINEL DE CONTROLE'!$D$6),$C52/COUNTIFS($L$4:$AT$4,">="&$B52,$L$4:$AT$4,"<="&'PAINEL DE CONTROLE'!$D$6),0) -> 0 | AE52: =IF(AND(AE$4>=$B52,AE$4<='PAINEL DE CONTROLE'!$D$6),$C52/COUNTIFS($L$4:$AT$4,">="&$B52,$L$4:$AT$4,"<="&'PAINEL DE CONTROLE'!$D$6),0) -> 0 | AF52: =IF(AND(AF$4>=$B52,AF$4<='PAINEL DE CONTROLE'!$D$6),$C52/COUNTIFS($L$4:$AT$4,">="&$B52,$L$4:$AT$4,"<="&'PAINEL DE CONTROLE'!$D$6),0) -> 0 | AG52: =IF(AND(AG$4>=$B52,AG$4<='PAINEL DE CONTROLE'!$D$6),$C52/COUNTIFS($L$4:$AT$4,">="&$B52,$L$4:$AT$4,"<="&'PAINEL DE CONTROLE'!$D$6),0) -> 0 | AH52: =IF(AND(AH$4>=$B52,AH$4<='PAINEL DE CONTROLE'!$D$6),$C52/COUNTIFS($L$4:$AT$4,">="&$B52,$L$4:$AT$4,"<="&'PAINEL DE CONTROLE'!$D$6),0) -> 0 | AI52: =IF(AND(AI$4>=$B52,AI$4<='PAINEL DE CONTROLE'!$D$6),$C52/COUNTIFS($L$4:$AT$4,">="&$B52,$L$4:$AT$4,"<="&'PAINEL DE CONTROLE'!$D$6),0) -> 0 | AJ52: =IF(AND(AJ$4>=$B52,AJ$4<='PAINEL DE CONTROLE'!$D$6),$C52/COUNTIFS($L$4:$AT$4,">="&$B52,$L$4:$AT$4,"<="&'PAINEL DE CONTROLE'!$D$6),0) -> 0 | AK52: =IF(AND(AK$4>=$B52,AK$4<='PAINEL DE CONTROLE'!$D$6),$C52/COUNTIFS($L$4:$AT$4,">="&$B52,$L$4:$AT$4,"<="&'PAINEL DE CONTROLE'!$D$6),0) -> 0 | AL52: =IF(AND(AL$4>=$B52,AL$4<='PAINEL DE CONTROLE'!$D$6),$C52/COUNTIFS($L$4:$AT$4,">="&$B52,$L$4:$AT$4,"<="&'PAINEL DE CONTROLE'!$D$6),0) -> 0 | AM52: =IF(AND(AM$4>=$B52,AM$4<='PAINEL DE CONTROLE'!$D$6),$C52/COUNTIFS($L$4:$AT$4,">="&$B52,$L$4:$AT$4,"<="&'PAINEL DE CONTROLE'!$D$6),0) -> 0 | AN52: =IF(AND(AN$4>=$B52,AN$4<='PAINEL DE CONTROLE'!$D$6),$C52/COUNTIFS($L$4:$AT$4,">="&$B52,$L$4:$AT$4,"<="&'PAINEL DE CONTROLE'!$D$6),0) -> 0 | AO52: =IF(AND(AO$4>=$B52,AO$4<='PAINEL DE CONTROLE'!$D$6),$C52/COUNTIFS($L$4:$AT$4,">="&$B52,$L$4:$AT$4,"<="&'PAINEL DE CONTROLE'!$D$6),0) -> 0 | AP52: =IF(AND(AP$4>=$B52,AP$4<='PAINEL DE CONTROLE'!$D$6),$C52/COUNTIFS($L$4:$AT$4,">="&$B52,$L$4:$AT$4,"<="&'PAINEL DE CONTROLE'!$D$6),0) -> 0 | AQ52: =IF(AND(AQ$4>=$B52,AQ$4<='PAINEL DE CONTROLE'!$D$6),$C52/COUNTIFS($L$4:$AT$4,">="&$B52,$L$4:$AT$4,"<="&'PAINEL DE CONTROLE'!$D$6),0) -> 0 | AR52: =IF(AND(AR$4>=$B52,AR$4<='PAINEL DE CONTROLE'!$D$6),$C52/COUNTIFS($L$4:$AT$4,">="&$B52,$L$4:$AT$4,"<="&'PAINEL DE CONTROLE'!$D$6),0) -> 0 | AS52: =IF(AND(AS$4>=$B52,AS$4<='PAINEL DE CONTROLE'!$D$6),$C52/COUNTIFS($L$4:$AT$4,">="&$B52,$L$4:$AT$4,"<="&'PAINEL DE CONTROLE'!$D$6),0) -> 0 | AT52: =IF(AND(AT$4>=$B52,AT$4<='PAINEL DE CONTROLE'!$D$6),$C52/COUNTIFS($L$4:$AT$4,">="&$B52,$L$4:$AT$4,"<="&'PAINEL DE CONTROLE'!$D$6),0) -> 0 | AU52: =IF(AND(AU$4>=$B52,AU$4<='PAINEL DE CONTROLE'!$D$6),$C52/COUNTIFS($L$4:$AT$4,">="&$B52,$L$4:$AT$4,"<="&'PAINEL DE CONTROLE'!$D$6),0) -> 0
B53: 12 | C53: 0 | M53: =IF(AND(M$4>=$B53,M$4<='PAINEL DE CONTROLE'!$D$6),$C53/COUNTIFS($L$4:$AT$4,">="&$B53,$L$4:$AT$4,"<="&'PAINEL DE CONTROLE'!$D$6),0) -> 0 | N53: =IF(AND(N$4>=$B53,N$4<='PAINEL DE CONTROLE'!$D$6),$C53/COUNTIFS($L$4:$AT$4,">="&$B53,$L$4:$AT$4,"<="&'PAINEL DE CONTROLE'!$D$6),0) -> 0 | O53: =IF(AND(O$4>=$B53,O$4<='PAINEL DE CONTROLE'!$D$6),$C53/COUNTIFS($L$4:$AT$4,">="&$B53,$L$4:$AT$4,"<="&'PAINEL DE CONTROLE'!$D$6),0) -> 0 | P53: =IF(AND(P$4>=$B53,P$4<='PAINEL DE CONTROLE'!$D$6),$C53/COUNTIFS($L$4:$AT$4,">="&$B53,$L$4:$AT$4,"<="&'PAINEL DE CONTROLE'!$D$6),0) -> 0 | Q53: =IF(AND(Q$4>=$B53,Q$4<='PAINEL DE CONTROLE'!$D$6),$C53/COUNTIFS($L$4:$AT$4,">="&$B53,$L$4:$AT$4,"<="&'PAINEL DE CONTROLE'!$D$6),0) -> 0 | R53: =IF(AND(R$4>=$B53,R$4<='PAINEL DE CONTROLE'!$D$6),$C53/COUNTIFS($L$4:$AT$4,">="&$B53,$L$4:$AT$4,"<="&'PAINEL DE CONTROLE'!$D$6),0) -> 0 | S53: =IF(AND(S$4>=$B53,S$4<='PAINEL DE CONTROLE'!$D$6),$C53/COUNTIFS($L$4:$AT$4,">="&$B53,$L$4:$AT$4,"<="&'PAINEL DE CONTROLE'!$D$6),0) -> 0 | T53: =IF(AND(T$4>=$B53,T$4<='PAINEL DE CONTROLE'!$D$6),$C53/COUNTIFS($L$4:$AT$4,">="&$B53,$L$4:$AT$4,"<="&'PAINEL DE CONTROLE'!$D$6),0) -> 0 | U53: =IF(AND(U$4>=$B53,U$4<='PAINEL DE CONTROLE'!$D$6),$C53/COUNTIFS($L$4:$AT$4,">="&$B53,$L$4:$AT$4,"<="&'PAINEL DE CONTROLE'!$D$6),0) -> 0 | V53: =IF(AND(V$4>=$B53,V$4<='PAINEL DE CONTROLE'!$D$6),$C53/COUNTIFS($L$4:$AT$4,">="&$B53,$L$4:$AT$4,"<="&'PAINEL DE CONTROLE'!$D$6),0) -> 0 | W53: =IF(AND(W$4>=$B53,W$4<='PAINEL DE CONTROLE'!$D$6),$C53/COUNTIFS($L$4:$AT$4,">="&$B53,$L$4:$AT$4,"<="&'PAINEL DE CONTROLE'!$D$6),0) -> 0 | X53: =IF(AND(X$4>=$B53,X$4<='PAINEL DE CONTROLE'!$D$6),$C53/COUNTIFS($L$4:$AT$4,">="&$B53,$L$4:$AT$4,"<="&'PAINEL DE CONTROLE'!$D$6),0) -> 0 | Y53: =IF(AND(Y$4>=$B53,Y$4<='PAINEL DE CONTROLE'!$D$6),$C53/COUNTIFS($L$4:$AT$4,">="&$B53,$L$4:$AT$4,"<="&'PAINEL DE CONTROLE'!$D$6),0) -> 0 | Z53: =IF(AND(Z$4>=$B53,Z$4<='PAINEL DE CONTROLE'!$D$6),$C53/COUNTIFS($L$4:$AT$4,">="&$B53,$L$4:$AT$4,"<="&'PAINEL DE CONTROLE'!$D$6),0) -> 0 | AA53: =IF(AND(AA$4>=$B53,AA$4<='PAINEL DE CONTROLE'!$D$6),$C53/COUNTIFS($L$4:$AT$4,">="&$B53,$L$4:$AT$4,"<="&'PAINEL DE CONTROLE'!$D$6),0) -> 0 | AB53: =IF(AND(AB$4>=$B53,AB$4<='PAINEL DE CONTROLE'!$D$6),$C53/COUNTIFS($L$4:$AT$4,">="&$B53,$L$4:$AT$4,"<="&'PAINEL DE CONTROLE'!$D$6),0) -> 0 | AC53: =IF(AND(AC$4>=$B53,AC$4<='PAINEL DE CONTROLE'!$D$6),$C53/COUNTIFS($L$4:$AT$4,">="&$B53,$L$4:$AT$4,"<="&'PAINEL DE CONTROLE'!$D$6),0) -> 0 | AD53: =IF(AND(AD$4>=$B53,AD$4<='PAINEL DE CONTROLE'!$D$6),$C53/COUNTIFS($L$4:$AT$4,">="&$B53,$L$4:$AT$4,"<="&'PAINEL DE CONTROLE'!$D$6),0) -> 0 | AE53: =IF(AND(AE$4>=$B53,AE$4<='PAINEL DE CONTROLE'!$D$6),$C53/COUNTIFS($L$4:$AT$4,">="&$B53,$L$4:$AT$4,"<="&'PAINEL DE CONTROLE'!$D$6),0) -> 0 | AF53: =IF(AND(AF$4>=$B53,AF$4<='PAINEL DE CONTROLE'!$D$6),$C53/COUNTIFS($L$4:$AT$4,">="&$B53,$L$4:$AT$4,"<="&'PAINEL DE CONTROLE'!$D$6),0) -> 0 | AG53: =IF(AND(AG$4>=$B53,AG$4<='PAINEL DE CONTROLE'!$D$6),$C53/COUNTIFS($L$4:$AT$4,">="&$B53,$L$4:$AT$4,"<="&'PAINEL DE CONTROLE'!$D$6),0) -> 0 | AH53: =IF(AND(AH$4>=$B53,AH$4<='PAINEL DE CONTROLE'!$D$6),$C53/COUNTIFS($L$4:$AT$4,">="&$B53,$L$4:$AT$4,"<="&'PAINEL DE CONTROLE'!$D$6),0) -> 0 | AI53: =IF(AND(AI$4>=$B53,AI$4<='PAINEL DE CONTROLE'!$D$6),$C53/COUNTIFS($L$4:$AT$4,">="&$B53,$L$4:$AT$4,"<="&'PAINEL DE CONTROLE'!$D$6),0) -> 0 | AJ53: =IF(AND(AJ$4>=$B53,AJ$4<='PAINEL DE CONTROLE'!$D$6),$C53/COUNTIFS($L$4:$AT$4,">="&$B53,$L$4:$AT$4,"<="&'PAINEL DE CONTROLE'!$D$6),0) -> 0 | AK53: =IF(AND(AK$4>=$B53,AK$4<='PAINEL DE CONTROLE'!$D$6),$C53/COUNTIFS($L$4:$AT$4,">="&$B53,$L$4:$AT$4,"<="&'PAINEL DE CONTROLE'!$D$6),0) -> 0 | AL53: =IF(AND(AL$4>=$B53,AL$4<='PAINEL DE CONTROLE'!$D$6),$C53/COUNTIFS($L$4:$AT$4,">="&$B53,$L$4:$AT$4,"<="&'PAINEL DE CONTROLE'!$D$6),0) -> 0 | AM53: =IF(AND(AM$4>=$B53,AM$4<='PAINEL DE CONTROLE'!$D$6),$C53/COUNTIFS($L$4:$AT$4,">="&$B53,$L$4:$AT$4,"<="&'PAINEL DE CONTROLE'!$D$6),0) -> 0 | AN53: =IF(AND(AN$4>=$B53,AN$4<='PAINEL DE CONTROLE'!$D$6),$C53/COUNTIFS($L$4:$AT$4,">="&$B53,$L$4:$AT$4,"<="&'PAINEL DE CONTROLE'!$D$6),0) -> 0 | AO53: =IF(AND(AO$4>=$B53,AO$4<='PAINEL DE CONTROLE'!$D$6),$C53/COUNTIFS($L$4:$AT$4,">="&$B53,$L$4:$AT$4,"<="&'PAINEL DE CONTROLE'!$D$6),0) -> 0 | AP53: =IF(AND(AP$4>=$B53,AP$4<='PAINEL DE CONTROLE'!$D$6),$C53/COUNTIFS($L$4:$AT$4,">="&$B53,$L$4:$AT$4,"<="&'PAINEL DE CONTROLE'!$D$6),0) -> 0 | AQ53: =IF(AND(AQ$4>=$B53,AQ$4<='PAINEL DE CONTROLE'!$D$6),$C53/COUNTIFS($L$4:$AT$4,">="&$B53,$L$4:$AT$4,"<="&'PAINEL DE CONTROLE'!$D$6),0) -> 0 | AR53: =IF(AND(AR$4>=$B53,AR$4<='PAINEL DE CONTROLE'!$D$6),$C53/COUNTIFS($L$4:$AT$4,">="&$B53,$L$4:$AT$4,"<="&'PAINEL DE CONTROLE'!$D$6),0) -> 0 | AS53: =IF(AND(AS$4>=$B53,AS$4<='PAINEL DE CONTROLE'!$D$6),$C53/COUNTIFS($L$4:$AT$4,">="&$B53,$L$4:$AT$4,"<="&'PAINEL DE CONTROLE'!$D$6),0) -> 0 | AT53: =IF(AND(AT$4>=$B53,AT$4<='PAINEL DE CONTROLE'!$D$6),$C53/COUNTIFS($L$4:$AT$4,">="&$B53,$L$4:$AT$4,"<="&'PAINEL DE CONTROLE'!$D$6),0) -> 0 | AU53: =IF(AND(AU$4>=$B53,AU$4<='PAINEL DE CONTROLE'!$D$6),$C53/COUNTIFS($L$4:$AT$4,">="&$B53,$L$4:$AT$4,"<="&'PAINEL DE CONTROLE'!$D$6),0) -> 0
B54: 13 | C54: 0 | M54: =IF(AND(M$4>=$B54,M$4<='PAINEL DE CONTROLE'!$D$6),$C54/COUNTIFS($L$4:$AT$4,">="&$B54,$L$4:$AT$4,"<="&'PAINEL DE CONTROLE'!$D$6),0) -> 0 | N54: =IF(AND(N$4>=$B54,N$4<='PAINEL DE CONTROLE'!$D$6),$C54/COUNTIFS($L$4:$AT$4,">="&$B54,$L$4:$AT$4,"<="&'PAINEL DE CONTROLE'!$D$6),0) -> 0 | O54: =IF(AND(O$4>=$B54,O$4<='PAINEL DE CONTROLE'!$D$6),$C54/COUNTIFS($L$4:$AT$4,">="&$B54,$L$4:$AT$4,"<="&'PAINEL DE CONTROLE'!$D$6),0) -> 0 | P54: =IF(AND(P$4>=$B54,P$4<='PAINEL DE CONTROLE'!$D$6),$C54/COUNTIFS($L$4:$AT$4,">="&$B54,$L$4:$AT$4,"<="&'PAINEL DE CONTROLE'!$D$6),0) -> 0 | Q54: =IF(AND(Q$4>=$B54,Q$4<='PAINEL DE CONTROLE'!$D$6),$C54/COUNTIFS($L$4:$AT$4,">="&$B54,$L$4:$AT$4,"<="&'PAINEL DE CONTROLE'!$D$6),0) -> 0 | R54: =IF(AND(R$4>=$B54,R$4<='PAINEL DE CONTROLE'!$D$6),$C54/COUNTIFS($L$4:$AT$4,">="&$B54,$L$4:$AT$4,"<="&'PAINEL DE CONTROLE'!$D$6),0) -> 0 | S54: =IF(AND(S$4>=$B54,S$4<='PAINEL DE CONTROLE'!$D$6),$C54/COUNTIFS($L$4:$AT$4,">="&$B54,$L$4:$AT$4,"<="&'PAINEL DE CONTROLE'!$D$6),0) -> 0 | T54: =IF(AND(T$4>=$B54,T$4<='PAINEL DE CONTROLE'!$D$6),$C54/COUNTIFS($L$4:$AT$4,">="&$B54,$L$4:$AT$4,"<="&'PAINEL DE CONTROLE'!$D$6),0) -> 0 | U54: =IF(AND(U$4>=$B54,U$4<='PAINEL DE CONTROLE'!$D$6),$C54/COUNTIFS($L$4:$AT$4,">="&$B54,$L$4:$AT$4,"<="&'PAINEL DE CONTROLE'!$D$6),0) -> 0 | V54: =IF(AND(V$4>=$B54,V$4<='PAINEL DE CONTROLE'!$D$6),$C54/COUNTIFS($L$4:$AT$4,">="&$B54,$L$4:$AT$4,"<="&'PAINEL DE CONTROLE'!$D$6),0) -> 0 | W54: =IF(AND(W$4>=$B54,W$4<='PAINEL DE CONTROLE'!$D$6),$C54/COUNTIFS($L$4:$AT$4,">="&$B54,$L$4:$AT$4,"<="&'PAINEL DE CONTROLE'!$D$6),0) -> 0 | X54: =IF(AND(X$4>=$B54,X$4<='PAINEL DE CONTROLE'!$D$6),$C54/COUNTIFS($L$4:$AT$4,">="&$B54,$L$4:$AT$4,"<="&'PAINEL DE CONTROLE'!$D$6),0) -> 0 | Y54: =IF(AND(Y$4>=$B54,Y$4<='PAINEL DE CONTROLE'!$D$6),$C54/COUNTIFS($L$4:$AT$4,">="&$B54,$L$4:$AT$4,"<="&'PAINEL DE CONTROLE'!$D$6),0) -> 0 | Z54: =IF(AND(Z$4>=$B54,Z$4<='PAINEL DE CONTROLE'!$D$6),$C54/COUNTIFS($L$4:$AT$4,">="&$B54,$L$4:$AT$4,"<="&'PAINEL DE CONTROLE'!$D$6),0) -> 0 | AA54: =IF(AND(AA$4>=$B54,AA$4<='PAINEL DE CONTROLE'!$D$6),$C54/COUNTIFS($L$4:$AT$4,">="&$B54,$L$4:$AT$4,"<="&'PAINEL DE CONTROLE'!$D$6),0) -> 0 | AB54: =IF(AND(AB$4>=$B54,AB$4<='PAINEL DE CONTROLE'!$D$6),$C54/COUNTIFS($L$4:$AT$4,">="&$B54,$L$4:$AT$4,"<="&'PAINEL DE CONTROLE'!$D$6),0) -> 0 | AC54: =IF(AND(AC$4>=$B54,AC$4<='PAINEL DE CONTROLE'!$D$6),$C54/COUNTIFS($L$4:$AT$4,">="&$B54,$L$4:$AT$4,"<="&'PAINEL DE CONTROLE'!$D$6),0) -> 0 | AD54: =IF(AND(AD$4>=$B54,AD$4<='PAINEL DE CONTROLE'!$D$6),$C54/COUNTIFS($L$4:$AT$4,">="&$B54,$L$4:$AT$4,"<="&'PAINEL DE CONTROLE'!$D$6),0) -> 0 | AE54: =IF(AND(AE$4>=$B54,AE$4<='PAINEL DE CONTROLE'!$D$6),$C54/COUNTIFS($L$4:$AT$4,">="&$B54,$L$4:$AT$4,"<="&'PAINEL DE CONTROLE'!$D$6),0) -> 0 | AF54: =IF(AND(AF$4>=$B54,AF$4<='PAINEL DE CONTROLE'!$D$6),$C54/COUNTIFS($L$4:$AT$4,">="&$B54,$L$4:$AT$4,"<="&'PAINEL DE CONTROLE'!$D$6),0) -> 0 | AG54: =IF(AND(AG$4>=$B54,AG$4<='PAINEL DE CONTROLE'!$D$6),$C54/COUNTIFS($L$4:$AT$4,">="&$B54,$L$4:$AT$4,"<="&'PAINEL DE CONTROLE'!$D$6),0) -> 0 | AH54: =IF(AND(AH$4>=$B54,AH$4<='PAINEL DE CONTROLE'!$D$6),$C54/COUNTIFS($L$4:$AT$4,">="&$B54,$L$4:$AT$4,"<="&'PAINEL DE CONTROLE'!$D$6),0) -> 0 | AI54: =IF(AND(AI$4>=$B54,AI$4<='PAINEL DE CONTROLE'!$D$6),$C54/COUNTIFS($L$4:$AT$4,">="&$B54,$L$4:$AT$4,"<="&'PAINEL DE CONTROLE'!$D$6),0) -> 0 | AJ54: =IF(AND(AJ$4>=$B54,AJ$4<='PAINEL DE CONTROLE'!$D$6),$C54/COUNTIFS($L$4:$AT$4,">="&$B54,$L$4:$AT$4,"<="&'PAINEL DE CONTROLE'!$D$6),0) -> 0 | AK54: =IF(AND(AK$4>=$B54,AK$4<='PAINEL DE CONTROLE'!$D$6),$C54/COUNTIFS($L$4:$AT$4,">="&$B54,$L$4:$AT$4,"<="&'PAINEL DE CONTROLE'!$D$6),0) -> 0 | AL54: =IF(AND(AL$4>=$B54,AL$4<='PAINEL DE CONTROLE'!$D$6),$C54/COUNTIFS($L$4:$AT$4,">="&$B54,$L$4:$AT$4,"<="&'PAINEL DE CONTROLE'!$D$6),0) -> 0 | AM54: =IF(AND(AM$4>=$B54,AM$4<='PAINEL DE CONTROLE'!$D$6),$C54/COUNTIFS($L$4:$AT$4,">="&$B54,$L$4:$AT$4,"<="&'PAINEL DE CONTROLE'!$D$6),0) -> 0 | AN54: =IF(AND(AN$4>=$B54,AN$4<='PAINEL DE CONTROLE'!$D$6),$C54/COUNTIFS($L$4:$AT$4,">="&$B54,$L$4:$AT$4,"<="&'PAINEL DE CONTROLE'!$D$6),0) -> 0 | AO54: =IF(AND(AO$4>=$B54,AO$4<='PAINEL DE CONTROLE'!$D$6),$C54/COUNTIFS($L$4:$AT$4,">="&$B54,$L$4:$AT$4,"<="&'PAINEL DE CONTROLE'!$D$6),0) -> 0 | AP54: =IF(AND(AP$4>=$B54,AP$4<='PAINEL DE CONTROLE'!$D$6),$C54/COUNTIFS($L$4:$AT$4,">="&$B54,$L$4:$AT$4,"<="&'PAINEL DE CONTROLE'!$D$6),0) -> 0 | AQ54: =IF(AND(AQ$4>=$B54,AQ$4<='PAINEL DE CONTROLE'!$D$6),$C54/COUNTIFS($L$4:$AT$4,">="&$B54,$L$4:$AT$4,"<="&'PAINEL DE CONTROLE'!$D$6),0) -> 0 | AR54: =IF(AND(AR$4>=$B54,AR$4<='PAINEL DE CONTROLE'!$D$6),$C54/COUNTIFS($L$4:$AT$4,">="&$B54,$L$4:$AT$4,"<="&'PAINEL DE CONTROLE'!$D$6),0) -> 0 | AS54: =IF(AND(AS$4>=$B54,AS$4<='PAINEL DE CONTROLE'!$D$6),$C54/COUNTIFS($L$4:$AT$4,">="&$B54,$L$4:$AT$4,"<="&'PAINEL DE CONTROLE'!$D$6),0) -> 0 | AT54: =IF(AND(AT$4>=$B54,AT$4<='PAINEL DE CONTROLE'!$D$6),$C54/COUNTIFS($L$4:$AT$4,">="&$B54,$L$4:$AT$4,"<="&'PAINEL DE CONTROLE'!$D$6),0) -> 0 | AU54: =IF(AND(AU$4>=$B54,AU$4<='PAINEL DE CONTROLE'!$D$6),$C54/COUNTIFS($L$4:$AT$4,">="&$B54,$L$4:$AT$4,"<="&'PAINEL DE CONTROLE'!$D$6),0) -> 0
B55: 14 | C55: 0 | M55: =IF(AND(M$4>=$B55,M$4<='PAINEL DE CONTROLE'!$D$6),$C55/COUNTIFS($L$4:$AT$4,">="&$B55,$L$4:$AT$4,"<="&'PAINEL DE CONTROLE'!$D$6),0) -> 0 | N55: =IF(AND(N$4>=$B55,N$4<='PAINEL DE CONTROLE'!$D$6),$C55/COUNTIFS($L$4:$AT$4,">="&$B55,$L$4:$AT$4,"<="&'PAINEL DE CONTROLE'!$D$6),0) -> 0 | O55: =IF(AND(O$4>=$B55,O$4<='PAINEL DE CONTROLE'!$D$6),$C55/COUNTIFS($L$4:$AT$4,">="&$B55,$L$4:$AT$4,"<="&'PAINEL DE CONTROLE'!$D$6),0) -> 0 | P55: =IF(AND(P$4>=$B55,P$4<='PAINEL DE CONTROLE'!$D$6),$C55/COUNTIFS($L$4:$AT$4,">="&$B55,$L$4:$AT$4,"<="&'PAINEL DE CONTROLE'!$D$6),0) -> 0 | Q55: =IF(AND(Q$4>=$B55,Q$4<='PAINEL DE CONTROLE'!$D$6),$C55/COUNTIFS($L$4:$AT$4,">="&$B55,$L$4:$AT$4,"<="&'PAINEL DE CONTROLE'!$D$6),0) -> 0 | R55: =IF(AND(R$4>=$B55,R$4<='PAINEL DE CONTROLE'!$D$6),$C55/COUNTIFS($L$4:$AT$4,">="&$B55,$L$4:$AT$4,"<="&'PAINEL DE CONTROLE'!$D$6),0) -> 0 | S55: =IF(AND(S$4>=$B55,S$4<='PAINEL DE CONTROLE'!$D$6),$C55/COUNTIFS($L$4:$AT$4,">="&$B55,$L$4:$AT$4,"<="&'PAINEL DE CONTROLE'!$D$6),0) -> 0 | T55: =IF(AND(T$4>=$B55,T$4<='PAINEL DE CONTROLE'!$D$6),$C55/COUNTIFS($L$4:$AT$4,">="&$B55,$L$4:$AT$4,"<="&'PAINEL DE CONTROLE'!$D$6),0) -> 0 | U55: =IF(AND(U$4>=$B55,U$4<='PAINEL DE CONTROLE'!$D$6),$C55/COUNTIFS($L$4:$AT$4,">="&$B55,$L$4:$AT$4,"<="&'PAINEL DE CONTROLE'!$D$6),0) -> 0 | V55: =IF(AND(V$4>=$B55,V$4<='PAINEL DE CONTROLE'!$D$6),$C55/COUNTIFS($L$4:$AT$4,">="&$B55,$L$4:$AT$4,"<="&'PAINEL DE CONTROLE'!$D$6),0) -> 0 | W55: =IF(AND(W$4>=$B55,W$4<='PAINEL DE CONTROLE'!$D$6),$C55/COUNTIFS($L$4:$AT$4,">="&$B55,$L$4:$AT$4,"<="&'PAINEL DE CONTROLE'!$D$6),0) -> 0 | X55: =IF(AND(X$4>=$B55,X$4<='PAINEL DE CONTROLE'!$D$6),$C55/COUNTIFS($L$4:$AT$4,">="&$B55,$L$4:$AT$4,"<="&'PAINEL DE CONTROLE'!$D$6),0) -> 0 | Y55: =IF(AND(Y$4>=$B55,Y$4<='PAINEL DE CONTROLE'!$D$6),$C55/COUNTIFS($L$4:$AT$4,">="&$B55,$L$4:$AT$4,"<="&'PAINEL DE CONTROLE'!$D$6),0) -> 0 | Z55: =IF(AND(Z$4>=$B55,Z$4<='PAINEL DE CONTROLE'!$D$6),$C55/COUNTIFS($L$4:$AT$4,">="&$B55,$L$4:$AT$4,"<="&'PAINEL DE CONTROLE'!$D$6),0) -> 0 | AA55: =IF(AND(AA$4>=$B55,AA$4<='PAINEL DE CONTROLE'!$D$6),$C55/COUNTIFS($L$4:$AT$4,">="&$B55,$L$4:$AT$4,"<="&'PAINEL DE CONTROLE'!$D$6),0) -> 0 | AB55: =IF(AND(AB$4>=$B55,AB$4<='PAINEL DE CONTROLE'!$D$6),$C55/COUNTIFS($L$4:$AT$4,">="&$B55,$L$4:$AT$4,"<="&'PAINEL DE CONTROLE'!$D$6),0) -> 0 | AC55: =IF(AND(AC$4>=$B55,AC$4<='PAINEL DE CONTROLE'!$D$6),$C55/COUNTIFS($L$4:$AT$4,">="&$B55,$L$4:$AT$4,"<="&'PAINEL DE CONTROLE'!$D$6),0) -> 0 | AD55: =IF(AND(AD$4>=$B55,AD$4<='PAINEL DE CONTROLE'!$D$6),$C55/COUNTIFS($L$4:$AT$4,">="&$B55,$L$4:$AT$4,"<="&'PAINEL DE CONTROLE'!$D$6),0) -> 0 | AE55: =IF(AND(AE$4>=$B55,AE$4<='PAINEL DE CONTROLE'!$D$6),$C55/COUNTIFS($L$4:$AT$4,">="&$B55,$L$4:$AT$4,"<="&'PAINEL DE CONTROLE'!$D$6),0) -> 0 | AF55: =IF(AND(AF$4>=$B55,AF$4<='PAINEL DE CONTROLE'!$D$6),$C55/COUNTIFS($L$4:$AT$4,">="&$B55,$L$4:$AT$4,"<="&'PAINEL DE CONTROLE'!$D$6),0) -> 0 | AG55: =IF(AND(AG$4>=$B55,AG$4<='PAINEL DE CONTROLE'!$D$6),$C55/COUNTIFS($L$4:$AT$4,">="&$B55,$L$4:$AT$4,"<="&'PAINEL DE CONTROLE'!$D$6),0) -> 0 | AH55: =IF(AND(AH$4>=$B55,AH$4<='PAINEL DE CONTROLE'!$D$6),$C55/COUNTIFS($L$4:$AT$4,">="&$B55,$L$4:$AT$4,"<="&'PAINEL DE CONTROLE'!$D$6),0) -> 0 | AI55: =IF(AND(AI$4>=$B55,AI$4<='PAINEL DE CONTROLE'!$D$6),$C55/COUNTIFS($L$4:$AT$4,">="&$B55,$L$4:$AT$4,"<="&'PAINEL DE CONTROLE'!$D$6),0) -> 0 | AJ55: =IF(AND(AJ$4>=$B55,AJ$4<='PAINEL DE CONTROLE'!$D$6),$C55/COUNTIFS($L$4:$AT$4,">="&$B55,$L$4:$AT$4,"<="&'PAINEL DE CONTROLE'!$D$6),0) -> 0 | AK55: =IF(AND(AK$4>=$B55,AK$4<='PAINEL DE CONTROLE'!$D$6),$C55/COUNTIFS($L$4:$AT$4,">="&$B55,$L$4:$AT$4,"<="&'PAINEL DE CONTROLE'!$D$6),0) -> 0 | AL55: =IF(AND(AL$4>=$B55,AL$4<='PAINEL DE CONTROLE'!$D$6),$C55/COUNTIFS($L$4:$AT$4,">="&$B55,$L$4:$AT$4,"<="&'PAINEL DE CONTROLE'!$D$6),0) -> 0 | AM55: =IF(AND(AM$4>=$B55,AM$4<='PAINEL DE CONTROLE'!$D$6),$C55/COUNTIFS($L$4:$AT$4,">="&$B55,$L$4:$AT$4,"<="&'PAINEL DE CONTROLE'!$D$6),0) -> 0 | AN55: =IF(AND(AN$4>=$B55,AN$4<='PAINEL DE CONTROLE'!$D$6),$C55/COUNTIFS($L$4:$AT$4,">="&$B55,$L$4:$AT$4,"<="&'PAINEL DE CONTROLE'!$D$6),0) -> 0 | AO55: =IF(AND(AO$4>=$B55,AO$4<='PAINEL DE CONTROLE'!$D$6),$C55/COUNTIFS($L$4:$AT$4,">="&$B55,$L$4:$AT$4,"<="&'PAINEL DE CONTROLE'!$D$6),0) -> 0 | AP55: =IF(AND(AP$4>=$B55,AP$4<='PAINEL DE CONTROLE'!$D$6),$C55/COUNTIFS($L$4:$AT$4,">="&$B55,$L$4:$AT$4,"<="&'PAINEL DE CONTROLE'!$D$6),0) -> 0 | AQ55: =IF(AND(AQ$4>=$B55,AQ$4<='PAINEL DE CONTROLE'!$D$6),$C55/COUNTIFS($L$4:$AT$4,">="&$B55,$L$4:$AT$4,"<="&'PAINEL DE CONTROLE'!$D$6),0) -> 0 | AR55: =IF(AND(AR$4>=$B55,AR$4<='PAINEL DE CONTROLE'!$D$6),$C55/COUNTIFS($L$4:$AT$4,">="&$B55,$L$4:$AT$4,"<="&'PAINEL DE CONTROLE'!$D$6),0) -> 0 | AS55: =IF(AND(AS$4>=$B55,AS$4<='PAINEL DE CONTROLE'!$D$6),$C55/COUNTIFS($L$4:$AT$4,">="&$B55,$L$4:$AT$4,"<="&'PAINEL DE CONTROLE'!$D$6),0) -> 0 | AT55: =IF(AND(AT$4>=$B55,AT$4<='PAINEL DE CONTROLE'!$D$6),$C55/COUNTIFS($L$4:$AT$4,">="&$B55,$L$4:$AT$4,"<="&'PAINEL DE CONTROLE'!$D$6),0) -> 0 | AU55: =IF(AND(AU$4>=$B55,AU$4<='PAINEL DE CONTROLE'!$D$6),$C55/COUNTIFS($L$4:$AT$4,">="&$B55,$L$4:$AT$4,"<="&'PAINEL DE CONTROLE'!$D$6),0) -> 0
B56: 15 | C56: 0 | M56: =IF(AND(M$4>=$B56,M$4<='PAINEL DE CONTROLE'!$D$6),$C56/COUNTIFS($L$4:$AT$4,">="&$B56,$L$4:$AT$4,"<="&'PAINEL DE CONTROLE'!$D$6),0) -> 0 | N56: =IF(AND(N$4>=$B56,N$4<='PAINEL DE CONTROLE'!$D$6),$C56/COUNTIFS($L$4:$AT$4,">="&$B56,$L$4:$AT$4,"<="&'PAINEL DE CONTROLE'!$D$6),0) -> 0 | O56: =IF(AND(O$4>=$B56,O$4<='PAINEL DE CONTROLE'!$D$6),$C56/COUNTIFS($L$4:$AT$4,">="&$B56,$L$4:$AT$4,"<="&'PAINEL DE CONTROLE'!$D$6),0) -> 0 | P56: =IF(AND(P$4>=$B56,P$4<='PAINEL DE CONTROLE'!$D$6),$C56/COUNTIFS($L$4:$AT$4,">="&$B56,$L$4:$AT$4,"<="&'PAINEL DE CONTROLE'!$D$6),0) -> 0 | Q56: =IF(AND(Q$4>=$B56,Q$4<='PAINEL DE CONTROLE'!$D$6),$C56/COUNTIFS($L$4:$AT$4,">="&$B56,$L$4:$AT$4,"<="&'PAINEL DE CONTROLE'!$D$6),0) -> 0 | R56: =IF(AND(R$4>=$B56,R$4<='PAINEL DE CONTROLE'!$D$6),$C56/COUNTIFS($L$4:$AT$4,">="&$B56,$L$4:$AT$4,"<="&'PAINEL DE CONTROLE'!$D$6),0) -> 0 | S56: =IF(AND(S$4>=$B56,S$4<='PAINEL DE CONTROLE'!$D$6),$C56/COUNTIFS($L$4:$AT$4,">="&$B56,$L$4:$AT$4,"<="&'PAINEL DE CONTROLE'!$D$6),0) -> 0 | T56: =IF(AND(T$4>=$B56,T$4<='PAINEL DE CONTROLE'!$D$6),$C56/COUNTIFS($L$4:$AT$4,">="&$B56,$L$4:$AT$4,"<="&'PAINEL DE CONTROLE'!$D$6),0) -> 0 | U56: =IF(AND(U$4>=$B56,U$4<='PAINEL DE CONTROLE'!$D$6),$C56/COUNTIFS($L$4:$AT$4,">="&$B56,$L$4:$AT$4,"<="&'PAINEL DE CONTROLE'!$D$6),0) -> 0 | V56: =IF(AND(V$4>=$B56,V$4<='PAINEL DE CONTROLE'!$D$6),$C56/COUNTIFS($L$4:$AT$4,">="&$B56,$L$4:$AT$4,"<="&'PAINEL DE CONTROLE'!$D$6),0) -> 0 | W56: =IF(AND(W$4>=$B56,W$4<='PAINEL DE CONTROLE'!$D$6),$C56/COUNTIFS($L$4:$AT$4,">="&$B56,$L$4:$AT$4,"<="&'PAINEL DE CONTROLE'!$D$6),0) -> 0 | X56: =IF(AND(X$4>=$B56,X$4<='PAINEL DE CONTROLE'!$D$6),$C56/COUNTIFS($L$4:$AT$4,">="&$B56,$L$4:$AT$4,"<="&'PAINEL DE CONTROLE'!$D$6),0) -> 0 | Y56: =IF(AND(Y$4>=$B56,Y$4<='PAINEL DE CONTROLE'!$D$6),$C56/COUNTIFS($L$4:$AT$4,">="&$B56,$L$4:$AT$4,"<="&'PAINEL DE CONTROLE'!$D$6),0) -> 0 | Z56: =IF(AND(Z$4>=$B56,Z$4<='PAINEL DE CONTROLE'!$D$6),$C56/COUNTIFS($L$4:$AT$4,">="&$B56,$L$4:$AT$4,"<="&'PAINEL DE CONTROLE'!$D$6),0) -> 0 | AA56: =IF(AND(AA$4>=$B56,AA$4<='PAINEL DE CONTROLE'!$D$6),$C56/COUNTIFS($L$4:$AT$4,">="&$B56,$L$4:$AT$4,"<="&'PAINEL DE CONTROLE'!$D$6),0) -> 0 | AB56: =IF(AND(AB$4>=$B56,AB$4<='PAINEL DE CONTROLE'!$D$6),$C56/COUNTIFS($L$4:$AT$4,">="&$B56,$L$4:$AT$4,"<="&'PAINEL DE CONTROLE'!$D$6),0) -> 0 | AC56: =IF(AND(AC$4>=$B56,AC$4<='PAINEL DE CONTROLE'!$D$6),$C56/COUNTIFS($L$4:$AT$4,">="&$B56,$L$4:$AT$4,"<="&'PAINEL DE CONTROLE'!$D$6),0) -> 0 | AD56: =IF(AND(AD$4>=$B56,AD$4<='PAINEL DE CONTROLE'!$D$6),$C56/COUNTIFS($L$4:$AT$4,">="&$B56,$L$4:$AT$4,"<="&'PAINEL DE CONTROLE'!$D$6),0) -> 0 | AE56: =IF(AND(AE$4>=$B56,AE$4<='PAINEL DE CONTROLE'!$D$6),$C56/COUNTIFS($L$4:$AT$4,">="&$B56,$L$4:$AT$4,"<="&'PAINEL DE CONTROLE'!$D$6),0) -> 0 | AF56: =IF(AND(AF$4>=$B56,AF$4<='PAINEL DE CONTROLE'!$D$6),$C56/COUNTIFS($L$4:$AT$4,">="&$B56,$L$4:$AT$4,"<="&'PAINEL DE CONTROLE'!$D$6),0) -> 0 | AG56: =IF(AND(AG$4>=$B56,AG$4<='PAINEL DE CONTROLE'!$D$6),$C56/COUNTIFS($L$4:$AT$4,">="&$B56,$L$4:$AT$4,"<="&'PAINEL DE CONTROLE'!$D$6),0) -> 0 | AH56: =IF(AND(AH$4>=$B56,AH$4<='PAINEL DE CONTROLE'!$D$6),$C56/COUNTIFS($L$4:$AT$4,">="&$B56,$L$4:$AT$4,"<="&'PAINEL DE CONTROLE'!$D$6),0) -> 0 | AI56: =IF(AND(AI$4>=$B56,AI$4<='PAINEL DE CONTROLE'!$D$6),$C56/COUNTIFS($L$4:$AT$4,">="&$B56,$L$4:$AT$4,"<="&'PAINEL DE CONTROLE'!$D$6),0) -> 0 | AJ56: =IF(AND(AJ$4>=$B56,AJ$4<='PAINEL DE CONTROLE'!$D$6),$C56/COUNTIFS($L$4:$AT$4,">="&$B56,$L$4:$AT$4,"<="&'PAINEL DE CONTROLE'!$D$6),0) -> 0 | AK56: =IF(AND(AK$4>=$B56,AK$4<='PAINEL DE CONTROLE'!$D$6),$C56/COUNTIFS($L$4:$AT$4,">="&$B56,$L$4:$AT$4,"<="&'PAINEL DE CONTROLE'!$D$6),0) -> 0 | AL56: =IF(AND(AL$4>=$B56,AL$4<='PAINEL DE CONTROLE'!$D$6),$C56/COUNTIFS($L$4:$AT$4,">="&$B56,$L$4:$AT$4,"<="&'PAINEL DE CONTROLE'!$D$6),0) -> 0 | AM56: =IF(AND(AM$4>=$B56,AM$4<='PAINEL DE CONTROLE'!$D$6),$C56/COUNTIFS($L$4:$AT$4,">="&$B56,$L$4:$AT$4,"<="&'PAINEL DE CONTROLE'!$D$6),0) -> 0 | AN56: =IF(AND(AN$4>=$B56,AN$4<='PAINEL DE CONTROLE'!$D$6),$C56/COUNTIFS($L$4:$AT$4,">="&$B56,$L$4:$AT$4,"<="&'PAINEL DE CONTROLE'!$D$6),0) -> 0 | AO56: =IF(AND(AO$4>=$B56,AO$4<='PAINEL DE CONTROLE'!$D$6),$C56/COUNTIFS($L$4:$AT$4,">="&$B56,$L$4:$AT$4,"<="&'PAINEL DE CONTROLE'!$D$6),0) -> 0 | AP56: =IF(AND(AP$4>=$B56,AP$4<='PAINEL DE CONTROLE'!$D$6),$C56/COUNTIFS($L$4:$AT$4,">="&$B56,$L$4:$AT$4,"<="&'PAINEL DE CONTROLE'!$D$6),0) -> 0 | AQ56: =IF(AND(AQ$4>=$B56,AQ$4<='PAINEL DE CONTROLE'!$D$6),$C56/COUNTIFS($L$4:$AT$4,">="&$B56,$L$4:$AT$4,"<="&'PAINEL DE CONTROLE'!$D$6),0) -> 0 | AR56: =IF(AND(AR$4>=$B56,AR$4<='PAINEL DE CONTROLE'!$D$6),$C56/COUNTIFS($L$4:$AT$4,">="&$B56,$L$4:$AT$4,"<="&'PAINEL DE CONTROLE'!$D$6),0) -> 0 | AS56: =IF(AND(AS$4>=$B56,AS$4<='PAINEL DE CONTROLE'!$D$6),$C56/COUNTIFS($L$4:$AT$4,">="&$B56,$L$4:$AT$4,"<="&'PAINEL DE CONTROLE'!$D$6),0) -> 0 | AT56: =IF(AND(AT$4>=$B56,AT$4<='PAINEL DE CONTROLE'!$D$6),$C56/COUNTIFS($L$4:$AT$4,">="&$B56,$L$4:$AT$4,"<="&'PAINEL DE CONTROLE'!$D$6),0) -> 0 | AU56: =IF(AND(AU$4>=$B56,AU$4<='PAINEL DE CONTROLE'!$D$6),$C56/COUNTIFS($L$4:$AT$4,">="&$B56,$L$4:$AT$4,"<="&'PAINEL DE CONTROLE'!$D$6),0) -> 0
B57: 16 | C57: 0 | M57: =IF(AND(M$4>=$B57,M$4<='PAINEL DE CONTROLE'!$D$6),$C57/COUNTIFS($L$4:$AT$4,">="&$B57,$L$4:$AT$4,"<="&'PAINEL DE CONTROLE'!$D$6),0) -> 0 | N57: =IF(AND(N$4>=$B57,N$4<='PAINEL DE CONTROLE'!$D$6),$C57/COUNTIFS($L$4:$AT$4,">="&$B57,$L$4:$AT$4,"<="&'PAINEL DE CONTROLE'!$D$6),0) -> 0 | O57: =IF(AND(O$4>=$B57,O$4<='PAINEL DE CONTROLE'!$D$6),$C57/COUNTIFS($L$4:$AT$4,">="&$B57,$L$4:$AT$4,"<="&'PAINEL DE CONTROLE'!$D$6),0) -> 0 | P57: =IF(AND(P$4>=$B57,P$4<='PAINEL DE CONTROLE'!$D$6),$C57/COUNTIFS($L$4:$AT$4,">="&$B57,$L$4:$AT$4,"<="&'PAINEL DE CONTROLE'!$D$6),0) -> 0 | Q57: =IF(AND(Q$4>=$B57,Q$4<='PAINEL DE CONTROLE'!$D$6),$C57/COUNTIFS($L$4:$AT$4,">="&$B57,$L$4:$AT$4,"<="&'PAINEL DE CONTROLE'!$D$6),0) -> 0 | R57: =IF(AND(R$4>=$B57,R$4<='PAINEL DE CONTROLE'!$D$6),$C57/COUNTIFS($L$4:$AT$4,">="&$B57,$L$4:$AT$4,"<="&'PAINEL DE CONTROLE'!$D$6),0) -> 0 | S57: =IF(AND(S$4>=$B57,S$4<='PAINEL DE CONTROLE'!$D$6),$C57/COUNTIFS($L$4:$AT$4,">="&$B57,$L$4:$AT$4,"<="&'PAINEL DE CONTROLE'!$D$6),0) -> 0 | T57: =IF(AND(T$4>=$B57,T$4<='PAINEL DE CONTROLE'!$D$6),$C57/COUNTIFS($L$4:$AT$4,">="&$B57,$L$4:$AT$4,"<="&'PAINEL DE CONTROLE'!$D$6),0) -> 0 | U57: =IF(AND(U$4>=$B57,U$4<='PAINEL DE CONTROLE'!$D$6),$C57/COUNTIFS($L$4:$AT$4,">="&$B57,$L$4:$AT$4,"<="&'PAINEL DE CONTROLE'!$D$6),0) -> 0 | V57: =IF(AND(V$4>=$B57,V$4<='PAINEL DE CONTROLE'!$D$6),$C57/COUNTIFS($L$4:$AT$4,">="&$B57,$L$4:$AT$4,"<="&'PAINEL DE CONTROLE'!$D$6),0) -> 0 | W57: =IF(AND(W$4>=$B57,W$4<='PAINEL DE CONTROLE'!$D$6),$C57/COUNTIFS($L$4:$AT$4,">="&$B57,$L$4:$AT$4,"<="&'PAINEL DE CONTROLE'!$D$6),0) -> 0 | X57: =IF(AND(X$4>=$B57,X$4<='PAINEL DE CONTROLE'!$D$6),$C57/COUNTIFS($L$4:$AT$4,">="&$B57,$L$4:$AT$4,"<="&'PAINEL DE CONTROLE'!$D$6),0) -> 0 | Y57: =IF(AND(Y$4>=$B57,Y$4<='PAINEL DE CONTROLE'!$D$6),$C57/COUNTIFS($L$4:$AT$4,">="&$B57,$L$4:$AT$4,"<="&'PAINEL DE CONTROLE'!$D$6),0) -> 0 | Z57: =IF(AND(Z$4>=$B57,Z$4<='PAINEL DE CONTROLE'!$D$6),$C57/COUNTIFS($L$4:$AT$4,">="&$B57,$L$4:$AT$4,"<="&'PAINEL DE CONTROLE'!$D$6),0) -> 0 | AA57: =IF(AND(AA$4>=$B57,AA$4<='PAINEL DE CONTROLE'!$D$6),$C57/COUNTIFS($L$4:$AT$4,">="&$B57,$L$4:$AT$4,"<="&'PAINEL DE CONTROLE'!$D$6),0) -> 0 | AB57: =IF(AND(AB$4>=$B57,AB$4<='PAINEL DE CONTROLE'!$D$6),$C57/COUNTIFS($L$4:$AT$4,">="&$B57,$L$4:$AT$4,"<="&'PAINEL DE CONTROLE'!$D$6),0) -> 0 | AC57: =IF(AND(AC$4>=$B57,AC$4<='PAINEL DE CONTROLE'!$D$6),$C57/COUNTIFS($L$4:$AT$4,">="&$B57,$L$4:$AT$4,"<="&'PAINEL DE CONTROLE'!$D$6),0) -> 0 | AD57: =IF(AND(AD$4>=$B57,AD$4<='PAINEL DE CONTROLE'!$D$6),$C57/COUNTIFS($L$4:$AT$4,">="&$B57,$L$4:$AT$4,"<="&'PAINEL DE CONTROLE'!$D$6),0) -> 0 | AE57: =IF(AND(AE$4>=$B57,AE$4<='PAINEL DE CONTROLE'!$D$6),$C57/COUNTIFS($L$4:$AT$4,">="&$B57,$L$4:$AT$4,"<="&'PAINEL DE CONTROLE'!$D$6),0) -> 0 | AF57: =IF(AND(AF$4>=$B57,AF$4<='PAINEL DE CONTROLE'!$D$6),$C57/COUNTIFS($L$4:$AT$4,">="&$B57,$L$4:$AT$4,"<="&'PAINEL DE CONTROLE'!$D$6),0) -> 0 | AG57: =IF(AND(AG$4>=$B57,AG$4<='PAINEL DE CONTROLE'!$D$6),$C57/COUNTIFS($L$4:$AT$4,">="&$B57,$L$4:$AT$4,"<="&'PAINEL DE CONTROLE'!$D$6),0) -> 0 | AH57: =IF(AND(AH$4>=$B57,AH$4<='PAINEL DE CONTROLE'!$D$6),$C57/COUNTIFS($L$4:$AT$4,">="&$B57,$L$4:$AT$4,"<="&'PAINEL DE CONTROLE'!$D$6),0) -> 0 | AI57: =IF(AND(AI$4>=$B57,AI$4<='PAINEL DE CONTROLE'!$D$6),$C57/COUNTIFS($L$4:$AT$4,">="&$B57,$L$4:$AT$4,"<="&'PAINEL DE CONTROLE'!$D$6),0) -> 0 | AJ57: =IF(AND(AJ$4>=$B57,AJ$4<='PAINEL DE CONTROLE'!$D$6),$C57/COUNTIFS($L$4:$AT$4,">="&$B57,$L$4:$AT$4,"<="&'PAINEL DE CONTROLE'!$D$6),0) -> 0 | AK57: =IF(AND(AK$4>=$B57,AK$4<='PAINEL DE CONTROLE'!$D$6),$C57/COUNTIFS($L$4:$AT$4,">="&$B57,$L$4:$AT$4,"<="&'PAINEL DE CONTROLE'!$D$6),0) -> 0 | AL57: =IF(AND(AL$4>=$B57,AL$4<='PAINEL DE CONTROLE'!$D$6),$C57/COUNTIFS($L$4:$AT$4,">="&$B57,$L$4:$AT$4,"<="&'PAINEL DE CONTROLE'!$D$6),0) -> 0 | AM57: =IF(AND(AM$4>=$B57,AM$4<='PAINEL DE CONTROLE'!$D$6),$C57/COUNTIFS($L$4:$AT$4,">="&$B57,$L$4:$AT$4,"<="&'PAINEL DE CONTROLE'!$D$6),0) -> 0 | AN57: =IF(AND(AN$4>=$B57,AN$4<='PAINEL DE CONTROLE'!$D$6),$C57/COUNTIFS($L$4:$AT$4,">="&$B57,$L$4:$AT$4,"<="&'PAINEL DE CONTROLE'!$D$6),0) -> 0 | AO57: =IF(AND(AO$4>=$B57,AO$4<='PAINEL DE CONTROLE'!$D$6),$C57/COUNTIFS($L$4:$AT$4,">="&$B57,$L$4:$AT$4,"<="&'PAINEL DE CONTROLE'!$D$6),0) -> 0 | AP57: =IF(AND(AP$4>=$B57,AP$4<='PAINEL DE CONTROLE'!$D$6),$C57/COUNTIFS($L$4:$AT$4,">="&$B57,$L$4:$AT$4,"<="&'PAINEL DE CONTROLE'!$D$6),0) -> 0 | AQ57: =IF(AND(AQ$4>=$B57,AQ$4<='PAINEL DE CONTROLE'!$D$6),$C57/COUNTIFS($L$4:$AT$4,">="&$B57,$L$4:$AT$4,"<="&'PAINEL DE CONTROLE'!$D$6),0) -> 0 | AR57: =IF(AND(AR$4>=$B57,AR$4<='PAINEL DE CONTROLE'!$D$6),$C57/COUNTIFS($L$4:$AT$4,">="&$B57,$L$4:$AT$4,"<="&'PAINEL DE CONTROLE'!$D$6),0) -> 0 | AS57: =IF(AND(AS$4>=$B57,AS$4<='PAINEL DE CONTROLE'!$D$6),$C57/COUNTIFS($L$4:$AT$4,">="&$B57,$L$4:$AT$4,"<="&'PAINEL DE CONTROLE'!$D$6),0) -> 0 | AT57: =IF(AND(AT$4>=$B57,AT$4<='PAINEL DE CONTROLE'!$D$6),$C57/COUNTIFS($L$4:$AT$4,">="&$B57,$L$4:$AT$4,"<="&'PAINEL DE CONTROLE'!$D$6),0) -> 0 | AU57: =IF(AND(AU$4>=$B57,AU$4<='PAINEL DE CONTROLE'!$D$6),$C57/COUNTIFS($L$4:$AT$4,">="&$B57,$L$4:$AT$4,"<="&'PAINEL DE CONTROLE'!$D$6),0) -> 0
B58: 17 | C58: 0 | M58: =IF(AND(M$4>=$B58,M$4<='PAINEL DE CONTROLE'!$D$6),$C58/COUNTIFS($L$4:$AT$4,">="&$B58,$L$4:$AT$4,"<="&'PAINEL DE CONTROLE'!$D$6),0) -> 0 | N58: =IF(AND(N$4>=$B58,N$4<='PAINEL DE CONTROLE'!$D$6),$C58/COUNTIFS($L$4:$AT$4,">="&$B58,$L$4:$AT$4,"<="&'PAINEL DE CONTROLE'!$D$6),0) -> 0 | O58: =IF(AND(O$4>=$B58,O$4<='PAINEL DE CONTROLE'!$D$6),$C58/COUNTIFS($L$4:$AT$4,">="&$B58,$L$4:$AT$4,"<="&'PAINEL DE CONTROLE'!$D$6),0) -> 0 | P58: =IF(AND(P$4>=$B58,P$4<='PAINEL DE CONTROLE'!$D$6),$C58/COUNTIFS($L$4:$AT$4,">="&$B58,$L$4:$AT$4,"<="&'PAINEL DE CONTROLE'!$D$6),0) -> 0 | Q58: =IF(AND(Q$4>=$B58,Q$4<='PAINEL DE CONTROLE'!$D$6),$C58/COUNTIFS($L$4:$AT$4,">="&$B58,$L$4:$AT$4,"<="&'PAINEL DE CONTROLE'!$D$6),0) -> 0 | R58: =IF(AND(R$4>=$B58,R$4<='PAINEL DE CONTROLE'!$D$6),$C58/COUNTIFS($L$4:$AT$4,">="&$B58,$L$4:$AT$4,"<="&'PAINEL DE CONTROLE'!$D$6),0) -> 0 | S58: =IF(AND(S$4>=$B58,S$4<='PAINEL DE CONTROLE'!$D$6),$C58/COUNTIFS($L$4:$AT$4,">="&$B58,$L$4:$AT$4,"<="&'PAINEL DE CONTROLE'!$D$6),0) -> 0 | T58: =IF(AND(T$4>=$B58,T$4<='PAINEL DE CONTROLE'!$D$6),$C58/COUNTIFS($L$4:$AT$4,">="&$B58,$L$4:$AT$4,"<="&'PAINEL DE CONTROLE'!$D$6),0) -> 0 | U58: =IF(AND(U$4>=$B58,U$4<='PAINEL DE CONTROLE'!$D$6),$C58/COUNTIFS($L$4:$AT$4,">="&$B58,$L$4:$AT$4,"<="&'PAINEL DE CONTROLE'!$D$6),0) -> 0 | V58: =IF(AND(V$4>=$B58,V$4<='PAINEL DE CONTROLE'!$D$6),$C58/COUNTIFS($L$4:$AT$4,">="&$B58,$L$4:$AT$4,"<="&'PAINEL DE CONTROLE'!$D$6),0) -> 0 | W58: =IF(AND(W$4>=$B58,W$4<='PAINEL DE CONTROLE'!$D$6),$C58/COUNTIFS($L$4:$AT$4,">="&$B58,$L$4:$AT$4,"<="&'PAINEL DE CONTROLE'!$D$6),0) -> 0 | X58: =IF(AND(X$4>=$B58,X$4<='PAINEL DE CONTROLE'!$D$6),$C58/COUNTIFS($L$4:$AT$4,">="&$B58,$L$4:$AT$4,"<="&'PAINEL DE CONTROLE'!$D$6),0) -> 0 | Y58: =IF(AND(Y$4>=$B58,Y$4<='PAINEL DE CONTROLE'!$D$6),$C58/COUNTIFS($L$4:$AT$4,">="&$B58,$L$4:$AT$4,"<="&'PAINEL DE CONTROLE'!$D$6),0) -> 0 | Z58: =IF(AND(Z$4>=$B58,Z$4<='PAINEL DE CONTROLE'!$D$6),$C58/COUNTIFS($L$4:$AT$4,">="&$B58,$L$4:$AT$4,"<="&'PAINEL DE CONTROLE'!$D$6),0) -> 0 | AA58: =IF(AND(AA$4>=$B58,AA$4<='PAINEL DE CONTROLE'!$D$6),$C58/COUNTIFS($L$4:$AT$4,">="&$B58,$L$4:$AT$4,"<="&'PAINEL DE CONTROLE'!$D$6),0) -> 0 | AB58: =IF(AND(AB$4>=$B58,AB$4<='PAINEL DE CONTROLE'!$D$6),$C58/COUNTIFS($L$4:$AT$4,">="&$B58,$L$4:$AT$4,"<="&'PAINEL DE CONTROLE'!$D$6),0) -> 0 | AC58: =IF(AND(AC$4>=$B58,AC$4<='PAINEL DE CONTROLE'!$D$6),$C58/COUNTIFS($L$4:$AT$4,">="&$B58,$L$4:$AT$4,"<="&'PAINEL DE CONTROLE'!$D$6),0) -> 0 | AD58: =IF(AND(AD$4>=$B58,AD$4<='PAINEL DE CONTROLE'!$D$6),$C58/COUNTIFS($L$4:$AT$4,">="&$B58,$L$4:$AT$4,"<="&'PAINEL DE CONTROLE'!$D$6),0) -> 0 | AE58: =IF(AND(AE$4>=$B58,AE$4<='PAINEL DE CONTROLE'!$D$6),$C58/COUNTIFS($L$4:$AT$4,">="&$B58,$L$4:$AT$4,"<="&'PAINEL DE CONTROLE'!$D$6),0) -> 0 | AF58: =IF(AND(AF$4>=$B58,AF$4<='PAINEL DE CONTROLE'!$D$6),$C58/COUNTIFS($L$4:$AT$4,">="&$B58,$L$4:$AT$4,"<="&'PAINEL DE CONTROLE'!$D$6),0) -> 0 | AG58: =IF(AND(AG$4>=$B58,AG$4<='PAINEL DE CONTROLE'!$D$6),$C58/COUNTIFS($L$4:$AT$4,">="&$B58,$L$4:$AT$4,"<="&'PAINEL DE CONTROLE'!$D$6),0) -> 0 | AH58: =IF(AND(AH$4>=$B58,AH$4<='PAINEL DE CONTROLE'!$D$6),$C58/COUNTIFS($L$4:$AT$4,">="&$B58,$L$4:$AT$4,"<="&'PAINEL DE CONTROLE'!$D$6),0) -> 0 | AI58: =IF(AND(AI$4>=$B58,AI$4<='PAINEL DE CONTROLE'!$D$6),$C58/COUNTIFS($L$4:$AT$4,">="&$B58,$L$4:$AT$4,"<="&'PAINEL DE CONTROLE'!$D$6),0) -> 0 | AJ58: =IF(AND(AJ$4>=$B58,AJ$4<='PAINEL DE CONTROLE'!$D$6),$C58/COUNTIFS($L$4:$AT$4,">="&$B58,$L$4:$AT$4,"<="&'PAINEL DE CONTROLE'!$D$6),0) -> 0 | AK58: =IF(AND(AK$4>=$B58,AK$4<='PAINEL DE CONTROLE'!$D$6),$C58/COUNTIFS($L$4:$AT$4,">="&$B58,$L$4:$AT$4,"<="&'PAINEL DE CONTROLE'!$D$6),0) -> 0 | AL58: =IF(AND(AL$4>=$B58,AL$4<='PAINEL DE CONTROLE'!$D$6),$C58/COUNTIFS($L$4:$AT$4,">="&$B58,$L$4:$AT$4,"<="&'PAINEL DE CONTROLE'!$D$6),0) -> 0 | AM58: =IF(AND(AM$4>=$B58,AM$4<='PAINEL DE CONTROLE'!$D$6),$C58/COUNTIFS($L$4:$AT$4,">="&$B58,$L$4:$AT$4,"<="&'PAINEL DE CONTROLE'!$D$6),0) -> 0 | AN58: =IF(AND(AN$4>=$B58,AN$4<='PAINEL DE CONTROLE'!$D$6),$C58/COUNTIFS($L$4:$AT$4,">="&$B58,$L$4:$AT$4,"<="&'PAINEL DE CONTROLE'!$D$6),0) -> 0 | AO58: =IF(AND(AO$4>=$B58,AO$4<='PAINEL DE CONTROLE'!$D$6),$C58/COUNTIFS($L$4:$AT$4,">="&$B58,$L$4:$AT$4,"<="&'PAINEL DE CONTROLE'!$D$6),0) -> 0 | AP58: =IF(AND(AP$4>=$B58,AP$4<='PAINEL DE CONTROLE'!$D$6),$C58/COUNTIFS($L$4:$AT$4,">="&$B58,$L$4:$AT$4,"<="&'PAINEL DE CONTROLE'!$D$6),0) -> 0 | AQ58: =IF(AND(AQ$4>=$B58,AQ$4<='PAINEL DE CONTROLE'!$D$6),$C58/COUNTIFS($L$4:$AT$4,">="&$B58,$L$4:$AT$4,"<="&'PAINEL DE CONTROLE'!$D$6),0) -> 0 | AR58: =IF(AND(AR$4>=$B58,AR$4<='PAINEL DE CONTROLE'!$D$6),$C58/COUNTIFS($L$4:$AT$4,">="&$B58,$L$4:$AT$4,"<="&'PAINEL DE CONTROLE'!$D$6),0) -> 0 | AS58: =IF(AND(AS$4>=$B58,AS$4<='PAINEL DE CONTROLE'!$D$6),$C58/COUNTIFS($L$4:$AT$4,">="&$B58,$L$4:$AT$4,"<="&'PAINEL DE CONTROLE'!$D$6),0) -> 0 | AT58: =IF(AND(AT$4>=$B58,AT$4<='PAINEL DE CONTROLE'!$D$6),$C58/COUNTIFS($L$4:$AT$4,">="&$B58,$L$4:$AT$4,"<="&'PAINEL DE CONTROLE'!$D$6),0) -> 0 | AU58: =IF(AND(AU$4>=$B58,AU$4<='PAINEL DE CONTROLE'!$D$6),$C58/COUNTIFS($L$4:$AT$4,">="&$B58,$L$4:$AT$4,"<="&'PAINEL DE CONTROLE'!$D$6),0) -> 0
B59: 18 | C59: 0 | M59: =IF(AND(M$4>=$B59,M$4<='PAINEL DE CONTROLE'!$D$6),$C59/COUNTIFS($L$4:$AT$4,">="&$B59,$L$4:$AT$4,"<="&'PAINEL DE CONTROLE'!$D$6),0) -> 0 | N59: =IF(AND(N$4>=$B59,N$4<='PAINEL DE CONTROLE'!$D$6),$C59/COUNTIFS($L$4:$AT$4,">="&$B59,$L$4:$AT$4,"<="&'PAINEL DE CONTROLE'!$D$6),0) -> 0 | O59: =IF(AND(O$4>=$B59,O$4<='PAINEL DE CONTROLE'!$D$6),$C59/COUNTIFS($L$4:$AT$4,">="&$B59,$L$4:$AT$4,"<="&'PAINEL DE CONTROLE'!$D$6),0) -> 0 | P59: =IF(AND(P$4>=$B59,P$4<='PAINEL DE CONTROLE'!$D$6),$C59/COUNTIFS($L$4:$AT$4,">="&$B59,$L$4:$AT$4,"<="&'PAINEL DE CONTROLE'!$D$6),0) -> 0 | Q59: =IF(AND(Q$4>=$B59,Q$4<='PAINEL DE CONTROLE'!$D$6),$C59/COUNTIFS($L$4:$AT$4,">="&$B59,$L$4:$AT$4,"<="&'PAINEL DE CONTROLE'!$D$6),0) -> 0 | R59: =IF(AND(R$4>=$B59,R$4<='PAINEL DE CONTROLE'!$D$6),$C59/COUNTIFS($L$4:$AT$4,">="&$B59,$L$4:$AT$4,"<="&'PAINEL DE CONTROLE'!$D$6),0) -> 0 | S59: =IF(AND(S$4>=$B59,S$4<='PAINEL DE CONTROLE'!$D$6),$C59/COUNTIFS($L$4:$AT$4,">="&$B59,$L$4:$AT$4,"<="&'PAINEL DE CONTROLE'!$D$6),0) -> 0 | T59: =IF(AND(T$4>=$B59,T$4<='PAINEL DE CONTROLE'!$D$6),$C59/COUNTIFS($L$4:$AT$4,">="&$B59,$L$4:$AT$4,"<="&'PAINEL DE CONTROLE'!$D$6),0) -> 0 | U59: =IF(AND(U$4>=$B59,U$4<='PAINEL DE CONTROLE'!$D$6),$C59/COUNTIFS($L$4:$AT$4,">="&$B59,$L$4:$AT$4,"<="&'PAINEL DE CONTROLE'!$D$6),0) -> 0 | V59: =IF(AND(V$4>=$B59,V$4<='PAINEL DE CONTROLE'!$D$6),$C59/COUNTIFS($L$4:$AT$4,">="&$B59,$L$4:$AT$4,"<="&'PAINEL DE CONTROLE'!$D$6),0) -> 0 | W59: =IF(AND(W$4>=$B59,W$4<='PAINEL DE CONTROLE'!$D$6),$C59/COUNTIFS($L$4:$AT$4,">="&$B59,$L$4:$AT$4,"<="&'PAINEL DE CONTROLE'!$D$6),0) -> 0 | X59: =IF(AND(X$4>=$B59,X$4<='PAINEL DE CONTROLE'!$D$6),$C59/COUNTIFS($L$4:$AT$4,">="&$B59,$L$4:$AT$4,"<="&'PAINEL DE CONTROLE'!$D$6),0) -> 0 | Y59: =IF(AND(Y$4>=$B59,Y$4<='PAINEL DE CONTROLE'!$D$6),$C59/COUNTIFS($L$4:$AT$4,">="&$B59,$L$4:$AT$4,"<="&'PAINEL DE CONTROLE'!$D$6),0) -> 0 | Z59: =IF(AND(Z$4>=$B59,Z$4<='PAINEL DE CONTROLE'!$D$6),$C59/COUNTIFS($L$4:$AT$4,">="&$B59,$L$4:$AT$4,"<="&'PAINEL DE CONTROLE'!$D$6),0) -> 0 | AA59: =IF(AND(AA$4>=$B59,AA$4<='PAINEL DE CONTROLE'!$D$6),$C59/COUNTIFS($L$4:$AT$4,">="&$B59,$L$4:$AT$4,"<="&'PAINEL DE CONTROLE'!$D$6),0) -> 0 | AB59: =IF(AND(AB$4>=$B59,AB$4<='PAINEL DE CONTROLE'!$D$6),$C59/COUNTIFS($L$4:$AT$4,">="&$B59,$L$4:$AT$4,"<="&'PAINEL DE CONTROLE'!$D$6),0) -> 0 | AC59: =IF(AND(AC$4>=$B59,AC$4<='PAINEL DE CONTROLE'!$D$6),$C59/COUNTIFS($L$4:$AT$4,">="&$B59,$L$4:$AT$4,"<="&'PAINEL DE CONTROLE'!$D$6),0) -> 0 | AD59: =IF(AND(AD$4>=$B59,AD$4<='PAINEL DE CONTROLE'!$D$6),$C59/COUNTIFS($L$4:$AT$4,">="&$B59,$L$4:$AT$4,"<="&'PAINEL DE CONTROLE'!$D$6),0) -> 0 | AE59: =IF(AND(AE$4>=$B59,AE$4<='PAINEL DE CONTROLE'!$D$6),$C59/COUNTIFS($L$4:$AT$4,">="&$B59,$L$4:$AT$4,"<="&'PAINEL DE CONTROLE'!$D$6),0) -> 0 | AF59: =IF(AND(AF$4>=$B59,AF$4<='PAINEL DE CONTROLE'!$D$6),$C59/COUNTIFS($L$4:$AT$4,">="&$B59,$L$4:$AT$4,"<="&'PAINEL DE CONTROLE'!$D$6),0) -> 0 | AG59: =IF(AND(AG$4>=$B59,AG$4<='PAINEL DE CONTROLE'!$D$6),$C59/COUNTIFS($L$4:$AT$4,">="&$B59,$L$4:$AT$4,"<="&'PAINEL DE CONTROLE'!$D$6),0) -> 0 | AH59: =IF(AND(AH$4>=$B59,AH$4<='PAINEL DE CONTROLE'!$D$6),$C59/COUNTIFS($L$4:$AT$4,">="&$B59,$L$4:$AT$4,"<="&'PAINEL DE CONTROLE'!$D$6),0) -> 0 | AI59: =IF(AND(AI$4>=$B59,AI$4<='PAINEL DE CONTROLE'!$D$6),$C59/COUNTIFS($L$4:$AT$4,">="&$B59,$L$4:$AT$4,"<="&'PAINEL DE CONTROLE'!$D$6),0) -> 0 | AJ59: =IF(AND(AJ$4>=$B59,AJ$4<='PAINEL DE CONTROLE'!$D$6),$C59/COUNTIFS($L$4:$AT$4,">="&$B59,$L$4:$AT$4,"<="&'PAINEL DE CONTROLE'!$D$6),0) -> 0 | AK59: =IF(AND(AK$4>=$B59,AK$4<='PAINEL DE CONTROLE'!$D$6),$C59/COUNTIFS($L$4:$AT$4,">="&$B59,$L$4:$AT$4,"<="&'PAINEL DE CONTROLE'!$D$6),0) -> 0 | AL59: =IF(AND(AL$4>=$B59,AL$4<='PAINEL DE CONTROLE'!$D$6),$C59/COUNTIFS($L$4:$AT$4,">="&$B59,$L$4:$AT$4,"<="&'PAINEL DE CONTROLE'!$D$6),0) -> 0 | AM59: =IF(AND(AM$4>=$B59,AM$4<='PAINEL DE CONTROLE'!$D$6),$C59/COUNTIFS($L$4:$AT$4,">="&$B59,$L$4:$AT$4,"<="&'PAINEL DE CONTROLE'!$D$6),0) -> 0 | AN59: =IF(AND(AN$4>=$B59,AN$4<='PAINEL DE CONTROLE'!$D$6),$C59/COUNTIFS($L$4:$AT$4,">="&$B59,$L$4:$AT$4,"<="&'PAINEL DE CONTROLE'!$D$6),0) -> 0 | AO59: =IF(AND(AO$4>=$B59,AO$4<='PAINEL DE CONTROLE'!$D$6),$C59/COUNTIFS($L$4:$AT$4,">="&$B59,$L$4:$AT$4,"<="&'PAINEL DE CONTROLE'!$D$6),0) -> 0 | AP59: =IF(AND(AP$4>=$B59,AP$4<='PAINEL DE CONTROLE'!$D$6),$C59/COUNTIFS($L$4:$AT$4,">="&$B59,$L$4:$AT$4,"<="&'PAINEL DE CONTROLE'!$D$6),0) -> 0 | AQ59: =IF(AND(AQ$4>=$B59,AQ$4<='PAINEL DE CONTROLE'!$D$6),$C59/COUNTIFS($L$4:$AT$4,">="&$B59,$L$4:$AT$4,"<="&'PAINEL DE CONTROLE'!$D$6),0) -> 0 | AR59: =IF(AND(AR$4>=$B59,AR$4<='PAINEL DE CONTROLE'!$D$6),$C59/COUNTIFS($L$4:$AT$4,">="&$B59,$L$4:$AT$4,"<="&'PAINEL DE CONTROLE'!$D$6),0) -> 0 | AS59: =IF(AND(AS$4>=$B59,AS$4<='PAINEL DE CONTROLE'!$D$6),$C59/COUNTIFS($L$4:$AT$4,">="&$B59,$L$4:$AT$4,"<="&'PAINEL DE CONTROLE'!$D$6),0) -> 0 | AT59: =IF(AND(AT$4>=$B59,AT$4<='PAINEL DE CONTROLE'!$D$6),$C59/COUNTIFS($L$4:$AT$4,">="&$B59,$L$4:$AT$4,"<="&'PAINEL DE CONTROLE'!$D$6),0) -> 0 | AU59: =IF(AND(AU$4>=$B59,AU$4<='PAINEL DE CONTROLE'!$D$6),$C59/COUNTIFS($L$4:$AT$4,">="&$B59,$L$4:$AT$4,"<="&'PAINEL DE CONTROLE'!$D$6),0) -> 0
B60: 19 | C60: 0 | M60: =IF(AND(M$4>=$B60,M$4<='PAINEL DE CONTROLE'!$D$6),$C60/COUNTIFS($L$4:$AT$4,">="&$B60,$L$4:$AT$4,"<="&'PAINEL DE CONTROLE'!$D$6),0) -> 0 | N60: =IF(AND(N$4>=$B60,N$4<='PAINEL DE CONTROLE'!$D$6),$C60/COUNTIFS($L$4:$AT$4,">="&$B60,$L$4:$AT$4,"<="&'PAINEL DE CONTROLE'!$D$6),0) -> 0 | O60: =IF(AND(O$4>=$B60,O$4<='PAINEL DE CONTROLE'!$D$6),$C60/COUNTIFS($L$4:$AT$4,">="&$B60,$L$4:$AT$4,"<="&'PAINEL DE CONTROLE'!$D$6),0) -> 0 | P60: =IF(AND(P$4>=$B60,P$4<='PAINEL DE CONTROLE'!$D$6),$C60/COUNTIFS($L$4:$AT$4,">="&$B60,$L$4:$AT$4,"<="&'PAINEL DE CONTROLE'!$D$6),0) -> 0 | Q60: =IF(AND(Q$4>=$B60,Q$4<='PAINEL DE CONTROLE'!$D$6),$C60/COUNTIFS($L$4:$AT$4,">="&$B60,$L$4:$AT$4,"<="&'PAINEL DE CONTROLE'!$D$6),0) -> 0 | R60: =IF(AND(R$4>=$B60,R$4<='PAINEL DE CONTROLE'!$D$6),$C60/COUNTIFS($L$4:$AT$4,">="&$B60,$L$4:$AT$4,"<="&'PAINEL DE CONTROLE'!$D$6),0) -> 0 | S60: =IF(AND(S$4>=$B60,S$4<='PAINEL DE CONTROLE'!$D$6),$C60/COUNTIFS($L$4:$AT$4,">="&$B60,$L$4:$AT$4,"<="&'PAINEL DE CONTROLE'!$D$6),0) -> 0 | T60: =IF(AND(T$4>=$B60,T$4<='PAINEL DE CONTROLE'!$D$6),$C60/COUNTIFS($L$4:$AT$4,">="&$B60,$L$4:$AT$4,"<="&'PAINEL DE CONTROLE'!$D$6),0) -> 0 | U60: =IF(AND(U$4>=$B60,U$4<='PAINEL DE CONTROLE'!$D$6),$C60/COUNTIFS($L$4:$AT$4,">="&$B60,$L$4:$AT$4,"<="&'PAINEL DE CONTROLE'!$D$6),0) -> 0 | V60: =IF(AND(V$4>=$B60,V$4<='PAINEL DE CONTROLE'!$D$6),$C60/COUNTIFS($L$4:$AT$4,">="&$B60,$L$4:$AT$4,"<="&'PAINEL DE CONTROLE'!$D$6),0) -> 0 | W60: =IF(AND(W$4>=$B60,W$4<='PAINEL DE CONTROLE'!$D$6),$C60/COUNTIFS($L$4:$AT$4,">="&$B60,$L$4:$AT$4,"<="&'PAINEL DE CONTROLE'!$D$6),0) -> 0 | X60: =IF(AND(X$4>=$B60,X$4<='PAINEL DE CONTROLE'!$D$6),$C60/COUNTIFS($L$4:$AT$4,">="&$B60,$L$4:$AT$4,"<="&'PAINEL DE CONTROLE'!$D$6),0) -> 0 | Y60: =IF(AND(Y$4>=$B60,Y$4<='PAINEL DE CONTROLE'!$D$6),$C60/COUNTIFS($L$4:$AT$4,">="&$B60,$L$4:$AT$4,"<="&'PAINEL DE CONTROLE'!$D$6),0) -> 0 | Z60: =IF(AND(Z$4>=$B60,Z$4<='PAINEL DE CONTROLE'!$D$6),$C60/COUNTIFS($L$4:$AT$4,">="&$B60,$L$4:$AT$4,"<="&'PAINEL DE CONTROLE'!$D$6),0) -> 0 | AA60: =IF(AND(AA$4>=$B60,AA$4<='PAINEL DE CONTROLE'!$D$6),$C60/COUNTIFS($L$4:$AT$4,">="&$B60,$L$4:$AT$4,"<="&'PAINEL DE CONTROLE'!$D$6),0) -> 0 | AB60: =IF(AND(AB$4>=$B60,AB$4<='PAINEL DE CONTROLE'!$D$6),$C60/COUNTIFS($L$4:$AT$4,">="&$B60,$L$4:$AT$4,"<="&'PAINEL DE CONTROLE'!$D$6),0) -> 0 | AC60: =IF(AND(AC$4>=$B60,AC$4<='PAINEL DE CONTROLE'!$D$6),$C60/COUNTIFS($L$4:$AT$4,">="&$B60,$L$4:$AT$4,"<="&'PAINEL DE CONTROLE'!$D$6),0) -> 0 | AD60: =IF(AND(AD$4>=$B60,AD$4<='PAINEL DE CONTROLE'!$D$6),$C60/COUNTIFS($L$4:$AT$4,">="&$B60,$L$4:$AT$4,"<="&'PAINEL DE CONTROLE'!$D$6),0) -> 0 | AE60: =IF(AND(AE$4>=$B60,AE$4<='PAINEL DE CONTROLE'!$D$6),$C60/COUNTIFS($L$4:$AT$4,">="&$B60,$L$4:$AT$4,"<="&'PAINEL DE CONTROLE'!$D$6),0) -> 0 | AF60: =IF(AND(AF$4>=$B60,AF$4<='PAINEL DE CONTROLE'!$D$6),$C60/COUNTIFS($L$4:$AT$4,">="&$B60,$L$4:$AT$4,"<="&'PAINEL DE CONTROLE'!$D$6),0) -> 0 | AG60: =IF(AND(AG$4>=$B60,AG$4<='PAINEL DE CONTROLE'!$D$6),$C60/COUNTIFS($L$4:$AT$4,">="&$B60,$L$4:$AT$4,"<="&'PAINEL DE CONTROLE'!$D$6),0) -> 0 | AH60: =IF(AND(AH$4>=$B60,AH$4<='PAINEL DE CONTROLE'!$D$6),$C60/COUNTIFS($L$4:$AT$4,">="&$B60,$L$4:$AT$4,"<="&'PAINEL DE CONTROLE'!$D$6),0) -> 0 | AI60: =IF(AND(AI$4>=$B60,AI$4<='PAINEL DE CONTROLE'!$D$6),$C60/COUNTIFS($L$4:$AT$4,">="&$B60,$L$4:$AT$4,"<="&'PAINEL DE CONTROLE'!$D$6),0) -> 0 | AJ60: =IF(AND(AJ$4>=$B60,AJ$4<='PAINEL DE CONTROLE'!$D$6),$C60/COUNTIFS($L$4:$AT$4,">="&$B60,$L$4:$AT$4,"<="&'PAINEL DE CONTROLE'!$D$6),0) -> 0 | AK60: =IF(AND(AK$4>=$B60,AK$4<='PAINEL DE CONTROLE'!$D$6),$C60/COUNTIFS($L$4:$AT$4,">="&$B60,$L$4:$AT$4,"<="&'PAINEL DE CONTROLE'!$D$6),0) -> 0 | AL60: =IF(AND(AL$4>=$B60,AL$4<='PAINEL DE CONTROLE'!$D$6),$C60/COUNTIFS($L$4:$AT$4,">="&$B60,$L$4:$AT$4,"<="&'PAINEL DE CONTROLE'!$D$6),0) -> 0 | AM60: =IF(AND(AM$4>=$B60,AM$4<='PAINEL DE CONTROLE'!$D$6),$C60/COUNTIFS($L$4:$AT$4,">="&$B60,$L$4:$AT$4,"<="&'PAINEL DE CONTROLE'!$D$6),0) -> 0 | AN60: =IF(AND(AN$4>=$B60,AN$4<='PAINEL DE CONTROLE'!$D$6),$C60/COUNTIFS($L$4:$AT$4,">="&$B60,$L$4:$AT$4,"<="&'PAINEL DE CONTROLE'!$D$6),0) -> 0 | AO60: =IF(AND(AO$4>=$B60,AO$4<='PAINEL DE CONTROLE'!$D$6),$C60/COUNTIFS($L$4:$AT$4,">="&$B60,$L$4:$AT$4,"<="&'PAINEL DE CONTROLE'!$D$6),0) -> 0 | AP60: =IF(AND(AP$4>=$B60,AP$4<='PAINEL DE CONTROLE'!$D$6),$C60/COUNTIFS($L$4:$AT$4,">="&$B60,$L$4:$AT$4,"<="&'PAINEL DE CONTROLE'!$D$6),0) -> 0 | AQ60: =IF(AND(AQ$4>=$B60,AQ$4<='PAINEL DE CONTROLE'!$D$6),$C60/COUNTIFS($L$4:$AT$4,">="&$B60,$L$4:$AT$4,"<="&'PAINEL DE CONTROLE'!$D$6),0) -> 0 | AR60: =IF(AND(AR$4>=$B60,AR$4<='PAINEL DE CONTROLE'!$D$6),$C60/COUNTIFS($L$4:$AT$4,">="&$B60,$L$4:$AT$4,"<="&'PAINEL DE CONTROLE'!$D$6),0) -> 0 | AS60: =IF(AND(AS$4>=$B60,AS$4<='PAINEL DE CONTROLE'!$D$6),$C60/COUNTIFS($L$4:$AT$4,">="&$B60,$L$4:$AT$4,"<="&'PAINEL DE CONTROLE'!$D$6),0) -> 0 | AT60: =IF(AND(AT$4>=$B60,AT$4<='PAINEL DE CONTROLE'!$D$6),$C60/COUNTIFS($L$4:$AT$4,">="&$B60,$L$4:$AT$4,"<="&'PAINEL DE CONTROLE'!$D$6),0) -> 0 | AU60: =IF(AND(AU$4>=$B60,AU$4<='PAINEL DE CONTROLE'!$D$6),$C60/COUNTIFS($L$4:$AT$4,">="&$B60,$L$4:$AT$4,"<="&'PAINEL DE CONTROLE'!$D$6),0) -> 0
B61: 20 | C61: 0 | M61: =IF(AND(M$4>=$B61,M$4<='PAINEL DE CONTROLE'!$D$6),$C61/COUNTIFS($L$4:$AT$4,">="&$B61,$L$4:$AT$4,"<="&'PAINEL DE CONTROLE'!$D$6),0) -> 0 | N61: =IF(AND(N$4>=$B61,N$4<='PAINEL DE CONTROLE'!$D$6),$C61/COUNTIFS($L$4:$AT$4,">="&$B61,$L$4:$AT$4,"<="&'PAINEL DE CONTROLE'!$D$6),0) -> 0 | O61: =IF(AND(O$4>=$B61,O$4<='PAINEL DE CONTROLE'!$D$6),$C61/COUNTIFS($L$4:$AT$4,">="&$B61,$L$4:$AT$4,"<="&'PAINEL DE CONTROLE'!$D$6),0) -> 0 | P61: =IF(AND(P$4>=$B61,P$4<='PAINEL DE CONTROLE'!$D$6),$C61/COUNTIFS($L$4:$AT$4,">="&$B61,$L$4:$AT$4,"<="&'PAINEL DE CONTROLE'!$D$6),0) -> 0 | Q61: =IF(AND(Q$4>=$B61,Q$4<='PAINEL DE CONTROLE'!$D$6),$C61/COUNTIFS($L$4:$AT$4,">="&$B61,$L$4:$AT$4,"<="&'PAINEL DE CONTROLE'!$D$6),0) -> 0 | R61: =IF(AND(R$4>=$B61,R$4<='PAINEL DE CONTROLE'!$D$6),$C61/COUNTIFS($L$4:$AT$4,">="&$B61,$L$4:$AT$4,"<="&'PAINEL DE CONTROLE'!$D$6),0) -> 0 | S61: =IF(AND(S$4>=$B61,S$4<='PAINEL DE CONTROLE'!$D$6),$C61/COUNTIFS($L$4:$AT$4,">="&$B61,$L$4:$AT$4,"<="&'PAINEL DE CONTROLE'!$D$6),0) -> 0 | T61: =IF(AND(T$4>=$B61,T$4<='PAINEL DE CONTROLE'!$D$6),$C61/COUNTIFS($L$4:$AT$4,">="&$B61,$L$4:$AT$4,"<="&'PAINEL DE CONTROLE'!$D$6),0) -> 0 | U61: =IF(AND(U$4>=$B61,U$4<='PAINEL DE CONTROLE'!$D$6),$C61/COUNTIFS($L$4:$AT$4,">="&$B61,$L$4:$AT$4,"<="&'PAINEL DE CONTROLE'!$D$6),0) -> 0 | V61: =IF(AND(V$4>=$B61,V$4<='PAINEL DE CONTROLE'!$D$6),$C61/COUNTIFS($L$4:$AT$4,">="&$B61,$L$4:$AT$4,"<="&'PAINEL DE CONTROLE'!$D$6),0) -> 0 | W61: =IF(AND(W$4>=$B61,W$4<='PAINEL DE CONTROLE'!$D$6),$C61/COUNTIFS($L$4:$AT$4,">="&$B61,$L$4:$AT$4,"<="&'PAINEL DE CONTROLE'!$D$6),0) -> 0 | X61: =IF(AND(X$4>=$B61,X$4<='PAINEL DE CONTROLE'!$D$6),$C61/COUNTIFS($L$4:$AT$4,">="&$B61,$L$4:$AT$4,"<="&'PAINEL DE CONTROLE'!$D$6),0) -> 0 | Y61: =IF(AND(Y$4>=$B61,Y$4<='PAINEL DE CONTROLE'!$D$6),$C61/COUNTIFS($L$4:$AT$4,">="&$B61,$L$4:$AT$4,"<="&'PAINEL DE CONTROLE'!$D$6),0) -> 0 | Z61: =IF(AND(Z$4>=$B61,Z$4<='PAINEL DE CONTROLE'!$D$6),$C61/COUNTIFS($L$4:$AT$4,">="&$B61,$L$4:$AT$4,"<="&'PAINEL DE CONTROLE'!$D$6),0) -> 0 | AA61: =IF(AND(AA$4>=$B61,AA$4<='PAINEL DE CONTROLE'!$D$6),$C61/COUNTIFS($L$4:$AT$4,">="&$B61,$L$4:$AT$4,"<="&'PAINEL DE CONTROLE'!$D$6),0) -> 0 | AB61: =IF(AND(AB$4>=$B61,AB$4<='PAINEL DE CONTROLE'!$D$6),$C61/COUNTIFS($L$4:$AT$4,">="&$B61,$L$4:$AT$4,"<="&'PAINEL DE CONTROLE'!$D$6),0) -> 0 | AC61: =IF(AND(AC$4>=$B61,AC$4<='PAINEL DE CONTROLE'!$D$6),$C61/COUNTIFS($L$4:$AT$4,">="&$B61,$L$4:$AT$4,"<="&'PAINEL DE CONTROLE'!$D$6),0) -> 0 | AD61: =IF(AND(AD$4>=$B61,AD$4<='PAINEL DE CONTROLE'!$D$6),$C61/COUNTIFS($L$4:$AT$4,">="&$B61,$L$4:$AT$4,"<="&'PAINEL DE CONTROLE'!$D$6),0) -> 0 | AE61: =IF(AND(AE$4>=$B61,AE$4<='PAINEL DE CONTROLE'!$D$6),$C61/COUNTIFS($L$4:$AT$4,">="&$B61,$L$4:$AT$4,"<="&'PAINEL DE CONTROLE'!$D$6),0) -> 0 | AF61: =IF(AND(AF$4>=$B61,AF$4<='PAINEL DE CONTROLE'!$D$6),$C61/COUNTIFS($L$4:$AT$4,">="&$B61,$L$4:$AT$4,"<="&'PAINEL DE CONTROLE'!$D$6),0) -> 0 | AG61: =IF(AND(AG$4>=$B61,AG$4<='PAINEL DE CONTROLE'!$D$6),$C61/COUNTIFS($L$4:$AT$4,">="&$B61,$L$4:$AT$4,"<="&'PAINEL DE CONTROLE'!$D$6),0) -> 0 | AH61: =IF(AND(AH$4>=$B61,AH$4<='PAINEL DE CONTROLE'!$D$6),$C61/COUNTIFS($L$4:$AT$4,">="&$B61,$L$4:$AT$4,"<="&'PAINEL DE CONTROLE'!$D$6),0) -> 0 | AI61: =IF(AND(AI$4>=$B61,AI$4<='PAINEL DE CONTROLE'!$D$6),$C61/COUNTIFS($L$4:$AT$4,">="&$B61,$L$4:$AT$4,"<="&'PAINEL DE CONTROLE'!$D$6),0) -> 0 | AJ61: =IF(AND(AJ$4>=$B61,AJ$4<='PAINEL DE CONTROLE'!$D$6),$C61/COUNTIFS($L$4:$AT$4,">="&$B61,$L$4:$AT$4,"<="&'PAINEL DE CONTROLE'!$D$6),0) -> 0 | AK61: =IF(AND(AK$4>=$B61,AK$4<='PAINEL DE CONTROLE'!$D$6),$C61/COUNTIFS($L$4:$AT$4,">="&$B61,$L$4:$AT$4,"<="&'PAINEL DE CONTROLE'!$D$6),0) -> 0 | AL61: =IF(AND(AL$4>=$B61,AL$4<='PAINEL DE CONTROLE'!$D$6),$C61/COUNTIFS($L$4:$AT$4,">="&$B61,$L$4:$AT$4,"<="&'PAINEL DE CONTROLE'!$D$6),0) -> 0 | AM61: =IF(AND(AM$4>=$B61,AM$4<='PAINEL DE CONTROLE'!$D$6),$C61/COUNTIFS($L$4:$AT$4,">="&$B61,$L$4:$AT$4,"<="&'PAINEL DE CONTROLE'!$D$6),0) -> 0 | AN61: =IF(AND(AN$4>=$B61,AN$4<='PAINEL DE CONTROLE'!$D$6),$C61/COUNTIFS($L$4:$AT$4,">="&$B61,$L$4:$AT$4,"<="&'PAINEL DE CONTROLE'!$D$6),0) -> 0 | AO61: =IF(AND(AO$4>=$B61,AO$4<='PAINEL DE CONTROLE'!$D$6),$C61/COUNTIFS($L$4:$AT$4,">="&$B61,$L$4:$AT$4,"<="&'PAINEL DE CONTROLE'!$D$6),0) -> 0 | AP61: =IF(AND(AP$4>=$B61,AP$4<='PAINEL DE CONTROLE'!$D$6),$C61/COUNTIFS($L$4:$AT$4,">="&$B61,$L$4:$AT$4,"<="&'PAINEL DE CONTROLE'!$D$6),0) -> 0 | AQ61: =IF(AND(AQ$4>=$B61,AQ$4<='PAINEL DE CONTROLE'!$D$6),$C61/COUNTIFS($L$4:$AT$4,">="&$B61,$L$4:$AT$4,"<="&'PAINEL DE CONTROLE'!$D$6),0) -> 0 | AR61: =IF(AND(AR$4>=$B61,AR$4<='PAINEL DE CONTROLE'!$D$6),$C61/COUNTIFS($L$4:$AT$4,">="&$B61,$L$4:$AT$4,"<="&'PAINEL DE CONTROLE'!$D$6),0) -> 0 | AS61: =IF(AND(AS$4>=$B61,AS$4<='PAINEL DE CONTROLE'!$D$6),$C61/COUNTIFS($L$4:$AT$4,">="&$B61,$L$4:$AT$4,"<="&'PAINEL DE CONTROLE'!$D$6),0) -> 0 | AT61: =IF(AND(AT$4>=$B61,AT$4<='PAINEL DE CONTROLE'!$D$6),$C61/COUNTIFS($L$4:$AT$4,">="&$B61,$L$4:$AT$4,"<="&'PAINEL DE CONTROLE'!$D$6),0) -> 0 | AU61: =IF(AND(AU$4>=$B61,AU$4<='PAINEL DE CONTROLE'!$D$6),$C61/COUNTIFS($L$4:$AT$4,">="&$B61,$L$4:$AT$4,"<="&'PAINEL DE CONTROLE'!$D$6),0) -> 0
B62: 21 | C62: 0 | M62: =IF(AND(M$4>=$B62,M$4<='PAINEL DE CONTROLE'!$D$6),$C62/COUNTIFS($L$4:$AT$4,">="&$B62,$L$4:$AT$4,"<="&'PAINEL DE CONTROLE'!$D$6),0) -> 0 | N62: =IF(AND(N$4>=$B62,N$4<='PAINEL DE CONTROLE'!$D$6),$C62/COUNTIFS($L$4:$AT$4,">="&$B62,$L$4:$AT$4,"<="&'PAINEL DE CONTROLE'!$D$6),0) -> 0 | O62: =IF(AND(O$4>=$B62,O$4<='PAINEL DE CONTROLE'!$D$6),$C62/COUNTIFS($L$4:$AT$4,">="&$B62,$L$4:$AT$4,"<="&'PAINEL DE CONTROLE'!$D$6),0) -> 0 | P62: =IF(AND(P$4>=$B62,P$4<='PAINEL DE CONTROLE'!$D$6),$C62/COUNTIFS($L$4:$AT$4,">="&$B62,$L$4:$AT$4,"<="&'PAINEL DE CONTROLE'!$D$6),0) -> 0 | Q62: =IF(AND(Q$4>=$B62,Q$4<='PAINEL DE CONTROLE'!$D$6),$C62/COUNTIFS($L$4:$AT$4,">="&$B62,$L$4:$AT$4,"<="&'PAINEL DE CONTROLE'!$D$6),0) -> 0 | R62: =IF(AND(R$4>=$B62,R$4<='PAINEL DE CONTROLE'!$D$6),$C62/COUNTIFS($L$4:$AT$4,">="&$B62,$L$4:$AT$4,"<="&'PAINEL DE CONTROLE'!$D$6),0) -> 0 | S62: =IF(AND(S$4>=$B62,S$4<='PAINEL DE CONTROLE'!$D$6),$C62/COUNTIFS($L$4:$AT$4,">="&$B62,$L$4:$AT$4,"<="&'PAINEL DE CONTROLE'!$D$6),0) -> 0 | T62: =IF(AND(T$4>=$B62,T$4<='PAINEL DE CONTROLE'!$D$6),$C62/COUNTIFS($L$4:$AT$4,">="&$B62,$L$4:$AT$4,"<="&'PAINEL DE CONTROLE'!$D$6),0) -> 0 | U62: =IF(AND(U$4>=$B62,U$4<='PAINEL DE CONTROLE'!$D$6),$C62/COUNTIFS($L$4:$AT$4,">="&$B62,$L$4:$AT$4,"<="&'PAINEL DE CONTROLE'!$D$6),0) -> 0 | V62: =IF(AND(V$4>=$B62,V$4<='PAINEL DE CONTROLE'!$D$6),$C62/COUNTIFS($L$4:$AT$4,">="&$B62,$L$4:$AT$4,"<="&'PAINEL DE CONTROLE'!$D$6),0) -> 0 | W62: =IF(AND(W$4>=$B62,W$4<='PAINEL DE CONTROLE'!$D$6),$C62/COUNTIFS($L$4:$AT$4,">="&$B62,$L$4:$AT$4,"<="&'PAINEL DE CONTROLE'!$D$6),0) -> 0 | X62: =IF(AND(X$4>=$B62,X$4<='PAINEL DE CONTROLE'!$D$6),$C62/COUNTIFS($L$4:$AT$4,">="&$B62,$L$4:$AT$4,"<="&'PAINEL DE CONTROLE'!$D$6),0) -> 0 | Y62: =IF(AND(Y$4>=$B62,Y$4<='PAINEL DE CONTROLE'!$D$6),$C62/COUNTIFS($L$4:$AT$4,">="&$B62,$L$4:$AT$4,"<="&'PAINEL DE CONTROLE'!$D$6),0) -> 0 | Z62: =IF(AND(Z$4>=$B62,Z$4<='PAINEL DE CONTROLE'!$D$6),$C62/COUNTIFS($L$4:$AT$4,">="&$B62,$L$4:$AT$4,"<="&'PAINEL DE CONTROLE'!$D$6),0) -> 0 | AA62: =IF(AND(AA$4>=$B62,AA$4<='PAINEL DE CONTROLE'!$D$6),$C62/COUNTIFS($L$4:$AT$4,">="&$B62,$L$4:$AT$4,"<="&'PAINEL DE CONTROLE'!$D$6),0) -> 0 | AB62: =IF(AND(AB$4>=$B62,AB$4<='PAINEL DE CONTROLE'!$D$6),$C62/COUNTIFS($L$4:$AT$4,">="&$B62,$L$4:$AT$4,"<="&'PAINEL DE CONTROLE'!$D$6),0) -> 0 | AC62: =IF(AND(AC$4>=$B62,AC$4<='PAINEL DE CONTROLE'!$D$6),$C62/COUNTIFS($L$4:$AT$4,">="&$B62,$L$4:$AT$4,"<="&'PAINEL DE CONTROLE'!$D$6),0) -> 0 | AD62: =IF(AND(AD$4>=$B62,AD$4<='PAINEL DE CONTROLE'!$D$6),$C62/COUNTIFS($L$4:$AT$4,">="&$B62,$L$4:$AT$4,"<="&'PAINEL DE CONTROLE'!$D$6),0) -> 0 | AE62: =IF(AND(AE$4>=$B62,AE$4<='PAINEL DE CONTROLE'!$D$6),$C62/COUNTIFS($L$4:$AT$4,">="&$B62,$L$4:$AT$4,"<="&'PAINEL DE CONTROLE'!$D$6),0) -> 0 | AF62: =IF(AND(AF$4>=$B62,AF$4<='PAINEL DE CONTROLE'!$D$6),$C62/COUNTIFS($L$4:$AT$4,">="&$B62,$L$4:$AT$4,"<="&'PAINEL DE CONTROLE'!$D$6),0) -> 0 | AG62: =IF(AND(AG$4>=$B62,AG$4<='PAINEL DE CONTROLE'!$D$6),$C62/COUNTIFS($L$4:$AT$4,">="&$B62,$L$4:$AT$4,"<="&'PAINEL DE CONTROLE'!$D$6),0) -> 0 | AH62: =IF(AND(AH$4>=$B62,AH$4<='PAINEL DE CONTROLE'!$D$6),$C62/COUNTIFS($L$4:$AT$4,">="&$B62,$L$4:$AT$4,"<="&'PAINEL DE CONTROLE'!$D$6),0) -> 0 | AI62: =IF(AND(AI$4>=$B62,AI$4<='PAINEL DE CONTROLE'!$D$6),$C62/COUNTIFS($L$4:$AT$4,">="&$B62,$L$4:$AT$4,"<="&'PAINEL DE CONTROLE'!$D$6),0) -> 0 | AJ62: =IF(AND(AJ$4>=$B62,AJ$4<='PAINEL DE CONTROLE'!$D$6),$C62/COUNTIFS($L$4:$AT$4,">="&$B62,$L$4:$AT$4,"<="&'PAINEL DE CONTROLE'!$D$6),0) -> 0 | AK62: =IF(AND(AK$4>=$B62,AK$4<='PAINEL DE CONTROLE'!$D$6),$C62/COUNTIFS($L$4:$AT$4,">="&$B62,$L$4:$AT$4,"<="&'PAINEL DE CONTROLE'!$D$6),0) -> 0 | AL62: =IF(AND(AL$4>=$B62,AL$4<='PAINEL DE CONTROLE'!$D$6),$C62/COUNTIFS($L$4:$AT$4,">="&$B62,$L$4:$AT$4,"<="&'PAINEL DE CONTROLE'!$D$6),0) -> 0 | AM62: =IF(AND(AM$4>=$B62,AM$4<='PAINEL DE CONTROLE'!$D$6),$C62/COUNTIFS($L$4:$AT$4,">="&$B62,$L$4:$AT$4,"<="&'PAINEL DE CONTROLE'!$D$6),0) -> 0 | AN62: =IF(AND(AN$4>=$B62,AN$4<='PAINEL DE CONTROLE'!$D$6),$C62/COUNTIFS($L$4:$AT$4,">="&$B62,$L$4:$AT$4,"<="&'PAINEL DE CONTROLE'!$D$6),0) -> 0 | AO62: =IF(AND(AO$4>=$B62,AO$4<='PAINEL DE CONTROLE'!$D$6),$C62/COUNTIFS($L$4:$AT$4,">="&$B62,$L$4:$AT$4,"<="&'PAINEL DE CONTROLE'!$D$6),0) -> 0 | AP62: =IF(AND(AP$4>=$B62,AP$4<='PAINEL DE CONTROLE'!$D$6),$C62/COUNTIFS($L$4:$AT$4,">="&$B62,$L$4:$AT$4,"<="&'PAINEL DE CONTROLE'!$D$6),0) -> 0 | AQ62: =IF(AND(AQ$4>=$B62,AQ$4<='PAINEL DE CONTROLE'!$D$6),$C62/COUNTIFS($L$4:$AT$4,">="&$B62,$L$4:$AT$4,"<="&'PAINEL DE CONTROLE'!$D$6),0) -> 0 | AR62: =IF(AND(AR$4>=$B62,AR$4<='PAINEL DE CONTROLE'!$D$6),$C62/COUNTIFS($L$4:$AT$4,">="&$B62,$L$4:$AT$4,"<="&'PAINEL DE CONTROLE'!$D$6),0) -> 0 | AS62: =IF(AND(AS$4>=$B62,AS$4<='PAINEL DE CONTROLE'!$D$6),$C62/COUNTIFS($L$4:$AT$4,">="&$B62,$L$4:$AT$4,"<="&'PAINEL DE CONTROLE'!$D$6),0) -> 0 | AT62: =IF(AND(AT$4>=$B62,AT$4<='PAINEL DE CONTROLE'!$D$6),$C62/COUNTIFS($L$4:$AT$4,">="&$B62,$L$4:$AT$4,"<="&'PAINEL DE CONTROLE'!$D$6),0) -> 0 | AU62: =IF(AND(AU$4>=$B62,AU$4<='PAINEL DE CONTROLE'!$D$6),$C62/COUNTIFS($L$4:$AT$4,">="&$B62,$L$4:$AT$4,"<="&'PAINEL DE CONTROLE'!$D$6),0) -> 0
B63: 22 | C63: 0 | M63: =IF(AND(M$4>=$B63,M$4<='PAINEL DE CONTROLE'!$D$6),$C63/COUNTIFS($L$4:$AT$4,">="&$B63,$L$4:$AT$4,"<="&'PAINEL DE CONTROLE'!$D$6),0) -> 0 | N63: =IF(AND(N$4>=$B63,N$4<='PAINEL DE CONTROLE'!$D$6),$C63/COUNTIFS($L$4:$AT$4,">="&$B63,$L$4:$AT$4,"<="&'PAINEL DE CONTROLE'!$D$6),0) -> 0 | O63: =IF(AND(O$4>=$B63,O$4<='PAINEL DE CONTROLE'!$D$6),$C63/COUNTIFS($L$4:$AT$4,">="&$B63,$L$4:$AT$4,"<="&'PAINEL DE CONTROLE'!$D$6),0) -> 0 | P63: =IF(AND(P$4>=$B63,P$4<='PAINEL DE CONTROLE'!$D$6),$C63/COUNTIFS($L$4:$AT$4,">="&$B63,$L$4:$AT$4,"<="&'PAINEL DE CONTROLE'!$D$6),0) -> 0 | Q63: =IF(AND(Q$4>=$B63,Q$4<='PAINEL DE CONTROLE'!$D$6),$C63/COUNTIFS($L$4:$AT$4,">="&$B63,$L$4:$AT$4,"<="&'PAINEL DE CONTROLE'!$D$6),0) -> 0 | R63: =IF(AND(R$4>=$B63,R$4<='PAINEL DE CONTROLE'!$D$6),$C63/COUNTIFS($L$4:$AT$4,">="&$B63,$L$4:$AT$4,"<="&'PAINEL DE CONTROLE'!$D$6),0) -> 0 | S63: =IF(AND(S$4>=$B63,S$4<='PAINEL DE CONTROLE'!$D$6),$C63/COUNTIFS($L$4:$AT$4,">="&$B63,$L$4:$AT$4,"<="&'PAINEL DE CONTROLE'!$D$6),0) -> 0 | T63: =IF(AND(T$4>=$B63,T$4<='PAINEL DE CONTROLE'!$D$6),$C63/COUNTIFS($L$4:$AT$4,">="&$B63,$L$4:$AT$4,"<="&'PAINEL DE CONTROLE'!$D$6),0) -> 0 | U63: =IF(AND(U$4>=$B63,U$4<='PAINEL DE CONTROLE'!$D$6),$C63/COUNTIFS($L$4:$AT$4,">="&$B63,$L$4:$AT$4,"<="&'PAINEL DE CONTROLE'!$D$6),0) -> 0 | V63: =IF(AND(V$4>=$B63,V$4<='PAINEL DE CONTROLE'!$D$6),$C63/COUNTIFS($L$4:$AT$4,">="&$B63,$L$4:$AT$4,"<="&'PAINEL DE CONTROLE'!$D$6),0) -> 0 | W63: =IF(AND(W$4>=$B63,W$4<='PAINEL DE CONTROLE'!$D$6),$C63/COUNTIFS($L$4:$AT$4,">="&$B63,$L$4:$AT$4,"<="&'PAINEL DE CONTROLE'!$D$6),0) -> 0 | X63: =IF(AND(X$4>=$B63,X$4<='PAINEL DE CONTROLE'!$D$6),$C63/COUNTIFS($L$4:$AT$4,">="&$B63,$L$4:$AT$4,"<="&'PAINEL DE CONTROLE'!$D$6),0) -> 0 | Y63: =IF(AND(Y$4>=$B63,Y$4<='PAINEL DE CONTROLE'!$D$6),$C63/COUNTIFS($L$4:$AT$4,">="&$B63,$L$4:$AT$4,"<="&'PAINEL DE CONTROLE'!$D$6),0) -> 0 | Z63: =IF(AND(Z$4>=$B63,Z$4<='PAINEL DE CONTROLE'!$D$6),$C63/COUNTIFS($L$4:$AT$4,">="&$B63,$L$4:$AT$4,"<="&'PAINEL DE CONTROLE'!$D$6),0) -> 0 | AA63: =IF(AND(AA$4>=$B63,AA$4<='PAINEL DE CONTROLE'!$D$6),$C63/COUNTIFS($L$4:$AT$4,">="&$B63,$L$4:$AT$4,"<="&'PAINEL DE CONTROLE'!$D$6),0) -> 0 | AB63: =IF(AND(AB$4>=$B63,AB$4<='PAINEL DE CONTROLE'!$D$6),$C63/COUNTIFS($L$4:$AT$4,">="&$B63,$L$4:$AT$4,"<="&'PAINEL DE CONTROLE'!$D$6),0) -> 0 | AC63: =IF(AND(AC$4>=$B63,AC$4<='PAINEL DE CONTROLE'!$D$6),$C63/COUNTIFS($L$4:$AT$4,">="&$B63,$L$4:$AT$4,"<="&'PAINEL DE CONTROLE'!$D$6),0) -> 0 | AD63: =IF(AND(AD$4>=$B63,AD$4<='PAINEL DE CONTROLE'!$D$6),$C63/COUNTIFS($L$4:$AT$4,">="&$B63,$L$4:$AT$4,"<="&'PAINEL DE CONTROLE'!$D$6),0) -> 0 | AE63: =IF(AND(AE$4>=$B63,AE$4<='PAINEL DE CONTROLE'!$D$6),$C63/COUNTIFS($L$4:$AT$4,">="&$B63,$L$4:$AT$4,"<="&'PAINEL DE CONTROLE'!$D$6),0) -> 0 | AF63: =IF(AND(AF$4>=$B63,AF$4<='PAINEL DE CONTROLE'!$D$6),$C63/COUNTIFS($L$4:$AT$4,">="&$B63,$L$4:$AT$4,"<="&'PAINEL DE CONTROLE'!$D$6),0) -> 0 | AG63: =IF(AND(AG$4>=$B63,AG$4<='PAINEL DE CONTROLE'!$D$6),$C63/COUNTIFS($L$4:$AT$4,">="&$B63,$L$4:$AT$4,"<="&'PAINEL DE CONTROLE'!$D$6),0) -> 0 | AH63: =IF(AND(AH$4>=$B63,AH$4<='PAINEL DE CONTROLE'!$D$6),$C63/COUNTIFS($L$4:$AT$4,">="&$B63,$L$4:$AT$4,"<="&'PAINEL DE CONTROLE'!$D$6),0) -> 0 | AI63: =IF(AND(AI$4>=$B63,AI$4<='PAINEL DE CONTROLE'!$D$6),$C63/COUNTIFS($L$4:$AT$4,">="&$B63,$L$4:$AT$4,"<="&'PAINEL DE CONTROLE'!$D$6),0) -> 0 | AJ63: =IF(AND(AJ$4>=$B63,AJ$4<='PAINEL DE CONTROLE'!$D$6),$C63/COUNTIFS($L$4:$AT$4,">="&$B63,$L$4:$AT$4,"<="&'PAINEL DE CONTROLE'!$D$6),0) -> 0 | AK63: =IF(AND(AK$4>=$B63,AK$4<='PAINEL DE CONTROLE'!$D$6),$C63/COUNTIFS($L$4:$AT$4,">="&$B63,$L$4:$AT$4,"<="&'PAINEL DE CONTROLE'!$D$6),0) -> 0 | AL63: =IF(AND(AL$4>=$B63,AL$4<='PAINEL DE CONTROLE'!$D$6),$C63/COUNTIFS($L$4:$AT$4,">="&$B63,$L$4:$AT$4,"<="&'PAINEL DE CONTROLE'!$D$6),0) -> 0 | AM63: =IF(AND(AM$4>=$B63,AM$4<='PAINEL DE CONTROLE'!$D$6),$C63/COUNTIFS($L$4:$AT$4,">="&$B63,$L$4:$AT$4,"<="&'PAINEL DE CONTROLE'!$D$6),0) -> 0 | AN63: =IF(AND(AN$4>=$B63,AN$4<='PAINEL DE CONTROLE'!$D$6),$C63/COUNTIFS($L$4:$AT$4,">="&$B63,$L$4:$AT$4,"<="&'PAINEL DE CONTROLE'!$D$6),0) -> 0 | AO63: =IF(AND(AO$4>=$B63,AO$4<='PAINEL DE CONTROLE'!$D$6),$C63/COUNTIFS($L$4:$AT$4,">="&$B63,$L$4:$AT$4,"<="&'PAINEL DE CONTROLE'!$D$6),0) -> 0 | AP63: =IF(AND(AP$4>=$B63,AP$4<='PAINEL DE CONTROLE'!$D$6),$C63/COUNTIFS($L$4:$AT$4,">="&$B63,$L$4:$AT$4,"<="&'PAINEL DE CONTROLE'!$D$6),0) -> 0 | AQ63: =IF(AND(AQ$4>=$B63,AQ$4<='PAINEL DE CONTROLE'!$D$6),$C63/COUNTIFS($L$4:$AT$4,">="&$B63,$L$4:$AT$4,"<="&'PAINEL DE CONTROLE'!$D$6),0) -> 0 | AR63: =IF(AND(AR$4>=$B63,AR$4<='PAINEL DE CONTROLE'!$D$6),$C63/COUNTIFS($L$4:$AT$4,">="&$B63,$L$4:$AT$4,"<="&'PAINEL DE CONTROLE'!$D$6),0) -> 0 | AS63: =IF(AND(AS$4>=$B63,AS$4<='PAINEL DE CONTROLE'!$D$6),$C63/COUNTIFS($L$4:$AT$4,">="&$B63,$L$4:$AT$4,"<="&'PAINEL DE CONTROLE'!$D$6),0) -> 0 | AT63: =IF(AND(AT$4>=$B63,AT$4<='PAINEL DE CONTROLE'!$D$6),$C63/COUNTIFS($L$4:$AT$4,">="&$B63,$L$4:$AT$4,"<="&'PAINEL DE CONTROLE'!$D$6),0) -> 0 | AU63: =IF(AND(AU$4>=$B63,AU$4<='PAINEL DE CONTROLE'!$D$6),$C63/COUNTIFS($L$4:$AT$4,">="&$B63,$L$4:$AT$4,"<="&'PAINEL DE CONTROLE'!$D$6),0) -> 0
B64: 23 | C64: 0 | M64: =IF(AND(M$4>=$B64,M$4<='PAINEL DE CONTROLE'!$D$6),$C64/COUNTIFS($L$4:$AT$4,">="&$B64,$L$4:$AT$4,"<="&'PAINEL DE CONTROLE'!$D$6),0) -> 0 | N64: =IF(AND(N$4>=$B64,N$4<='PAINEL DE CONTROLE'!$D$6),$C64/COUNTIFS($L$4:$AT$4,">="&$B64,$L$4:$AT$4,"<="&'PAINEL DE CONTROLE'!$D$6),0) -> 0 | O64: =IF(AND(O$4>=$B64,O$4<='PAINEL DE CONTROLE'!$D$6),$C64/COUNTIFS($L$4:$AT$4,">="&$B64,$L$4:$AT$4,"<="&'PAINEL DE CONTROLE'!$D$6),0) -> 0 | P64: =IF(AND(P$4>=$B64,P$4<='PAINEL DE CONTROLE'!$D$6),$C64/COUNTIFS($L$4:$AT$4,">="&$B64,$L$4:$AT$4,"<="&'PAINEL DE CONTROLE'!$D$6),0) -> 0 | Q64: =IF(AND(Q$4>=$B64,Q$4<='PAINEL DE CONTROLE'!$D$6),$C64/COUNTIFS($L$4:$AT$4,">="&$B64,$L$4:$AT$4,"<="&'PAINEL DE CONTROLE'!$D$6),0) -> 0 | R64: =IF(AND(R$4>=$B64,R$4<='PAINEL DE CONTROLE'!$D$6),$C64/COUNTIFS($L$4:$AT$4,">="&$B64,$L$4:$AT$4,"<="&'PAINEL DE CONTROLE'!$D$6),0) -> 0 | S64: =IF(AND(S$4>=$B64,S$4<='PAINEL DE CONTROLE'!$D$6),$C64/COUNTIFS($L$4:$AT$4,">="&$B64,$L$4:$AT$4,"<="&'PAINEL DE CONTROLE'!$D$6),0) -> 0 | T64: =IF(AND(T$4>=$B64,T$4<='PAINEL DE CONTROLE'!$D$6),$C64/COUNTIFS($L$4:$AT$4,">="&$B64,$L$4:$AT$4,"<="&'PAINEL DE CONTROLE'!$D$6),0) -> 0 | U64: =IF(AND(U$4>=$B64,U$4<='PAINEL DE CONTROLE'!$D$6),$C64/COUNTIFS($L$4:$AT$4,">="&$B64,$L$4:$AT$4,"<="&'PAINEL DE CONTROLE'!$D$6),0) -> 0 | V64: =IF(AND(V$4>=$B64,V$4<='PAINEL DE CONTROLE'!$D$6),$C64/COUNTIFS($L$4:$AT$4,">="&$B64,$L$4:$AT$4,"<="&'PAINEL DE CONTROLE'!$D$6),0) -> 0 | W64: =IF(AND(W$4>=$B64,W$4<='PAINEL DE CONTROLE'!$D$6),$C64/COUNTIFS($L$4:$AT$4,">="&$B64,$L$4:$AT$4,"<="&'PAINEL DE CONTROLE'!$D$6),0) -> 0 | X64: =IF(AND(X$4>=$B64,X$4<='PAINEL DE CONTROLE'!$D$6),$C64/COUNTIFS($L$4:$AT$4,">="&$B64,$L$4:$AT$4,"<="&'PAINEL DE CONTROLE'!$D$6),0) -> 0 | Y64: =IF(AND(Y$4>=$B64,Y$4<='PAINEL DE CONTROLE'!$D$6),$C64/COUNTIFS($L$4:$AT$4,">="&$B64,$L$4:$AT$4,"<="&'PAINEL DE CONTROLE'!$D$6),0) -> 0 | Z64: =IF(AND(Z$4>=$B64,Z$4<='PAINEL DE CONTROLE'!$D$6),$C64/COUNTIFS($L$4:$AT$4,">="&$B64,$L$4:$AT$4,"<="&'PAINEL DE CONTROLE'!$D$6),0) -> 0 | AA64: =IF(AND(AA$4>=$B64,AA$4<='PAINEL DE CONTROLE'!$D$6),$C64/COUNTIFS($L$4:$AT$4,">="&$B64,$L$4:$AT$4,"<="&'PAINEL DE CONTROLE'!$D$6),0) -> 0 | AB64: =IF(AND(AB$4>=$B64,AB$4<='PAINEL DE CONTROLE'!$D$6),$C64/COUNTIFS($L$4:$AT$4,">="&$B64,$L$4:$AT$4,"<="&'PAINEL DE CONTROLE'!$D$6),0) -> 0 | AC64: =IF(AND(AC$4>=$B64,AC$4<='PAINEL DE CONTROLE'!$D$6),$C64/COUNTIFS($L$4:$AT$4,">="&$B64,$L$4:$AT$4,"<="&'PAINEL DE CONTROLE'!$D$6),0) -> 0 | AD64: =IF(AND(AD$4>=$B64,AD$4<='PAINEL DE CONTROLE'!$D$6),$C64/COUNTIFS($L$4:$AT$4,">="&$B64,$L$4:$AT$4,"<="&'PAINEL DE CONTROLE'!$D$6),0) -> 0 | AE64: =IF(AND(AE$4>=$B64,AE$4<='PAINEL DE CONTROLE'!$D$6),$C64/COUNTIFS($L$4:$AT$4,">="&$B64,$L$4:$AT$4,"<="&'PAINEL DE CONTROLE'!$D$6),0) -> 0 | AF64: =IF(AND(AF$4>=$B64,AF$4<='PAINEL DE CONTROLE'!$D$6),$C64/COUNTIFS($L$4:$AT$4,">="&$B64,$L$4:$AT$4,"<="&'PAINEL DE CONTROLE'!$D$6),0) -> 0 | AG64: =IF(AND(AG$4>=$B64,AG$4<='PAINEL DE CONTROLE'!$D$6),$C64/COUNTIFS($L$4:$AT$4,">="&$B64,$L$4:$AT$4,"<="&'PAINEL DE CONTROLE'!$D$6),0) -> 0 | AH64: =IF(AND(AH$4>=$B64,AH$4<='PAINEL DE CONTROLE'!$D$6),$C64/COUNTIFS($L$4:$AT$4,">="&$B64,$L$4:$AT$4,"<="&'PAINEL DE CONTROLE'!$D$6),0) -> 0 | AI64: =IF(AND(AI$4>=$B64,AI$4<='PAINEL DE CONTROLE'!$D$6),$C64/COUNTIFS($L$4:$AT$4,">="&$B64,$L$4:$AT$4,"<="&'PAINEL DE CONTROLE'!$D$6),0) -> 0 | AJ64: =IF(AND(AJ$4>=$B64,AJ$4<='PAINEL DE CONTROLE'!$D$6),$C64/COUNTIFS($L$4:$AT$4,">="&$B64,$L$4:$AT$4,"<="&'PAINEL DE CONTROLE'!$D$6),0) -> 0 | AK64: =IF(AND(AK$4>=$B64,AK$4<='PAINEL DE CONTROLE'!$D$6),$C64/COUNTIFS($L$4:$AT$4,">="&$B64,$L$4:$AT$4,"<="&'PAINEL DE CONTROLE'!$D$6),0) -> 0 | AL64: =IF(AND(AL$4>=$B64,AL$4<='PAINEL DE CONTROLE'!$D$6),$C64/COUNTIFS($L$4:$AT$4,">="&$B64,$L$4:$AT$4,"<="&'PAINEL DE CONTROLE'!$D$6),0) -> 0 | AM64: =IF(AND(AM$4>=$B64,AM$4<='PAINEL DE CONTROLE'!$D$6),$C64/COUNTIFS($L$4:$AT$4,">="&$B64,$L$4:$AT$4,"<="&'PAINEL DE CONTROLE'!$D$6),0) -> 0 | AN64: =IF(AND(AN$4>=$B64,AN$4<='PAINEL DE CONTROLE'!$D$6),$C64/COUNTIFS($L$4:$AT$4,">="&$B64,$L$4:$AT$4,"<="&'PAINEL DE CONTROLE'!$D$6),0) -> 0 | AO64: =IF(AND(AO$4>=$B64,AO$4<='PAINEL DE CONTROLE'!$D$6),$C64/COUNTIFS($L$4:$AT$4,">="&$B64,$L$4:$AT$4,"<="&'PAINEL DE CONTROLE'!$D$6),0) -> 0 | AP64: =IF(AND(AP$4>=$B64,AP$4<='PAINEL DE CONTROLE'!$D$6),$C64/COUNTIFS($L$4:$AT$4,">="&$B64,$L$4:$AT$4,"<="&'PAINEL DE CONTROLE'!$D$6),0) -> 0 | AQ64: =IF(AND(AQ$4>=$B64,AQ$4<='PAINEL DE CONTROLE'!$D$6),$C64/COUNTIFS($L$4:$AT$4,">="&$B64,$L$4:$AT$4,"<="&'PAINEL DE CONTROLE'!$D$6),0) -> 0 | AR64: =IF(AND(AR$4>=$B64,AR$4<='PAINEL DE CONTROLE'!$D$6),$C64/COUNTIFS($L$4:$AT$4,">="&$B64,$L$4:$AT$4,"<="&'PAINEL DE CONTROLE'!$D$6),0) -> 0 | AS64: =IF(AND(AS$4>=$B64,AS$4<='PAINEL DE CONTROLE'!$D$6),$C64/COUNTIFS($L$4:$AT$4,">="&$B64,$L$4:$AT$4,"<="&'PAINEL DE CONTROLE'!$D$6),0) -> 0 | AT64: =IF(AND(AT$4>=$B64,AT$4<='PAINEL DE CONTROLE'!$D$6),$C64/COUNTIFS($L$4:$AT$4,">="&$B64,$L$4:$AT$4,"<="&'PAINEL DE CONTROLE'!$D$6),0) -> 0 | AU64: =IF(AND(AU$4>=$B64,AU$4<='PAINEL DE CONTROLE'!$D$6),$C64/COUNTIFS($L$4:$AT$4,">="&$B64,$L$4:$AT$4,"<="&'PAINEL DE CONTROLE'!$D$6),0) -> 0
B65: 24 | C65: 0 | M65: =IF(AND(M$4>=$B65,M$4<='PAINEL DE CONTROLE'!$D$6),$C65/COUNTIFS($L$4:$AT$4,">="&$B65,$L$4:$AT$4,"<="&'PAINEL DE CONTROLE'!$D$6),0) -> 0 | N65: =IF(AND(N$4>=$B65,N$4<='PAINEL DE CONTROLE'!$D$6),$C65/COUNTIFS($L$4:$AT$4,">="&$B65,$L$4:$AT$4,"<="&'PAINEL DE CONTROLE'!$D$6),0) -> 0 | O65: =IF(AND(O$4>=$B65,O$4<='PAINEL DE CONTROLE'!$D$6),$C65/COUNTIFS($L$4:$AT$4,">="&$B65,$L$4:$AT$4,"<="&'PAINEL DE CONTROLE'!$D$6),0) -> 0 | P65: =IF(AND(P$4>=$B65,P$4<='PAINEL DE CONTROLE'!$D$6),$C65/COUNTIFS($L$4:$AT$4,">="&$B65,$L$4:$AT$4,"<="&'PAINEL DE CONTROLE'!$D$6),0) -> 0 | Q65: =IF(AND(Q$4>=$B65,Q$4<='PAINEL DE CONTROLE'!$D$6),$C65/COUNTIFS($L$4:$AT$4,">="&$B65,$L$4:$AT$4,"<="&'PAINEL DE CONTROLE'!$D$6),0) -> 0 | R65: =IF(AND(R$4>=$B65,R$4<='PAINEL DE CONTROLE'!$D$6),$C65/COUNTIFS($L$4:$AT$4,">="&$B65,$L$4:$AT$4,"<="&'PAINEL DE CONTROLE'!$D$6),0) -> 0 | S65: =IF(AND(S$4>=$B65,S$4<='PAINEL DE CONTROLE'!$D$6),$C65/COUNTIFS($L$4:$AT$4,">="&$B65,$L$4:$AT$4,"<="&'PAINEL DE CONTROLE'!$D$6),0) -> 0 | T65: =IF(AND(T$4>=$B65,T$4<='PAINEL DE CONTROLE'!$D$6),$C65/COUNTIFS($L$4:$AT$4,">="&$B65,$L$4:$AT$4,"<="&'PAINEL DE CONTROLE'!$D$6),0) -> 0 | U65: =IF(AND(U$4>=$B65,U$4<='PAINEL DE CONTROLE'!$D$6),$C65/COUNTIFS($L$4:$AT$4,">="&$B65,$L$4:$AT$4,"<="&'PAINEL DE CONTROLE'!$D$6),0) -> 0 | V65: =IF(AND(V$4>=$B65,V$4<='PAINEL DE CONTROLE'!$D$6),$C65/COUNTIFS($L$4:$AT$4,">="&$B65,$L$4:$AT$4,"<="&'PAINEL DE CONTROLE'!$D$6),0) -> 0 | W65: =IF(AND(W$4>=$B65,W$4<='PAINEL DE CONTROLE'!$D$6),$C65/COUNTIFS($L$4:$AT$4,">="&$B65,$L$4:$AT$4,"<="&'PAINEL DE CONTROLE'!$D$6),0) -> 0 | X65: =IF(AND(X$4>=$B65,X$4<='PAINEL DE CONTROLE'!$D$6),$C65/COUNTIFS($L$4:$AT$4,">="&$B65,$L$4:$AT$4,"<="&'PAINEL DE CONTROLE'!$D$6),0) -> 0 | Y65: =IF(AND(Y$4>=$B65,Y$4<='PAINEL DE CONTROLE'!$D$6),$C65/COUNTIFS($L$4:$AT$4,">="&$B65,$L$4:$AT$4,"<="&'PAINEL DE CONTROLE'!$D$6),0) -> 0 | Z65: =IF(AND(Z$4>=$B65,Z$4<='PAINEL DE CONTROLE'!$D$6),$C65/COUNTIFS($L$4:$AT$4,">="&$B65,$L$4:$AT$4,"<="&'PAINEL DE CONTROLE'!$D$6),0) -> 0 | AA65: =IF(AND(AA$4>=$B65,AA$4<='PAINEL DE CONTROLE'!$D$6),$C65/COUNTIFS($L$4:$AT$4,">="&$B65,$L$4:$AT$4,"<="&'PAINEL DE CONTROLE'!$D$6),0) -> 0 | AB65: =IF(AND(AB$4>=$B65,AB$4<='PAINEL DE CONTROLE'!$D$6),$C65/COUNTIFS($L$4:$AT$4,">="&$B65,$L$4:$AT$4,"<="&'PAINEL DE CONTROLE'!$D$6),0) -> 0 | AC65: =IF(AND(AC$4>=$B65,AC$4<='PAINEL DE CONTROLE'!$D$6),$C65/COUNTIFS($L$4:$AT$4,">="&$B65,$L$4:$AT$4,"<="&'PAINEL DE CONTROLE'!$D$6),0) -> 0 | AD65: =IF(AND(AD$4>=$B65,AD$4<='PAINEL DE CONTROLE'!$D$6),$C65/COUNTIFS($L$4:$AT$4,">="&$B65,$L$4:$AT$4,"<="&'PAINEL DE CONTROLE'!$D$6),0) -> 0 | AE65: =IF(AND(AE$4>=$B65,AE$4<='PAINEL DE CONTROLE'!$D$6),$C65/COUNTIFS($L$4:$AT$4,">="&$B65,$L$4:$AT$4,"<="&'PAINEL DE CONTROLE'!$D$6),0) -> 0 | AF65: =IF(AND(AF$4>=$B65,AF$4<='PAINEL DE CONTROLE'!$D$6),$C65/COUNTIFS($L$4:$AT$4,">="&$B65,$L$4:$AT$4,"<="&'PAINEL DE CONTROLE'!$D$6),0) -> 0 | AG65: =IF(AND(AG$4>=$B65,AG$4<='PAINEL DE CONTROLE'!$D$6),$C65/COUNTIFS($L$4:$AT$4,">="&$B65,$L$4:$AT$4,"<="&'PAINEL DE CONTROLE'!$D$6),0) -> 0 | AH65: =IF(AND(AH$4>=$B65,AH$4<='PAINEL DE CONTROLE'!$D$6),$C65/COUNTIFS($L$4:$AT$4,">="&$B65,$L$4:$AT$4,"<="&'PAINEL DE CONTROLE'!$D$6),0) -> 0 | AI65: =IF(AND(AI$4>=$B65,AI$4<='PAINEL DE CONTROLE'!$D$6),$C65/COUNTIFS($L$4:$AT$4,">="&$B65,$L$4:$AT$4,"<="&'PAINEL DE CONTROLE'!$D$6),0) -> 0 | AJ65: =IF(AND(AJ$4>=$B65,AJ$4<='PAINEL DE CONTROLE'!$D$6),$C65/COUNTIFS($L$4:$AT$4,">="&$B65,$L$4:$AT$4,"<="&'PAINEL DE CONTROLE'!$D$6),0) -> 0 | AK65: =IF(AND(AK$4>=$B65,AK$4<='PAINEL DE CONTROLE'!$D$6),$C65/COUNTIFS($L$4:$AT$4,">="&$B65,$L$4:$AT$4,"<="&'PAINEL DE CONTROLE'!$D$6),0) -> 0 | AL65: =IF(AND(AL$4>=$B65,AL$4<='PAINEL DE CONTROLE'!$D$6),$C65/COUNTIFS($L$4:$AT$4,">="&$B65,$L$4:$AT$4,"<="&'PAINEL DE CONTROLE'!$D$6),0) -> 0 | AM65: =IF(AND(AM$4>=$B65,AM$4<='PAINEL DE CONTROLE'!$D$6),$C65/COUNTIFS($L$4:$AT$4,">="&$B65,$L$4:$AT$4,"<="&'PAINEL DE CONTROLE'!$D$6),0) -> 0 | AN65: =IF(AND(AN$4>=$B65,AN$4<='PAINEL DE CONTROLE'!$D$6),$C65/COUNTIFS($L$4:$AT$4,">="&$B65,$L$4:$AT$4,"<="&'PAINEL DE CONTROLE'!$D$6),0) -> 0 | AO65: =IF(AND(AO$4>=$B65,AO$4<='PAINEL DE CONTROLE'!$D$6),$C65/COUNTIFS($L$4:$AT$4,">="&$B65,$L$4:$AT$4,"<="&'PAINEL DE CONTROLE'!$D$6),0) -> 0 | AP65: =IF(AND(AP$4>=$B65,AP$4<='PAINEL DE CONTROLE'!$D$6),$C65/COUNTIFS($L$4:$AT$4,">="&$B65,$L$4:$AT$4,"<="&'PAINEL DE CONTROLE'!$D$6),0) -> 0 | AQ65: =IF(AND(AQ$4>=$B65,AQ$4<='PAINEL DE CONTROLE'!$D$6),$C65/COUNTIFS($L$4:$AT$4,">="&$B65,$L$4:$AT$4,"<="&'PAINEL DE CONTROLE'!$D$6),0) -> 0 | AR65: =IF(AND(AR$4>=$B65,AR$4<='PAINEL DE CONTROLE'!$D$6),$C65/COUNTIFS($L$4:$AT$4,">="&$B65,$L$4:$AT$4,"<="&'PAINEL DE CONTROLE'!$D$6),0) -> 0 | AS65: =IF(AND(AS$4>=$B65,AS$4<='PAINEL DE CONTROLE'!$D$6),$C65/COUNTIFS($L$4:$AT$4,">="&$B65,$L$4:$AT$4,"<="&'PAINEL DE CONTROLE'!$D$6),0) -> 0 | AT65: =IF(AND(AT$4>=$B65,AT$4<='PAINEL DE CONTROLE'!$D$6),$C65/COUNTIFS($L$4:$AT$4,">="&$B65,$L$4:$AT$4,"<="&'PAINEL DE CONTROLE'!$D$6),0) -> 0 | AU65: =IF(AND(AU$4>=$B65,AU$4<='PAINEL DE CONTROLE'!$D$6),$C65/COUNTIFS($L$4:$AT$4,">="&$B65,$L$4:$AT$4,"<="&'PAINEL DE CONTROLE'!$D$6),0) -> 0
B66: 25 | C66: 0 | M66: =IF(AND(M$4>=$B66,M$4<='PAINEL DE CONTROLE'!$D$6),$C66/COUNTIFS($L$4:$AT$4,">="&$B66,$L$4:$AT$4,"<="&'PAINEL DE CONTROLE'!$D$6),0) -> 0 | N66: =IF(AND(N$4>=$B66,N$4<='PAINEL DE CONTROLE'!$D$6),$C66/COUNTIFS($L$4:$AT$4,">="&$B66,$L$4:$AT$4,"<="&'PAINEL DE CONTROLE'!$D$6),0) -> 0 | O66: =IF(AND(O$4>=$B66,O$4<='PAINEL DE CONTROLE'!$D$6),$C66/COUNTIFS($L$4:$AT$4,">="&$B66,$L$4:$AT$4,"<="&'PAINEL DE CONTROLE'!$D$6),0) -> 0 | P66: =IF(AND(P$4>=$B66,P$4<='PAINEL DE CONTROLE'!$D$6),$C66/COUNTIFS($L$4:$AT$4,">="&$B66,$L$4:$AT$4,"<="&'PAINEL DE CONTROLE'!$D$6),0) -> 0 | Q66: =IF(AND(Q$4>=$B66,Q$4<='PAINEL DE CONTROLE'!$D$6),$C66/COUNTIFS($L$4:$AT$4,">="&$B66,$L$4:$AT$4,"<="&'PAINEL DE CONTROLE'!$D$6),0) -> 0 | R66: =IF(AND(R$4>=$B66,R$4<='PAINEL DE CONTROLE'!$D$6),$C66/COUNTIFS($L$4:$AT$4,">="&$B66,$L$4:$AT$4,"<="&'PAINEL DE CONTROLE'!$D$6),0) -> 0 | S66: =IF(AND(S$4>=$B66,S$4<='PAINEL DE CONTROLE'!$D$6),$C66/COUNTIFS($L$4:$AT$4,">="&$B66,$L$4:$AT$4,"<="&'PAINEL DE CONTROLE'!$D$6),0) -> 0 | T66: =IF(AND(T$4>=$B66,T$4<='PAINEL DE CONTROLE'!$D$6),$C66/COUNTIFS($L$4:$AT$4,">="&$B66,$L$4:$AT$4,"<="&'PAINEL DE CONTROLE'!$D$6),0) -> 0 | U66: =IF(AND(U$4>=$B66,U$4<='PAINEL DE CONTROLE'!$D$6),$C66/COUNTIFS($L$4:$AT$4,">="&$B66,$L$4:$AT$4,"<="&'PAINEL DE CONTROLE'!$D$6),0) -> 0 | V66: =IF(AND(V$4>=$B66,V$4<='PAINEL DE CONTROLE'!$D$6),$C66/COUNTIFS($L$4:$AT$4,">="&$B66,$L$4:$AT$4,"<="&'PAINEL DE CONTROLE'!$D$6),0) -> 0 | W66: =IF(AND(W$4>=$B66,W$4<='PAINEL DE CONTROLE'!$D$6),$C66/COUNTIFS($L$4:$AT$4,">="&$B66,$L$4:$AT$4,"<="&'PAINEL DE CONTROLE'!$D$6),0) -> 0 | X66: =IF(AND(X$4>=$B66,X$4<='PAINEL DE CONTROLE'!$D$6),$C66/COUNTIFS($L$4:$AT$4,">="&$B66,$L$4:$AT$4,"<="&'PAINEL DE CONTROLE'!$D$6),0) -> 0 | Y66: =IF(AND(Y$4>=$B66,Y$4<='PAINEL DE CONTROLE'!$D$6),$C66/COUNTIFS($L$4:$AT$4,">="&$B66,$L$4:$AT$4,"<="&'PAINEL DE CONTROLE'!$D$6),0) -> 0 | Z66: =IF(AND(Z$4>=$B66,Z$4<='PAINEL DE CONTROLE'!$D$6),$C66/COUNTIFS($L$4:$AT$4,">="&$B66,$L$4:$AT$4,"<="&'PAINEL DE CONTROLE'!$D$6),0) -> 0 | AA66: =IF(AND(AA$4>=$B66,AA$4<='PAINEL DE CONTROLE'!$D$6),$C66/COUNTIFS($L$4:$AT$4,">="&$B66,$L$4:$AT$4,"<="&'PAINEL DE CONTROLE'!$D$6),0) -> 0 | AB66: =IF(AND(AB$4>=$B66,AB$4<='PAINEL DE CONTROLE'!$D$6),$C66/COUNTIFS($L$4:$AT$4,">="&$B66,$L$4:$AT$4,"<="&'PAINEL DE CONTROLE'!$D$6),0) -> 0 | AC66: =IF(AND(AC$4>=$B66,AC$4<='PAINEL DE CONTROLE'!$D$6),$C66/COUNTIFS($L$4:$AT$4,">="&$B66,$L$4:$AT$4,"<="&'PAINEL DE CONTROLE'!$D$6),0) -> 0 | AD66: =IF(AND(AD$4>=$B66,AD$4<='PAINEL DE CONTROLE'!$D$6),$C66/COUNTIFS($L$4:$AT$4,">="&$B66,$L$4:$AT$4,"<="&'PAINEL DE CONTROLE'!$D$6),0) -> 0 | AE66: =IF(AND(AE$4>=$B66,AE$4<='PAINEL DE CONTROLE'!$D$6),$C66/COUNTIFS($L$4:$AT$4,">="&$B66,$L$4:$AT$4,"<="&'PAINEL DE CONTROLE'!$D$6),0) -> 0 | AF66: =IF(AND(AF$4>=$B66,AF$4<='PAINEL DE CONTROLE'!$D$6),$C66/COUNTIFS($L$4:$AT$4,">="&$B66,$L$4:$AT$4,"<="&'PAINEL DE CONTROLE'!$D$6),0) -> 0 | AG66: =IF(AND(AG$4>=$B66,AG$4<='PAINEL DE CONTROLE'!$D$6),$C66/COUNTIFS($L$4:$AT$4,">="&$B66,$L$4:$AT$4,"<="&'PAINEL DE CONTROLE'!$D$6),0) -> 0 | AH66: =IF(AND(AH$4>=$B66,AH$4<='PAINEL DE CONTROLE'!$D$6),$C66/COUNTIFS($L$4:$AT$4,">="&$B66,$L$4:$AT$4,"<="&'PAINEL DE CONTROLE'!$D$6),0) -> 0 | AI66: =IF(AND(AI$4>=$B66,AI$4<='PAINEL DE CONTROLE'!$D$6),$C66/COUNTIFS($L$4:$AT$4,">="&$B66,$L$4:$AT$4,"<="&'PAINEL DE CONTROLE'!$D$6),0) -> 0 | AJ66: =IF(AND(AJ$4>=$B66,AJ$4<='PAINEL DE CONTROLE'!$D$6),$C66/COUNTIFS($L$4:$AT$4,">="&$B66,$L$4:$AT$4,"<="&'PAINEL DE CONTROLE'!$D$6),0) -> 0 | AK66: =IF(AND(AK$4>=$B66,AK$4<='PAINEL DE CONTROLE'!$D$6),$C66/COUNTIFS($L$4:$AT$4,">="&$B66,$L$4:$AT$4,"<="&'PAINEL DE CONTROLE'!$D$6),0) -> 0 | AL66: =IF(AND(AL$4>=$B66,AL$4<='PAINEL DE CONTROLE'!$D$6),$C66/COUNTIFS($L$4:$AT$4,">="&$B66,$L$4:$AT$4,"<="&'PAINEL DE CONTROLE'!$D$6),0) -> 0 | AM66: =IF(AND(AM$4>=$B66,AM$4<='PAINEL DE CONTROLE'!$D$6),$C66/COUNTIFS($L$4:$AT$4,">="&$B66,$L$4:$AT$4,"<="&'PAINEL DE CONTROLE'!$D$6),0) -> 0 | AN66: =IF(AND(AN$4>=$B66,AN$4<='PAINEL DE CONTROLE'!$D$6),$C66/COUNTIFS($L$4:$AT$4,">="&$B66,$L$4:$AT$4,"<="&'PAINEL DE CONTROLE'!$D$6),0) -> 0 | AO66: =IF(AND(AO$4>=$B66,AO$4<='PAINEL DE CONTROLE'!$D$6),$C66/COUNTIFS($L$4:$AT$4,">="&$B66,$L$4:$AT$4,"<="&'PAINEL DE CONTROLE'!$D$6),0) -> 0 | AP66: =IF(AND(AP$4>=$B66,AP$4<='PAINEL DE CONTROLE'!$D$6),$C66/COUNTIFS($L$4:$AT$4,">="&$B66,$L$4:$AT$4,"<="&'PAINEL DE CONTROLE'!$D$6),0) -> 0 | AQ66: =IF(AND(AQ$4>=$B66,AQ$4<='PAINEL DE CONTROLE'!$D$6),$C66/COUNTIFS($L$4:$AT$4,">="&$B66,$L$4:$AT$4,"<="&'PAINEL DE CONTROLE'!$D$6),0) -> 0 | AR66: =IF(AND(AR$4>=$B66,AR$4<='PAINEL DE CONTROLE'!$D$6),$C66/COUNTIFS($L$4:$AT$4,">="&$B66,$L$4:$AT$4,"<="&'PAINEL DE CONTROLE'!$D$6),0) -> 0 | AS66: =IF(AND(AS$4>=$B66,AS$4<='PAINEL DE CONTROLE'!$D$6),$C66/COUNTIFS($L$4:$AT$4,">="&$B66,$L$4:$AT$4,"<="&'PAINEL DE CONTROLE'!$D$6),0) -> 0 | AT66: =IF(AND(AT$4>=$B66,AT$4<='PAINEL DE CONTROLE'!$D$6),$C66/COUNTIFS($L$4:$AT$4,">="&$B66,$L$4:$AT$4,"<="&'PAINEL DE CONTROLE'!$D$6),0) -> 0 | AU66: =IF(AND(AU$4>=$B66,AU$4<='PAINEL DE CONTROLE'!$D$6),$C66/COUNTIFS($L$4:$AT$4,">="&$B66,$L$4:$AT$4,"<="&'PAINEL DE CONTROLE'!$D$6),0) -> 0
B67: 26 | C67: 0 | M67: =IF(AND(M$4>=$B67,M$4<='PAINEL DE CONTROLE'!$D$6),$C67/COUNTIFS($L$4:$AT$4,">="&$B67,$L$4:$AT$4,"<="&'PAINEL DE CONTROLE'!$D$6),0) -> 0 | N67: =IF(AND(N$4>=$B67,N$4<='PAINEL DE CONTROLE'!$D$6),$C67/COUNTIFS($L$4:$AT$4,">="&$B67,$L$4:$AT$4,"<="&'PAINEL DE CONTROLE'!$D$6),0) -> 0 | O67: =IF(AND(O$4>=$B67,O$4<='PAINEL DE CONTROLE'!$D$6),$C67/COUNTIFS($L$4:$AT$4,">="&$B67,$L$4:$AT$4,"<="&'PAINEL DE CONTROLE'!$D$6),0) -> 0 | P67: =IF(AND(P$4>=$B67,P$4<='PAINEL DE CONTROLE'!$D$6),$C67/COUNTIFS($L$4:$AT$4,">="&$B67,$L$4:$AT$4,"<="&'PAINEL DE CONTROLE'!$D$6),0) -> 0 | Q67: =IF(AND(Q$4>=$B67,Q$4<='PAINEL DE CONTROLE'!$D$6),$C67/COUNTIFS($L$4:$AT$4,">="&$B67,$L$4:$AT$4,"<="&'PAINEL DE CONTROLE'!$D$6),0) -> 0 | R67: =IF(AND(R$4>=$B67,R$4<='PAINEL DE CONTROLE'!$D$6),$C67/COUNTIFS($L$4:$AT$4,">="&$B67,$L$4:$AT$4,"<="&'PAINEL DE CONTROLE'!$D$6),0) -> 0 | S67: =IF(AND(S$4>=$B67,S$4<='PAINEL DE CONTROLE'!$D$6),$C67/COUNTIFS($L$4:$AT$4,">="&$B67,$L$4:$AT$4,"<="&'PAINEL DE CONTROLE'!$D$6),0) -> 0 | T67: =IF(AND(T$4>=$B67,T$4<='PAINEL DE CONTROLE'!$D$6),$C67/COUNTIFS($L$4:$AT$4,">="&$B67,$L$4:$AT$4,"<="&'PAINEL DE CONTROLE'!$D$6),0) -> 0 | U67: =IF(AND(U$4>=$B67,U$4<='PAINEL DE CONTROLE'!$D$6),$C67/COUNTIFS($L$4:$AT$4,">="&$B67,$L$4:$AT$4,"<="&'PAINEL DE CONTROLE'!$D$6),0) -> 0 | V67: =IF(AND(V$4>=$B67,V$4<='PAINEL DE CONTROLE'!$D$6),$C67/COUNTIFS($L$4:$AT$4,">="&$B67,$L$4:$AT$4,"<="&'PAINEL DE CONTROLE'!$D$6),0) -> 0 | W67: =IF(AND(W$4>=$B67,W$4<='PAINEL DE CONTROLE'!$D$6),$C67/COUNTIFS($L$4:$AT$4,">="&$B67,$L$4:$AT$4,"<="&'PAINEL DE CONTROLE'!$D$6),0) -> 0 | X67: =IF(AND(X$4>=$B67,X$4<='PAINEL DE CONTROLE'!$D$6),$C67/COUNTIFS($L$4:$AT$4,">="&$B67,$L$4:$AT$4,"<="&'PAINEL DE CONTROLE'!$D$6),0) -> 0 | Y67: =IF(AND(Y$4>=$B67,Y$4<='PAINEL DE CONTROLE'!$D$6),$C67/COUNTIFS($L$4:$AT$4,">="&$B67,$L$4:$AT$4,"<="&'PAINEL DE CONTROLE'!$D$6),0) -> 0 | Z67: =IF(AND(Z$4>=$B67,Z$4<='PAINEL DE CONTROLE'!$D$6),$C67/COUNTIFS($L$4:$AT$4,">="&$B67,$L$4:$AT$4,"<="&'PAINEL DE CONTROLE'!$D$6),0) -> 0 | AA67: =IF(AND(AA$4>=$B67,AA$4<='PAINEL DE CONTROLE'!$D$6),$C67/COUNTIFS($L$4:$AT$4,">="&$B67,$L$4:$AT$4,"<="&'PAINEL DE CONTROLE'!$D$6),0) -> 0 | AB67: =IF(AND(AB$4>=$B67,AB$4<='PAINEL DE CONTROLE'!$D$6),$C67/COUNTIFS($L$4:$AT$4,">="&$B67,$L$4:$AT$4,"<="&'PAINEL DE CONTROLE'!$D$6),0) -> 0 | AC67: =IF(AND(AC$4>=$B67,AC$4<='PAINEL DE CONTROLE'!$D$6),$C67/COUNTIFS($L$4:$AT$4,">="&$B67,$L$4:$AT$4,"<="&'PAINEL DE CONTROLE'!$D$6),0) -> 0 | AD67: =IF(AND(AD$4>=$B67,AD$4<='PAINEL DE CONTROLE'!$D$6),$C67/COUNTIFS($L$4:$AT$4,">="&$B67,$L$4:$AT$4,"<="&'PAINEL DE CONTROLE'!$D$6),0) -> 0 | AE67: =IF(AND(AE$4>=$B67,AE$4<='PAINEL DE CONTROLE'!$D$6),$C67/COUNTIFS($L$4:$AT$4,">="&$B67,$L$4:$AT$4,"<="&'PAINEL DE CONTROLE'!$D$6),0) -> 0 | AF67: =IF(AND(AF$4>=$B67,AF$4<='PAINEL DE CONTROLE'!$D$6),$C67/COUNTIFS($L$4:$AT$4,">="&$B67,$L$4:$AT$4,"<="&'PAINEL DE CONTROLE'!$D$6),0) -> 0 | AG67: =IF(AND(AG$4>=$B67,AG$4<='PAINEL DE CONTROLE'!$D$6),$C67/COUNTIFS($L$4:$AT$4,">="&$B67,$L$4:$AT$4,"<="&'PAINEL DE CONTROLE'!$D$6),0) -> 0 | AH67: =IF(AND(AH$4>=$B67,AH$4<='PAINEL DE CONTROLE'!$D$6),$C67/COUNTIFS($L$4:$AT$4,">="&$B67,$L$4:$AT$4,"<="&'PAINEL DE CONTROLE'!$D$6),0) -> 0 | AI67: =IF(AND(AI$4>=$B67,AI$4<='PAINEL DE CONTROLE'!$D$6),$C67/COUNTIFS($L$4:$AT$4,">="&$B67,$L$4:$AT$4,"<="&'PAINEL DE CONTROLE'!$D$6),0) -> 0 | AJ67: =IF(AND(AJ$4>=$B67,AJ$4<='PAINEL DE CONTROLE'!$D$6),$C67/COUNTIFS($L$4:$AT$4,">="&$B67,$L$4:$AT$4,"<="&'PAINEL DE CONTROLE'!$D$6),0) -> 0 | AK67: =IF(AND(AK$4>=$B67,AK$4<='PAINEL DE CONTROLE'!$D$6),$C67/COUNTIFS($L$4:$AT$4,">="&$B67,$L$4:$AT$4,"<="&'PAINEL DE CONTROLE'!$D$6),0) -> 0 | AL67: =IF(AND(AL$4>=$B67,AL$4<='PAINEL DE CONTROLE'!$D$6),$C67/COUNTIFS($L$4:$AT$4,">="&$B67,$L$4:$AT$4,"<="&'PAINEL DE CONTROLE'!$D$6),0) -> 0 | AM67: =IF(AND(AM$4>=$B67,AM$4<='PAINEL DE CONTROLE'!$D$6),$C67/COUNTIFS($L$4:$AT$4,">="&$B67,$L$4:$AT$4,"<="&'PAINEL DE CONTROLE'!$D$6),0) -> 0 | AN67: =IF(AND(AN$4>=$B67,AN$4<='PAINEL DE CONTROLE'!$D$6),$C67/COUNTIFS($L$4:$AT$4,">="&$B67,$L$4:$AT$4,"<="&'PAINEL DE CONTROLE'!$D$6),0) -> 0 | AO67: =IF(AND(AO$4>=$B67,AO$4<='PAINEL DE CONTROLE'!$D$6),$C67/COUNTIFS($L$4:$AT$4,">="&$B67,$L$4:$AT$4,"<="&'PAINEL DE CONTROLE'!$D$6),0) -> 0 | AP67: =IF(AND(AP$4>=$B67,AP$4<='PAINEL DE CONTROLE'!$D$6),$C67/COUNTIFS($L$4:$AT$4,">="&$B67,$L$4:$AT$4,"<="&'PAINEL DE CONTROLE'!$D$6),0) -> 0 | AQ67: =IF(AND(AQ$4>=$B67,AQ$4<='PAINEL DE CONTROLE'!$D$6),$C67/COUNTIFS($L$4:$AT$4,">="&$B67,$L$4:$AT$4,"<="&'PAINEL DE CONTROLE'!$D$6),0) -> 0 | AR67: =IF(AND(AR$4>=$B67,AR$4<='PAINEL DE CONTROLE'!$D$6),$C67/COUNTIFS($L$4:$AT$4,">="&$B67,$L$4:$AT$4,"<="&'PAINEL DE CONTROLE'!$D$6),0) -> 0 | AS67: =IF(AND(AS$4>=$B67,AS$4<='PAINEL DE CONTROLE'!$D$6),$C67/COUNTIFS($L$4:$AT$4,">="&$B67,$L$4:$AT$4,"<="&'PAINEL DE CONTROLE'!$D$6),0) -> 0 | AT67: =IF(AND(AT$4>=$B67,AT$4<='PAINEL DE CONTROLE'!$D$6),$C67/COUNTIFS($L$4:$AT$4,">="&$B67,$L$4:$AT$4,"<="&'PAINEL DE CONTROLE'!$D$6),0) -> 0 | AU67: =IF(AND(AU$4>=$B67,AU$4<='PAINEL DE CONTROLE'!$D$6),$C67/COUNTIFS($L$4:$AT$4,">="&$B67,$L$4:$AT$4,"<="&'PAINEL DE CONTROLE'!$D$6),0) -> 0
B68: 27 | C68: 0 | M68: =IF(AND(M$4>=$B68,M$4<='PAINEL DE CONTROLE'!$D$6),$C68/COUNTIFS($L$4:$AT$4,">="&$B68,$L$4:$AT$4,"<="&'PAINEL DE CONTROLE'!$D$6),0) -> 0 | N68: =IF(AND(N$4>=$B68,N$4<='PAINEL DE CONTROLE'!$D$6),$C68/COUNTIFS($L$4:$AT$4,">="&$B68,$L$4:$AT$4,"<="&'PAINEL DE CONTROLE'!$D$6),0) -> 0 | O68: =IF(AND(O$4>=$B68,O$4<='PAINEL DE CONTROLE'!$D$6),$C68/COUNTIFS($L$4:$AT$4,">="&$B68,$L$4:$AT$4,"<="&'PAINEL DE CONTROLE'!$D$6),0) -> 0 | P68: =IF(AND(P$4>=$B68,P$4<='PAINEL DE CONTROLE'!$D$6),$C68/COUNTIFS($L$4:$AT$4,">="&$B68,$L$4:$AT$4,"<="&'PAINEL DE CONTROLE'!$D$6),0) -> 0 | Q68: =IF(AND(Q$4>=$B68,Q$4<='PAINEL DE CONTROLE'!$D$6),$C68/COUNTIFS($L$4:$AT$4,">="&$B68,$L$4:$AT$4,"<="&'PAINEL DE CONTROLE'!$D$6),0) -> 0 | R68: =IF(AND(R$4>=$B68,R$4<='PAINEL DE CONTROLE'!$D$6),$C68/COUNTIFS($L$4:$AT$4,">="&$B68,$L$4:$AT$4,"<="&'PAINEL DE CONTROLE'!$D$6),0) -> 0 | S68: =IF(AND(S$4>=$B68,S$4<='PAINEL DE CONTROLE'!$D$6),$C68/COUNTIFS($L$4:$AT$4,">="&$B68,$L$4:$AT$4,"<="&'PAINEL DE CONTROLE'!$D$6),0) -> 0 | T68: =IF(AND(T$4>=$B68,T$4<='PAINEL DE CONTROLE'!$D$6),$C68/COUNTIFS($L$4:$AT$4,">="&$B68,$L$4:$AT$4,"<="&'PAINEL DE CONTROLE'!$D$6),0) -> 0 | U68: =IF(AND(U$4>=$B68,U$4<='PAINEL DE CONTROLE'!$D$6),$C68/COUNTIFS($L$4:$AT$4,">="&$B68,$L$4:$AT$4,"<="&'PAINEL DE CONTROLE'!$D$6),0) -> 0 | V68: =IF(AND(V$4>=$B68,V$4<='PAINEL DE CONTROLE'!$D$6),$C68/COUNTIFS($L$4:$AT$4,">="&$B68,$L$4:$AT$4,"<="&'PAINEL DE CONTROLE'!$D$6),0) -> 0 | W68: =IF(AND(W$4>=$B68,W$4<='PAINEL DE CONTROLE'!$D$6),$C68/COUNTIFS($L$4:$AT$4,">="&$B68,$L$4:$AT$4,"<="&'PAINEL DE CONTROLE'!$D$6),0) -> 0 | X68: =IF(AND(X$4>=$B68,X$4<='PAINEL DE CONTROLE'!$D$6),$C68/COUNTIFS($L$4:$AT$4,">="&$B68,$L$4:$AT$4,"<="&'PAINEL DE CONTROLE'!$D$6),0) -> 0 | Y68: =IF(AND(Y$4>=$B68,Y$4<='PAINEL DE CONTROLE'!$D$6),$C68/COUNTIFS($L$4:$AT$4,">="&$B68,$L$4:$AT$4,"<="&'PAINEL DE CONTROLE'!$D$6),0) -> 0 | Z68: =IF(AND(Z$4>=$B68,Z$4<='PAINEL DE CONTROLE'!$D$6),$C68/COUNTIFS($L$4:$AT$4,">="&$B68,$L$4:$AT$4,"<="&'PAINEL DE CONTROLE'!$D$6),0) -> 0 | AA68: =IF(AND(AA$4>=$B68,AA$4<='PAINEL DE CONTROLE'!$D$6),$C68/COUNTIFS($L$4:$AT$4,">="&$B68,$L$4:$AT$4,"<="&'PAINEL DE CONTROLE'!$D$6),0) -> 0 | AB68: =IF(AND(AB$4>=$B68,AB$4<='PAINEL DE CONTROLE'!$D$6),$C68/COUNTIFS($L$4:$AT$4,">="&$B68,$L$4:$AT$4,"<="&'PAINEL DE CONTROLE'!$D$6),0) -> 0 | AC68: =IF(AND(AC$4>=$B68,AC$4<='PAINEL DE CONTROLE'!$D$6),$C68/COUNTIFS($L$4:$AT$4,">="&$B68,$L$4:$AT$4,"<="&'PAINEL DE CONTROLE'!$D$6),0) -> 0 | AD68: =IF(AND(AD$4>=$B68,AD$4<='PAINEL DE CONTROLE'!$D$6),$C68/COUNTIFS($L$4:$AT$4,">="&$B68,$L$4:$AT$4,"<="&'PAINEL DE CONTROLE'!$D$6),0) -> 0 | AE68: =IF(AND(AE$4>=$B68,AE$4<='PAINEL DE CONTROLE'!$D$6),$C68/COUNTIFS($L$4:$AT$4,">="&$B68,$L$4:$AT$4,"<="&'PAINEL DE CONTROLE'!$D$6),0) -> 0 | AF68: =IF(AND(AF$4>=$B68,AF$4<='PAINEL DE CONTROLE'!$D$6),$C68/COUNTIFS($L$4:$AT$4,">="&$B68,$L$4:$AT$4,"<="&'PAINEL DE CONTROLE'!$D$6),0) -> 0 | AG68: =IF(AND(AG$4>=$B68,AG$4<='PAINEL DE CONTROLE'!$D$6),$C68/COUNTIFS($L$4:$AT$4,">="&$B68,$L$4:$AT$4,"<="&'PAINEL DE CONTROLE'!$D$6),0) -> 0 | AH68: =IF(AND(AH$4>=$B68,AH$4<='PAINEL DE CONTROLE'!$D$6),$C68/COUNTIFS($L$4:$AT$4,">="&$B68,$L$4:$AT$4,"<="&'PAINEL DE CONTROLE'!$D$6),0) -> 0 | AI68: =IF(AND(AI$4>=$B68,AI$4<='PAINEL DE CONTROLE'!$D$6),$C68/COUNTIFS($L$4:$AT$4,">="&$B68,$L$4:$AT$4,"<="&'PAINEL DE CONTROLE'!$D$6),0) -> 0 | AJ68: =IF(AND(AJ$4>=$B68,AJ$4<='PAINEL DE CONTROLE'!$D$6),$C68/COUNTIFS($L$4:$AT$4,">="&$B68,$L$4:$AT$4,"<="&'PAINEL DE CONTROLE'!$D$6),0) -> 0 | AK68: =IF(AND(AK$4>=$B68,AK$4<='PAINEL DE CONTROLE'!$D$6),$C68/COUNTIFS($L$4:$AT$4,">="&$B68,$L$4:$AT$4,"<="&'PAINEL DE CONTROLE'!$D$6),0) -> 0 | AL68: =IF(AND(AL$4>=$B68,AL$4<='PAINEL DE CONTROLE'!$D$6),$C68/COUNTIFS($L$4:$AT$4,">="&$B68,$L$4:$AT$4,"<="&'PAINEL DE CONTROLE'!$D$6),0) -> 0 | AM68: =IF(AND(AM$4>=$B68,AM$4<='PAINEL DE CONTROLE'!$D$6),$C68/COUNTIFS($L$4:$AT$4,">="&$B68,$L$4:$AT$4,"<="&'PAINEL DE CONTROLE'!$D$6),0) -> 0 | AN68: =IF(AND(AN$4>=$B68,AN$4<='PAINEL DE CONTROLE'!$D$6),$C68/COUNTIFS($L$4:$AT$4,">="&$B68,$L$4:$AT$4,"<="&'PAINEL DE CONTROLE'!$D$6),0) -> 0 | AO68: =IF(AND(AO$4>=$B68,AO$4<='PAINEL DE CONTROLE'!$D$6),$C68/COUNTIFS($L$4:$AT$4,">="&$B68,$L$4:$AT$4,"<="&'PAINEL DE CONTROLE'!$D$6),0) -> 0 | AP68: =IF(AND(AP$4>=$B68,AP$4<='PAINEL DE CONTROLE'!$D$6),$C68/COUNTIFS($L$4:$AT$4,">="&$B68,$L$4:$AT$4,"<="&'PAINEL DE CONTROLE'!$D$6),0) -> 0 | AQ68: =IF(AND(AQ$4>=$B68,AQ$4<='PAINEL DE CONTROLE'!$D$6),$C68/COUNTIFS($L$4:$AT$4,">="&$B68,$L$4:$AT$4,"<="&'PAINEL DE CONTROLE'!$D$6),0) -> 0 | AR68: =IF(AND(AR$4>=$B68,AR$4<='PAINEL DE CONTROLE'!$D$6),$C68/COUNTIFS($L$4:$AT$4,">="&$B68,$L$4:$AT$4,"<="&'PAINEL DE CONTROLE'!$D$6),0) -> 0 | AS68: =IF(AND(AS$4>=$B68,AS$4<='PAINEL DE CONTROLE'!$D$6),$C68/COUNTIFS($L$4:$AT$4,">="&$B68,$L$4:$AT$4,"<="&'PAINEL DE CONTROLE'!$D$6),0) -> 0 | AT68: =IF(AND(AT$4>=$B68,AT$4<='PAINEL DE CONTROLE'!$D$6),$C68/COUNTIFS($L$4:$AT$4,">="&$B68,$L$4:$AT$4,"<="&'PAINEL DE CONTROLE'!$D$6),0) -> 0 | AU68: =IF(AND(AU$4>=$B68,AU$4<='PAINEL DE CONTROLE'!$D$6),$C68/COUNTIFS($L$4:$AT$4,">="&$B68,$L$4:$AT$4,"<="&'PAINEL DE CONTROLE'!$D$6),0) -> 0
B69: 28 | C69: 0 | M69: =IF(AND(M$4>=$B69,M$4<='PAINEL DE CONTROLE'!$D$6),$C69/COUNTIFS($L$4:$AT$4,">="&$B69,$L$4:$AT$4,"<="&'PAINEL DE CONTROLE'!$D$6),0) -> 0 | N69: =IF(AND(N$4>=$B69,N$4<='PAINEL DE CONTROLE'!$D$6),$C69/COUNTIFS($L$4:$AT$4,">="&$B69,$L$4:$AT$4,"<="&'PAINEL DE CONTROLE'!$D$6),0) -> 0 | O69: =IF(AND(O$4>=$B69,O$4<='PAINEL DE CONTROLE'!$D$6),$C69/COUNTIFS($L$4:$AT$4,">="&$B69,$L$4:$AT$4,"<="&'PAINEL DE CONTROLE'!$D$6),0) -> 0 | P69: =IF(AND(P$4>=$B69,P$4<='PAINEL DE CONTROLE'!$D$6),$C69/COUNTIFS($L$4:$AT$4,">="&$B69,$L$4:$AT$4,"<="&'PAINEL DE CONTROLE'!$D$6),0) -> 0 | Q69: =IF(AND(Q$4>=$B69,Q$4<='PAINEL DE CONTROLE'!$D$6),$C69/COUNTIFS($L$4:$AT$4,">="&$B69,$L$4:$AT$4,"<="&'PAINEL DE CONTROLE'!$D$6),0) -> 0 | R69: =IF(AND(R$4>=$B69,R$4<='PAINEL DE CONTROLE'!$D$6),$C69/COUNTIFS($L$4:$AT$4,">="&$B69,$L$4:$AT$4,"<="&'PAINEL DE CONTROLE'!$D$6),0) -> 0 | S69: =IF(AND(S$4>=$B69,S$4<='PAINEL DE CONTROLE'!$D$6),$C69/COUNTIFS($L$4:$AT$4,">="&$B69,$L$4:$AT$4,"<="&'PAINEL DE CONTROLE'!$D$6),0) -> 0 | T69: =IF(AND(T$4>=$B69,T$4<='PAINEL DE CONTROLE'!$D$6),$C69/COUNTIFS($L$4:$AT$4,">="&$B69,$L$4:$AT$4,"<="&'PAINEL DE CONTROLE'!$D$6),0) -> 0 | U69: =IF(AND(U$4>=$B69,U$4<='PAINEL DE CONTROLE'!$D$6),$C69/COUNTIFS($L$4:$AT$4,">="&$B69,$L$4:$AT$4,"<="&'PAINEL DE CONTROLE'!$D$6),0) -> 0 | V69: =IF(AND(V$4>=$B69,V$4<='PAINEL DE CONTROLE'!$D$6),$C69/COUNTIFS($L$4:$AT$4,">="&$B69,$L$4:$AT$4,"<="&'PAINEL DE CONTROLE'!$D$6),0) -> 0 | W69: =IF(AND(W$4>=$B69,W$4<='PAINEL DE CONTROLE'!$D$6),$C69/COUNTIFS($L$4:$AT$4,">="&$B69,$L$4:$AT$4,"<="&'PAINEL DE CONTROLE'!$D$6),0) -> 0 | X69: =IF(AND(X$4>=$B69,X$4<='PAINEL DE CONTROLE'!$D$6),$C69/COUNTIFS($L$4:$AT$4,">="&$B69,$L$4:$AT$4,"<="&'PAINEL DE CONTROLE'!$D$6),0) -> 0 | Y69: =IF(AND(Y$4>=$B69,Y$4<='PAINEL DE CONTROLE'!$D$6),$C69/COUNTIFS($L$4:$AT$4,">="&$B69,$L$4:$AT$4,"<="&'PAINEL DE CONTROLE'!$D$6),0) -> 0 | Z69: =IF(AND(Z$4>=$B69,Z$4<='PAINEL DE CONTROLE'!$D$6),$C69/COUNTIFS($L$4:$AT$4,">="&$B69,$L$4:$AT$4,"<="&'PAINEL DE CONTROLE'!$D$6),0) -> 0 | AA69: =IF(AND(AA$4>=$B69,AA$4<='PAINEL DE CONTROLE'!$D$6),$C69/COUNTIFS($L$4:$AT$4,">="&$B69,$L$4:$AT$4,"<="&'PAINEL DE CONTROLE'!$D$6),0) -> 0 | AB69: =IF(AND(AB$4>=$B69,AB$4<='PAINEL DE CONTROLE'!$D$6),$C69/COUNTIFS($L$4:$AT$4,">="&$B69,$L$4:$AT$4,"<="&'PAINEL DE CONTROLE'!$D$6),0) -> 0 | AC69: =IF(AND(AC$4>=$B69,AC$4<='PAINEL DE CONTROLE'!$D$6),$C69/COUNTIFS($L$4:$AT$4,">="&$B69,$L$4:$AT$4,"<="&'PAINEL DE CONTROLE'!$D$6),0) -> 0 | AD69: =IF(AND(AD$4>=$B69,AD$4<='PAINEL DE CONTROLE'!$D$6),$C69/COUNTIFS($L$4:$AT$4,">="&$B69,$L$4:$AT$4,"<="&'PAINEL DE CONTROLE'!$D$6),0) -> 0 | AE69: =IF(AND(AE$4>=$B69,AE$4<='PAINEL DE CONTROLE'!$D$6),$C69/COUNTIFS($L$4:$AT$4,">="&$B69,$L$4:$AT$4,"<="&'PAINEL DE CONTROLE'!$D$6),0) -> 0 | AF69: =IF(AND(AF$4>=$B69,AF$4<='PAINEL DE CONTROLE'!$D$6),$C69/COUNTIFS($L$4:$AT$4,">="&$B69,$L$4:$AT$4,"<="&'PAINEL DE CONTROLE'!$D$6),0) -> 0 | AG69: =IF(AND(AG$4>=$B69,AG$4<='PAINEL DE CONTROLE'!$D$6),$C69/COUNTIFS($L$4:$AT$4,">="&$B69,$L$4:$AT$4,"<="&'PAINEL DE CONTROLE'!$D$6),0) -> 0 | AH69: =IF(AND(AH$4>=$B69,AH$4<='PAINEL DE CONTROLE'!$D$6),$C69/COUNTIFS($L$4:$AT$4,">="&$B69,$L$4:$AT$4,"<="&'PAINEL DE CONTROLE'!$D$6),0) -> 0 | AI69: =IF(AND(AI$4>=$B69,AI$4<='PAINEL DE CONTROLE'!$D$6),$C69/COUNTIFS($L$4:$AT$4,">="&$B69,$L$4:$AT$4,"<="&'PAINEL DE CONTROLE'!$D$6),0) -> 0 | AJ69: =IF(AND(AJ$4>=$B69,AJ$4<='PAINEL DE CONTROLE'!$D$6),$C69/COUNTIFS($L$4:$AT$4,">="&$B69,$L$4:$AT$4,"<="&'PAINEL DE CONTROLE'!$D$6),0) -> 0 | AK69: =IF(AND(AK$4>=$B69,AK$4<='PAINEL DE CONTROLE'!$D$6),$C69/COUNTIFS($L$4:$AT$4,">="&$B69,$L$4:$AT$4,"<="&'PAINEL DE CONTROLE'!$D$6),0) -> 0 | AL69: =IF(AND(AL$4>=$B69,AL$4<='PAINEL DE CONTROLE'!$D$6),$C69/COUNTIFS($L$4:$AT$4,">="&$B69,$L$4:$AT$4,"<="&'PAINEL DE CONTROLE'!$D$6),0) -> 0 | AM69: =IF(AND(AM$4>=$B69,AM$4<='PAINEL DE CONTROLE'!$D$6),$C69/COUNTIFS($L$4:$AT$4,">="&$B69,$L$4:$AT$4,"<="&'PAINEL DE CONTROLE'!$D$6),0) -> 0 | AN69: =IF(AND(AN$4>=$B69,AN$4<='PAINEL DE CONTROLE'!$D$6),$C69/COUNTIFS($L$4:$AT$4,">="&$B69,$L$4:$AT$4,"<="&'PAINEL DE CONTROLE'!$D$6),0) -> 0 | AO69: =IF(AND(AO$4>=$B69,AO$4<='PAINEL DE CONTROLE'!$D$6),$C69/COUNTIFS($L$4:$AT$4,">="&$B69,$L$4:$AT$4,"<="&'PAINEL DE CONTROLE'!$D$6),0) -> 0 | AP69: =IF(AND(AP$4>=$B69,AP$4<='PAINEL DE CONTROLE'!$D$6),$C69/COUNTIFS($L$4:$AT$4,">="&$B69,$L$4:$AT$4,"<="&'PAINEL DE CONTROLE'!$D$6),0) -> 0 | AQ69: =IF(AND(AQ$4>=$B69,AQ$4<='PAINEL DE CONTROLE'!$D$6),$C69/COUNTIFS($L$4:$AT$4,">="&$B69,$L$4:$AT$4,"<="&'PAINEL DE CONTROLE'!$D$6),0) -> 0 | AR69: =IF(AND(AR$4>=$B69,AR$4<='PAINEL DE CONTROLE'!$D$6),$C69/COUNTIFS($L$4:$AT$4,">="&$B69,$L$4:$AT$4,"<="&'PAINEL DE CONTROLE'!$D$6),0) -> 0 | AS69: =IF(AND(AS$4>=$B69,AS$4<='PAINEL DE CONTROLE'!$D$6),$C69/COUNTIFS($L$4:$AT$4,">="&$B69,$L$4:$AT$4,"<="&'PAINEL DE CONTROLE'!$D$6),0) -> 0 | AT69: =IF(AND(AT$4>=$B69,AT$4<='PAINEL DE CONTROLE'!$D$6),$C69/COUNTIFS($L$4:$AT$4,">="&$B69,$L$4:$AT$4,"<="&'PAINEL DE CONTROLE'!$D$6),0) -> 0 | AU69: =IF(AND(AU$4>=$B69,AU$4<='PAINEL DE CONTROLE'!$D$6),$C69/COUNTIFS($L$4:$AT$4,">="&$B69,$L$4:$AT$4,"<="&'PAINEL DE CONTROLE'!$D$6),0) -> 0
B70: 29 | C70: 0 | M70: =IF(AND(M$4>=$B70,M$4<='PAINEL DE CONTROLE'!$D$6),$C70/COUNTIFS($L$4:$AT$4,">="&$B70,$L$4:$AT$4,"<="&'PAINEL DE CONTROLE'!$D$6),0) -> 0 | N70: =IF(AND(N$4>=$B70,N$4<='PAINEL DE CONTROLE'!$D$6),$C70/COUNTIFS($L$4:$AT$4,">="&$B70,$L$4:$AT$4,"<="&'PAINEL DE CONTROLE'!$D$6),0) -> 0 | O70: =IF(AND(O$4>=$B70,O$4<='PAINEL DE CONTROLE'!$D$6),$C70/COUNTIFS($L$4:$AT$4,">="&$B70,$L$4:$AT$4,"<="&'PAINEL DE CONTROLE'!$D$6),0) -> 0 | P70: =IF(AND(P$4>=$B70,P$4<='PAINEL DE CONTROLE'!$D$6),$C70/COUNTIFS($L$4:$AT$4,">="&$B70,$L$4:$AT$4,"<="&'PAINEL DE CONTROLE'!$D$6),0) -> 0 | Q70: =IF(AND(Q$4>=$B70,Q$4<='PAINEL DE CONTROLE'!$D$6),$C70/COUNTIFS($L$4:$AT$4,">="&$B70,$L$4:$AT$4,"<="&'PAINEL DE CONTROLE'!$D$6),0) -> 0 | R70: =IF(AND(R$4>=$B70,R$4<='PAINEL DE CONTROLE'!$D$6),$C70/COUNTIFS($L$4:$AT$4,">="&$B70,$L$4:$AT$4,"<="&'PAINEL DE CONTROLE'!$D$6),0) -> 0 | S70: =IF(AND(S$4>=$B70,S$4<='PAINEL DE CONTROLE'!$D$6),$C70/COUNTIFS($L$4:$AT$4,">="&$B70,$L$4:$AT$4,"<="&'PAINEL DE CONTROLE'!$D$6),0) -> 0 | T70: =IF(AND(T$4>=$B70,T$4<='PAINEL DE CONTROLE'!$D$6),$C70/COUNTIFS($L$4:$AT$4,">="&$B70,$L$4:$AT$4,"<="&'PAINEL DE CONTROLE'!$D$6),0) -> 0 | U70: =IF(AND(U$4>=$B70,U$4<='PAINEL DE CONTROLE'!$D$6),$C70/COUNTIFS($L$4:$AT$4,">="&$B70,$L$4:$AT$4,"<="&'PAINEL DE CONTROLE'!$D$6),0) -> 0 | V70: =IF(AND(V$4>=$B70,V$4<='PAINEL DE CONTROLE'!$D$6),$C70/COUNTIFS($L$4:$AT$4,">="&$B70,$L$4:$AT$4,"<="&'PAINEL DE CONTROLE'!$D$6),0) -> 0 | W70: =IF(AND(W$4>=$B70,W$4<='PAINEL DE CONTROLE'!$D$6),$C70/COUNTIFS($L$4:$AT$4,">="&$B70,$L$4:$AT$4,"<="&'PAINEL DE CONTROLE'!$D$6),0) -> 0 | X70: =IF(AND(X$4>=$B70,X$4<='PAINEL DE CONTROLE'!$D$6),$C70/COUNTIFS($L$4:$AT$4,">="&$B70,$L$4:$AT$4,"<="&'PAINEL DE CONTROLE'!$D$6),0) -> 0 | Y70: =IF(AND(Y$4>=$B70,Y$4<='PAINEL DE CONTROLE'!$D$6),$C70/COUNTIFS($L$4:$AT$4,">="&$B70,$L$4:$AT$4,"<="&'PAINEL DE CONTROLE'!$D$6),0) -> 0 | Z70: =IF(AND(Z$4>=$B70,Z$4<='PAINEL DE CONTROLE'!$D$6),$C70/COUNTIFS($L$4:$AT$4,">="&$B70,$L$4:$AT$4,"<="&'PAINEL DE CONTROLE'!$D$6),0) -> 0 | AA70: =IF(AND(AA$4>=$B70,AA$4<='PAINEL DE CONTROLE'!$D$6),$C70/COUNTIFS($L$4:$AT$4,">="&$B70,$L$4:$AT$4,"<="&'PAINEL DE CONTROLE'!$D$6),0) -> 0 | AB70: =IF(AND(AB$4>=$B70,AB$4<='PAINEL DE CONTROLE'!$D$6),$C70/COUNTIFS($L$4:$AT$4,">="&$B70,$L$4:$AT$4,"<="&'PAINEL DE CONTROLE'!$D$6),0) -> 0 | AC70: =IF(AND(AC$4>=$B70,AC$4<='PAINEL DE CONTROLE'!$D$6),$C70/COUNTIFS($L$4:$AT$4,">="&$B70,$L$4:$AT$4,"<="&'PAINEL DE CONTROLE'!$D$6),0) -> 0 | AD70: =IF(AND(AD$4>=$B70,AD$4<='PAINEL DE CONTROLE'!$D$6),$C70/COUNTIFS($L$4:$AT$4,">="&$B70,$L$4:$AT$4,"<="&'PAINEL DE CONTROLE'!$D$6),0) -> 0 | AE70: =IF(AND(AE$4>=$B70,AE$4<='PAINEL DE CONTROLE'!$D$6),$C70/COUNTIFS($L$4:$AT$4,">="&$B70,$L$4:$AT$4,"<="&'PAINEL DE CONTROLE'!$D$6),0) -> 0 | AF70: =IF(AND(AF$4>=$B70,AF$4<='PAINEL DE CONTROLE'!$D$6),$C70/COUNTIFS($L$4:$AT$4,">="&$B70,$L$4:$AT$4,"<="&'PAINEL DE CONTROLE'!$D$6),0) -> 0 | AG70: =IF(AND(AG$4>=$B70,AG$4<='PAINEL DE CONTROLE'!$D$6),$C70/COUNTIFS($L$4:$AT$4,">="&$B70,$L$4:$AT$4,"<="&'PAINEL DE CONTROLE'!$D$6),0) -> 0 | AH70: =IF(AND(AH$4>=$B70,AH$4<='PAINEL DE CONTROLE'!$D$6),$C70/COUNTIFS($L$4:$AT$4,">="&$B70,$L$4:$AT$4,"<="&'PAINEL DE CONTROLE'!$D$6),0) -> 0 | AI70: =IF(AND(AI$4>=$B70,AI$4<='PAINEL DE CONTROLE'!$D$6),$C70/COUNTIFS($L$4:$AT$4,">="&$B70,$L$4:$AT$4,"<="&'PAINEL DE CONTROLE'!$D$6),0) -> 0 | AJ70: =IF(AND(AJ$4>=$B70,AJ$4<='PAINEL DE CONTROLE'!$D$6),$C70/COUNTIFS($L$4:$AT$4,">="&$B70,$L$4:$AT$4,"<="&'PAINEL DE CONTROLE'!$D$6),0) -> 0 | AK70: =IF(AND(AK$4>=$B70,AK$4<='PAINEL DE CONTROLE'!$D$6),$C70/COUNTIFS($L$4:$AT$4,">="&$B70,$L$4:$AT$4,"<="&'PAINEL DE CONTROLE'!$D$6),0) -> 0 | AL70: =IF(AND(AL$4>=$B70,AL$4<='PAINEL DE CONTROLE'!$D$6),$C70/COUNTIFS($L$4:$AT$4,">="&$B70,$L$4:$AT$4,"<="&'PAINEL DE CONTROLE'!$D$6),0) -> 0 | AM70: =IF(AND(AM$4>=$B70,AM$4<='PAINEL DE CONTROLE'!$D$6),$C70/COUNTIFS($L$4:$AT$4,">="&$B70,$L$4:$AT$4,"<="&'PAINEL DE CONTROLE'!$D$6),0) -> 0 | AN70: =IF(AND(AN$4>=$B70,AN$4<='PAINEL DE CONTROLE'!$D$6),$C70/COUNTIFS($L$4:$AT$4,">="&$B70,$L$4:$AT$4,"<="&'PAINEL DE CONTROLE'!$D$6),0) -> 0 | AO70: =IF(AND(AO$4>=$B70,AO$4<='PAINEL DE CONTROLE'!$D$6),$C70/COUNTIFS($L$4:$AT$4,">="&$B70,$L$4:$AT$4,"<="&'PAINEL DE CONTROLE'!$D$6),0) -> 0 | AP70: =IF(AND(AP$4>=$B70,AP$4<='PAINEL DE CONTROLE'!$D$6),$C70/COUNTIFS($L$4:$AT$4,">="&$B70,$L$4:$AT$4,"<="&'PAINEL DE CONTROLE'!$D$6),0) -> 0 | AQ70: =IF(AND(AQ$4>=$B70,AQ$4<='PAINEL DE CONTROLE'!$D$6),$C70/COUNTIFS($L$4:$AT$4,">="&$B70,$L$4:$AT$4,"<="&'PAINEL DE CONTROLE'!$D$6),0) -> 0 | AR70: =IF(AND(AR$4>=$B70,AR$4<='PAINEL DE CONTROLE'!$D$6),$C70/COUNTIFS($L$4:$AT$4,">="&$B70,$L$4:$AT$4,"<="&'PAINEL DE CONTROLE'!$D$6),0) -> 0 | AS70: =IF(AND(AS$4>=$B70,AS$4<='PAINEL DE CONTROLE'!$D$6),$C70/COUNTIFS($L$4:$AT$4,">="&$B70,$L$4:$AT$4,"<="&'PAINEL DE CONTROLE'!$D$6),0) -> 0 | AT70: =IF(AND(AT$4>=$B70,AT$4<='PAINEL DE CONTROLE'!$D$6),$C70/COUNTIFS($L$4:$AT$4,">="&$B70,$L$4:$AT$4,"<="&'PAINEL DE CONTROLE'!$D$6),0) -> 0 | AU70: =IF(AND(AU$4>=$B70,AU$4<='PAINEL DE CONTROLE'!$D$6),$C70/COUNTIFS($L$4:$AT$4,">="&$B70,$L$4:$AT$4,"<="&'PAINEL DE CONTROLE'!$D$6),0) -> 0
B71: 30 | C71: 0 | M71: =IF(AND(M$4>=$B71,M$4<='PAINEL DE CONTROLE'!$D$6),$C71/COUNTIFS($L$4:$AT$4,">="&$B71,$L$4:$AT$4,"<="&'PAINEL DE CONTROLE'!$D$6),0) -> 0 | N71: =IF(AND(N$4>=$B71,N$4<='PAINEL DE CONTROLE'!$D$6),$C71/COUNTIFS($L$4:$AT$4,">="&$B71,$L$4:$AT$4,"<="&'PAINEL DE CONTROLE'!$D$6),0) -> 0 | O71: =IF(AND(O$4>=$B71,O$4<='PAINEL DE CONTROLE'!$D$6),$C71/COUNTIFS($L$4:$AT$4,">="&$B71,$L$4:$AT$4,"<="&'PAINEL DE CONTROLE'!$D$6),0) -> 0 | P71: =IF(AND(P$4>=$B71,P$4<='PAINEL DE CONTROLE'!$D$6),$C71/COUNTIFS($L$4:$AT$4,">="&$B71,$L$4:$AT$4,"<="&'PAINEL DE CONTROLE'!$D$6),0) -> 0 | Q71: =IF(AND(Q$4>=$B71,Q$4<='PAINEL DE CONTROLE'!$D$6),$C71/COUNTIFS($L$4:$AT$4,">="&$B71,$L$4:$AT$4,"<="&'PAINEL DE CONTROLE'!$D$6),0) -> 0 | R71: =IF(AND(R$4>=$B71,R$4<='PAINEL DE CONTROLE'!$D$6),$C71/COUNTIFS($L$4:$AT$4,">="&$B71,$L$4:$AT$4,"<="&'PAINEL DE CONTROLE'!$D$6),0) -> 0 | S71: =IF(AND(S$4>=$B71,S$4<='PAINEL DE CONTROLE'!$D$6),$C71/COUNTIFS($L$4:$AT$4,">="&$B71,$L$4:$AT$4,"<="&'PAINEL DE CONTROLE'!$D$6),0) -> 0 | T71: =IF(AND(T$4>=$B71,T$4<='PAINEL DE CONTROLE'!$D$6),$C71/COUNTIFS($L$4:$AT$4,">="&$B71,$L$4:$AT$4,"<="&'PAINEL DE CONTROLE'!$D$6),0) -> 0 | U71: =IF(AND(U$4>=$B71,U$4<='PAINEL DE CONTROLE'!$D$6),$C71/COUNTIFS($L$4:$AT$4,">="&$B71,$L$4:$AT$4,"<="&'PAINEL DE CONTROLE'!$D$6),0) -> 0 | V71: =IF(AND(V$4>=$B71,V$4<='PAINEL DE CONTROLE'!$D$6),$C71/COUNTIFS($L$4:$AT$4,">="&$B71,$L$4:$AT$4,"<="&'PAINEL DE CONTROLE'!$D$6),0) -> 0 | W71: =IF(AND(W$4>=$B71,W$4<='PAINEL DE CONTROLE'!$D$6),$C71/COUNTIFS($L$4:$AT$4,">="&$B71,$L$4:$AT$4,"<="&'PAINEL DE CONTROLE'!$D$6),0) -> 0 | X71: =IF(AND(X$4>=$B71,X$4<='PAINEL DE CONTROLE'!$D$6),$C71/COUNTIFS($L$4:$AT$4,">="&$B71,$L$4:$AT$4,"<="&'PAINEL DE CONTROLE'!$D$6),0) -> 0 | Y71: =IF(AND(Y$4>=$B71,Y$4<='PAINEL DE CONTROLE'!$D$6),$C71/COUNTIFS($L$4:$AT$4,">="&$B71,$L$4:$AT$4,"<="&'PAINEL DE CONTROLE'!$D$6),0) -> 0 | Z71: =IF(AND(Z$4>=$B71,Z$4<='PAINEL DE CONTROLE'!$D$6),$C71/COUNTIFS($L$4:$AT$4,">="&$B71,$L$4:$AT$4,"<="&'PAINEL DE CONTROLE'!$D$6),0) -> 0 | AA71: =IF(AND(AA$4>=$B71,AA$4<='PAINEL DE CONTROLE'!$D$6),$C71/COUNTIFS($L$4:$AT$4,">="&$B71,$L$4:$AT$4,"<="&'PAINEL DE CONTROLE'!$D$6),0) -> 0 | AB71: =IF(AND(AB$4>=$B71,AB$4<='PAINEL DE CONTROLE'!$D$6),$C71/COUNTIFS($L$4:$AT$4,">="&$B71,$L$4:$AT$4,"<="&'PAINEL DE CONTROLE'!$D$6),0) -> 0 | AC71: =IF(AND(AC$4>=$B71,AC$4<='PAINEL DE CONTROLE'!$D$6),$C71/COUNTIFS($L$4:$AT$4,">="&$B71,$L$4:$AT$4,"<="&'PAINEL DE CONTROLE'!$D$6),0) -> 0 | AD71: =IF(AND(AD$4>=$B71,AD$4<='PAINEL DE CONTROLE'!$D$6),$C71/COUNTIFS($L$4:$AT$4,">="&$B71,$L$4:$AT$4,"<="&'PAINEL DE CONTROLE'!$D$6),0) -> 0 | AE71: =IF(AND(AE$4>=$B71,AE$4<='PAINEL DE CONTROLE'!$D$6),$C71/COUNTIFS($L$4:$AT$4,">="&$B71,$L$4:$AT$4,"<="&'PAINEL DE CONTROLE'!$D$6),0) -> 0 | AF71: =IF(AND(AF$4>=$B71,AF$4<='PAINEL DE CONTROLE'!$D$6),$C71/COUNTIFS($L$4:$AT$4,">="&$B71,$L$4:$AT$4,"<="&'PAINEL DE CONTROLE'!$D$6),0) -> 0 | AG71: =IF(AND(AG$4>=$B71,AG$4<='PAINEL DE CONTROLE'!$D$6),$C71/COUNTIFS($L$4:$AT$4,">="&$B71,$L$4:$AT$4,"<="&'PAINEL DE CONTROLE'!$D$6),0) -> 0 | AH71: =IF(AND(AH$4>=$B71,AH$4<='PAINEL DE CONTROLE'!$D$6),$C71/COUNTIFS($L$4:$AT$4,">="&$B71,$L$4:$AT$4,"<="&'PAINEL DE CONTROLE'!$D$6),0) -> 0 | AI71: =IF(AND(AI$4>=$B71,AI$4<='PAINEL DE CONTROLE'!$D$6),$C71/COUNTIFS($L$4:$AT$4,">="&$B71,$L$4:$AT$4,"<="&'PAINEL DE CONTROLE'!$D$6),0) -> 0 | AJ71: =IF(AND(AJ$4>=$B71,AJ$4<='PAINEL DE CONTROLE'!$D$6),$C71/COUNTIFS($L$4:$AT$4,">="&$B71,$L$4:$AT$4,"<="&'PAINEL DE CONTROLE'!$D$6),0) -> 0 | AK71: =IF(AND(AK$4>=$B71,AK$4<='PAINEL DE CONTROLE'!$D$6),$C71/COUNTIFS($L$4:$AT$4,">="&$B71,$L$4:$AT$4,"<="&'PAINEL DE CONTROLE'!$D$6),0) -> 0 | AL71: =IF(AND(AL$4>=$B71,AL$4<='PAINEL DE CONTROLE'!$D$6),$C71/COUNTIFS($L$4:$AT$4,">="&$B71,$L$4:$AT$4,"<="&'PAINEL DE CONTROLE'!$D$6),0) -> 0 | AM71: =IF(AND(AM$4>=$B71,AM$4<='PAINEL DE CONTROLE'!$D$6),$C71/COUNTIFS($L$4:$AT$4,">="&$B71,$L$4:$AT$4,"<="&'PAINEL DE CONTROLE'!$D$6),0) -> 0 | AN71: =IF(AND(AN$4>=$B71,AN$4<='PAINEL DE CONTROLE'!$D$6),$C71/COUNTIFS($L$4:$AT$4,">="&$B71,$L$4:$AT$4,"<="&'PAINEL DE CONTROLE'!$D$6),0) -> 0 | AO71: =IF(AND(AO$4>=$B71,AO$4<='PAINEL DE CONTROLE'!$D$6),$C71/COUNTIFS($L$4:$AT$4,">="&$B71,$L$4:$AT$4,"<="&'PAINEL DE CONTROLE'!$D$6),0) -> 0 | AP71: =IF(AND(AP$4>=$B71,AP$4<='PAINEL DE CONTROLE'!$D$6),$C71/COUNTIFS($L$4:$AT$4,">="&$B71,$L$4:$AT$4,"<="&'PAINEL DE CONTROLE'!$D$6),0) -> 0 | AQ71: =IF(AND(AQ$4>=$B71,AQ$4<='PAINEL DE CONTROLE'!$D$6),$C71/COUNTIFS($L$4:$AT$4,">="&$B71,$L$4:$AT$4,"<="&'PAINEL DE CONTROLE'!$D$6),0) -> 0 | AR71: =IF(AND(AR$4>=$B71,AR$4<='PAINEL DE CONTROLE'!$D$6),$C71/COUNTIFS($L$4:$AT$4,">="&$B71,$L$4:$AT$4,"<="&'PAINEL DE CONTROLE'!$D$6),0) -> 0 | AS71: =IF(AND(AS$4>=$B71,AS$4<='PAINEL DE CONTROLE'!$D$6),$C71/COUNTIFS($L$4:$AT$4,">="&$B71,$L$4:$AT$4,"<="&'PAINEL DE CONTROLE'!$D$6),0) -> 0 | AT71: =IF(AND(AT$4>=$B71,AT$4<='PAINEL DE CONTROLE'!$D$6),$C71/COUNTIFS($L$4:$AT$4,">="&$B71,$L$4:$AT$4,"<="&'PAINEL DE CONTROLE'!$D$6),0) -> 0 | AU71: =IF(AND(AU$4>=$B71,AU$4<='PAINEL DE CONTROLE'!$D$6),$C71/COUNTIFS($L$4:$AT$4,">="&$B71,$L$4:$AT$4,"<="&'PAINEL DE CONTROLE'!$D$6),0) -> 0
B72: 31 | C72: 0 | M72: =IF(AND(M$4>=$B72,M$4<='PAINEL DE CONTROLE'!$D$6),$C72/COUNTIFS($L$4:$AT$4,">="&$B72,$L$4:$AT$4,"<="&'PAINEL DE CONTROLE'!$D$6),0) -> 0 | N72: =IF(AND(N$4>=$B72,N$4<='PAINEL DE CONTROLE'!$D$6),$C72/COUNTIFS($L$4:$AT$4,">="&$B72,$L$4:$AT$4,"<="&'PAINEL DE CONTROLE'!$D$6),0) -> 0 | O72: =IF(AND(O$4>=$B72,O$4<='PAINEL DE CONTROLE'!$D$6),$C72/COUNTIFS($L$4:$AT$4,">="&$B72,$L$4:$AT$4,"<="&'PAINEL DE CONTROLE'!$D$6),0) -> 0 | P72: =IF(AND(P$4>=$B72,P$4<='PAINEL DE CONTROLE'!$D$6),$C72/COUNTIFS($L$4:$AT$4,">="&$B72,$L$4:$AT$4,"<="&'PAINEL DE CONTROLE'!$D$6),0) -> 0 | Q72: =IF(AND(Q$4>=$B72,Q$4<='PAINEL DE CONTROLE'!$D$6),$C72/COUNTIFS($L$4:$AT$4,">="&$B72,$L$4:$AT$4,"<="&'PAINEL DE CONTROLE'!$D$6),0) -> 0 | R72: =IF(AND(R$4>=$B72,R$4<='PAINEL DE CONTROLE'!$D$6),$C72/COUNTIFS($L$4:$AT$4,">="&$B72,$L$4:$AT$4,"<="&'PAINEL DE CONTROLE'!$D$6),0) -> 0 | S72: =IF(AND(S$4>=$B72,S$4<='PAINEL DE CONTROLE'!$D$6),$C72/COUNTIFS($L$4:$AT$4,">="&$B72,$L$4:$AT$4,"<="&'PAINEL DE CONTROLE'!$D$6),0) -> 0 | T72: =IF(AND(T$4>=$B72,T$4<='PAINEL DE CONTROLE'!$D$6),$C72/COUNTIFS($L$4:$AT$4,">="&$B72,$L$4:$AT$4,"<="&'PAINEL DE CONTROLE'!$D$6),0) -> 0 | U72: =IF(AND(U$4>=$B72,U$4<='PAINEL DE CONTROLE'!$D$6),$C72/COUNTIFS($L$4:$AT$4,">="&$B72,$L$4:$AT$4,"<="&'PAINEL DE CONTROLE'!$D$6),0) -> 0 | V72: =IF(AND(V$4>=$B72,V$4<='PAINEL DE CONTROLE'!$D$6),$C72/COUNTIFS($L$4:$AT$4,">="&$B72,$L$4:$AT$4,"<="&'PAINEL DE CONTROLE'!$D$6),0) -> 0 | W72: =IF(AND(W$4>=$B72,W$4<='PAINEL DE CONTROLE'!$D$6),$C72/COUNTIFS($L$4:$AT$4,">="&$B72,$L$4:$AT$4,"<="&'PAINEL DE CONTROLE'!$D$6),0) -> 0 | X72: =IF(AND(X$4>=$B72,X$4<='PAINEL DE CONTROLE'!$D$6),$C72/COUNTIFS($L$4:$AT$4,">="&$B72,$L$4:$AT$4,"<="&'PAINEL DE CONTROLE'!$D$6),0) -> 0 | Y72: =IF(AND(Y$4>=$B72,Y$4<='PAINEL DE CONTROLE'!$D$6),$C72/COUNTIFS($L$4:$AT$4,">="&$B72,$L$4:$AT$4,"<="&'PAINEL DE CONTROLE'!$D$6),0) -> 0 | Z72: =IF(AND(Z$4>=$B72,Z$4<='PAINEL DE CONTROLE'!$D$6),$C72/COUNTIFS($L$4:$AT$4,">="&$B72,$L$4:$AT$4,"<="&'PAINEL DE CONTROLE'!$D$6),0) -> 0 | AA72: =IF(AND(AA$4>=$B72,AA$4<='PAINEL DE CONTROLE'!$D$6),$C72/COUNTIFS($L$4:$AT$4,">="&$B72,$L$4:$AT$4,"<="&'PAINEL DE CONTROLE'!$D$6),0) -> 0 | AB72: =IF(AND(AB$4>=$B72,AB$4<='PAINEL DE CONTROLE'!$D$6),$C72/COUNTIFS($L$4:$AT$4,">="&$B72,$L$4:$AT$4,"<="&'PAINEL DE CONTROLE'!$D$6),0) -> 0 | AC72: =IF(AND(AC$4>=$B72,AC$4<='PAINEL DE CONTROLE'!$D$6),$C72/COUNTIFS($L$4:$AT$4,">="&$B72,$L$4:$AT$4,"<="&'PAINEL DE CONTROLE'!$D$6),0) -> 0 | AD72: =IF(AND(AD$4>=$B72,AD$4<='PAINEL DE CONTROLE'!$D$6),$C72/COUNTIFS($L$4:$AT$4,">="&$B72,$L$4:$AT$4,"<="&'PAINEL DE CONTROLE'!$D$6),0) -> 0 | AE72: =IF(AND(AE$4>=$B72,AE$4<='PAINEL DE CONTROLE'!$D$6),$C72/COUNTIFS($L$4:$AT$4,">="&$B72,$L$4:$AT$4,"<="&'PAINEL DE CONTROLE'!$D$6),0) -> 0 | AF72: =IF(AND(AF$4>=$B72,AF$4<='PAINEL DE CONTROLE'!$D$6),$C72/COUNTIFS($L$4:$AT$4,">="&$B72,$L$4:$AT$4,"<="&'PAINEL DE CONTROLE'!$D$6),0) -> 0 | AG72: =IF(AND(AG$4>=$B72,AG$4<='PAINEL DE CONTROLE'!$D$6),$C72/COUNTIFS($L$4:$AT$4,">="&$B72,$L$4:$AT$4,"<="&'PAINEL DE CONTROLE'!$D$6),0) -> 0 | AH72: =IF(AND(AH$4>=$B72,AH$4<='PAINEL DE CONTROLE'!$D$6),$C72/COUNTIFS($L$4:$AT$4,">="&$B72,$L$4:$AT$4,"<="&'PAINEL DE CONTROLE'!$D$6),0) -> 0 | AI72: =IF(AND(AI$4>=$B72,AI$4<='PAINEL DE CONTROLE'!$D$6),$C72/COUNTIFS($L$4:$AT$4,">="&$B72,$L$4:$AT$4,"<="&'PAINEL DE CONTROLE'!$D$6),0) -> 0 | AJ72: =IF(AND(AJ$4>=$B72,AJ$4<='PAINEL DE CONTROLE'!$D$6),$C72/COUNTIFS($L$4:$AT$4,">="&$B72,$L$4:$AT$4,"<="&'PAINEL DE CONTROLE'!$D$6),0) -> 0 | AK72: =IF(AND(AK$4>=$B72,AK$4<='PAINEL DE CONTROLE'!$D$6),$C72/COUNTIFS($L$4:$AT$4,">="&$B72,$L$4:$AT$4,"<="&'PAINEL DE CONTROLE'!$D$6),0) -> 0 | AL72: =IF(AND(AL$4>=$B72,AL$4<='PAINEL DE CONTROLE'!$D$6),$C72/COUNTIFS($L$4:$AT$4,">="&$B72,$L$4:$AT$4,"<="&'PAINEL DE CONTROLE'!$D$6),0) -> 0 | AM72: =IF(AND(AM$4>=$B72,AM$4<='PAINEL DE CONTROLE'!$D$6),$C72/COUNTIFS($L$4:$AT$4,">="&$B72,$L$4:$AT$4,"<="&'PAINEL DE CONTROLE'!$D$6),0) -> 0 | AN72: =IF(AND(AN$4>=$B72,AN$4<='PAINEL DE CONTROLE'!$D$6),$C72/COUNTIFS($L$4:$AT$4,">="&$B72,$L$4:$AT$4,"<="&'PAINEL DE CONTROLE'!$D$6),0) -> 0 | AO72: =IF(AND(AO$4>=$B72,AO$4<='PAINEL DE CONTROLE'!$D$6),$C72/COUNTIFS($L$4:$AT$4,">="&$B72,$L$4:$AT$4,"<="&'PAINEL DE CONTROLE'!$D$6),0) -> 0 | AP72: =IF(AND(AP$4>=$B72,AP$4<='PAINEL DE CONTROLE'!$D$6),$C72/COUNTIFS($L$4:$AT$4,">="&$B72,$L$4:$AT$4,"<="&'PAINEL DE CONTROLE'!$D$6),0) -> 0 | AQ72: =IF(AND(AQ$4>=$B72,AQ$4<='PAINEL DE CONTROLE'!$D$6),$C72/COUNTIFS($L$4:$AT$4,">="&$B72,$L$4:$AT$4,"<="&'PAINEL DE CONTROLE'!$D$6),0) -> 0 | AR72: =IF(AND(AR$4>=$B72,AR$4<='PAINEL DE CONTROLE'!$D$6),$C72/COUNTIFS($L$4:$AT$4,">="&$B72,$L$4:$AT$4,"<="&'PAINEL DE CONTROLE'!$D$6),0) -> 0 | AS72: =IF(AND(AS$4>=$B72,AS$4<='PAINEL DE CONTROLE'!$D$6),$C72/COUNTIFS($L$4:$AT$4,">="&$B72,$L$4:$AT$4,"<="&'PAINEL DE CONTROLE'!$D$6),0) -> 0 | AT72: =IF(AND(AT$4>=$B72,AT$4<='PAINEL DE CONTROLE'!$D$6),$C72/COUNTIFS($L$4:$AT$4,">="&$B72,$L$4:$AT$4,"<="&'PAINEL DE CONTROLE'!$D$6),0) -> 0 | AU72: =IF(AND(AU$4>=$B72,AU$4<='PAINEL DE CONTROLE'!$D$6),$C72/COUNTIFS($L$4:$AT$4,">="&$B72,$L$4:$AT$4,"<="&'PAINEL DE CONTROLE'!$D$6),0) -> 0
B73: 32 | C73: 0 | M73: =IF(AND(M$4>=$B73,M$4<='PAINEL DE CONTROLE'!$D$6),$C73/COUNTIFS($L$4:$AT$4,">="&$B73,$L$4:$AT$4,"<="&'PAINEL DE CONTROLE'!$D$6),0) -> 0 | N73: =IF(AND(N$4>=$B73,N$4<='PAINEL DE CONTROLE'!$D$6),$C73/COUNTIFS($L$4:$AT$4,">="&$B73,$L$4:$AT$4,"<="&'PAINEL DE CONTROLE'!$D$6),0) -> 0 | O73: =IF(AND(O$4>=$B73,O$4<='PAINEL DE CONTROLE'!$D$6),$C73/COUNTIFS($L$4:$AT$4,">="&$B73,$L$4:$AT$4,"<="&'PAINEL DE CONTROLE'!$D$6),0) -> 0 | P73: =IF(AND(P$4>=$B73,P$4<='PAINEL DE CONTROLE'!$D$6),$C73/COUNTIFS($L$4:$AT$4,">="&$B73,$L$4:$AT$4,"<="&'PAINEL DE CONTROLE'!$D$6),0) -> 0 | Q73: =IF(AND(Q$4>=$B73,Q$4<='PAINEL DE CONTROLE'!$D$6),$C73/COUNTIFS($L$4:$AT$4,">="&$B73,$L$4:$AT$4,"<="&'PAINEL DE CONTROLE'!$D$6),0) -> 0 | R73: =IF(AND(R$4>=$B73,R$4<='PAINEL DE CONTROLE'!$D$6),$C73/COUNTIFS($L$4:$AT$4,">="&$B73,$L$4:$AT$4,"<="&'PAINEL DE CONTROLE'!$D$6),0) -> 0 | S73: =IF(AND(S$4>=$B73,S$4<='PAINEL DE CONTROLE'!$D$6),$C73/COUNTIFS($L$4:$AT$4,">="&$B73,$L$4:$AT$4,"<="&'PAINEL DE CONTROLE'!$D$6),0) -> 0 | T73: =IF(AND(T$4>=$B73,T$4<='PAINEL DE CONTROLE'!$D$6),$C73/COUNTIFS($L$4:$AT$4,">="&$B73,$L$4:$AT$4,"<="&'PAINEL DE CONTROLE'!$D$6),0) -> 0 | U73: =IF(AND(U$4>=$B73,U$4<='PAINEL DE CONTROLE'!$D$6),$C73/COUNTIFS($L$4:$AT$4,">="&$B73,$L$4:$AT$4,"<="&'PAINEL DE CONTROLE'!$D$6),0) -> 0 | V73: =IF(AND(V$4>=$B73,V$4<='PAINEL DE CONTROLE'!$D$6),$C73/COUNTIFS($L$4:$AT$4,">="&$B73,$L$4:$AT$4,"<="&'PAINEL DE CONTROLE'!$D$6),0) -> 0 | W73: =IF(AND(W$4>=$B73,W$4<='PAINEL DE CONTROLE'!$D$6),$C73/COUNTIFS($L$4:$AT$4,">="&$B73,$L$4:$AT$4,"<="&'PAINEL DE CONTROLE'!$D$6),0) -> 0 | X73: =IF(AND(X$4>=$B73,X$4<='PAINEL DE CONTROLE'!$D$6),$C73/COUNTIFS($L$4:$AT$4,">="&$B73,$L$4:$AT$4,"<="&'PAINEL DE CONTROLE'!$D$6),0) -> 0 | Y73: =IF(AND(Y$4>=$B73,Y$4<='PAINEL DE CONTROLE'!$D$6),$C73/COUNTIFS($L$4:$AT$4,">="&$B73,$L$4:$AT$4,"<="&'PAINEL DE CONTROLE'!$D$6),0) -> 0 | Z73: =IF(AND(Z$4>=$B73,Z$4<='PAINEL DE CONTROLE'!$D$6),$C73/COUNTIFS($L$4:$AT$4,">="&$B73,$L$4:$AT$4,"<="&'PAINEL DE CONTROLE'!$D$6),0) -> 0 | AA73: =IF(AND(AA$4>=$B73,AA$4<='PAINEL DE CONTROLE'!$D$6),$C73/COUNTIFS($L$4:$AT$4,">="&$B73,$L$4:$AT$4,"<="&'PAINEL DE CONTROLE'!$D$6),0) -> 0 | AB73: =IF(AND(AB$4>=$B73,AB$4<='PAINEL DE CONTROLE'!$D$6),$C73/COUNTIFS($L$4:$AT$4,">="&$B73,$L$4:$AT$4,"<="&'PAINEL DE CONTROLE'!$D$6),0) -> 0 | AC73: =IF(AND(AC$4>=$B73,AC$4<='PAINEL DE CONTROLE'!$D$6),$C73/COUNTIFS($L$4:$AT$4,">="&$B73,$L$4:$AT$4,"<="&'PAINEL DE CONTROLE'!$D$6),0) -> 0 | AD73: =IF(AND(AD$4>=$B73,AD$4<='PAINEL DE CONTROLE'!$D$6),$C73/COUNTIFS($L$4:$AT$4,">="&$B73,$L$4:$AT$4,"<="&'PAINEL DE CONTROLE'!$D$6),0) -> 0 | AE73: =IF(AND(AE$4>=$B73,AE$4<='PAINEL DE CONTROLE'!$D$6),$C73/COUNTIFS($L$4:$AT$4,">="&$B73,$L$4:$AT$4,"<="&'PAINEL DE CONTROLE'!$D$6),0) -> 0 | AF73: =IF(AND(AF$4>=$B73,AF$4<='PAINEL DE CONTROLE'!$D$6),$C73/COUNTIFS($L$4:$AT$4,">="&$B73,$L$4:$AT$4,"<="&'PAINEL DE CONTROLE'!$D$6),0) -> 0 | AG73: =IF(AND(AG$4>=$B73,AG$4<='PAINEL DE CONTROLE'!$D$6),$C73/COUNTIFS($L$4:$AT$4,">="&$B73,$L$4:$AT$4,"<="&'PAINEL DE CONTROLE'!$D$6),0) -> 0 | AH73: =IF(AND(AH$4>=$B73,AH$4<='PAINEL DE CONTROLE'!$D$6),$C73/COUNTIFS($L$4:$AT$4,">="&$B73,$L$4:$AT$4,"<="&'PAINEL DE CONTROLE'!$D$6),0) -> 0 | AI73: =IF(AND(AI$4>=$B73,AI$4<='PAINEL DE CONTROLE'!$D$6),$C73/COUNTIFS($L$4:$AT$4,">="&$B73,$L$4:$AT$4,"<="&'PAINEL DE CONTROLE'!$D$6),0) -> 0 | AJ73: =IF(AND(AJ$4>=$B73,AJ$4<='PAINEL DE CONTROLE'!$D$6),$C73/COUNTIFS($L$4:$AT$4,">="&$B73,$L$4:$AT$4,"<="&'PAINEL DE CONTROLE'!$D$6),0) -> 0 | AK73: =IF(AND(AK$4>=$B73,AK$4<='PAINEL DE CONTROLE'!$D$6),$C73/COUNTIFS($L$4:$AT$4,">="&$B73,$L$4:$AT$4,"<="&'PAINEL DE CONTROLE'!$D$6),0) -> 0 | AL73: =IF(AND(AL$4>=$B73,AL$4<='PAINEL DE CONTROLE'!$D$6),$C73/COUNTIFS($L$4:$AT$4,">="&$B73,$L$4:$AT$4,"<="&'PAINEL DE CONTROLE'!$D$6),0) -> 0 | AM73: =IF(AND(AM$4>=$B73,AM$4<='PAINEL DE CONTROLE'!$D$6),$C73/COUNTIFS($L$4:$AT$4,">="&$B73,$L$4:$AT$4,"<="&'PAINEL DE CONTROLE'!$D$6),0) -> 0 | AN73: =IF(AND(AN$4>=$B73,AN$4<='PAINEL DE CONTROLE'!$D$6),$C73/COUNTIFS($L$4:$AT$4,">="&$B73,$L$4:$AT$4,"<="&'PAINEL DE CONTROLE'!$D$6),0) -> 0 | AO73: =IF(AND(AO$4>=$B73,AO$4<='PAINEL DE CONTROLE'!$D$6),$C73/COUNTIFS($L$4:$AT$4,">="&$B73,$L$4:$AT$4,"<="&'PAINEL DE CONTROLE'!$D$6),0) -> 0 | AP73: =IF(AND(AP$4>=$B73,AP$4<='PAINEL DE CONTROLE'!$D$6),$C73/COUNTIFS($L$4:$AT$4,">="&$B73,$L$4:$AT$4,"<="&'PAINEL DE CONTROLE'!$D$6),0) -> 0 | AQ73: =IF(AND(AQ$4>=$B73,AQ$4<='PAINEL DE CONTROLE'!$D$6),$C73/COUNTIFS($L$4:$AT$4,">="&$B73,$L$4:$AT$4,"<="&'PAINEL DE CONTROLE'!$D$6),0) -> 0 | AR73: =IF(AND(AR$4>=$B73,AR$4<='PAINEL DE CONTROLE'!$D$6),$C73/COUNTIFS($L$4:$AT$4,">="&$B73,$L$4:$AT$4,"<="&'PAINEL DE CONTROLE'!$D$6),0) -> 0 | AS73: =IF(AND(AS$4>=$B73,AS$4<='PAINEL DE CONTROLE'!$D$6),$C73/COUNTIFS($L$4:$AT$4,">="&$B73,$L$4:$AT$4,"<="&'PAINEL DE CONTROLE'!$D$6),0) -> 0 | AT73: =IF(AND(AT$4>=$B73,AT$4<='PAINEL DE CONTROLE'!$D$6),$C73/COUNTIFS($L$4:$AT$4,">="&$B73,$L$4:$AT$4,"<="&'PAINEL DE CONTROLE'!$D$6),0) -> 0 | AU73: =IF(AND(AU$4>=$B73,AU$4<='PAINEL DE CONTROLE'!$D$6),$C73/COUNTIFS($L$4:$AT$4,">="&$B73,$L$4:$AT$4,"<="&'PAINEL DE CONTROLE'!$D$6),0) -> 0
B74: 33 | C74: 0 | M74: =IF(AND(M$4>=$B74,M$4<='PAINEL DE CONTROLE'!$D$6),$C74/COUNTIFS($L$4:$AT$4,">="&$B74,$L$4:$AT$4,"<="&'PAINEL DE CONTROLE'!$D$6),0) -> 0 | N74: =IF(AND(N$4>=$B74,N$4<='PAINEL DE CONTROLE'!$D$6),$C74/COUNTIFS($L$4:$AT$4,">="&$B74,$L$4:$AT$4,"<="&'PAINEL DE CONTROLE'!$D$6),0) -> 0 | O74: =IF(AND(O$4>=$B74,O$4<='PAINEL DE CONTROLE'!$D$6),$C74/COUNTIFS($L$4:$AT$4,">="&$B74,$L$4:$AT$4,"<="&'PAINEL DE CONTROLE'!$D$6),0) -> 0 | P74: =IF(AND(P$4>=$B74,P$4<='PAINEL DE CONTROLE'!$D$6),$C74/COUNTIFS($L$4:$AT$4,">="&$B74,$L$4:$AT$4,"<="&'PAINEL DE CONTROLE'!$D$6),0) -> 0 | Q74: =IF(AND(Q$4>=$B74,Q$4<='PAINEL DE CONTROLE'!$D$6),$C74/COUNTIFS($L$4:$AT$4,">="&$B74,$L$4:$AT$4,"<="&'PAINEL DE CONTROLE'!$D$6),0) -> 0 | R74: =IF(AND(R$4>=$B74,R$4<='PAINEL DE CONTROLE'!$D$6),$C74/COUNTIFS($L$4:$AT$4,">="&$B74,$L$4:$AT$4,"<="&'PAINEL DE CONTROLE'!$D$6),0) -> 0 | S74: =IF(AND(S$4>=$B74,S$4<='PAINEL DE CONTROLE'!$D$6),$C74/COUNTIFS($L$4:$AT$4,">="&$B74,$L$4:$AT$4,"<="&'PAINEL DE CONTROLE'!$D$6),0) -> 0 | T74: =IF(AND(T$4>=$B74,T$4<='PAINEL DE CONTROLE'!$D$6),$C74/COUNTIFS($L$4:$AT$4,">="&$B74,$L$4:$AT$4,"<="&'PAINEL DE CONTROLE'!$D$6),0) -> 0 | U74: =IF(AND(U$4>=$B74,U$4<='PAINEL DE CONTROLE'!$D$6),$C74/COUNTIFS($L$4:$AT$4,">="&$B74,$L$4:$AT$4,"<="&'PAINEL DE CONTROLE'!$D$6),0) -> 0 | V74: =IF(AND(V$4>=$B74,V$4<='PAINEL DE CONTROLE'!$D$6),$C74/COUNTIFS($L$4:$AT$4,">="&$B74,$L$4:$AT$4,"<="&'PAINEL DE CONTROLE'!$D$6),0) -> 0 | W74: =IF(AND(W$4>=$B74,W$4<='PAINEL DE CONTROLE'!$D$6),$C74/COUNTIFS($L$4:$AT$4,">="&$B74,$L$4:$AT$4,"<="&'PAINEL DE CONTROLE'!$D$6),0) -> 0 | X74: =IF(AND(X$4>=$B74,X$4<='PAINEL DE CONTROLE'!$D$6),$C74/COUNTIFS($L$4:$AT$4,">="&$B74,$L$4:$AT$4,"<="&'PAINEL DE CONTROLE'!$D$6),0) -> 0 | Y74: =IF(AND(Y$4>=$B74,Y$4<='PAINEL DE CONTROLE'!$D$6),$C74/COUNTIFS($L$4:$AT$4,">="&$B74,$L$4:$AT$4,"<="&'PAINEL DE CONTROLE'!$D$6),0) -> 0 | Z74: =IF(AND(Z$4>=$B74,Z$4<='PAINEL DE CONTROLE'!$D$6),$C74/COUNTIFS($L$4:$AT$4,">="&$B74,$L$4:$AT$4,"<="&'PAINEL DE CONTROLE'!$D$6),0) -> 0 | AA74: =IF(AND(AA$4>=$B74,AA$4<='PAINEL DE CONTROLE'!$D$6),$C74/COUNTIFS($L$4:$AT$4,">="&$B74,$L$4:$AT$4,"<="&'PAINEL DE CONTROLE'!$D$6),0) -> 0 | AB74: =IF(AND(AB$4>=$B74,AB$4<='PAINEL DE CONTROLE'!$D$6),$C74/COUNTIFS($L$4:$AT$4,">="&$B74,$L$4:$AT$4,"<="&'PAINEL DE CONTROLE'!$D$6),0) -> 0 | AC74: =IF(AND(AC$4>=$B74,AC$4<='PAINEL DE CONTROLE'!$D$6),$C74/COUNTIFS($L$4:$AT$4,">="&$B74,$L$4:$AT$4,"<="&'PAINEL DE CONTROLE'!$D$6),0) -> 0 | AD74: =IF(AND(AD$4>=$B74,AD$4<='PAINEL DE CONTROLE'!$D$6),$C74/COUNTIFS($L$4:$AT$4,">="&$B74,$L$4:$AT$4,"<="&'PAINEL DE CONTROLE'!$D$6),0) -> 0 | AE74: =IF(AND(AE$4>=$B74,AE$4<='PAINEL DE CONTROLE'!$D$6),$C74/COUNTIFS($L$4:$AT$4,">="&$B74,$L$4:$AT$4,"<="&'PAINEL DE CONTROLE'!$D$6),0) -> 0 | AF74: =IF(AND(AF$4>=$B74,AF$4<='PAINEL DE CONTROLE'!$D$6),$C74/COUNTIFS($L$4:$AT$4,">="&$B74,$L$4:$AT$4,"<="&'PAINEL DE CONTROLE'!$D$6),0) -> 0 | AG74: =IF(AND(AG$4>=$B74,AG$4<='PAINEL DE CONTROLE'!$D$6),$C74/COUNTIFS($L$4:$AT$4,">="&$B74,$L$4:$AT$4,"<="&'PAINEL DE CONTROLE'!$D$6),0) -> 0 | AH74: =IF(AND(AH$4>=$B74,AH$4<='PAINEL DE CONTROLE'!$D$6),$C74/COUNTIFS($L$4:$AT$4,">="&$B74,$L$4:$AT$4,"<="&'PAINEL DE CONTROLE'!$D$6),0) -> 0 | AI74: =IF(AND(AI$4>=$B74,AI$4<='PAINEL DE CONTROLE'!$D$6),$C74/COUNTIFS($L$4:$AT$4,">="&$B74,$L$4:$AT$4,"<="&'PAINEL DE CONTROLE'!$D$6),0) -> 0 | AJ74: =IF(AND(AJ$4>=$B74,AJ$4<='PAINEL DE CONTROLE'!$D$6),$C74/COUNTIFS($L$4:$AT$4,">="&$B74,$L$4:$AT$4,"<="&'PAINEL DE CONTROLE'!$D$6),0) -> 0 | AK74: =IF(AND(AK$4>=$B74,AK$4<='PAINEL DE CONTROLE'!$D$6),$C74/COUNTIFS($L$4:$AT$4,">="&$B74,$L$4:$AT$4,"<="&'PAINEL DE CONTROLE'!$D$6),0) -> 0 | AL74: =IF(AND(AL$4>=$B74,AL$4<='PAINEL DE CONTROLE'!$D$6),$C74/COUNTIFS($L$4:$AT$4,">="&$B74,$L$4:$AT$4,"<="&'PAINEL DE CONTROLE'!$D$6),0) -> 0 | AM74: =IF(AND(AM$4>=$B74,AM$4<='PAINEL DE CONTROLE'!$D$6),$C74/COUNTIFS($L$4:$AT$4,">="&$B74,$L$4:$AT$4,"<="&'PAINEL DE CONTROLE'!$D$6),0) -> 0 | AN74: =IF(AND(AN$4>=$B74,AN$4<='PAINEL DE CONTROLE'!$D$6),$C74/COUNTIFS($L$4:$AT$4,">="&$B74,$L$4:$AT$4,"<="&'PAINEL DE CONTROLE'!$D$6),0) -> 0 | AO74: =IF(AND(AO$4>=$B74,AO$4<='PAINEL DE CONTROLE'!$D$6),$C74/COUNTIFS($L$4:$AT$4,">="&$B74,$L$4:$AT$4,"<="&'PAINEL DE CONTROLE'!$D$6),0) -> 0 | AP74: =IF(AND(AP$4>=$B74,AP$4<='PAINEL DE CONTROLE'!$D$6),$C74/COUNTIFS($L$4:$AT$4,">="&$B74,$L$4:$AT$4,"<="&'PAINEL DE CONTROLE'!$D$6),0) -> 0 | AQ74: =IF(AND(AQ$4>=$B74,AQ$4<='PAINEL DE CONTROLE'!$D$6),$C74/COUNTIFS($L$4:$AT$4,">="&$B74,$L$4:$AT$4,"<="&'PAINEL DE CONTROLE'!$D$6),0) -> 0 | AR74: =IF(AND(AR$4>=$B74,AR$4<='PAINEL DE CONTROLE'!$D$6),$C74/COUNTIFS($L$4:$AT$4,">="&$B74,$L$4:$AT$4,"<="&'PAINEL DE CONTROLE'!$D$6),0) -> 0 | AS74: =IF(AND(AS$4>=$B74,AS$4<='PAINEL DE CONTROLE'!$D$6),$C74/COUNTIFS($L$4:$AT$4,">="&$B74,$L$4:$AT$4,"<="&'PAINEL DE CONTROLE'!$D$6),0) -> 0 | AT74: =IF(AND(AT$4>=$B74,AT$4<='PAINEL DE CONTROLE'!$D$6),$C74/COUNTIFS($L$4:$AT$4,">="&$B74,$L$4:$AT$4,"<="&'PAINEL DE CONTROLE'!$D$6),0) -> 0 | AU74: =IF(AND(AU$4>=$B74,AU$4<='PAINEL DE CONTROLE'!$D$6),$C74/COUNTIFS($L$4:$AT$4,">="&$B74,$L$4:$AT$4,"<="&'PAINEL DE CONTROLE'!$D$6),0) -> 0
B75: 34 | C75: 0 | M75: =IF(AND(M$4>=$B75,M$4<='PAINEL DE CONTROLE'!$D$6),$C75/COUNTIFS($L$4:$AT$4,">="&$B75,$L$4:$AT$4,"<="&'PAINEL DE CONTROLE'!$D$6),0) -> 0 | N75: =IF(AND(N$4>=$B75,N$4<='PAINEL DE CONTROLE'!$D$6),$C75/COUNTIFS($L$4:$AT$4,">="&$B75,$L$4:$AT$4,"<="&'PAINEL DE CONTROLE'!$D$6),0) -> 0 | O75: =IF(AND(O$4>=$B75,O$4<='PAINEL DE CONTROLE'!$D$6),$C75/COUNTIFS($L$4:$AT$4,">="&$B75,$L$4:$AT$4,"<="&'PAINEL DE CONTROLE'!$D$6),0) -> 0 | P75: =IF(AND(P$4>=$B75,P$4<='PAINEL DE CONTROLE'!$D$6),$C75/COUNTIFS($L$4:$AT$4,">="&$B75,$L$4:$AT$4,"<="&'PAINEL DE CONTROLE'!$D$6),0) -> 0 | Q75: =IF(AND(Q$4>=$B75,Q$4<='PAINEL DE CONTROLE'!$D$6),$C75/COUNTIFS($L$4:$AT$4,">="&$B75,$L$4:$AT$4,"<="&'PAINEL DE CONTROLE'!$D$6),0) -> 0 | R75: =IF(AND(R$4>=$B75,R$4<='PAINEL DE CONTROLE'!$D$6),$C75/COUNTIFS($L$4:$AT$4,">="&$B75,$L$4:$AT$4,"<="&'PAINEL DE CONTROLE'!$D$6),0) -> 0 | S75: =IF(AND(S$4>=$B75,S$4<='PAINEL DE CONTROLE'!$D$6),$C75/COUNTIFS($L$4:$AT$4,">="&$B75,$L$4:$AT$4,"<="&'PAINEL DE CONTROLE'!$D$6),0) -> 0 | T75: =IF(AND(T$4>=$B75,T$4<='PAINEL DE CONTROLE'!$D$6),$C75/COUNTIFS($L$4:$AT$4,">="&$B75,$L$4:$AT$4,"<="&'PAINEL DE CONTROLE'!$D$6),0) -> 0 | U75: =IF(AND(U$4>=$B75,U$4<='PAINEL DE CONTROLE'!$D$6),$C75/COUNTIFS($L$4:$AT$4,">="&$B75,$L$4:$AT$4,"<="&'PAINEL DE CONTROLE'!$D$6),0) -> 0 | V75: =IF(AND(V$4>=$B75,V$4<='PAINEL DE CONTROLE'!$D$6),$C75/COUNTIFS($L$4:$AT$4,">="&$B75,$L$4:$AT$4,"<="&'PAINEL DE CONTROLE'!$D$6),0) -> 0 | W75: =IF(AND(W$4>=$B75,W$4<='PAINEL DE CONTROLE'!$D$6),$C75/COUNTIFS($L$4:$AT$4,">="&$B75,$L$4:$AT$4,"<="&'PAINEL DE CONTROLE'!$D$6),0) -> 0 | X75: =IF(AND(X$4>=$B75,X$4<='PAINEL DE CONTROLE'!$D$6),$C75/COUNTIFS($L$4:$AT$4,">="&$B75,$L$4:$AT$4,"<="&'PAINEL DE CONTROLE'!$D$6),0) -> 0 | Y75: =IF(AND(Y$4>=$B75,Y$4<='PAINEL DE CONTROLE'!$D$6),$C75/COUNTIFS($L$4:$AT$4,">="&$B75,$L$4:$AT$4,"<="&'PAINEL DE CONTROLE'!$D$6),0) -> 0 | Z75: =IF(AND(Z$4>=$B75,Z$4<='PAINEL DE CONTROLE'!$D$6),$C75/COUNTIFS($L$4:$AT$4,">="&$B75,$L$4:$AT$4,"<="&'PAINEL DE CONTROLE'!$D$6),0) -> 0 | AA75: =IF(AND(AA$4>=$B75,AA$4<='PAINEL DE CONTROLE'!$D$6),$C75/COUNTIFS($L$4:$AT$4,">="&$B75,$L$4:$AT$4,"<="&'PAINEL DE CONTROLE'!$D$6),0) -> 0 | AB75: =IF(AND(AB$4>=$B75,AB$4<='PAINEL DE CONTROLE'!$D$6),$C75/COUNTIFS($L$4:$AT$4,">="&$B75,$L$4:$AT$4,"<="&'PAINEL DE CONTROLE'!$D$6),0) -> 0 | AC75: =IF(AND(AC$4>=$B75,AC$4<='PAINEL DE CONTROLE'!$D$6),$C75/COUNTIFS($L$4:$AT$4,">="&$B75,$L$4:$AT$4,"<="&'PAINEL DE CONTROLE'!$D$6),0) -> 0 | AD75: =IF(AND(AD$4>=$B75,AD$4<='PAINEL DE CONTROLE'!$D$6),$C75/COUNTIFS($L$4:$AT$4,">="&$B75,$L$4:$AT$4,"<="&'PAINEL DE CONTROLE'!$D$6),0) -> 0 | AE75: =IF(AND(AE$4>=$B75,AE$4<='PAINEL DE CONTROLE'!$D$6),$C75/COUNTIFS($L$4:$AT$4,">="&$B75,$L$4:$AT$4,"<="&'PAINEL DE CONTROLE'!$D$6),0) -> 0 | AF75: =IF(AND(AF$4>=$B75,AF$4<='PAINEL DE CONTROLE'!$D$6),$C75/COUNTIFS($L$4:$AT$4,">="&$B75,$L$4:$AT$4,"<="&'PAINEL DE CONTROLE'!$D$6),0) -> 0 | AG75: =IF(AND(AG$4>=$B75,AG$4<='PAINEL DE CONTROLE'!$D$6),$C75/COUNTIFS($L$4:$AT$4,">="&$B75,$L$4:$AT$4,"<="&'PAINEL DE CONTROLE'!$D$6),0) -> 0 | AH75: =IF(AND(AH$4>=$B75,AH$4<='PAINEL DE CONTROLE'!$D$6),$C75/COUNTIFS($L$4:$AT$4,">="&$B75,$L$4:$AT$4,"<="&'PAINEL DE CONTROLE'!$D$6),0) -> 0 | AI75: =IF(AND(AI$4>=$B75,AI$4<='PAINEL DE CONTROLE'!$D$6),$C75/COUNTIFS($L$4:$AT$4,">="&$B75,$L$4:$AT$4,"<="&'PAINEL DE CONTROLE'!$D$6),0) -> 0 | AJ75: =IF(AND(AJ$4>=$B75,AJ$4<='PAINEL DE CONTROLE'!$D$6),$C75/COUNTIFS($L$4:$AT$4,">="&$B75,$L$4:$AT$4,"<="&'PAINEL DE CONTROLE'!$D$6),0) -> 0 | AK75: =IF(AND(AK$4>=$B75,AK$4<='PAINEL DE CONTROLE'!$D$6),$C75/COUNTIFS($L$4:$AT$4,">="&$B75,$L$4:$AT$4,"<="&'PAINEL DE CONTROLE'!$D$6),0) -> 0 | AL75: =IF(AND(AL$4>=$B75,AL$4<='PAINEL DE CONTROLE'!$D$6),$C75/COUNTIFS($L$4:$AT$4,">="&$B75,$L$4:$AT$4,"<="&'PAINEL DE CONTROLE'!$D$6),0) -> 0 | AM75: =IF(AND(AM$4>=$B75,AM$4<='PAINEL DE CONTROLE'!$D$6),$C75/COUNTIFS($L$4:$AT$4,">="&$B75,$L$4:$AT$4,"<="&'PAINEL DE CONTROLE'!$D$6),0) -> 0 | AN75: =IF(AND(AN$4>=$B75,AN$4<='PAINEL DE CONTROLE'!$D$6),$C75/COUNTIFS($L$4:$AT$4,">="&$B75,$L$4:$AT$4,"<="&'PAINEL DE CONTROLE'!$D$6),0) -> 0 | AO75: =IF(AND(AO$4>=$B75,AO$4<='PAINEL DE CONTROLE'!$D$6),$C75/COUNTIFS($L$4:$AT$4,">="&$B75,$L$4:$AT$4,"<="&'PAINEL DE CONTROLE'!$D$6),0) -> 0 | AP75: =IF(AND(AP$4>=$B75,AP$4<='PAINEL DE CONTROLE'!$D$6),$C75/COUNTIFS($L$4:$AT$4,">="&$B75,$L$4:$AT$4,"<="&'PAINEL DE CONTROLE'!$D$6),0) -> 0 | AQ75: =IF(AND(AQ$4>=$B75,AQ$4<='PAINEL DE CONTROLE'!$D$6),$C75/COUNTIFS($L$4:$AT$4,">="&$B75,$L$4:$AT$4,"<="&'PAINEL DE CONTROLE'!$D$6),0) -> 0 | AR75: =IF(AND(AR$4>=$B75,AR$4<='PAINEL DE CONTROLE'!$D$6),$C75/COUNTIFS($L$4:$AT$4,">="&$B75,$L$4:$AT$4,"<="&'PAINEL DE CONTROLE'!$D$6),0) -> 0 | AS75: =IF(AND(AS$4>=$B75,AS$4<='PAINEL DE CONTROLE'!$D$6),$C75/COUNTIFS($L$4:$AT$4,">="&$B75,$L$4:$AT$4,"<="&'PAINEL DE CONTROLE'!$D$6),0) -> 0 | AT75: =IF(AND(AT$4>=$B75,AT$4<='PAINEL DE CONTROLE'!$D$6),$C75/COUNTIFS($L$4:$AT$4,">="&$B75,$L$4:$AT$4,"<="&'PAINEL DE CONTROLE'!$D$6),0) -> 0 | AU75: =IF(AND(AU$4>=$B75,AU$4<='PAINEL DE CONTROLE'!$D$6),$C75/COUNTIFS($L$4:$AT$4,">="&$B75,$L$4:$AT$4,"<="&'PAINEL DE CONTROLE'!$D$6),0) -> 0
B76: 35 | C76: 0 | M76: =IF(AND(M$4>=$B76,M$4<='PAINEL DE CONTROLE'!$D$6),$C76/COUNTIFS($L$4:$AT$4,">="&$B76,$L$4:$AT$4,"<="&'PAINEL DE CONTROLE'!$D$6),0) -> 0 | N76: =IF(AND(N$4>=$B76,N$4<='PAINEL DE CONTROLE'!$D$6),$C76/COUNTIFS($L$4:$AT$4,">="&$B76,$L$4:$AT$4,"<="&'PAINEL DE CONTROLE'!$D$6),0) -> 0 | O76: =IF(AND(O$4>=$B76,O$4<='PAINEL DE CONTROLE'!$D$6),$C76/COUNTIFS($L$4:$AT$4,">="&$B76,$L$4:$AT$4,"<="&'PAINEL DE CONTROLE'!$D$6),0) -> 0 | P76: =IF(AND(P$4>=$B76,P$4<='PAINEL DE CONTROLE'!$D$6),$C76/COUNTIFS($L$4:$AT$4,">="&$B76,$L$4:$AT$4,"<="&'PAINEL DE CONTROLE'!$D$6),0) -> 0 | Q76: =IF(AND(Q$4>=$B76,Q$4<='PAINEL DE CONTROLE'!$D$6),$C76/COUNTIFS($L$4:$AT$4,">="&$B76,$L$4:$AT$4,"<="&'PAINEL DE CONTROLE'!$D$6),0) -> 0 | R76: =IF(AND(R$4>=$B76,R$4<='PAINEL DE CONTROLE'!$D$6),$C76/COUNTIFS($L$4:$AT$4,">="&$B76,$L$4:$AT$4,"<="&'PAINEL DE CONTROLE'!$D$6),0) -> 0 | S76: =IF(AND(S$4>=$B76,S$4<='PAINEL DE CONTROLE'!$D$6),$C76/COUNTIFS($L$4:$AT$4,">="&$B76,$L$4:$AT$4,"<="&'PAINEL DE CONTROLE'!$D$6),0) -> 0 | T76: =IF(AND(T$4>=$B76,T$4<='PAINEL DE CONTROLE'!$D$6),$C76/COUNTIFS($L$4:$AT$4,">="&$B76,$L$4:$AT$4,"<="&'PAINEL DE CONTROLE'!$D$6),0) -> 0 | U76: =IF(AND(U$4>=$B76,U$4<='PAINEL DE CONTROLE'!$D$6),$C76/COUNTIFS($L$4:$AT$4,">="&$B76,$L$4:$AT$4,"<="&'PAINEL DE CONTROLE'!$D$6),0) -> 0 | V76: =IF(AND(V$4>=$B76,V$4<='PAINEL DE CONTROLE'!$D$6),$C76/COUNTIFS($L$4:$AT$4,">="&$B76,$L$4:$AT$4,"<="&'PAINEL DE CONTROLE'!$D$6),0) -> 0 | W76: =IF(AND(W$4>=$B76,W$4<='PAINEL DE CONTROLE'!$D$6),$C76/COUNTIFS($L$4:$AT$4,">="&$B76,$L$4:$AT$4,"<="&'PAINEL DE CONTROLE'!$D$6),0) -> 0 | X76: =IF(AND(X$4>=$B76,X$4<='PAINEL DE CONTROLE'!$D$6),$C76/COUNTIFS($L$4:$AT$4,">="&$B76,$L$4:$AT$4,"<="&'PAINEL DE CONTROLE'!$D$6),0) -> 0 | Y76: =IF(AND(Y$4>=$B76,Y$4<='PAINEL DE CONTROLE'!$D$6),$C76/COUNTIFS($L$4:$AT$4,">="&$B76,$L$4:$AT$4,"<="&'PAINEL DE CONTROLE'!$D$6),0) -> 0 | Z76: =IF(AND(Z$4>=$B76,Z$4<='PAINEL DE CONTROLE'!$D$6),$C76/COUNTIFS($L$4:$AT$4,">="&$B76,$L$4:$AT$4,"<="&'PAINEL DE CONTROLE'!$D$6),0) -> 0 | AA76: =IF(AND(AA$4>=$B76,AA$4<='PAINEL DE CONTROLE'!$D$6),$C76/COUNTIFS($L$4:$AT$4,">="&$B76,$L$4:$AT$4,"<="&'PAINEL DE CONTROLE'!$D$6),0) -> 0 | AB76: =IF(AND(AB$4>=$B76,AB$4<='PAINEL DE CONTROLE'!$D$6),$C76/COUNTIFS($L$4:$AT$4,">="&$B76,$L$4:$AT$4,"<="&'PAINEL DE CONTROLE'!$D$6),0) -> 0 | AC76: =IF(AND(AC$4>=$B76,AC$4<='PAINEL DE CONTROLE'!$D$6),$C76/COUNTIFS($L$4:$AT$4,">="&$B76,$L$4:$AT$4,"<="&'PAINEL DE CONTROLE'!$D$6),0) -> 0 | AD76: =IF(AND(AD$4>=$B76,AD$4<='PAINEL DE CONTROLE'!$D$6),$C76/COUNTIFS($L$4:$AT$4,">="&$B76,$L$4:$AT$4,"<="&'PAINEL DE CONTROLE'!$D$6),0) -> 0 | AE76: =IF(AND(AE$4>=$B76,AE$4<='PAINEL DE CONTROLE'!$D$6),$C76/COUNTIFS($L$4:$AT$4,">="&$B76,$L$4:$AT$4,"<="&'PAINEL DE CONTROLE'!$D$6),0) -> 0 | AF76: =IF(AND(AF$4>=$B76,AF$4<='PAINEL DE CONTROLE'!$D$6),$C76/COUNTIFS($L$4:$AT$4,">="&$B76,$L$4:$AT$4,"<="&'PAINEL DE CONTROLE'!$D$6),0) -> 0 | AG76: =IF(AND(AG$4>=$B76,AG$4<='PAINEL DE CONTROLE'!$D$6),$C76/COUNTIFS($L$4:$AT$4,">="&$B76,$L$4:$AT$4,"<="&'PAINEL DE CONTROLE'!$D$6),0) -> 0 | AH76: =IF(AND(AH$4>=$B76,AH$4<='PAINEL DE CONTROLE'!$D$6),$C76/COUNTIFS($L$4:$AT$4,">="&$B76,$L$4:$AT$4,"<="&'PAINEL DE CONTROLE'!$D$6),0) -> 0 | AI76: =IF(AND(AI$4>=$B76,AI$4<='PAINEL DE CONTROLE'!$D$6),$C76/COUNTIFS($L$4:$AT$4,">="&$B76,$L$4:$AT$4,"<="&'PAINEL DE CONTROLE'!$D$6),0) -> 0 | AJ76: =IF(AND(AJ$4>=$B76,AJ$4<='PAINEL DE CONTROLE'!$D$6),$C76/COUNTIFS($L$4:$AT$4,">="&$B76,$L$4:$AT$4,"<="&'PAINEL DE CONTROLE'!$D$6),0) -> 0 | AK76: =IF(AND(AK$4>=$B76,AK$4<='PAINEL DE CONTROLE'!$D$6),$C76/COUNTIFS($L$4:$AT$4,">="&$B76,$L$4:$AT$4,"<="&'PAINEL DE CONTROLE'!$D$6),0) -> 0 | AL76: =IF(AND(AL$4>=$B76,AL$4<='PAINEL DE CONTROLE'!$D$6),$C76/COUNTIFS($L$4:$AT$4,">="&$B76,$L$4:$AT$4,"<="&'PAINEL DE CONTROLE'!$D$6),0) -> 0 | AM76: =IF(AND(AM$4>=$B76,AM$4<='PAINEL DE CONTROLE'!$D$6),$C76/COUNTIFS($L$4:$AT$4,">="&$B76,$L$4:$AT$4,"<="&'PAINEL DE CONTROLE'!$D$6),0) -> 0 | AN76: =IF(AND(AN$4>=$B76,AN$4<='PAINEL DE CONTROLE'!$D$6),$C76/COUNTIFS($L$4:$AT$4,">="&$B76,$L$4:$AT$4,"<="&'PAINEL DE CONTROLE'!$D$6),0) -> 0 | AO76: =IF(AND(AO$4>=$B76,AO$4<='PAINEL DE CONTROLE'!$D$6),$C76/COUNTIFS($L$4:$AT$4,">="&$B76,$L$4:$AT$4,"<="&'PAINEL DE CONTROLE'!$D$6),0) -> 0 | AP76: =IF(AND(AP$4>=$B76,AP$4<='PAINEL DE CONTROLE'!$D$6),$C76/COUNTIFS($L$4:$AT$4,">="&$B76,$L$4:$AT$4,"<="&'PAINEL DE CONTROLE'!$D$6),0) -> 0 | AQ76: =IF(AND(AQ$4>=$B76,AQ$4<='PAINEL DE CONTROLE'!$D$6),$C76/COUNTIFS($L$4:$AT$4,">="&$B76,$L$4:$AT$4,"<="&'PAINEL DE CONTROLE'!$D$6),0) -> 0 | AR76: =IF(AND(AR$4>=$B76,AR$4<='PAINEL DE CONTROLE'!$D$6),$C76/COUNTIFS($L$4:$AT$4,">="&$B76,$L$4:$AT$4,"<="&'PAINEL DE CONTROLE'!$D$6),0) -> 0 | AS76: =IF(AND(AS$4>=$B76,AS$4<='PAINEL DE CONTROLE'!$D$6),$C76/COUNTIFS($L$4:$AT$4,">="&$B76,$L$4:$AT$4,"<="&'PAINEL DE CONTROLE'!$D$6),0) -> 0 | AT76: =IF(AND(AT$4>=$B76,AT$4<='PAINEL DE CONTROLE'!$D$6),$C76/COUNTIFS($L$4:$AT$4,">="&$B76,$L$4:$AT$4,"<="&'PAINEL DE CONTROLE'!$D$6),0) -> 0
B78: Depreciação REAL do Aporte | M78: =SUM(M80:M114) -> 0 | N78: 0 | O78: 0 | P78: 0 | Q78: 0 | R78: 0 | S78: 0 | T78: 0 | U78: 0 | V78: 0 | W78: 0 | X78: 0 | Y78: 0 | Z78: 0 | AA78: 0 | AB78: 0 | AC78: 0 | AD78: 0 | AE78: 0 | AF78: 0 | AG78: 0 | AH78: 0 | AI78: 0 | AJ78: 0 | AK78: 0 | AL78: 0 | AM78: 0 | AN78: 0 | AO78: 0 | AP78: 0 | AQ78: 0 | AR78: 0 | AS78: 0 | AT78: 0 | AU78: 0
B80: 1 | M80: =M42/(1+'DADOS MACROECONÔMICOS'!N16) -> 0 | N80: =N42/(1+'DADOS MACROECONÔMICOS'!O16) -> 0 | O80: =O42/(1+'DADOS MACROECONÔMICOS'!P16) -> 0 | P80: =P42/(1+'DADOS MACROECONÔMICOS'!Q16) -> 0 | Q80: =Q42/(1+'DADOS MACROECONÔMICOS'!R16) -> 0 | R80: =R42/(1+'DADOS MACROECONÔMICOS'!S16) -> 0 | S80: =S42/(1+'DADOS MACROECONÔMICOS'!T16) -> 0 | T80: =T42/(1+'DADOS MACROECONÔMICOS'!U16) -> 0 | U80: =U42/(1+'DADOS MACROECONÔMICOS'!V16) -> 0 | V80: =V42/(1+'DADOS MACROECONÔMICOS'!W16) -> 0 | W80: =W42/(1+'DADOS MACROECONÔMICOS'!X16) -> 0 | X80: =X42/(1+'DADOS MACROECONÔMICOS'!Y16) -> 0 | Y80: =Y42/(1+'DADOS MACROECONÔMICOS'!Z16) -> 0 | Z80: =Z42/(1+'DADOS MACROECONÔMICOS'!AA16) -> 0 | AA80: =AA42/(1+'DADOS MACROECONÔMICOS'!AB16) -> 0 | AB80: =AB42/(1+'DADOS MACROECONÔMICOS'!AC16) -> 0 | AC80: =AC42/(1+'DADOS MACROECONÔMICOS'!AD16) -> 0 | AD80: =AD42/(1+'DADOS MACROECONÔMICOS'!AE16) -> 0 | AE80: =AE42/(1+'DADOS MACROECONÔMICOS'!AF16) -> 0 | AF80: =AF42/(1+'DADOS MACROECONÔMICOS'!AG16) -> 0 | AG80: =AG42/(1+'DADOS MACROECONÔMICOS'!AH16) -> 0 | AH80: =AH42/(1+'DADOS MACROECONÔMICOS'!AI16) -> 0 | AI80: =AI42/(1+'DADOS MACROECONÔMICOS'!AJ16) -> 0 | AJ80: =AJ42/(1+'DADOS MACROECONÔMICOS'!AK16) -> 0 | AK80: =AK42/(1+'DADOS MACROECONÔMICOS'!AL16) -> 0 | AL80: =AL42/(1+'DADOS MACROECONÔMICOS'!AM16) -> 0 | AM80: =AM42/(1+'DADOS MACROECONÔMICOS'!AN16) -> 0 | AN80: =AN42/(1+'DADOS MACROECONÔMICOS'!AO16) -> 0 | AO80: =AO42/(1+'DADOS MACROECONÔMICOS'!AP16) -> 0 | AP80: =AP42/(1+'DADOS MACROECONÔMICOS'!AQ16) -> 0 | AQ80: =AQ42/(1+'DADOS MACROECONÔMICOS'!AR16) -> 0 | AR80: =AR42/(1+'DADOS MACROECONÔMICOS'!AS16) -> 0 | AS80: =AS42/(1+'DADOS MACROECONÔMICOS'!AT16) -> 0 | AT80: =AT42/(1+'DADOS MACROECONÔMICOS'!AU16) -> 0 | AU80: =AU42/(1+'DADOS MACROECONÔMICOS'!AV16) -> 0
B81: =B80+1 -> 2 | M81: =M43/(1+'DADOS MACROECONÔMICOS'!N17) -> 0 | N81: =N43/(1+'DADOS MACROECONÔMICOS'!O17) -> 0 | O81: =O43/(1+'DADOS MACROECONÔMICOS'!P17) -> 0 | P81: =P43/(1+'DADOS MACROECONÔMICOS'!Q17) -> 0 | Q81: =Q43/(1+'DADOS MACROECONÔMICOS'!R17) -> 0 | R81: =R43/(1+'DADOS MACROECONÔMICOS'!S17) -> 0 | S81: =S43/(1+'DADOS MACROECONÔMICOS'!T17) -> 0 | T81: =T43/(1+'DADOS MACROECONÔMICOS'!U17) -> 0 | U81: =U43/(1+'DADOS MACROECONÔMICOS'!V17) -> 0 | V81: =V43/(1+'DADOS MACROECONÔMICOS'!W17) -> 0 | W81: =W43/(1+'DADOS MACROECONÔMICOS'!X17) -> 0 | X81: =X43/(1+'DADOS MACROECONÔMICOS'!Y17) -> 0 | Y81: =Y43/(1+'DADOS MACROECONÔMICOS'!Z17) -> 0 | Z81: =Z43/(1+'DADOS MACROECONÔMICOS'!AA17) -> 0 | AA81: =AA43/(1+'DADOS MACROECONÔMICOS'!AB17) -> 0 | AB81: =AB43/(1+'DADOS MACROECONÔMICOS'!AC17) -> 0 | AC81: =AC43/(1+'DADOS MACROECONÔMICOS'!AD17) -> 0 | AD81: =AD43/(1+'DADOS MACROECONÔMICOS'!AE17) -> 0 | AE81: =AE43/(1+'DADOS MACROECONÔMICOS'!AF17) -> 0 | AF81: =AF43/(1+'DADOS MACROECONÔMICOS'!AG17) -> 0 | AG81: =AG43/(1+'DADOS MACROECONÔMICOS'!AH17) -> 0 | AH81: =AH43/(1+'DADOS MACROECONÔMICOS'!AI17) -> 0 | AI81: =AI43/(1+'DADOS MACROECONÔMICOS'!AJ17) -> 0 | AJ81: =AJ43/(1+'DADOS MACROECONÔMICOS'!AK17) -> 0 | AK81: =AK43/(1+'DADOS MACROECONÔMICOS'!AL17) -> 0 | AL81: =AL43/(1+'DADOS MACROECONÔMICOS'!AM17) -> 0 | AM81: =AM43/(1+'DADOS MACROECONÔMICOS'!AN17) -> 0 | AN81: =AN43/(1+'DADOS MACROECONÔMICOS'!AO17) -> 0 | AO81: =AO43/(1+'DADOS MACROECONÔMICOS'!AP17) -> 0 | AP81: =AP43/(1+'DADOS MACROECONÔMICOS'!AQ17) -> 0 | AQ81: =AQ43/(1+'DADOS MACROECONÔMICOS'!AR17) -> 0 | AR81: =AR43/(1+'DADOS MACROECONÔMICOS'!AS17) -> 0 | AS81: =AS43/(1+'DADOS MACROECONÔMICOS'!AT17) -> 0 | AT81: =AT43/(1+'DADOS MACROECONÔMICOS'!AU17) -> 0 | AU81: =AU43/(1+'DADOS MACROECONÔMICOS'!AV17) -> 0
B82: 3 | M82: =M44/(1+'DADOS MACROECONÔMICOS'!N18) -> 0 | N82: =N44/(1+'DADOS MACROECONÔMICOS'!O18) -> 0 | O82: =O44/(1+'DADOS MACROECONÔMICOS'!P18) -> 0 | P82: =P44/(1+'DADOS MACROECONÔMICOS'!Q18) -> 0 | Q82: =Q44/(1+'DADOS MACROECONÔMICOS'!R18) -> 0 | R82: =R44/(1+'DADOS MACROECONÔMICOS'!S18) -> 0 | S82: =S44/(1+'DADOS MACROECONÔMICOS'!T18) -> 0 | T82: =T44/(1+'DADOS MACROECONÔMICOS'!U18) -> 0 | U82: =U44/(1+'DADOS MACROECONÔMICOS'!V18) -> 0 | V82: =V44/(1+'DADOS MACROECONÔMICOS'!W18) -> 0 | W82: =W44/(1+'DADOS MACROECONÔMICOS'!X18) -> 0 | X82: =X44/(1+'DADOS MACROECONÔMICOS'!Y18) -> 0 | Y82: =Y44/(1+'DADOS MACROECONÔMICOS'!Z18) -> 0 | Z82: =Z44/(1+'DADOS MACROECONÔMICOS'!AA18) -> 0 | AA82: =AA44/(1+'DADOS MACROECONÔMICOS'!AB18) -> 0 | AB82: =AB44/(1+'DADOS MACROECONÔMICOS'!AC18) -> 0 | AC82: =AC44/(1+'DADOS MACROECONÔMICOS'!AD18) -> 0 | AD82: =AD44/(1+'DADOS MACROECONÔMICOS'!AE18) -> 0 | AE82: =AE44/(1+'DADOS MACROECONÔMICOS'!AF18) -> 0 | AF82: =AF44/(1+'DADOS MACROECONÔMICOS'!AG18) -> 0 | AG82: =AG44/(1+'DADOS MACROECONÔMICOS'!AH18) -> 0 | AH82: =AH44/(1+'DADOS MACROECONÔMICOS'!AI18) -> 0 | AI82: =AI44/(1+'DADOS MACROECONÔMICOS'!AJ18) -> 0 | AJ82: =AJ44/(1+'DADOS MACROECONÔMICOS'!AK18) -> 0 | AK82: =AK44/(1+'DADOS MACROECONÔMICOS'!AL18) -> 0 | AL82: =AL44/(1+'DADOS MACROECONÔMICOS'!AM18) -> 0 | AM82: =AM44/(1+'DADOS MACROECONÔMICOS'!AN18) -> 0 | AN82: =AN44/(1+'DADOS MACROECONÔMICOS'!AO18) -> 0 | AO82: =AO44/(1+'DADOS MACROECONÔMICOS'!AP18) -> 0 | AP82: =AP44/(1+'DADOS MACROECONÔMICOS'!AQ18) -> 0 | AQ82: =AQ44/(1+'DADOS MACROECONÔMICOS'!AR18) -> 0 | AR82: =AR44/(1+'DADOS MACROECONÔMICOS'!AS18) -> 0 | AS82: =AS44/(1+'DADOS MACROECONÔMICOS'!AT18) -> 0 | AT82: =AT44/(1+'DADOS MACROECONÔMICOS'!AU18) -> 0 | AU82: =AU44/(1+'DADOS MACROECONÔMICOS'!AV18) -> 0
B83: 4 | M83: =M45/(1+'DADOS MACROECONÔMICOS'!N19) -> 0 | N83: =N45/(1+'DADOS MACROECONÔMICOS'!O19) -> 0 | O83: =O45/(1+'DADOS MACROECONÔMICOS'!P19) -> 0 | P83: =P45/(1+'DADOS MACROECONÔMICOS'!Q19) -> 0 | Q83: =Q45/(1+'DADOS MACROECONÔMICOS'!R19) -> 0 | R83: =R45/(1+'DADOS MACROECONÔMICOS'!S19) -> 0 | S83: =S45/(1+'DADOS MACROECONÔMICOS'!T19) -> 0 | T83: =T45/(1+'DADOS MACROECONÔMICOS'!U19) -> 0 | U83: =U45/(1+'DADOS MACROECONÔMICOS'!V19) -> 0 | V83: =V45/(1+'DADOS MACROECONÔMICOS'!W19) -> 0 | W83: =W45/(1+'DADOS MACROECONÔMICOS'!X19) -> 0 | X83: =X45/(1+'DADOS MACROECONÔMICOS'!Y19) -> 0 | Y83: =Y45/(1+'DADOS MACROECONÔMICOS'!Z19) -> 0 | Z83: =Z45/(1+'DADOS MACROECONÔMICOS'!AA19) -> 0 | AA83: =AA45/(1+'DADOS MACROECONÔMICOS'!AB19) -> 0 | AB83: =AB45/(1+'DADOS MACROECONÔMICOS'!AC19) -> 0 | AC83: =AC45/(1+'DADOS MACROECONÔMICOS'!AD19) -> 0 | AD83: =AD45/(1+'DADOS MACROECONÔMICOS'!AE19) -> 0 | AE83: =AE45/(1+'DADOS MACROECONÔMICOS'!AF19) -> 0 | AF83: =AF45/(1+'DADOS MACROECONÔMICOS'!AG19) -> 0 | AG83: =AG45/(1+'DADOS MACROECONÔMICOS'!AH19) -> 0 | AH83: =AH45/(1+'DADOS MACROECONÔMICOS'!AI19) -> 0 | AI83: =AI45/(1+'DADOS MACROECONÔMICOS'!AJ19) -> 0 | AJ83: =AJ45/(1+'DADOS MACROECONÔMICOS'!AK19) -> 0 | AK83: =AK45/(1+'DADOS MACROECONÔMICOS'!AL19) -> 0 | AL83: =AL45/(1+'DADOS MACROECONÔMICOS'!AM19) -> 0 | AM83: =AM45/(1+'DADOS MACROECONÔMICOS'!AN19) -> 0 | AN83: =AN45/(1+'DADOS MACROECONÔMICOS'!AO19) -> 0 | AO83: =AO45/(1+'DADOS MACROECONÔMICOS'!AP19) -> 0 | AP83: =AP45/(1+'DADOS MACROECONÔMICOS'!AQ19) -> 0 | AQ83: =AQ45/(1+'DADOS MACROECONÔMICOS'!AR19) -> 0 | AR83: =AR45/(1+'DADOS MACROECONÔMICOS'!AS19) -> 0 | AS83: =AS45/(1+'DADOS MACROECONÔMICOS'!AT19) -> 0 | AT83: =AT45/(1+'DADOS MACROECONÔMICOS'!AU19) -> 0 | AU83: =AU45/(1+'DADOS MACROECONÔMICOS'!AV19) -> 0
B84: 5 | M84: =M46/(1+'DADOS MACROECONÔMICOS'!N20) -> 0 | N84: =N46/(1+'DADOS MACROECONÔMICOS'!O20) -> 0 | O84: =O46/(1+'DADOS MACROECONÔMICOS'!P20) -> 0 | P84: =P46/(1+'DADOS MACROECONÔMICOS'!Q20) -> 0 | Q84: =Q46/(1+'DADOS MACROECONÔMICOS'!R20) -> 0 | R84: =R46/(1+'DADOS MACROECONÔMICOS'!S20) -> 0 | S84: =S46/(1+'DADOS MACROECONÔMICOS'!T20) -> 0 | T84: =T46/(1+'DADOS MACROECONÔMICOS'!U20) -> 0 | U84: =U46/(1+'DADOS MACROECONÔMICOS'!V20) -> 0 | V84: =V46/(1+'DADOS MACROECONÔMICOS'!W20) -> 0 | W84: =W46/(1+'DADOS MACROECONÔMICOS'!X20) -> 0 | X84: =X46/(1+'DADOS MACROECONÔMICOS'!Y20) -> 0 | Y84: =Y46/(1+'DADOS MACROECONÔMICOS'!Z20) -> 0 | Z84: =Z46/(1+'DADOS MACROECONÔMICOS'!AA20) -> 0 | AA84: =AA46/(1+'DADOS MACROECONÔMICOS'!AB20) -> 0 | AB84: =AB46/(1+'DADOS MACROECONÔMICOS'!AC20) -> 0 | AC84: =AC46/(1+'DADOS MACROECONÔMICOS'!AD20) -> 0 | AD84: =AD46/(1+'DADOS MACROECONÔMICOS'!AE20) -> 0 | AE84: =AE46/(1+'DADOS MACROECONÔMICOS'!AF20) -> 0 | AF84: =AF46/(1+'DADOS MACROECONÔMICOS'!AG20) -> 0 | AG84: =AG46/(1+'DADOS MACROECONÔMICOS'!AH20) -> 0 | AH84: =AH46/(1+'DADOS MACROECONÔMICOS'!AI20) -> 0 | AI84: =AI46/(1+'DADOS MACROECONÔMICOS'!AJ20) -> 0 | AJ84: =AJ46/(1+'DADOS MACROECONÔMICOS'!AK20) -> 0 | AK84: =AK46/(1+'DADOS MACROECONÔMICOS'!AL20) -> 0 | AL84: =AL46/(1+'DADOS MACROECONÔMICOS'!AM20) -> 0 | AM84: =AM46/(1+'DADOS MACROECONÔMICOS'!AN20) -> 0 | AN84: =AN46/(1+'DADOS MACROECONÔMICOS'!AO20) -> 0 | AO84: =AO46/(1+'DADOS MACROECONÔMICOS'!AP20) -> 0 | AP84: =AP46/(1+'DADOS MACROECONÔMICOS'!AQ20) -> 0 | AQ84: =AQ46/(1+'DADOS MACROECONÔMICOS'!AR20) -> 0 | AR84: =AR46/(1+'DADOS MACROECONÔMICOS'!AS20) -> 0 | AS84: =AS46/(1+'DADOS MACROECONÔMICOS'!AT20) -> 0 | AT84: =AT46/(1+'DADOS MACROECONÔMICOS'!AU20) -> 0 | AU84: =AU46/(1+'DADOS MACROECONÔMICOS'!AV20) -> 0
B85: 6 | M85: =M47/(1+'DADOS MACROECONÔMICOS'!N21) -> 0 | N85: =N47/(1+'DADOS MACROECONÔMICOS'!O21) -> 0 | O85: =O47/(1+'DADOS MACROECONÔMICOS'!P21) -> 0 | P85: =P47/(1+'DADOS MACROECONÔMICOS'!Q21) -> 0 | Q85: =Q47/(1+'DADOS MACROECONÔMICOS'!R21) -> 0 | R85: =R47/(1+'DADOS MACROECONÔMICOS'!S21) -> 0 | S85: =S47/(1+'DADOS MACROECONÔMICOS'!T21) -> 0 | T85: =T47/(1+'DADOS MACROECONÔMICOS'!U21) -> 0 | U85: =U47/(1+'DADOS MACROECONÔMICOS'!V21) -> 0 | V85: =V47/(1+'DADOS MACROECONÔMICOS'!W21) -> 0 | W85: =W47/(1+'DADOS MACROECONÔMICOS'!X21) -> 0 | X85: =X47/(1+'DADOS MACROECONÔMICOS'!Y21) -> 0 | Y85: =Y47/(1+'DADOS MACROECONÔMICOS'!Z21) -> 0 | Z85: =Z47/(1+'DADOS MACROECONÔMICOS'!AA21) -> 0 | AA85: =AA47/(1+'DADOS MACROECONÔMICOS'!AB21) -> 0 | AB85: =AB47/(1+'DADOS MACROECONÔMICOS'!AC21) -> 0 | AC85: =AC47/(1+'DADOS MACROECONÔMICOS'!AD21) -> 0 | AD85: =AD47/(1+'DADOS MACROECONÔMICOS'!AE21) -> 0 | AE85: =AE47/(1+'DADOS MACROECONÔMICOS'!AF21) -> 0 | AF85: =AF47/(1+'DADOS MACROECONÔMICOS'!AG21) -> 0 | AG85: =AG47/(1+'DADOS MACROECONÔMICOS'!AH21) -> 0 | AH85: =AH47/(1+'DADOS MACROECONÔMICOS'!AI21) -> 0 | AI85: =AI47/(1+'DADOS MACROECONÔMICOS'!AJ21) -> 0 | AJ85: =AJ47/(1+'DADOS MACROECONÔMICOS'!AK21) -> 0 | AK85: =AK47/(1+'DADOS MACROECONÔMICOS'!AL21) -> 0 | AL85: =AL47/(1+'DADOS MACROECONÔMICOS'!AM21) -> 0 | AM85: =AM47/(1+'DADOS MACROECONÔMICOS'!AN21) -> 0 | AN85: =AN47/(1+'DADOS MACROECONÔMICOS'!AO21) -> 0 | AO85: =AO47/(1+'DADOS MACROECONÔMICOS'!AP21) -> 0 | AP85: =AP47/(1+'DADOS MACROECONÔMICOS'!AQ21) -> 0 | AQ85: =AQ47/(1+'DADOS MACROECONÔMICOS'!AR21) -> 0 | AR85: =AR47/(1+'DADOS MACROECONÔMICOS'!AS21) -> 0 | AS85: =AS47/(1+'DADOS MACROECONÔMICOS'!AT21) -> 0 | AT85: =AT47/(1+'DADOS MACROECONÔMICOS'!AU21) -> 0 | AU85: =AU47/(1+'DADOS MACROECONÔMICOS'!AV21) -> 0
